Workbook

Sheet INDEX
A1: Number | B1: Author | C1: Journal | D1: Edition | E1: Title | F1: Year | G1: Spreadsheet | H1: Mineral, Location | I1: File Hyperlink | J1: File Name | K1: Earth/Solar System | L1: Older Than Galaxy | M1: Older Than Universe | N1: Major Discordancies | O1: Row Totals | P1: Categories
A2: 1 | B2: Robert J. Fleck | C2: Economic Geology | D2: Volume 97, Pages 23 – 42 | E2: Age and Origin of Base and Precious Metal | F2: 2002 | G2: Ages_001 | H2: Idaho | I2: =("C:\Essays\Geo_Dating\Age_Earth\" & J2 &".pdf") -> C:\Essays\Geo_Dating\Age_Earth\Ages_001.pdf | J2: Ages_001 | K2: 2 | L2: 1 | M2: 2 | N2: 1 | O2: =SUM(K2:N2) -> 6 | P2: Older Than Universe
A3: 2 | B3: Vidas Stukas | C3: Earth and Planetary Science Letters | D3: Volume 22, Pages 256 - 266 | E3: 40 Ar/39ar Dating Of The Long Range Dikes | F3: 1974 | G3: Ages_002 | H3: Lava Dikes, Newfoundland | I3: C:\Essays\Geo_Dating\Age_Earth\Ages_002.pdf | J3: Ages_002 | K3: 2 | L3: 1 | M3: 2 | N3: 1 | O3: 6 | P3: Older Than Universe
A4: 3 | B4: Glenn W. Berger | C4: Earth and Planetary Science Letters | D4: Volume 26, Pages 387 - 408 | E4: 40ar/39ar Step Heating Of Biotite | F4: 1975 | G4: Ages_003 | H4: Biotite, Colorado | I4: C:\Essays\Geo_Dating\Age_Earth\Ages_003.pdf | J4: Ages_003 | N4: 1 | O4: 1 | P4: Older Than The Earth
A5: 4 | B5: R. Burgess | C5: Earth and Planetary Science Letters | D5: Volume 109, Pages 147 - 167 | E5: 40ar-39ar Analysis Of Perthite | F5: 1992 | G5: Ages_004 | H5: Fledspars, Greenland | I5: C:\Essays\Geo_Dating\Age_Earth\Ages_004.pdf | J5: Ages_004 | N5: 1 | O5: 1
A6: 5 | B6: M. S. Brewer | C6: Earth and Planetary Science Letters | D6: Volume 6, Pages 321 - 331 | E6: Excess Radiogenic Argon | F6: 1969 | G6: Ages_005 | H6: Austria | I6: C:\Essays\Geo_Dating\Age_Earth\Ages_005.pdf | J6: Ages_005 | N6: 1 | O6: 1
A7: 6 | B7: Kenneth R. Ludwig | C7: Economic Geology | D7: Volume 73, Pages 29 - 49 | E7: Uranium-Daughter Migration | F7: 1978 | G7: Ages_006 | H7: Pitchblende, Wyoming | I7: C:\Essays\Geo_Dating\Age_Earth\Ages_006.pdf | J7: Ages_006 | K7: 2 | L7: 1 | N7: 1 | O7: 4 | P7: Older Than Galaxy
A8: 7 | B8: J. Dostal | C8: Geology Magazine | D8: Volume 142, Pages 159 – 172 | E8: Crustal Xenoliths | F8: 2005 | G8: Ages_007 | H8: Granite, Morocco | I8: C:\Essays\Geo_Dating\Age_Earth\Ages_007.pdf | J8: Ages_007 | N8: 1 | O8: 1
A9: 8 | B9: R. L. Gibson | C9: South African Journal Of Geology | D9: Volume 103, Pages 175 - 190 | E9: 40Ar/39Ar Constraints | F9: 2000 | G9: Ages_008 | H9: South Africa | I9: C:\Essays\Geo_Dating\Age_Earth\Ages_008.pdf | J9: Ages_008 | N9: 1 | O9: 1
A10: 9 | B10: Don Chipley | C10: American Mineralogist | D10: Volume 92, Pages 1925 – 1935 | E10: Measurement of U-Pb ages | F10: 2007 | G10: Ages_009 | H10: Uraninite, Mount Isa | I10: C:\Essays\Geo_Dating\Age_Earth\Ages_009.pdf | J10: Ages_009 | N10: 1 | O10: 1
A11: 10 | B11: David E. Seidemann | C11: Earth and Planetary Science Letters | D11: Volume 33, Pages 268 - 272 | E11: 40ar/39ar Age Spectrum | F11: 1976 | G11: Ages_010 | H11: Ronda Massif in Spain | I11: C:\Essays\Geo_Dating\Age_Earth\Ages_010.pdf | J11: Ages_010 | N11: 1 | O11: 1
A12: 11 | B12: M. R. Wilson | C12: Earth and Planetary Science Letters | D12: Volume 14, Pages 403 - 412 | E12: Excess Radiogenic Argon | F12: 1972 | G12: Ages_011 | H12: Biotites, Norway | I12: C:\Essays\Geo_Dating\Age_Earth\Ages_011.pdf | J12: Ages_011 | N12: 1 | O12: 1
A13: 12 | B13: Ichiro Kaneoka | C13: Earth and Planetary Science Letters | D13: Volume 22, Pages 145 - 156 | E13: Excess Argon In Ultramafic Rocks | F13: 1974 | G13: Ages_012 | H13: Xenoliths, Kola Peninsula | I13: C:\Essays\Geo_Dating\Age_Earth\Ages_012.pdf | J13: Ages_012 | K13: 2 | N13: 1 | O13: 3 | P13: Older Than Solar System
A14: 13 | B14: A. Sebai | C14: Earth and Planetary Science Letters | D14: Volume 104, Pages 455 - 472 | E14: 40ar/39ar Dating And Geochemistry | F14: 1991 | G14: Ages_013 | H14: Plagioclase, Morocco | I14: C:\Essays\Geo_Dating\Age_Earth\Ages_013.pdf | J14: Ages_013 | N14: 1 | O14: 1
A15: 14 | B15: Grenville Turner | C15: Earth and Planetary Science Letters | D15: Volume 110, Pages 193 - 211 | E15: Excess Argon | F15: 1992 | G15: Ages_014 | H15: Proterozoic, North China | I15: C:\Essays\Geo_Dating\Age_Earth\Ages_014.pdf | J15: Ages_014 | N15: 1 | O15: 1
A16: 15 | B16: William C. Mc Clelland | C16: European Journal Of Minerology | D16: Volume 21, Pages 1135 – 1148 | E16: Trace-Element Record in Zircons | F16: 2009 | G16: Ages_015 | H16: Zircons, Greenland | I16: C:\Essays\Geo_Dating\Age_Earth\Ages_015.pdf | J16: Ages_015 | N16: 1 | O16: 1
A17: 16 | B17: Sakiko N. Olsen | C17: European Journal Of Minerology | D17: Volume 12, Pages 1245 - 1260 | E17: New U-Pb Zircon Data | F17: 2000 | G17: Ages_016 | H17: Zircons, Switzerland | I17: C:\Essays\Geo_Dating\Age_Earth\Ages_016.pdf | J17: Ages_016 | N17: 1 | O17: 1
A18: 17 | B18: Kenneth R. Ludwig | C18: Economic Geology | D18: Volume 74, Pages 1654 - 1668 | E18: Age Of Uranium Mineralization | F18: 1979 | G18: Ages_017 | H18: Granites, Wyoming | I18: C:\Essays\Geo_Dating\Age_Earth\Ages_017.pdf | J18: Ages_017 | K18: 2 | L18: 1 | N18: 1 | O18: 4 | P18: Older Than Galaxy
A19: 18 | B19: James Allibon | C19: Canadian Journal Of Earth Science | D19: Volume 48, Pages 567 – 592 | E19: U–Pb Dating on Coexisting Zircon | F19: 2011 | G19: Ages_018 | H19: Zircon, Canary Islands | I19: C:\Essays\Geo_Dating\Age_Earth\Ages_018.pdf | J19: Ages_018 | N19: 1 | O19: 1
A20: 19 | B20: R. J. Pankhurst | C20: Earth and Planetary Science Letters | D20: Volume 20, Pages 157 - 170 | E20: Mineral Age Patterns | F20: 1973 | G20: Ages_019 | H20: Gneiss, Greenland | I20: C:\Essays\Geo_Dating\Age_Earth\Ages_019.pdf | J20: Ages_019 | K20: 2 | N20: 1 | O20: 3 | P20: Older Than Solar System
A21: 20 | B21: J. Allibon. | C21: Canadian Journal Of Earth Science | D21: Volume 48, Pages 567 – 592 | E21: U–Pb Dating On Coexisting Zircon | F21: 2011 | G21: Allibon | H21: Baddeleyite, Canary Islands | I21: C:\Essays\Geo_Dating\Age_Earth\Allibon.pdf | J21: Allibon | N21: 1 | O21: 1
A22: 21 | B22: Yuri Amelin | C22: Geochemica Et Cosmochemica Acta | D22: Volume 69, Number 2, pages 505 – 518 | E22: Precise U-Pb dating of Chondrites | F22: 2005 | G22: Amelin_A | H22: Meteorites_10 | I22: C:\Essays\Geo_Dating\Age_Earth\Amelin_A.pdf | J22: Amelin_A | K22: 2 | N22: 1 | O22: 3 | P22: Older Than Solar System
A23: 22 | B23: Yuri Amelin | C23: Geochemica Et Cosmochemica Acta | D23: Volume 73, Pages 5212 – 5223 | E23: Resolution Reveals New Problems | F23: 2009 | G23: Amelin_B | H23: Meteorites_24 | I23: C:\Essays\Geo_Dating\Age_Earth\Amelin_B.pdf | J23: Amelin_B | N23: 1 | O23: 1
A24: 23 | B24: Yuri Amelin | C24: Meteoritics And Planetary Science | D24: Volume 42, Numbers 7/8, Pages 1321 – 1335 | E24: Pb isotopic age of the Allende chondrules | F24: 2007 | G24: Amelin_C | H24: Meteorites_03 | I24: C:\Essays\Geo_Dating\Age_Earth\Amelin_C.pdf | J24: Amelin_C | K24: 2 | L24: 1 | M24: 1 | N24: 1 | O24: 5 | P24: Older Than Globular Clusters
A25: 24 | B25: Yuri Amelin | C25: Geochemica Et Cosmochemica Acta | D25: Volume 72, Pages 221 – 232 | E25: U–Pb ages of angrites | F25: 2008 | G25: Amelin_D | H25: Meteorites_11 | I25: C:\Essays\Geo_Dating\Age_Earth\Amelin_D.pdf | J25: Amelin_D | K25: 2 | N25: 1 | O25: 3 | P25: Older Than Solar System
A26: 25 | B26: Yuri Amelin | C26: Geochemica Et Cosmochemica Acta | D26: Volume 64, Number 17, Pages 2913 – 2928 | E26: Geochronology of Quaternary Opal | F26: 2000 | G26: Amelin_E | H26: Opals, Nevada | I26: C:\Essays\Geo_Dating\Age_Earth\Amelin_E.pdf | J26: Amelin_E | K26: 2 | N26: 1 | O26: 3 | P26: Older Than Solar System
A27: 26 | B27: Yuri Amelin | C27: Geochemica Et Cosmochemica Acta | D27: Volume 72, Pages 2067 – 2089 | E27: Natural Radionuclide Mobility | F27: 2008 | G27: Amelin_F | H27: Opals, Nevada | I27: C:\Essays\Geo_Dating\Age_Earth\Amelin_F.pdf | J27: Amelin_F | K27: 2 | L27: 1 | M27: 2 | N27: 1 | O27: 6 | P27: Older Than Universe
A28: 27 | B28: Yuri Amelin | C28: Geochemica Et Cosmochemica Acta | D28: Volume 67, Number 6, Pages 1145 – 1176 | E28: Silica Mineral Formation | F28: 2003 | G28: Amelin_G | H28: Opals, Nevada | I28: C:\Essays\Geo_Dating\Age_Earth\Amelin_G.pdf | J28: Amelin_G | N28: 1 | O28: 1
A29: 28 | B29: Anne H. Peslier | C29: Geochimica et Cosmochimica Acta | D29: Volume 64, Number 17, Pages 3061–3071 | E29: Northern Canadian Cordillera | F29: 2000 | G29: Below_Zero | H29: Canada | I29: C:\Essays\Geo_Dating\Age_Earth\Future_Ages.pdf | J29: Future_Ages | N29: 1 | O29: 1
A30: 29 | B30: J. L. Birck | C30: Meteoritics And Planetary Science | D30: Volume 33, Pages 641 - 453 | E30: Rhenium-187-Osmium-187 in iron meteorites | F30: 1998 | G30: Birck | H30: Meteorites_04 | I30: C:\Essays\Geo_Dating\Age_Earth\Meteorite_Birck.pdf | J30: Meteorite_Birck | K30: 2 | L30: 1 | M30: 1 | N30: 1 | O30: 5 | P30: Older Than Globular Clusters
A31: 30 | B31: D. D. Bogard | C31: Geochemica Et Cosmochemica Acta | D31: Volume 54, pages 2549 - 2564 | E31: Ar-39, Ar-40 Dating of Mesosiderites | F31: 1990 | G31: BOGARD_A | H31: Meteorites_05 | I31: C:\Essays\Geo_Dating\Age_Earth\BOGARD_A.pdf | J31: BOGARD_A | K31: 2 | L31: 1 | M31: 1 | N31: 1 | O31: 5 | P31: Older Than Globular Clusters
A32: 31 | B32: D. D. Bogard | C32: Geochemica Et Cosmochemica Acta | D32: Volume 44, pages 1667 - 1682 | E32: Ar diffusion properties, Meteorites | F32: 1980 | G32: BOGARD_B | H32: Meteorites_12 | I32: C:\Essays\Geo_Dating\Age_Earth\BOGARD_B.pdf | J32: BOGARD_B | K32: 2 | N32: 1 | O32: 3 | P32: Older Than Solar System
A33: 32 | B33: D. D. Bogard | C33: Earth and Planetary Science Letters | D33: Volume 62, pages 132 - 146 | E33: U-Th-Pb dating of Abee E4 Meteorite | F33: 1983 | G33: BOGARD_C | H33: Meteorites_13 | I33: C:\Essays\Geo_Dating\Age_Earth\BOGARD_C.pdf | J33: BOGARD_C | K33: 2 | N33: 1 | O33: 3 | P33: Older Than Solar System
A34: 33 | B34: Donald D. Bogard | C34: Geochemica Et Cosmochemica Acta | D34: Volume 64, Number 12, Pages 2133 – 2154 | E34: Silicates From IIE Iron Meteorites | F34: 2000 | G34: BOGARD_D | H34: Meteorites_25 | I34: =("C:\Essays\Geo_Dating\Age_Earth\" & J34 &".pdf") -> C:\Essays\Geo_Dating\Age_Earth\BOGARD_D.pdf | J34: BOGARD_D | N34: 1 | O34: =SUM(K34:N34) -> 1
A35: 34 | B35: D. D. Bogard | C35: Meteoritics And Planetary Science | D35: Volume 38, Number 5, Pages 669 – 710 | E35: 39Ar-40Ar Ages of Eucrites | F35: 2003 | G35: BOGARD_E | H35: Meteorites_14 | I35: C:\Essays\Geo_Dating\Age_Earth\BOGARD_E.pdf | J35: BOGARD_E | K35: 2 | N35: 1 | O35: 3 | P35: Older Than Solar System
A36: 35 | B36: D. D. Bogard | C36: Meteoritics And Planetary Science | D36: Volume 36, Pages 107 - 122 | E36: Argon-39/Argon-40 Ages | F36: 2001 | G36: BOGARD_F | H36: Meteorites_15 | I36: C:\Essays\Geo_Dating\Age_Earth\BOGARD_F.pdf | J36: BOGARD_F | K36: 2 | N36: 1 | O36: 3 | P36: Older Than Solar System
A37: 36 | B37: A. J. Burger | C37: Journal Of Geophysical Research | D37: Volume 72, Number 14, Pages 3587, 3588 | E37: Controlled Leaching Of Monazites | F37: 1967 | G37: Burger | H37: Rhodesia | I37: C:\Essays\Geo_Dating\Age_Earth\Burger.pdf | J37: Burger | N37: 1 | O37: 1
A38: 37 | B38: D. S. Burnett | C38: Earth and Planetary Science Letters | D38: Volume 2, Pages 397 - 408 | E38: Rb-Sr Ages Of Iron Meteorites | F38: 1967 | G38: Burnett | H38: Meteorites_16 | I38: C:\Essays\Geo_Dating\Age_Earth\Meteorite_Burnett.pdf | J38: Meteorite_Burnett | K38: 2 | N38: 1 | O38: 3 | P38: Older Than Solar System
A39: 38 | B39: Eugene A. Carver | C39: Geochemica Et Cosmochemica Acta | D39: Volume 40, Pages 467 - 477 | E39: Fission-track ages of four meteorites | F39: 1976 | G39: Carver | H39: Meteorites_26 | I39: C:\Essays\Geo_Dating\Age_Earth\Meteorite_Carver.pdf | J39: Meteorite_Carver | N39: 1 | O39: 1
A40: 39 | B40: Fukun Chen | C40: International Journal Earth Science | D40: Volume 96, pages 1179 – 1194 | E40: Age of the Yunnan Tethyan belt | F40: 2007 | G40: Chen_A | H40: Granites, China | I40: C:\Essays\Geo_Dating\Age_Earth\Chen_A.pdf | J40: Chen_A | N40: 1 | O40: 1
A41: 40 | B41: J. H. Chen | C41: Geochemica Et Cosmochemica Acta | D41: Volume 40, pages 635 - 643 | E41: The Allende Carbonaceous Chondrite | F41: 1976 | G41: Chen_B | H41: Meteorites_27 | I41: C:\Essays\Geo_Dating\Age_Earth\Chen_B.pdf | J41: Chen_B | N41: 1 | O41: 1
A42: 41 | B42: E. J. Oosthuyzen | C42: Earth And Planetary Science Letters | D42: Volume 18, Pages 29-36. | E42: Uranium-Lead Isotope Method | F42: 1973 | G42: Discordant_1 | H42: South Africa | I42: C:\Essays\Geo_Dating\Age_Earth\Discordant_01.pdf | J42: Discordant_01 | N42: 1 | O42: 1
A43: 42 | B43: L. Civetta | C43: Earth And Planetary Science Letters | D43: Volume 20, Pages 113-118 | E43: Discordant K-Ar Age Pattern | F43: 1973 | G43: Discordant_3 | H43: Sicily, Italy | I43: C:\Essays\Geo_Dating\Age_Earth\Discordant_03.pdf | J43: Discordant_03 | N43: 1 | O43: 1
A44: 43 | B44: Francisco Herve | C44: Earth And Planetary Science Letters | D44: Volume 120, Pages 375-386 | E44: Granite Generation | F44: 1993 | G44: Discordant_4 | H44: Andes Mountains, Chile | I44: C:\Essays\Geo_Dating\Age_Earth\Discordant_04.pdf | J44: Discordant_04 | N44: 1 | O44: 1
A45: 44 | B45: Mary S. Hubbard | C45: Earth And Planetary Science Letters | D45: Volume 133, Pages 213-225 | E45: The Nanga Parbat Massif | F45: 1995 | G45: Discordant_5 | H45: Pakistan | I45: C:\Essays\Geo_Dating\Age_Earth\Discordant_05.pdf | J45: Discordant_05 | N45: 1 | O45: 1
A46: 45 | B46: Hans J. Lippolt | C46: Earth And Planetary Science Letters | D46: Volume 101, Pages 19-33 | E46: Excess Argon and Dating | F46: 1990 | G46: Discordant_6 | H46: France | I46: C:\Essays\Geo_Dating\Age_Earth\Discordant_06.pdf | J46: Discordant_06 | N46: 1 | O46: 1
A47: 46 | B47: Grenville Turner | C47: Earth And Planetary Science Letters | D47: Volume 261, Pages 491 – 499 | E47: Chronology And Isotope Systematics | F47: 2007 | G47: Discordant_7 | H47: Western Australia | I47: C:\Essays\Geo_Dating\Age_Earth\Discordant_07.pdf | J47: Discordant_07 | N47: 1 | O47: 1
A48: 47 | B48: Jens C. Grimmer | C48: Chemical Geology | D48: Volume 197, Pages 87 – 110 | E48: Pb-206/Pb-207 Dating Of Zircon | F48: 2003 | G48: Discordant_8 | H48: Eastern China | I48: C:\Essays\Geo_Dating\Age_Earth\Discordant_08.pdf | J48: Discordant_08 | N48: 1 | O48: 1
A49: 48 | B49: B. Grauert | C49: Earth And Planetary Science Letters | D49: Volume 21, Pages 389-399 | E49: Uranium And Lead Gain | F49: 1974 | G49: Discordant_9 | H49: Italian Alps | I49: C:\Essays\Geo_Dating\Age_Earth\Discordant_09.pdf | J49: Discordant_09 | N49: 1 | O49: 1
A50: 49 | B50: R. P. Esser | C50: Geochemica Et Cosmochemica Acta | D50: Volume 61, Number 18, Pages 3789 - 3801 | E50: Excess Argon In Melt Inclusions | F50: 1997 | G50: Esser | H50: Volcanics, Antarctica | I50: C:\Essays\Geo_Dating\Age_Earth\Esser_01.pdf | J50: Esser_01 | N50: 1 | O50: 1
A51: 50 | B51: Luigi Folco | C51: Geochemica Et Cosmochemica Acta | D51: Volume 68, Number 10, pages 2379 – 2397 | E51: Meteorite Dar al Gani 896 | F51: 2004 | G51: Folco | H51: Meteorites_28 | I51: C:\Essays\Geo_Dating\Age_Earth\Meteorite_Folco.pdf | J51: Meteorite_Folco | N51: 1 | O51: 1
A52: 51 | B52: John G. Funkhouser | C52: Journal Of Geophysical Research | D52: Volume 73, Number 14, Pages 4602, 4603 | E52: Radiogenic Helium And Argon | F52: 1968 | G52: Funkhouser | H52: Vocanics, Hawaii | I52: C:\Essays\Geo_Dating\Age_Earth\FUNKHOUSER.pdf | J52: FUNKHOUSER | N52: 1 | O52: 1
A53: 52 | B53: Jennifer A. Grier | C53: Meteoritics And Planetary Science | D53: Volume 39, Number 9, Pages 1475 – 1493 | E53: Analyses of the chondritic meteorite Orvinio | F53: 2004 | G53: Grier | H53: Meteorites_29 | I53: C:\Essays\Geo_Dating\Age_Earth\Meteorite_Grier.pdf | J53: Meteorite_Grier | N53: 1 | O53: 1
A54: 53 | B54: C. M. Hall | C54: Precambrian Research | D54: Volume 42, Pages 255 - 291 | E54: The Imataca Complex, Venezuela | F54: 1989 | G54: Hall | H54: Granites, Venezuela | I54: C:\Essays\Geo_Dating\Age_Earth\Hall.pdf | J54: Hall | K54: 1 | N54: 1 | O54: 2 | P54: Older Than The Earth
A55: 54 | B55: T. Mark Harrison | C55: Geochemica Et Cosmochemica Acta | D55: Volume 45, Pages 2513 - 2517 | E55: The Kirin Chondrite | F55: 1981 | G55: Harrison | H55: Meteorites_30 | I55: C:\Essays\Geo_Dating\Age_Earth\Meteorite_HARRISON.pdf | J55: Meteorite_HARRISON | N55: 1 | O55: 1
A56: 55 | B56: H. G. Dill | C56: Geomorphology | D56: Volume 117, Pages 44-65 | E56: Age and Mineralogy of Supergene Uranium | F56: 2010 | G56: Hill | H56: Bohemian Massif, SE Germany | I56: C:\Essays\Geo_Dating\Age_Earth\SuperGene.pdf | J56: SuperGene
A57: 56 | B57: Holzl | C57: Precambrian Research | D57: Volume 66, Pages 123 - 149 | E57: U-Pb Geo Chronology of Sri Lanka | F57: 1994 | G57: Holzl | H57: Granites, Sri Lanka | I57: =("C:\Essays\Geo_Dating\Age_Earth\" & J57 &".pdf") -> C:\Essays\Geo_Dating\Age_Earth\Holzl.pdf | J57: Holzl | N57: 1 | O57: =SUM(K57:N57) -> 1
A58: 57 | B58: T. Itaya | C58: Gondwana Research | D58: Volume 8, Number 4, Pages 617-621 | E58: Ultra-high Excess Argon in Kyanites | F58: 2005 | G58: Itaya | H58: Japan | I58: C:\Essays\Geo_Dating\Age_Earth\Itaya.pdf | J58: Itaya | K58: 2 | L58: 1 | M58: 1 | N58: 1 | O58: =SUM(K58:N58) -> 5 | P58: Older Than Globular Clusters
A59: 58 | B59: Elmar K. Jessberger | C59: Icarus | D59: Volume 42, pages 380 - 405 | E59: 40-Ar / 39-Ar Ages of Allende | F59: 1980 | G59: Jessberger | H59: Meteorites_17 | I59: C:\Essays\Geo_Dating\Age_Earth\Meteorite_Jessberger.pdf | J59: Meteorite_Jessberger | K59: 2 | N59: 1 | O59: =SUM(K59:N59) -> 3 | P59: Older Than Solar System
A60: 59 | B60: F. Jourdan | C60: Geochemica Et Cosmochemica Acta | D60: Volume 74, pages 1734 – 1747 | E60: The Fossil LL6 Chondrite | F60: 2010 | G60: Jourdan | H60: Meteorites_18 | I60: C:\Essays\Geo_Dating\Age_Earth\Meteorite_JOURDAN.pdf | J60: Meteorite_JOURDAN | K60: 2 | N60: 1 | O60: =SUM(K60:N60) -> 3 | P60: Older Than Solar System
A61: 60 | B61: W. Kaiser | C61: Earth and Planetary Science Letters | D61: Volume 4, pages 84 - 88 | E61: K/Ar Age Determinations of Iron Meteorites | F61: 1968 | G61: Kaiser | H61: Meteorites_19 | I61: C:\Essays\Geo_Dating\Age_Earth\Meteorite_Kaiser.pdf | J61: Meteorite_Kaiser | K61: 2 | N61: 1 | O61: =SUM(K61:N61) -> 3 | P61: Older Than Solar System
A62: 61 | B62: R. W. Kistler | C62: Journal Of Geophysical Research | D62: Volume 86, Number B11, Pages 10591-10606 | E62: Petrogenesis of Gamet Two-Mica Granites | F62: 1981 | G62: KISTLER | H62: Ruby Mountains, Nevada | I62: C:\Essays\Geo_Dating\Age_Earth\KISTLER.pdf | J62: KISTLER | N62: 1
A63: 62 | B63: Ekaterina V. Korochantseva | C63: Meteoritics And Planetary Science | D63: Volume 44, Number 2, Pages 293 – 321 | E63: 40Ar-39Ar Chronology | F63: 2009 | G63: Korochantseva | H63: Meteorites_06 | I63: C:\Essays\Geo_Dating\Age_Earth\Meteorite_Korochantseva.pdf | J63: Meteorite_Korochantseva | K63: 2 | L63: 1 | M63: 1 | N63: 1 | O63: =SUM(K63:N63) -> 5 | P63: Older Than Globular Clusters
A64: 63 | B64: Joachim Kunz | C64: Meteoritics And Planetary Science | D64: Volume 32, Pages 647 - 670 | E64: Shocked meteorites: Argon-40-argon-39 | F64: 1997 | G64: Kunz | H64: Meteorites_07 | I64: C:\Essays\Geo_Dating\Age_Earth\Meteorite_Kunz.pdf | J64: Meteorite_Kunz | K64: 2 | L64: 1 | M64: 1 | N64: 1 | O64: 5 | P64: Older Than Globular Clusters
A65: 64 | B65: Kyoungwon Min | C65: Earth and Planetary Science Letters | D65: Volume 209, pages 323 - 336 | E65: Single grain (U-Th)/He ages, Acapulco meteorite | F65: 2003 | G65: Kyoungwon | H65: Meteorites_23 | I65: C:\Essays\Geo_Dating\Age_Earth\Meteorite_Kyoungwon.pdf | J65: Meteorite_Kyoungwon | K65: 1 | N65: 1 | O65: 2 | P65: Older Than The Earth
A66: 65 | B66: J. F. Lovering | C66: Journal Of Geophysical Research | D66: Volume 69, Number 22, Page 4897 | E66: Potassium-Argon Age Study | F66: 1964 | G66: Lovering | H66: Breccia, Australia | I66: C:\Essays\Geo_Dating\Age_Earth\Lovering.pdf | J66: Lovering | O66: 0
A67: 66 | B67: M. A. H. Maboko | C67: Chemical Geology | D67: Volume 86, Pages 139 - 160 | E67: Discordant 40-Ar /39-Ar Ages | F67: 1991 | G67: Maboko | H67: Hornblende, Australia | I67: C:\Essays\Geo_Dating\Age_Earth\Maboko.pdf | J67: Maboko | N67: 1 | O67: 1
A68: 67 | B68: H. Maluski | C68: Chemical Geology | D68: Volume 80, pages 201 - 204 | E68: Location of extraneous argon | F68: 1990 | G68: Maluski | H68: Granites, Algeria | I68: C:\Essays\Geo_Dating\Age_Earth\Maluski.pdf | J68: Maluski | K68: 2 | L68: 1 | M68: 2 | N68: 1 | O68: 6 | P68: Older Than Universe
A69: 68 | B69: P. McConville | C69: Geochemica Et Cosmochemica Acta | D69: Volume 52, Pages 2487 - 2499 | E69: The Peace River shocked M chondrite | F69: 1988 | G69: Mc-Convill | H69: Meteorites_20 | I69: C:\Essays\Geo_Dating\Age_Earth\Meteorite_MCCONVILL.pdf | J69: Meteorite_MCCONVILL | K69: 2 | N69: 1 | O69: 3 | P69: Older Than Solar System
A70: 69 | B70: Kyoungwon Min | C70: Earth And Planetary Science Letters | D70: Volume 209, Pages 323 - 336 | E70: (U-Th)/He ages from Acapulco meteorite | F70: 2003 | G70: Min | H70: Meteorites_31 | I70: C:\Essays\Geo_Dating\Age_Earth\Meteorite_Min.pdf | J70: Meteorite_Min | N70: 1 | O70: 1
A71: 70 | B71: S. Zashu | C71: Nature | D71: Volume 323, Page 710, 711 | E71: K-Ar isochron dating of diamonds | F71: 1986 | G71: Nature_1 | H71: Zaire, Cubic Diamonds | I71: C:\Essays\Geo_Dating\Age_Earth\Zashu.pdf | J71: Zashu | K71: 2 | O71: 2 | P71: Older Than Solar System
A72: 71 | B72: M. Ozima | C72: Nature | D72: Volume 337, Page 226 - 229 | E72: Age of Zaire Cubic Diamonds | F72: 1989 | G72: Nature_2 | H72: Zaire, Cubic Diamonds | I72: C:\Essays\Geo_Dating\Age_Earth\Ozima.pdf | J72: Ozima | K72: 2 | N72: 1 | O72: 3 | P72: Older Than Solar System
A73: 72 | B73: Sidney Niemeyer | C73: Geochemica Et Cosmochemica Acta | D73: Volume 43, Pages 1829 - 1840 | E73: Ar-39, Ar-40 dating of inclusions from IAB iron meteorites | F73: 1979 | G73: Niemeyer | H73: Meteorites_21 | I73: C:\Essays\Geo_Dating\Age_Earth\Meteorite_NIEMEYER.pdf | J73: Meteorite_NIEMEYER | K73: 2 | N73: 1 | O73: 3 | P73: Older Than Solar System
A74: 73 | B74: Osamu Okano | C74: Geochemica Et Cosmochemica Acta | D74: Volume 54, pages 3509 - 3523 | E74: Antarctic LL-chondrites | F74: 1990 | G74: Okano | H74: Meteorites_22 | I74: C:\Essays\Geo_Dating\Age_Earth\Meteorite_Okano.pdf | J74: Meteorite_Okano | K74: 2 | N74: 1 | O74: 3 | P74: Older Than Solar System
A75: 74 | B75: Katsuhiko Suzuki | C75: Geochimica et Cosmochimica Acta | D75: Volume 57, Page 1626 | E75: Reliable Re-Os Ages | F75: 1993 | G75: Older | H75: Canada | I75: C:\Essays\Geo_Dating\Age_Earth\Older_Than_Earth_8.pdf | J75: Older_Than_Earth_8 | K75: 2 | O75: 2 | P75: Older Than Solar System
A76: 75 | B76: M. A. Kendrick | C76: Geochimica et Cosmochimica Acta | D76: Volume 70, Page 2573-2575 | E76: 40Ar–39Ar Quartz Ages | F76: 2006 | G76: Older | H76: Mount Isa, Queensland | I76: C:\Essays\Geo_Dating\Age_Earth\Older_Than_Earth_9.pdf | J76: Older_Than_Earth_9 | K76: 2 | O76: 2 | P76: Older Than Solar System
A77: 76 | B77: John G. Spray | C77: Earth And Planetary Science Letters | D77: Volume 172, Page 207 | E77: The Strangways impact structure | F77: 1999 | G77: Older | H77: Northern Territory, Australia | I77: C:\Essays\Geo_Dating\Age_Earth\Older_Than_Earth_4.pdf | J77: Older_Than_Earth_4 | K77: 2 | O77: 2 | P77: Older Than Solar System
A78: 77 | B78: Jean Luck | C78: Earth and Planetary Science Letters | D78: Volume 61, Page 293 | E78: The Study of Molybdenites | F78: 1982 | G78: Older | H78: Quebec, Canada | I78: C:\Essays\Geo_Dating\Age_Earth\Older_Than_Earth_7.pdf | J78: Older_Than_Earth_7 | K78: 2 | O78: 2 | P78: Older Than Solar System
A79: 78 | B79: D. G. Pearson | C79: Geochimica et Cosmochimica Acta | D79: Volume 59, Number 5, Page 970 | E79: The Siberian Craton | F79: 1995 | G79: Older | H79: Siberia | I79: C:\Essays\Geo_Dating\Age_Earth\Older_Than_Earth_6.pdf | J79: Older_Than_Earth_6 | K79: 2 | L79: 1 | O79: 3 | P79: Older Than Galaxy
A80: 79 | B80: R. J. Walker | C80: Geochimica et Cosmochimica Acta | D80: Volume 53, Page 1591 | E80: African Peridotite Xenoliths | F80: 1989 | G80: Older | H80: South Africa | I80: C:\Essays\Geo_Dating\Age_Earth\Older_Than_Earth_5.pdf | J80: Older_Than_Earth_5 | K80: 2 | L80: 1 | O80: 3 | P80: Older Than Galaxy
A81: 80 | B81: D. G. Pearson | C81: Earth And Planetary Science Letters | D81: Volume 134, Page 344 | E81: Xenoliths from the Kaapvaal Craton | F81: 1995 | G81: Older | H81: South Africa | I81: C:\Essays\Geo_Dating\Age_Earth\Older_Than_Earth_3.pdf | J81: Older_Than_Earth_3 | K81: 2 | L81: 1 | M81: 1 | O81: 4 | P81: Older Than Universe
A82: 81 | B82: Gianfranco Di Vincenzo | C82: Earth And Planetary Science Letters | D82: Volume 223, Page 360 | E82: 40Ar–39Ar Dating of Pseudo Tachylytes | F82: 2004 | G82: Older | H82: West Antarctic Rift System | I82: C:\Essays\Geo_Dating\Age_Earth\Older_Than_Earth_1.pdf | J82: Older_Than_Earth_1 | K82: 2 | O82: 2 | P82: Older Than Solar System
A83: 82 | B83: R. W. Carlson | C83: Earth And Planetary Science Letters | D83: Volume 126, Page 460 | E83: North Western Wyoming Craton | F83: 1994 | G83: Older | H83: Wyoming Craton | I83: C:\Essays\Geo_Dating\Age_Earth\Older_Than_Earth_2.pdf | J83: Older_Than_Earth_2 | K83: 2 | L83: 1 | M83: 1 | O83: 4 | P83: Older Than Universe
A84: 83 | B84: Pacquette | C84: Precambrian Research | D84: Volume 121, Pages 73 - 84 | E84: U–Pb dating Of Madagascar | F84: 2003 | G84: Pacquette | H84: Zircons, Madagascar | I84: C:\Essays\Geo_Dating\Age_Earth\Paquette.pdf | J84: Paquette | N84: 1 | O84: 1
A85: 84 | B85: D. G. Pearson | C85: Earth and Planetary Science Letters | D85: Volume 134, Pages 341-357 | E85: Stabilisation of Archaean lithosphere | F85: 1995 | G85: Pearson | H85: South Africa | I85: C:\Essays\Geo_Dating\Age_Earth\Pearson.pdf | J85: Pearson | K85: 2 | L85: 1 | O85: 3 | P85: Older Than Galaxy
A86: 85 | B86: Paul Pellas | C86: Geochemica Et Cosmochemica Acta | D86: Volume 61, Number 16, pp. 3477 - 3501 | E86: History Of The Acapulco Meteorite | F86: 1997 | G86: Pellas | H86: Meteorites_01 | I86: C:\Essays\Geo_Dating\Age_Earth\Meteorite_Pellas.pdf | J86: Meteorite_Pellas | K86: 2 | L86: 1 | N86: 1 | O86: 4 | P86: Older Than Galaxy
A87: 86 | B87: L. Rancitelli | C87: Science | D87: Volume 155, Pages 999 - 1000 | E87: Potassium: Argon Dating of Iron Meteorites | F87: 1967 | G87: Ranticelli | H87: Meteorites_02 | I87: C:\Essays\Geo_Dating\Age_Earth\Meteor_Rancitelli.pdf | J87: Meteor_Rancitelli | K87: 2 | L87: 1 | N87: 1 | O87: 4 | P87: Older Than Galaxy
A88: 87 | B88: A. Reuter | C88: Chemical Geology | D88: Volume 66, pages 73 - 88 | E88: Age Spectra Of Whole-Rocks | F88: 1987 | G88: Reuter | H88: Slates, Germany | I88: C:\Essays\Geo_Dating\Age_Earth\Reuter.pdf | J88: Reuter | N88: 1 | O88: 1
A89: 88 | B89: G. H. Riley | C89: Geochemica Et Cosmochemica Acta | D89: Volume 34, pages 713 - 725 | E89: Isotopic discrepancies in Black Hills, South Dakota | F89: 1970 | G89: Riley | H89: Granites, South Dakota | I89: C:\Essays\Geo_Dating\Age_Earth\Riley.pdf | J89: Riley | K89: 2 | L89: 1 | M89: 2 | N89: 1 | O89: 6 | P89: Older Than Universe
A90: 89 | B90: W. R. Van Schmus | C90: Precambrian Research | D90: Volume 157, Pages 80 – 105 | E90: The Archean–Proterozoic Boundary | F90: 2007 | G90: Schmus | H90: Granites, USA | I90: C:\Essays\Geo_Dating\Age_Earth\Schmus.pdf | J90: Schmus | N90: 1 | O90: 1
A91: 90 | B91: Shui-Yuan Yang | C91: Mineral Petrology | D91: Volume 101, pages 21 – 48 | E91: Geochemical, zircon U–Pb dating | F91: 2011 | G91: Shui-Yuan | H91: Granites, China | I91: C:\Essays\Geo_Dating\Age_Earth\Shui-Yuan.pdf | J91: Shui-Yuan | N91: 1 | O91: 1
A92: 91 | B92: R. W. Stoenner | C92: Geochemica Et Cosmochemica Acta | D92: Volume 15, Pages 40 - 50 | E92: Potassium-argon age of iron meteorites | F92: 1958 | G92: Stoenner | H92: Meteorites_08 | I92: C:\Essays\Geo_Dating\Age_Earth\Meteorite_Stoenner.pdf | J92: Meteorite_Stoenner | K92: 2 | L92: 1 | M92: 1 | N92: 1 | O92: 5 | P92: Older Than Globular Clusters
A93: 92 | B93: Timothy D. Swindle | C93: Meteoritics And Planetary Science | D93: Volume 39, Number 5, Pages 755 – 766 | E93: 40Ar-39Ar Studies of Whole Rock Nakhlites | F93: 2004 | G93: Swindle | H93: Meteorites_32 | I93: C:\Essays\Geo_Dating\Age_Earth\Meteorite_Swindle.pdf | J93: Meteorite_Swindle | N93: 1 | O93: 1
A94: 93 | B94: Mitsunobu Tatsumoto | C94: Geochemica Et Cosmochemica Acta | D94: Volume 40, pages 617 - 634 | E94: The Allende and Orgueil Chondrites | F94: 1976 | G94: Tatsumoto | H94: Meteorites_09 | I94: C:\Essays\Geo_Dating\Age_Earth\Meteorite_Tatsumoto.pdf | J94: Meteorite_Tatsumoto | K94: 2 | L94: 1 | M94: 1 | N94: 1 | O94: 5 | P94: Older Than Globular Clusters
A95: 94 | B95: Paul N. Taylor | C95: Chemical Geology | D95: Volume 94, Pages 281 - 291 | E95: Dating Discrepancies | F95: 1992 | G95: Taylor | H95: Gneiss, Greenland | I95: C:\Essays\Geo_Dating\Age_Earth\Taylor.pdf | J95: Taylor | N95: 1 | O95: 1
A96: 95 | B96: G. R. Tilton | C96: Earth and Planetary Science Letters | D96: Volume 19, Pages 321-329 | E96: Isotopic Lead Ages Of Meteorites | F96: 1973 | G96: Tilton | H96: Meteorites_34 | I96: =("C:\Essays\Geo_Dating\Meteorites\" & J96 &".pdf") -> C:\Essays\Geo_Dating\Meteorites\Pb-206_14.pdf | J96: Pb-206_14 | K96: 2 | N96: 1
A97: 96 | B97: Sungshan Wang | C97: Earth And Planetary Science Letters | D97: Volume 49, pages 117 - 131 | E97: History Of The Kirin Chondrite | F97: 1980 | G97: Wang | H97: Meteorites_33 | I97: =("C:\Essays\Geo_Dating\Age_Earth\" & J97 &".pdf") -> C:\Essays\Geo_Dating\Age_Earth\Meteorite_WANG.pdf | J97: Meteorite_WANG | N97: 1 | O97: =SUM(K97:N97) -> 1
A98: 97 | B98: G. J. Wasserburg | C98: Earth And Planetary Science Letters | D98: Volume 14, Pages 281 - 304. | E98: Three Apollo 14 Basalts | F98: 1972 | G98: Wasserburg | H98: Lunar | I98: =("C:\Essays\Geo_Dating\Age_Earth\" & J98 &".pdf") -> C:\Essays\Geo_Dating\Age_Earth\Wasserburg.pdf | J98: Wasserburg | K98: 2 | L98: 1 | M98: 2 | N98: 1 | O98: =SUM(K98:N98) -> 6 | P98: Older Than Universe
A99: 98 | B99: Fu-Yuan Wu | C99: Precambrian Research | D99: Volume 139, Pages 155 – 177 | E99: Detrital Zircon U–Pb Dating | F99: 2007 | G99: Yuan_Wu | H99: Zircons, Korea | I99: =("C:\Essays\Geo_Dating\Age_Earth\" & J99 &".pdf") -> C:\Essays\Geo_Dating\Age_Earth\Yuan_Wu.pdf | J99: Yuan_Wu | N99: 1 | O99: =SUM(K99:N99) -> 1
K100: =SUM(K3:K99) -> 94 | L100: =SUM(L3:L99) -> 22 | M100: =SUM(M3:M99) -> 20 | N100: =SUM(N3:N99) -> 84 | O100: =SUM(O3:O98) -> 215
K101: Older Than Solar System | L101: Older Than Galaxy | M101: Older Than Universe | N101: Major Discordancies | O101: Row Totals

Sheet Ages_01
A1: Sample no. | B1: Rock type | C1: Unit | D1: Million Years | S1: 23312
A2: 858_6 | F2: Maximum Age | G2: Million Years | H2: 1717 | L2: Sample | M2: Maximum Age | N2: Minimum Age | O2: Difference | P2: Difference | S2: 7816
A3: A | B3: Quartzite | C3: Wallace | D3: 838 | F3: Minimum Age | G3: Million Years | H3: 406 | L3: Name | M3: Million Years | N3: Million Years | O3: Million Years | P3: Percentage | S3: 6953
A4: B | B4: Bi-Mu Qtzt | C4: Wallace | D4: 406 | F4: Difference | G4: Million Years | H4: =(H2-H3) -> 1311 | L4: 858_6 | M4: 1717 | N4: 406 | O4: =(M4-N4) -> 1311 | P4: =(O4/N4) -> 3.229064039 | S4: 6105
A5: C | B5: Argillite | C5: Wallace | D5: 966 | F5: Difference | G5: Percentage | H5: =(H4/H3) -> 3.229064039 | L5: 858-7 | M5: 4475 | N5: 779 | O5: =(M5-N5) -> 3696 | P5: =(O5/N5) -> 4.744544288 | S5: 4475
A6: D | B6: Argillite | C6: Wallace | D6: 988 | L6: 858_8 | M6: 3516 | N6: 551 | O6: =(M6-N6) -> 2965 | P6: =(O6/N6) -> 5.381125227 | S6: 4291
A7: E | B7: Argillite | C7: Wallace | D7: 589 | L7: 858_9 | M7: 2696 | N7: 395 | O7: 2301 | P7: 5.825316456 | S7: 3516
A8: F | B8: Quartzite | C8: Revett | D8: 1023 | F8: Robert J. Fleck | L8: 858-10 | M8: 661 | N8: 111 | O8: 550 | P8: 4.954954955 | S8: 3028
A9: G | B9: Argillite | C9: Wallace | D9: 726 | F9: Economic Geology, 2002 | L9: 858-11 | M9: 1172 | N9: 641 | O9: 531 | P9: 0.8283931357 | S9: 2696
A10: H | B10: Argillite | C10: Wallace | D10: 1044 | F10: Volume 97, Pages 23–42 | L10: 918-12 | M10: 1570 | N10: 624 | O10: 946 | P10: 1.516025641 | S10: 2680
A11: I | B11: Siltite | C11: Burke | D11: 1405 | F11: Age and Origin of Base and Precious Metal | L11: 918-13 | M11: 23312 | N11: 79 | O11: 23233 | P11: 294.0886076 | S11: 2630
A12: J | B12: Siltite | C12: Burke | D12: 1279 | L12: 918-14 | M12: 1370 | N12: 1009 | O12: 361 | P12: 0.3577799802 | S12: 2549
A13: K | B13: Calc-argillite | C13: Wallace | D13: 1460 | L13: 918-15 | M13: 6953 | N13: 873 | O13: 6080 | P13: 6.964490263 | S13: 2453
A14: L | B14: Shale | C14: Wallace | D14: 1091 | L14: 918-16 | M14: 1880 | N14: 385 | O14: 1495 | P14: 3.883116883 | S14: 2209
A15: N | B15: Quartzite | C15: Wallace | D15: 1717 | L15: 918-17 | M15: 1295 | N15: 546 | O15: 749 | P15: 1.371794872 | S15: 2135
A16: P | B16: Argillite | C16: Wallace | D16: 1317 | L16: 918-18 | M16: 1109 | N16: 670 | O16: 439 | P16: 0.6552238806 | S16: 1889
A17: Q | B17: Argillite | C17: Wallace | D17: 1057 | S17: 1880
A18: R | B18: Argillite | C18: Wallace | D18: 1056 | S18: 1855
A19: S | B19: Quartzite | C19: Wallace | D19: 1245 | S19: 1837
A20: T | B20: Argillite | C20: Wallace | D20: 896 | S20: 1799
A21: 858-7 | F21: Maximum Age | G21: Million Years | H21: 4475 | S21: 1727
A22: A | B22: Shale | C22: Wallace | D22: 842 | F22: Minimum Age | G22: Million Years | H22: 779 | S22: 1717
A23: B | B23: Argillite | C23: Wallace | D23: 1181 | F23: Difference | G23: Million Years | H23: =(H21-H22) -> 3696 | S23: 1712
A24: C | B24: Quartzite | C24: Wallace | D24: 1480 | F24: Difference | G24: Percentage | H24: =(H23/H22) -> 4.744544288 | S24: 1628
A25: D | B25: Argillite | C25: Wallace | D25: 1052 | S25: 1615
A26: E | B26: Quartzite | C26: Wallace | D26: 1563 | S26: 1573
A27: F | B27: Argillite | C27: Wallace | D27: 1131 | S27: 1570
A28: G | B28: Quartzite | C28: Wallace | D28: 4475 | S28: 1563
A29: H | B29: Argillite | C29: Wallace | D29: 1727 | S29: 1490
A30: I | B30: Shale | C30: Wallace | D30: 1262 | S30: 1480
A31: J | B31: Argillite | C31: Wallace | D31: 1331 | S31: 1467
A32: K | B32: Siltite | C32: St. Regis | D32: 1573 | S32: 1465
A33: L | B33: Quartzite | C33: Wallace | D33: 7816 | S33: 1460
A34: M | B34: Argillite | C34: Wallace | D34: 1195 | S34: 1454
A35: N | B35: Argillite | C35: Wallace | D35: 1001 | S35: 1432
A36: P | B36: Quartzite | C36: Wallace | D36: 2680 | S36: 1413
A37: Q | B37: Shale | C37: Wallace | D37: 1203 | S37: 1405
A38: T | B38: Argillite | C38: Wallace | D38: 1246 | S38: 1383
A39: S | B39: Siltite | C39: Wallace | D39: 1055 | S39: 1370
A40: T | B40: Argillite | C40: Wallace | D40: 1077 | S40: 1331
A41: U | B41: Argillite | C41: Wallace | D41: 971 | S41: 1317
A42: V | B42: Quartzite | C42: Wallace | D42: 2630 | S42: 1295
A43: W | B43: Quartzite | C43: Wallace | D43: 1104 | S43: 1280
A44: X | B44: Shale | C44: Wallace | D44: 779 | S44: 1279
A45: 858_8 | F45: Maximum Age | G45: Million Years | H45: 3516 | S45: 1273
A46: A | B46: Quartzite | C46: Wallace | D46: 1628 | F46: Minimum Age | G46: Million Years | H46: 551 | S46: 1271
A47: B | B47: Argillite | C47: Wallace | D47: 1147 | F47: Difference | G47: Million Years | H47: =(H45-H46) -> 2965 | S47: 1262
A48: C | B48: Quartzite | C48: Wallace | D48: 1855 | F48: Difference | G48: Percentage | H48: =(H47/H46) -> 5.381125227 | S48: 1260
A49: D | B49: Limestone | C49: Wallace | D49: 6105 | S49: 1259
A50: E | B50: Argillite | C50: Wallace | D50: 1085 | S50: 1259
A51: F | B51: Shale | C51: Wallace | D51: 1190 | S51: 1246
A52: G | B52: Shale | C52: Wallace | D52: 1120 | S52: 1245
A53: H | B53: Slate | C53: Wallace | D53: 2135 | S53: 1241
A54: I | B54: Quartzite | C54: Wallace | D54: 1067 | S54: 1231
A55: L | B55: Calc-argillite | C55: Wallace | D55: 1432 | S55: 1230
A56: M | B56: Quartzite | C56: Wallace | D56: 3516 | S56: 1222
A57: N | B57: Quartzite | C57: Wallace | D57: 1615 | S57: 1220
A58: P | B58: Quartzite | C58: Wallace | D58: 1712 | S58: 1216
A59: Q | B59: Argillite | C59: Wallace | D59: 1454 | S59: 1203
A60: R | B60: Quartzite | C60: Wallace | D60: 1260 | S60: 1195
A61: S | B61: Shale | C61: Wallace | D61: 1230 | S61: 1190
A62: T | B62: Quartzite | C62: Wallace | D62: 1127 | S62: 1188
A63: U | B63: Quartzite | C63: Wallace | D63: 1837 | S63: 1186
A64: V | B64: Argillite | C64: Wallace | D64: 1413 | S64: 1181
A65: W | B65: Quartzite | C65: Wallace | D65: 449 | S65: 1172
A66: X | B66: Argillite | C66: Wallace | D66: 551 | S66: 1167
A67: Y | B67: Quartzite | C67: Wallace | D67: 1280 | S67: 1167
A68: Z | B68: Shale | C68: Wallace | D68: 1167 | S68: 1163
A69: AA | B69: Quartzite | C69: Wallace | D69: 3028 | S69: 1147
A70: AB | B70: Argillite | C70: Wallace | D70: 588 | S70: 1131
A71: AD | B71: Argillite | C71: Wallace | D71: 1222 | S71: 1129
A72: 858_9 | F72: Maximum Age | G72: Million Years | H72: 2696 | S72: 1128
A73: A | B73: Quartzite | C73: Revett | D73: 827 | F73: Minimum Age | G73: Million Years | H73: 395 | S73: 1127
A74: B | B74: Quartzite | C74: Revett | D74: 1056 | F74: Difference | G74: Million Years | H74: =(H72-H73) -> 2301 | S74: 1120
A75: C | B75: Argillite | C75: St. Regis | D75: 620 | F75: Difference | G75: Percentage | H75: =(H74/H73) -> 5.825316456 | S75: 1110
A76: D | B76: Quartzite | C76: Wallace | D76: 1490 | S76: 1109
A77: E | B77: Argillite | C77: Wallace | D77: 754 | S77: 1104
A78: F | B78: Slate | C78: Wallace | D78: 2453 | S78: 1092
A79: G | B79: Slate | C79: Wallace | D79: 682 | S79: 1091
A80: H | B80: Slate | C80: Wallace | D80: 753 | S80: 1090
A81: I | B81: Siltite | C81: Wallace | D81: 1072 | S81: 1088
A82: J | B82: Slate | C82: Wallace | D82: 719 | S82: 1085
A83: K | B83: Quartzite | C83: Wallace | D83: 2696 | S83: 1077
A84: L | B84: Argillite | C84: Wallace | D84: 395 | S84: 1076
A85: M | B85: Quartzite | C85: Wallace | D85: 1465 | S85: 1072
A86: P | B86: Quartzite | C86: Wallace | D86: 886 | S86: 1067
A87: Q | B87: Quartzite | C87: Wallace | D87: 1799 | S87: 1063
A88: R | B88: Quartzite | C88: Wallace | D88: 1889 | S88: 1057
A89: S | B89: Quartzite | C89: Wallace | D89: 793 | S89: 1056
A90: 858_10 | F90: Maximum Age | G90: Million Years | H90: 661 | S90: 1056
A91: B | B91: Bi-Mu schist | C91: Wallace | D91: 111 | F91: Minimum Age | G91: Million Years | H91: 111 | S91: 1055
A92: D | B92: Bi-Mu schist | C92: Wallace | D92: 661 | F92: Difference | G92: Million Years | H92: =(H90-H91) -> 550 | S92: 1052
A93: H | B93: Bi-Mu schist | C93: Wallace | D93: 121 | F93: Difference | G93: Percentage | H93: =(H92/H91) -> 4.954954955 | S93: 1048
S94: 1044
A95: 858_11 | F95: Maximum Age | G95: Million Years | H95: 1172 | S95: 1024
A96: A | B96: Bi-Mu schist | C96: Wallace | D96: 641 | F96: Minimum Age | G96: Million Years | H96: 641 | S96: 1023
A97: B | B97: Bi-Mu schist | C97: Wallace | D97: 655 | F97: Difference | G97: Million Years | H97: =(H95-H96) -> 531 | S97: 1009
A98: C | B98: Bi schist | C98: Wallace | D98: 1172 | F98: Difference | G98: Percentage | H98: =(H97/H96) -> 0.8283931357 | S98: 1001
S99: 988
A100: 918_12 | F100: Maximum Age | G100: Million Years | H100: 1570 | S100: 972
A101: A | B101: Quartzite | C101: Revett | D101: 1259 | F101: Minimum Age | G101: Million Years | H101: 624 | S101: 971
A102: B | B102: Argillite | C102: St. Regis | D102: 1188 | F102: Difference | G102: Million Years | H102: =(H100-H101) -> 946 | S102: 968
A103: C | B103: Siltite | C103: Wallace | D103: 1467 | F103: Difference | G103: Percentage | H103: =(H102/H101) -> 1.516025641 | S103: 966
A104: D | B104: Quartzite | C104: Wallace | D104: 1570 | S104: 953
A105: E | B105: Argillite | C105: St. Regis | D105: 1129 | S105: 918
A106: F | B106: Siltite | C106: St. Regis | D106: 1216 | S106: 909
A107: G | B107: Quartzite | C107: St. Regis | D107: 1241 | S107: 902
A108: H | B108: Quartzite | C108: Revett | D108: 1048 | S108: 896
A109: I | B109: Argillite | C109: St. Regis | D109: 624 | S109: 890
A110: 918_13 | F110: Maximum Age | G110: Million Years | H110: 23312 | S110: 886
A111: A | B111: Argillite | C111: St. Regis | D111: 278 | F111: Minimum Age | G111: Million Years | H111: 79 | S111: 873
A112: B | B112: Quartzite | C112: St. Regis | D112: 2209 | F112: Difference | G112: Million Years | H112: =(H110-H111) -> 23233 | S112: 873
A113: C | B113: Limestone | C113: Wallace | D113: 23312 | F113: Difference | G113: Percentage | H113: =(H112/H111) -> 294.0886076 | S113: 842
A114: D | B114: Shale | C114: Wallace | D114: 968 | S114: 838
A115: E | B115: Quartzite | C115: Wallace | D115: 2549 | S115: 827
A116: F | B116: Siltite | C116: Prichard | D116: 1383 | S116: 797
A117: G | B117: Monzonite | C117: Gem Stock | D117: 79 | S117: 793
A118: H | B118: Monzonite | C118: Gem Stock | D118: 123 | S118: 791
A119: I | B119: Siltite | C119: Prichard | D119: 873 | S119: 779
A120: J | B120: Monzonite | C120: Gem Stock | D120: 225 | S120: 779
A121: K | B121: Granite | C121: Pegmatite | D121: 133 | S121: 754
A122: M | B122: Argillite | C122: Prichard | D122: 890 | S122: 753
A123: 918_14 | F123: Maximum Age | G123: Million Years | H123: 1370 | S123: 726
A124: B | B124: Quartzite | C124: Revett | D124: 1063 | F124: Minimum Age | G124: Million Years | H124: 1009 | S124: 719
A125: D | B125: Quartzite | C125: Revett | D125: 1220 | F125: Difference | G125: Million Years | H125: =(H123-H124) -> 361 | S125: 682
A126: K | B126: Quartzite | C126: Revett | D126: 1128 | F126: Difference | G126: Percentage | H126: =(H125/H124) -> 0.3577799802 | S126: 670
A127: L | B127: Quartzite | C127: Revett | D127: 1231 | S127: 661
A128: M | B128: Siltite | C128: Prichard | D128: 1090 | S128: 655
A129: N | B129: Siltite | C129: Prichard | D129: 1163 | S129: 641
A130: P | B130: Siltite | C130: Prichard | D130: 1009 | S130: 624
A131: Q | B131: Siltite | C131: Prichard | D131: 1370 | S131: 620
A132: 918_15 | F132: Maximum Age | G132: Million Years | H132: 6953 | S132: 593
A133: D | B133: Quartzite | C133: Revett | D133: 6953 | F133: Minimum Age | G133: Million Years | H133: 873 | S133: 589
A134: J | B134: Shale | C134: Wallace | D134: 902 | F134: Difference | G134: Million Years | H134: =(H132-H133) -> 6080 | S134: 588
A135: L | B135: Shale | C135: St. Regis | D135: 873 | F135: Difference | G135: Percentage | H135: =(H134/H133) -> 6.964490263 | S135: 551
A136: M | B136: Quartzite | C136: St. Regis | D136: 4291 | S136: 550
A137: 918_16 | F137: Maximum Age | G137: Million Years | H137: 1880 | S137: 546
A138: A | B138: Argillite | C138: Wallace | D138: 779 | F138: Minimum Age | G138: Million Years | H138: 385 | S138: 527
A139: B | B139: Argillite | C139: Wallace | D139: 918 | F139: Difference | G139: Million Years | H139: =(H137-H138) -> 1495 | S139: 466
A140: C | B140: Argillite | C140: Wallace | D140: 527 | F140: Difference | G140: Percentage | H140: =(H139/H138) -> 3.883116883 | S140: 449
A141: D | B141: Siltite | C141: Wallace | D141: 1273 | S141: 406
A142: E | B142: Phyllite | C142: Wallace | D142: 1088 | S142: 395
A143: F | B143: Argillite | C143: Wallace | D143: 1024 | S143: 385
A144: G | B144: Argillite | C144: Wallace | D144: 1110 | S144: 278
A145: H | B145: Slate | C145: Wallace | D145: 385 | S145: 225
A146: I | B146: Argillite | C146: Wallace | D146: 466 | S146: 133
A147: J | B147: Argillite | C147: Wallace | D147: 593 | S147: 123
A148: K | B148: Granite | C148: Pluton | D148: 1259 | S148: 121
A149: M | B149: Argillite | C149: Wallace | D149: 1880 | S149: 111
A150: 918_17 | F150: Maximum Age | G150: Million Years | H150: 1295 | S150: 79
A151: A | B151: Siltite | C151: Prichard | D151: 1092 | F151: Minimum Age | G151: Million Years | H151: 546
A152: B | B152: Shale | C152: Prichard | D152: 797 | F152: Difference | G152: Million Years | H152: =(H150-H151) -> 749
A153: D | B153: Argillite | C153: Prichard | D153: 1186 | F153: Difference | G153: Percentage | H153: =(H152/H151) -> 1.371794872
A154: E | B154: Argillite | C154: Prichard | D154: 972
A155: H | B155: Argillite | C155: Prichard | D155: 1271
A156: I | B156: Argillite | C156: Striped Peak | D156: 953
A157: J | B157: Argillite | C157: Striped Peak | D157: 909
A158: K | B158: Argillite | C158: Wallace | D158: 550
A159: L | B159: Siltite | C159: Wallace | D159: 546
A160: M | B160: Argillite | C160: Wallace | D160: 1295
A161: N | B161: Siltite | C161: Burke | D161: 1167
A162: 918_18 | F162: Maximum Age | G162: Million Years | H162: 1109
A163: A | B163: Argillite | C163: St. Regis | D163: 1076 | F163: Minimum Age | G163: Million Years | H163: 670
A164: B | B164: Phyllite | C164: St. Regis | D164: 791 | F164: Difference | G164: Million Years | H164: =(H162-H163) -> 439
A165: C | B165: Argillite | C165: Wallace | D165: 1109 | F165: Difference | G165: Percentage | H165: =(H164/H163) -> 0.6552238806
A166: D | B166: Argillite | C166: Wallace | D166: 670

Sheet Ages_02
A1: Sample | B1: Step Temp | C1: Apparent age (m.y.) | D1: Error (m.y.) | E1: Maximum Age | F1: Minimum Age | G1: Difference | H1: Difference | K1: Sample | L1: Maximum Age | M1: Minimum Age | N1: Difference | O1: Difference
E2: Million Years | F2: Million Years | G2: Million Years | H2: Percentage | K2: Name | L2: Million Years | M2: Million Years | N2: Million Years | O2: Percentage
A3: 300 | B3: 500-840 | C3: 651 | D3: 9 | E3: 18620 | F3: 651 | G3: =(E3-F3) -> 17969 | H3: =(G3/F3) -> 27.60215054 | K3: 300 | L3: 18620 | M3: 651 | N3: =(L3-M3) -> 17969 | O3: =(N3/M3) -> 27.60215054
B4: 840-980 | C4: 777 | D4: 8 | K4: 300a | L4: 4400 | M4: 477 | N4: 3923 | O4: 8.224318658
B5: 980-1125 | C5: 18620 | D5: 10500 | K5: 299 | L5: 3451 | M5: 584 | N5: 2867 | O5: 4.909246575
K6: 297 | L6: 2631 | M6: 665 | N6: 1966 | O6: 2.956390977
A7: 300a | B7: 220-560 | C7: 477 | D7: 8 | E7: Maximum Age | F7: Minimum Age | G7: Difference | H7: Difference | K7: 295 | L7: 2385 | M7: 601 | N7: 1784 | O7: 2.968386023
B8: 560-715 | C8: 533 | D8: 6 | E8: Million Years | F8: Million Years | G8: Million Years | H8: Percentage | K8: 295a | L8: 854 | M8: 476 | N8: 378 | O8: 0.7941176471
B9: 715-805 | C9: 571 | D9: 6 | E9: 4400 | F9: 477 | G9: =(E9-F9) -> 3923 | H9: =(G9/F9) -> 8.224318658 | K9: 283 | L9: 1949 | M9: 552 | N9: 1397 | O9: 2.530797101
B10: 805-875 | C10: 640 | D10: 7 | K10: 279 | L10: 1474 | M10: 372 | N10: 1102 | O10: 2.962365591
B11: 875-950 | C11: 1099 | D11: 12 | K11: 277a | L11: 1347 | M11: 287 | N11: 1060 | O11: 3.693379791
B12: 950-1020 | C12: 4400 | D12: 230
A14: 299 | B14: 200-800 | C14: 584 | D14: 6 | E14: Maximum Age | F14: Minimum Age | G14: Difference | H14: Difference
B15: 800-930 | C15: 639 | D15: 7 | E15: Million Years | F15: Million Years | G15: Million Years | H15: Percentage
B16: 930-1050 | C16: 3451 | D16: 20 | E16: 3451 | F16: 584 | G16: =(E16-F16) -> 2867 | H16: =(G16/F16) -> 4.909246575
A18: 297 | B18: 150-780 | C18: 695 | D18: 7 | E18: Maximum Age | F18: Minimum Age | G18: Difference | H18: Difference
B19: 780-930 | C19: 665 | D19: 7 | E19: Million Years | F19: Million Years | G19: Million Years | H19: Percentage
B20: 930-1025 | C20: 2631 | D20: 18 | E20: 2631 | F20: 665 | G20: =(E20-F20) -> 1966 | H20: =(G20/F20) -> 2.956390977
A22: 295 | B22: 150-780 | C22: 669 | D22: 8 | E22: Maximum Age | F22: Minimum Age | G22: Difference | H22: Difference
B23: 780-925 | C23: 601 | D23: 7 | E23: Million Years | F23: Million Years | G23: Million Years | H23: Percentage
B24: 925-1050 | C24: 2385 | D24: 17 | E24: 2385 | F24: 601 | G24: =(E24-F24) -> 1784 | H24: =(G24/F24) -> 2.968386023
A26: 295a | B26: 300-600 | C26: 854 | D26: 11 | E26: Maximum Age | F26: Minimum Age | G26: Difference | H26: Difference
B27: 600-745 | C27: 476 | D27: 8 | E27: Million Years | F27: Million Years | G27: Million Years | H27: Percentage
B28: 745-845 | C28: 557 | D28: 6 | E28: 854 | F28: 476 | G28: =(E28-F28) -> 378 | H28: =(G28/F28) -> 0.7941176471
B29: 845 -945 | C29: 640 | D29: 10
A31: 283 | B31: 150-650 | C31: 552 | D31: 6 | E31: Maximum Age | F31: Minimum Age | G31: Difference | H31: Difference
B32: 650-860 | C32: 630 | D32: 7 | E32: Million Years | F32: Million Years | G32: Million Years | H32: Percentage
B33: 860-970 | C33: 1949 | D33: 15 | E33: 1949 | F33: 552 | G33: =(E33-F33) -> 1397 | H33: =(G33/F33) -> 2.530797101
A35: 279 | B35: 150-650 | C35: 1474 | D35: 13 | E35: Maximum Age | F35: Minimum Age | G35: Difference | H35: Difference
B36: 650-805 | C36: 688 | D36: 7 | E36: Million Years | F36: Million Years | G36: Million Years | H36: Percentage
B37: 805-920 | C37: 668 | D37: 7 | E37: 1474 | F37: 372 | G37: =(E37-F37) -> 1102 | H37: =(G37/F37) -> 2.962365591
A38: 278 | B38: 650-810 | C38: 372 | D38: 14
A39: 277 | B39: 800-955 | C39: 610 | D39: 7
A41: 277a | B41: 200-560 | C41: 287 | D41: 5 | E41: Maximum Age | F41: Minimum Age | G41: Difference | H41: Difference
B42: 560-715 | C42: 555 | D42: 7 | E42: Million Years | F42: Million Years | G42: Million Years | H42: Percentage
B43: 715-875 | C43: 559 | D43: 5 | E43: 1347 | F43: 287 | G43: =(E43-F43) -> 1060 | H43: =(G43/F43) -> 3.693379791
B44: 875-960 | C44: 519 | D44: 5
B45: 960-1085 | C45: 1347 | D45: 12
B47: Vidas Stukas
B48: Earth and Planetary Science Letters, 1974
B49: Volume 22, Pages 256 - 266
B50: 40 Ar/39ar Dating Of The Long Range Dikes

Sheet Ages_03
A1: TABLE 1 | I1: TABLE 1
A2: Temperature | B2: Age (m.y.) | C2: Error (m.y.) | I2: Sample | J2: Maximum Age | K2: Minimum Age | L2: Difference | M2: Difference
A3: Sample 22500 | D3: Maximum Age | E3: Minimum Age | F3: Difference | G3: Difference | I3: Name | J3: Million Years | K3: Million Years | L3: Million Years | M3: Percentage
A4: 485 | B4: 963 | C4: 17 | D4: Million Years | E4: Million Years | F4: Million Years | G4: Percentage | I4: 22500 | J4: 1235 | K4: 963 | L4: =(J4-K4) -> 272 | M4: =(L4/K4) -> 0.282450675
A5: 570 | B5: 1201 | C5: 17 | D5: 1235 | E5: 963 | F5: =(D5-E5) -> 272 | G5: =(F5/E5) -> 0.282450675 | I5: 14100 | J5: 1251 | K5: 1100 | L5: 151 | M5: 0.1372727273
A6: 640 | B6: 1226 | C6: 15 | I6: 5200 | J6: 1205 | K6: 677 | L6: 528 | M6: 0.7799113737
A7: 680 | B7: 1229 | C7: 16 | I7: 3600 | J7: 982 | K7: 733 | L7: 249 | M7: 0.3396998636
A8: 720 | B8: 1227 | C8: 16 | D8: Glenn W. Berger | I8: 2400 | J8: 566.3 | K8: 349.6 | L8: 216.7 | M8: 0.6198512586
A9: 780 | B9: 1223 | C9: 16 | D9: Earth and Planetary Science Letters, 1975 | I9: 1130 | J9: 514.7 | K9: 288.4 | L9: 226.3 | M9: 0.7846740638
A10: 880 | B10: 1218 | C10: 16 | D10: Volume 26, Pages 387 - 408 | I10: 248 | J10: 145 | K10: 78.9 | L10: 66.1 | M10: 0.8377693283
A11: 980 | B11: 1221 | C11: 15 | D11: 40ar/39ar Step Heating Of Biotite | I11: COA | J11: 177 | K11: 78.9 | L11: 98.1 | M11: 1.243346008
A12: 1070 | B12: 1235 | C12: 16
A13: 1400 | B13: 1215 | C13: 15
A15: Sample 14100 | D15: Maximum Age | E15: Minimum Age | F15: Difference | G15: Difference
A16: 570 | B16: 1100 | C16: 15 | D16: Million Years | E16: Million Years | F16: Million Years | G16: Percentage
A17: 610 | B17: 1233 | C17: 16 | D17: 1251 | E17: 1100 | F17: =(D17-E17) -> 151 | G17: =(F17/E17) -> 0.1372727273
A18: 700 | B18: 1244 | C18: 16
A19: 790 | B19: 1250 | C19: 16
A20: 880 | B20: 1237 | C20: 15
A21: 980 | B21: 1238 | C21: 15
A22: 1070 | B22: 1249 | C22: 16
A23: 1400 | B23: 1251 | C23: 16
A25: Sample 5200 | D25: Maximum Age | E25: Minimum Age | F25: Difference | G25: Difference
A26: 530 | B26: 677 | C26: 10 | D26: Million Years | E26: Million Years | F26: Million Years | G26: Percentage
A27: 570 | B27: 1050 | C27: 15 | D27: 1205 | E27: 677 | F27: =(D27-E27) -> 528 | G27: =(F27/E27) -> 0.7799113737
A28: 680 | B28: 1156 | C28: 15
A29: 735 | B29: 1178 | C29: 16
A30: 805 | B30: 1200 | C30: 15
A31: 895 | B31: 1128 | C31: 15
A32: 1030 | B32: 1104 | C32: 27
A33: 1400 | B33: 1205 | C33: 15
A35: Sample 3600 | D35: Maximum Age | E35: Minimum Age | F35: Difference | G35: Difference
A36: 610 | B36: 733 | C36: 11 | D36: Million Years | E36: Million Years | F36: Million Years | G36: Percentage
A37: 790 | B37: 982 | C37: 14 | D37: 982 | E37: 733 | F37: =(D37-E37) -> 249 | G37: =(F37/E37) -> 0.3396998636
A38: 980 | B38: 768 | C38: 12
A39: 1160 | B39: 958 | C39: 13
A40: 1315 | B40: 949 | C40: 28
A42: Sample 2400 | D42: Maximum Age | E42: Minimum Age | F42: Difference | G42: Difference
A43: 530 | B43: 349.6 | C43: 8.4 | D43: Million Years | E43: Million Years | F43: Million Years | G43: Percentage
A44: 570 | B44: 565.5 | C44: 9.6 | D44: 566.3 | E44: 349.6 | F44: =(D44-E44) -> 216.7 | G44: =(F44/E44) -> 0.6198512586
A45: 660 | B45: 638 | C45: 10
A46: 760 | B46: 690 | C46: 11
A47: 825 | B47: 634 | C47: 11
A48: 925 | B48: 566.3 | C48: 9
A49: 1050 | B49: 598 | C49: 9.2
A50: 1400 | B50: 549.8 | C50: 8.4
A52: Sample 1130 | D52: Maximum Age | E52: Minimum Age | F52: Difference | G52: Difference
A53: 515 | B53: 433.4 | C53: 7.2 | D53: Million Years | E53: Million Years | F53: Million Years | G53: Percentage
A54: 560 | B54: 491.9 | C54: 7.6 | D54: 514.7 | E54: 288.4 | F54: =(D54-E54) -> 226.3 | G54: =(F54/E54) -> 0.7846740638
A55: 650 | B55: 505.6 | C55: 7.9
A56: 735 | B56: 514.7 | C56: 8
A57: 800 | B57: 444 | C57: 7
A58: 915 | B58: 288.4 | C58: 4.8
A59: 1030 | B59: 368.4 | C59: 6
A60: 1400 | B60: 457.8 | C60: 7.3
A62: Sample 248 | D62: Maximum Age | E62: Minimum Age | F62: Difference | G62: Difference
A63: 505 | B63: 132.7 | C63: 9 | D63: Million Years | E63: Million Years | F63: Million Years | G63: Percentage
A64: 550 | B64: 86.2 | C64: 1.6 | D64: 145 | E64: 78.9 | F64: =(D64-E64) -> 66.1 | G64: =(F64/E64) -> 0.8377693283
A65: 640 | B65: 81.7 | C65: 1.5
A66: 720 | B66: 78.9 | C66: 1.6
A67: 800 | B67: 80.7 | C67: 2.5
A68: 915 | B68: 83.1 | C68: 1.7
A69: 1020 | B69: 96.6 | C69: 1.8
A70: 1400 | B70: 145 | C70: 7
A72: Sample COA | D72: Maximum Age | E72: Minimum Age | F72: Difference | G72: Difference
A73: 530 | B73: 177 | C73: 13 | D73: Million Years | E73: Million Years | F73: Million Years | G73: Percentage
A74: 830 | B74: 78.9 | C74: 1.4 | D74: 177 | E74: 78.9 | F74: =(D74-E74) -> 98.1 | G74: =(F74/E74) -> 1.243346008
A75: 990 | B75: 96.8 | C75: 1.7
A76: 1400 | B76: 143.9 | C76: 2.4
A80: TABLE 2 | B80: Age (m.y.) | C80: Error (m.y.) | I80: TABLE 2
A81: Sample 9400 | D81: Maximum Age | E81: Minimum Age | F81: Difference | G81: Difference | I81: Sample | J81: Maximum Age | K81: Minimum Age | L81: Difference | M81: Difference
A82: 590 | B82: 1130 | C82: 110 | D82: Million Years | E82: Million Years | F82: Million Years | G82: Percentage | I82: Name | J82: Million Years | K82: Million Years | L82: Million Years | M82: Percentage
A83: 740 | B83: 1401 | C83: 69 | D83: 1407 | E83: 910 | F83: =(D83-E83) -> 497 | G83: =(F83/E83) -> 0.5461538462 | I83: 9400 | J83: 1407 | K83: 910 | L83: =(J83-K83) -> 497 | M83: =(L83/K83) -> 0.5461538462
A84: 830 | B84: 910 | C84: 39 | I84: 1130 | J84: 1423 | K84: 326 | L84: 1097 | M84: 3.365030675
A85: 905 | B85: 1200 | C85: 36 | I85: 950 | J85: 1368 | K85: 53.7 | L85: 1314.3 | M85: 24.47486034
A86: 985 | B86: 1407 | C86: 31 | I86: 248 | J86: 2815 | K86: 626 | L86: 2189 | M86: 3.496805112
A87: 1080 | B87: 1405 | C87: 31 | I87: 134 | J87: 2106 | K87: 616 | L87: 1490 | M87: 2.418831169
A88: 1140 | B88: 1398 | C88: 31 | I88: 11 | J88: 3010 | K88: 561 | L88: 2449 | M88: 4.365418895
A89: 1170 | B89: 1407 | C89: 31 | I89: 2 | J89: 389 | K89: 71.1 | L89: 317.9 | M89: 4.47116737
A90: 1400 | B90: 1391 | C90: 32
A92: Sample 1130 | D92: Maximum Age | E92: Minimum Age | F92: Difference | G92: Difference
A93: 610 | B93: 570 | C93: 25 | D93: Million Years | E93: Million Years | F93: Million Years | G93: Percentage
A94: 725 | B94: 434 | C94: 17 | D94: 1423 | E94: 326 | F94: =(D94-E94) -> 1097 | G94: =(F94/E94) -> 3.365030675
A95: 810 | B95: 326 | C95: 12
A96: 8905 | B96: 330
A97: 950 | B97: 534 | C97: 16
A98: 1020 | B98: 1186 | C98: 28
A99: 1080 | B99: 1381 | C99: 31
A100: 1130 | B100: 1405 | C100: 31
A101: 1185 | B101: 1423 | C101: 32
A102: 1400 | B102: 1409 | C102: 32
A104: Sample 950 | D104: Maximum Age | E104: Minimum Age | F104: Difference | G104: Difference
A105: 610 | B105: 383 | C105: 15 | D105: Million Years | E105: Million Years | F105: Million Years | G105: Percentage
A106: 720 | B106: 233.8 | C106: 7.8 | D106: 1368 | E106: 53.7 | F106: =(D106-E106) -> 1314.3 | G106: =(F106/E106) -> 24.47486034
A107: 800 | B107: 211 | C107: 11
A108: 875 | B108: 53.7 | C108: 8.5
A109: 915 | B109: 132.4 | C109: 8
A110: 965 | B110: 338 | C110: 10
A111: 1030 | B111: 991 | C111: 25
A112: 1095 | B112: 1309 | C112: 30
A113: 1160 | B113: 1368 | C113: 30
A114: 1400 | B114: 764 | C114: 89
A116: Sample 248 | D116: Maximum Age | E116: Minimum Age | F116: Difference | G116: Difference
A117: 600 | B117: 2815 | C117: 27 | D117: Million Years | E117: Million Years | F117: Million Years | G117: Percentage
A118: 720 | B118: 2241 | C118: 15 | D118: 2815 | E118: 626 | F118: =(D118-E118) -> 2189 | G118: =(F118/E118) -> 3.496805112
A119: 810 | B119: 1212 | C119: 17
A120: 885 | B120: 651 | C120: 11
A121: 945 | B121: 626 | C121: 10
A122: 1000 | B122: 1095 | C122: 14
A123: 1065 | B123: 1294 | C123: 16
A124: 1115 | B124: 1287 | C124: 16
A125: 1155 | B125: 1316 | C125: 17
A126: 1400 | B126: 1502 | C126: 26
A128: Sample 134 | D128: Maximum Age | E128: Minimum Age | F128: Difference | G128: Difference
A129: 745 | B129: 2106 | C129: 39 | D129: Million Years | E129: Million Years | F129: Million Years | G129: Percentage
A130: 880 | B130: 717 | C130: 22 | D130: 2106 | E130: 616 | F130: =(D130-E130) -> 1490 | G130: =(F130/E130) -> 2.418831169
A131: 950 | B131: 616 | C131: 19
A132: 1000 | B132: 716 | C132: 20
A133: 1050 | B133: 1232 | C133: 29
A134: 1100 | B134: 1319 | C134: 30
A135: 1140 | B135: 1303 | C135: 30
A136: 1195 | B136: 1335 | C136: 30
A137: 1400 | B137: 1320 | C137: 30
A139: Sample 11 | D139: Maximum Age | E139: Minimum Age | F139: Difference | G139: Difference
A140: 610 | B140: 2417 | C140: 41 | D140: Million Years | E140: Million Years | F140: Million Years | G140: Percentage
A141: 755 | B141: 3010 | C141: 44 | D141: 3010 | E141: 561 | F141: =(D141-E141) -> 2449 | G141: =(F141/E141) -> 4.365418895
A142: 845 | B142: 1320 | C142: 31
A143: 945 | B143: 561 | C143: 17
A144: 990 | B144: 592 | C144: 20
A145: 1030 | B145: 1075 | C145: 26
A146: 1095 | B146: 1033 | C146: 25
A147: 1150 | B147: 1049 | C147: 26
A148: 1235 | B148: 1082 | C148: 26
A149: 1400 | B149: 903 | C149: 55
A151: Sample 2 | D151: Maximum Age | E151: Minimum Age | F151: Difference | G151: Difference
A152: 580 | B152: 123.6 | C152: 4.2 | D152: Million Years | E152: Million Years | F152: Million Years | G152: Percentage
A153: 755 | B153: 77.5 | C153: 2.6 | D153: 389 | E153: 71.1 | F153: =(D153-E153) -> 317.9 | G153: =(F153/E153) -> 4.47116737
A154: 865 | B154: 71.1 | C154: 2.4
A155: 945 | B155: 100.3 | C155: 3.3
A156: 1040 | B156: 145.5 | C156: 4.7
A157: 1080 | B157: 277.5 | C157: 8.6
A158: 1115 | B158: 389 | C158: 12
A159: 1155 | B159: 343 | C159: 11
A160: 1245 | B160: 296 | C160: 12
A161: 1400 | B161: -
A165: TABLE 3 | I165: TABLE 3
A166: Temperature | B166: Age (m.y.) | C166: Error (m.y.) | I166: Sample | J166: Maximum Age | K166: Minimum Age | L166: Difference | M166: Difference
A167: Sample 22500 | D167: Maximum Age | E167: Minimum Age | F167: Difference | G167: Difference | I167: Name | J167: Million Years | K167: Million Years | L167: Million Years | M167: Percentage
A168: 495 | B168: 1484 | C168: 21 | D168: Million Years | E168: Million Years | F168: Million Years | G168: Percentage | I168: 22500 | J168: 4746 | K168: 652 | L168: =(J168-K168) -> 4094 | M168: =(L168/K168) -> 6.279141104
A169: 590 | B169: 1471 | C169: 3.9 | D169: 4746 | E169: 652 | F169: =(D169-E169) -> 4094 | G169: =(F169/E169) -> 6.279141104 | I169: 2400 | J169: 1445 | K169: 71.8 | L169: 1373.2 | M169: 19.12534819
A170: 700 | B170: 4746 | C170: 7.9 | I170: 1070 | J170: 1682 | K170: 81.1 | L170: 1600.9 | M170: 19.73982737
A171: 760 | B171: 688 | C171: 10 | I171: 85 | J171: 809 | K171: 68.5 | L171: 740.5 | M171: 10.81021898
A172: 880 | B172: 652 | C172: 10 | I172: 2 | J172: 232.2 | K172: 56.3 | L172: 175.9 | M172: 3.124333925
A173: 1000 | B173: 961 | C173: 13 | I173: COA | J173: 293.3 | K173: 58 | L173: 235.3 | M173: 4.056896552
A174: 1080 | B174: 1062 | C174: 14
A175: 1150 | B175: 1060 | C175: 14
A176: 1185 | B176: 1056 | C176: 15
A177: 1400 | B177: 1039 | C177: 17
A179: Sample 2400 | D179: Maximum Age | E179: Minimum Age | F179: Difference | G179: Difference
A180: 470 | B180: 1445 | C180: 18 | D180: Million Years | E180: Million Years | F180: Million Years | G180: Percentage
A181: 570 | B181: 182.9 | C181: 3.5 | D181: 1445 | E181: 71.8 | F181: =(D181-E181) -> 1373.2 | G181: =(F181/E181) -> 19.12534819
A182: 670 | B182: 79.6 | C182: 1.4
A183: 765 | B183: 71.8 | C183: 1.3
A184: 880 | B184: 124.6 | C184: 2.3
A185: 985 | B185: 308.3 | C185: 5
A186: 1070 | B186: 319.3 | C186: 5.3
A187: 1130 | B187: 259.6 | C187: 4.2
A188: 1230 | B188: 269.5 | C188: 4.6
A189: 1400 | B189: 278.5 | C189: 5.4
A191: Sample 1070 | D191: Maximum Age | E191: Minimum Age | F191: Difference | G191: Difference
A192: 470 | B192: 1682 | C192: 20 | D192: Million Years | E192: Million Years | F192: Million Years | G192: Percentage
A193: 570 | B193: 225.8 | C193: 3.8 | D193: 1682 | E193: 81.1 | F193: =(D193-E193) -> 1600.9 | G193: =(F193/E193) -> 19.73982737
A194: 680 | B194: 120.1 | C194: 2
A195: 765 | B195: 81.1 | C195: 1.4
A196: 860 | B196: 151.9 | C196: 2.6
A197: 980 | B197: 408.3 | C197: 6.4
A198: 1060 | B198: 516.4 | C198: 8
A199: 1120 | B199: 414.7 | C199: 6.5
A200: 1200 | B200: 381.5 | C200: 6
A201: 1400 | B201: 329.7 | C201: 5.5
A203: Sample 85 | D203: Maximum Age | E203: Minimum Age | F203: Difference | G203: Difference
A204: 440 | B204: 809 | C204: 13 | D204: Million Years | E204: Million Years | F204: Million Years | G204: Percentage
A205: 530 | B205: 77.7 | C205: 1.5 | D205: 809 | E205: 68.5 | F205: =(D205-E205) -> 740.5 | G205: =(F205/E205) -> 10.81021898
A206: 650 | B206: 68.5 | C206: 1.2
A207: 750 | B207: 69.8 | C207: 1.3
A208: 855 | B208: 76.4 | C208: 1.3
A209: 965 | B209: 235.3 | C209: 3.9
A210: 1040 | B210: 287.5 | C210: 4.6
A211: 1110 | B211: 247.1 | C211: 4
A212: 1160 | B212: 229.1 | C212: 3.8
A213: 1400 | B213: 226.8 | C213: 3.9
A215: Sample 2 | D215: Maximum Age | E215: Minimum Age | F215: Difference | G215: Difference
A216: 510 | B216: 233.2 | C216: 4.4 | D216: Million Years | E216: Million Years | F216: Million Years | G216: Percentage
A217: 600 | B217: 68.4 | C217: 1.2 | D217: 232.2 | E217: 56.3 | F217: =(D217-E217) -> 175.9 | G217: =(F217/E217) -> 3.124333925
A218: 710 | B218: 57.5 | C218: 1
A219: 780 | B219: 56.3 | C219: 1
A220: 890 | B220: 59.6 | C220: 1
A221: 1005 | B221: 67.7 | C221: 1.2
A222: 1100 | B222: 82.6 | C222: 1.4
A223: 1145 | B223: 83.8 | C223: 1.5
... 13 more rows

Sheet Ages_04
A1: TABLE 1
A2: Sample | B2: Age (m.y.) | C2: Error (m.y.) | D2: Maximum Age | E2: Minimum Age | F2: Difference | G2: Difference
A3: 1 | B3: 3076 | C3: 97 | D3: Million Years | E3: Million Years | F3: Million Years | G3: Percentage
A4: 2 | B4: 2991 | C4: 65 | D4: 3076 | E4: 1891 | F4: =(D4-E4) -> 1185 | G4: =(F4/E4) -> 0.6266525648
A5: 3 | B5: 2888 | C5: 70
A6: 4 | B6: 2851 | C6: 71
A7: 5 | B7: 2809 | C7: 51
A8: 6 | B8: 2740 | C8: 13
A9: 7 | B9: 2589 | C9: 17
A10: 8 | B10: 2501 | C10: 19
A11: 9 | B11: 2283 | C11: 27
A12: 10 | B12: 2213 | C12: 20
A13: 11 | B13: 2150 | C13: 26
A14: 12 | B14: 2028 | C14: 51
A15: 13 | B15: 2082 | C15: 38
A16: 14 | B16: 2261 | C16: 17
A17: 15 | B17: 1993 | C17: 34
A18: 16 | B18: 2000 | C18: 25
A19: 17 | B19: 1906 | C19: 40 | D19: TABLE 1
A20: 18 | B20: 2095 | C20: 18 | D20: Maximum Age | E20: Minimum Age | F20: Difference | G20: Difference
A21: 19 | B21: 2066 | C21: 34 | D21: Million Years | E21: Million Years | F21: Million Years | G21: Percentage
A22: 20 | B22: 1891 | C22: 36 | D22: 3076 | E22: 1891 | F22: =(D22-E22) -> 1185 | G22: =(F22/E22) -> 0.6266525648
D24: TABLE 2
A25: TABLE 2 | B25: Age (m.y.) | C25: Error (m.y.) | D25: Maximum Age | E25: Minimum Age | F25: Difference | G25: Difference
A26: 1 | B26: 1696 | C26: 98 | D26: Million Years | E26: Million Years | F26: Million Years | G26: Percentage
A27: 2 | B27: 1687 | C27: 45 | D27: 1696 | E27: 1152 | F27: =(D27-E27) -> 544 | G27: =(F27/E27) -> 0.4722222222
A28: 3 | B28: 1620 | C28: 18
A29: 4 | B29: 1630 | C29: 42
A30: 5 | B30: 1421 | C30: 4
A31: 6 | B31: 1454 | C31: 21
A32: 7 | B32: 1445 | C32: 7
A33: 8 | B33: 1395 | C33: 12
A34: 9 | B34: 1376 | C34: 12
A35: 10 | B35: 1387 | C35: 16
A36: 11 | B36: 1337 | C36: 19
A37: 12 | B37: 1332 | C37: 41
A38: 13 | B38: 1239 | C38: 41
A39: 14 | B39: 1250 | C39: 28
A40: 15 | B40: 1281 | C40: 25
A41: 16 | B41: 1237 | C41: 25
A42: 17 | B42: 1244 | C42: 32
A43: 18 | B43: 1235 | C43: 16
A44: 19 | B44: 1217 | C44: 29
A45: 20 | B45: 1152 | C45: 41
A46: 21 | B46: 1220 | C46: 31
A47: 22 | B47: 1202 | C47: 26
A48: 23 | B48: 1273 | C48: 12
A49: 24 | B49: 1290 | C49: 6
A50: 25 | B50: 1277 | C50: 4
A51: 26 | B51: 1281 | C51: 12
A52: 27 | B52: 1300 | C52: 22
D54: R. Burgess
D55: Earth and Planetary Science Letters, 1992
D56: Volume 109, Pages 147-167
D57: 40ar-39ar Analysis Of Perthite

Sheet Ages_05
A2: Sample | B2: Mineral | C2: Age | D2: Error | E2: Difference | F2: Percentage
A3: Number | B3: Type | C3: Million Years | D3: Million Years | E3: Million Years | F3: Difference
A4: 116 | B4: Biotite | C4: 89.4 | D4: 1 | E4: =(C4-C5) -> 7.3 | F4: =(E4/C4) -> 0.08165548098
A5: 116 | B5: Muscovite | C5: 82.1 | D5: 1
A6: 117 | B6: Biotite | C6: 99.7 | D6: 0.9 | E6: =(C6-C7) -> 20.2 | F6: =(E6/C6) -> 0.2026078235
A7: 117 | B7: Muscovite | C7: 79.5 | D7: 0.9
A8: 118 | B8: Biotite | C8: 97.3 | D8: 0.9 | E8: =(C8-C9) -> 17.5 | F8: =(E8/C8) -> 0.1798561151
A9: 118 | B9: Muscovite | C9: 79.8 | D9: 1
A10: 119 | B10: Biotite | C10: 177 | D10: 1.9 | E10: =(C10-C11) -> 91.9 | F10: =(E10/C10) -> 0.5192090395
A11: 119 | B11: Muscovite | C11: 85.1 | D11: 1.1
A12: 120 | B12: Biotite | C12: 172.7 | D12: 1.8 | E12: =(C12-C13) -> 81.9 | F12: =(E12/C12) -> 0.4742327736
A13: 120 | B13: Muscovite | C13: 90.8 | D13: 1.1
A14: 122 | B14: Biotite | C14: 95.6 | D14: 0.8 | E14: =(C14-C15) -> 15.7 | F14: =(E14/C14) -> 0.1642259414
A15: 122 | B15: Muscovite | C15: 79.9 | D15: 0.7
A16: 139 | B16: Biotite | C16: 210.9 | D16: 2 | E16: =(C16-C17) -> 121.6 | F16: =(E16/C16) -> 0.5765765766
A17: 139 | B17: Muscovite | C17: 89.3 | D17: 0.9
A18: 140 | B18: Biotite | C18: 430.3 | D18: 3.9 | E18: =(C18-C19) -> 338.9 | F18: =(E18/C18) -> 0.7875900535
A19: 140 | B19: Muscovite | C19: 91.4 | D19: 1.1
A20: 8 | B20: Biotite | C20: 125.2 | D20: 1.4 | E20: =(C20-C21) -> 40.1 | F20: =(E20/C20) -> 0.3202875399
A21: 8 | B21: Muscovite | C21: 85.1 | D21: 0.9
A22: 9 | B22: Biotite | C22: 147.2 | D22: 1.6 | E22: =(C22-C23) -> 66.4 | F22: =(E22/C22) -> 0.4510869565
A23: 9 | B23: Muscovite | C23: 80.8 | D23: 0.9
A24: 61 | B24: Biotite | C24: 98 | D24: 1 | E24: =(C24-C25) -> 19.1 | F24: =(E24/C24) -> 0.1948979592
A25: 61 | B25: Muscovite | C25: 78.9 | D25: 0.8
A26: 13 | B26: Biotite | C26: 298.9 | D26: 2.9 | E26: =(C26-C27) -> 203.8 | F26: =(E26/C26) -> 0.6818333891
A27: 13 | B27: Muscovite | C27: 95.1 | D27: 1.3
A28: 14 | B28: Biotite | C28: 243.9 | D28: 2.3 | E28: =(C28-C29) -> 151.7 | F28: =(E28/C28) -> 0.6219762198
A29: 14 | B29: Muscovite | C29: 92.2 | D29: 1
A30: 15 | B30: Biotite | C30: 168.2 | D30: 1.5 | E30: =(C30-C31) -> 82.8 | F30: =(E30/C30) -> 0.4922711058
A31: 15 | B31: Muscovite | C31: 85.4 | D31: 1
A32: 17 | B32: Biotite | C32: 107.5 | D32: 1 | E32: =(C32-C33) -> 23.9 | F32: =(E32/C32) -> 0.2223255814
A33: 17 | B33: Muscovite | C33: 83.6 | D33: 1
A34: 17 | B34: Muscovite | C34: 85 | D34: 1 | E34: =(C35-C34) -> 20.9 | F34: =(E34/C34) -> 0.2458823529
A35: 25 | B35: Biotite | C35: 105.9 | D35: 1.1
A36: 25 | B36: Muscovite | C36: 86.2 | D36: 1.2 | E36: =(C37-C36) -> 168.4 | F36: =(E36/C36) -> 1.953596288
A37: 27 | B37: Biotite | C37: 254.6 | D37: 2.3
A38: 27 | B38: Muscovite | C38: 107.4 | D38: 1.4 | E38: =(C39-C38) -> 203.9 | F38: =(E38/C38) -> 1.898510242
A39: 19 | B39: Biotite | C39: 311.3 | D39: 3.1
A40: 19 | B40: Muscovite | C40: 107.8 | D40: 1.3 | E40: =(C41-C40) -> 69.6 | F40: =(E40/C40) -> 0.6456400742
A41: 37 | B41: Biotite | C41: 177.4 | D41: 1.9
A42: 37 | B42: Muscovite | C42: 96.1 | D42: 1.1 | E42: =(C43-C42) -> 138.6 | F42: =(E42/C42) -> 1.442247659
A43: 39 | B43: Biotite | C43: 234.7 | D43: 2.3
A44: 39 | B44: Muscovite | C44: 95.6 | D44: 1.4 | E44: =(C44-C45) -> 16.9 | F44: =(E44/C44) -> 0.1767782427
A45: 88 | B45: Biotite | C45: 78.7 | D45: 0.9
A46: 88 | B46: Muscovite | C46: 82.1 | D46: 1 | E46: =(C46-C47) -> 3.1 | F46: =(E46/C46) -> 0.03775883069
A47: 24 | B47: Biotite | C47: 79 | D47: 0.7
A48: 24 | B48: Muscovite | C48: 85.9 | D48: 1 | E48: =(C48-C49) -> 4.6 | F48: =(E48/C48) -> 0.05355064028
A49: 41 | B49: Biotite | C49: 81.3 | D49: 0.6
A50: 41 | B50: Muscovite | C50: 85.5 | D50: 0.8 | E50: =(C50-C51) -> 20.3 | F50: =(E50/C50) -> 0.2374269006
A51: 11 | B51: WR | C51: 65.2 | D51: 0.7
B53: M. S. Brewer
B54: Earth and Planetary Science Letters, 1969
B55: Volume 6, Pages 321-331
B56: Excess Radiogenic Argon
A59: Sample | B59: Mineral | C59: Percentage | D59: Error | E59: Difference | F59: Percentage
A60: Number | B60: Type | C60: Difference | D60: Million Years | E60: Million Years | F60: Difference
A61: 88 | B61: Muscovite | C61: 0.03775883069 | D61: 1 | E61: 3.1 | F61: 0.03775883069
A62: 24 | B62: Muscovite | C62: 0.05355064028 | D62: 1 | E62: 4.6 | F62: 0.05355064028
A63: 116 | B63: Biotite | C63: 0.08165548098 | D63: 1 | E63: 7.3 | F63: 0.08165548098
A64: 122 | B64: Biotite | C64: 0.1642259414 | D64: 0.8 | E64: 15.7 | F64: 0.1642259414
A65: 39 | B65: Muscovite | C65: 0.1767782427 | D65: 1.4 | E65: 16.9 | F65: 0.1767782427
A66: 118 | B66: Biotite | C66: 0.1798561151 | D66: 0.9 | E66: 17.5 | F66: 0.1798561151
A67: 61 | B67: Biotite | C67: 0.1948979592 | D67: 1 | E67: 19.1 | F67: 0.1948979592
A68: 117 | B68: Biotite | C68: 0.2026078235 | D68: 0.9 | E68: 20.2 | F68: 0.2026078235
A69: 17 | B69: Biotite | C69: 0.2223255814 | D69: 1 | E69: 23.9 | F69: 0.2223255814
A70: 41 | B70: Muscovite | C70: 0.2374269006 | D70: 0.8 | E70: 20.3 | F70: 0.2374269006
A71: 17 | B71: Muscovite | C71: 0.2458823529 | D71: 1 | E71: 20.9 | F71: 0.2458823529
A72: 8 | B72: Biotite | C72: 0.3202875399 | D72: 1.4 | E72: 40.1 | F72: 0.3202875399
A73: 9 | B73: Biotite | C73: 0.4510869565 | D73: 1.6 | E73: 66.4 | F73: 0.4510869565
A74: 120 | B74: Biotite | C74: 0.4742327736 | D74: 1.8 | E74: 81.9 | F74: 0.4742327736
A75: 15 | B75: Biotite | C75: 0.4922711058 | D75: 1.5 | E75: 82.8 | F75: 0.4922711058
A76: 119 | B76: Biotite | C76: 0.5192090395 | D76: 1.9 | E76: 91.9 | F76: 0.5192090395
A77: 139 | B77: Biotite | C77: 0.5765765766 | D77: 2 | E77: 121.6 | F77: 0.5765765766
A78: 14 | B78: Biotite | C78: 0.6219762198 | D78: 2.3 | E78: 151.7 | F78: 0.6219762198
A79: 19 | B79: Muscovite | C79: 0.6456400742 | D79: 1.3 | E79: 69.6 | F79: 0.6456400742
A80: 13 | B80: Biotite | C80: 0.6818333891 | D80: 2.9 | E80: 203.8 | F80: 0.6818333891
A81: 140 | B81: Biotite | C81: 0.7875900535 | D81: 3.9 | E81: 338.9 | F81: 0.7875900535
A82: 37 | B82: Muscovite | C82: 1.442247659 | D82: 1.1 | E82: 138.6 | F82: 1.442247659
A83: 27 | B83: Muscovite | C83: 1.898510242 | D83: 1.4 | E83: 203.9 | F83: 1.898510242
A84: 25 | B84: Muscovite | C84: 1.953596288 | D84: 1.2 | E84: 168.4 | F84: 1.953596288

Sheet Ages_06
A2: TABLE 5. | B2: 206Pb | C2: 207Pb | D2: 207Pb
B3: 238U | C3: 235U | D3: 206Pb
A4: Sample | B4: Million | C4: Million | D4: Million | E4: Maximum Age | F4: Minimum Age | G4: Difference | H4: Difference | K4: TABLE 5.
A5: Name | B5: Years | C5: Years | D5: Years | E5: Million Years | F5: Million Years | G5: Million Years | H5: Percentage | K5: Sample | L5: Maximum Age | M5: Minimum Age | N5: Difference | O5: Difference
A6: 113, HCl-Leach | B6: 13.4 | C6: 15 | D6: 280 | E6: 280 | F6: 13.4 | G6: =(E6-F6) -> 266.6 | H6: =(G6/F6) -> 19.89552239 | K6: Name | L6: Million Years | M6: Million Years | N6: Million Years | O6: Percentage
A7: 1B, Leached | B7: 17 | C7: 20.4 | D7: 450 | E7: 450 | F7: 17 | G7: 433 | H7: 25.47058824 | K7: 113, HCl-Leach | L7: 280 | M7: 13.4 | N7: =(L7-M7) -> 266.6 | O7: =(N7/M7) -> 19.89552239
A8: 1B, Total | B8: 16.9 | C8: 20.3 | D8: 445 | E8: 445 | F8: 16.9 | G8: 428.1 | H8: 25.33136095 | K8: 1B, Leached | L8: 450 | M8: 17 | N8: 433 | O8: 25.47058824
A9: 2A-1, HCI-Leach | B9: 11.4 | C9: 15.9 | D9: 770 | E9: 770 | F9: 11.4 | G9: 758.6 | H9: 66.54385965 | K9: 1B, Total | L9: 445 | M9: 16.9 | N9: 428.1 | O9: 25.33136095
A10: 2A-1, Leached | B10: 18.1 | C10: 22.2 | D10: 500 | E10: 500 | F10: 18.1 | G10: 481.9 | H10: 26.62430939 | K10: 2A-1, HCI-Leach | L10: 770 | M10: 11.4 | N10: 758.6 | O10: 66.54385965
A11: 2A-1, Total | B11: 17 | C11: 21.2 | D11: 531 | E11: 531 | F11: 17 | G11: 514 | H11: 30.23529412 | K11: 2A-1, Leached | L11: 500 | M11: 18.1 | N11: 481.9 | O11: 26.62430939
A12: 2A-2, 1-IC1-Leach | B12: 12.1 | C12: 16.5 | D12: 726 | E12: 726 | F12: 12.1 | G12: 713.9 | H12: 59 | K12: 2A-1, Total | L12: 531 | M12: 17 | N12: 514 | O12: 30.23529412
A13: 2A-2, Leached | B13: 19.9 | C13: 23.9 | D13: 445 | E13: 445 | F13: 19.9 | G13: 425.1 | H13: 21.36180905 | K13: 2A-2, 1-IC1-Leach | L13: 726 | M13: 12.1 | N13: 713.9 | O13: 59
A14: 2A-2, Total | B14: 19.2 | C14: 23.2 | D14: 462 | E14: 462 | F14: 19.2 | G14: 442.8 | H14: 23.0625 | K14: 2A-2, Leached | L14: 445 | M14: 19.9 | N14: 425.1 | O14: 21.36180905
A15: Pyrite 2 | B15: 18.1 | C15: 19.6 | D15: 206 | E15: 206 | F15: 18.1 | G15: 187.9 | H15: 10.38121547 | K15: 2A-2, Total | L15: 462 | M15: 19.2 | N15: 442.8 | O15: 23.0625
A16: Pyrite 2, Residue | B16: 1725 | C16: 10478 | D16: -190 | E16: 10478 | F16: -190 | G16: 10668 | H16: -56.14736842 | K16: Pyrite 2 | L16: 206 | M16: 18.1 | N16: 187.9 | O16: 10.38121547
A17: Pyrite 2, Total | B17: 39.7 | C17: 39.1 | D17: 0 | E17: 39.7 | F17: 39.1 | G17: 0.6 | H17: 0.01534526854 | K17: Pyrite 2, Residue | L17: 10478 | M17: 190 | N17: 10288 | O17: 54.14736842
A18: Pyrite 5 | B18: 2168 | C18: 1238 | D18: -153 | E18: 2168 | F18: 153 | G18: 2015 | H18: 13.16993464 | K18: Pyrite 2, Total | L18: 39.7 | M18: 39.1 | N18: 0.6 | O18: 0.01534526854
K19: Pyrite 5 | L19: 2168 | M19: 153 | N19: 2015 | O19: 13.16993464
D20: TABLE 4.
A21: TABLE 7. | D21: Sample | E21: Million
A22: Sample | B22: Million | D22: Name | E22: Years
A23: Name | B23: Years | D23: Pitch. 1 | E23: 594
A24: A2, pitch. 1 | B24: 1150 | D24: Pitch. 2 | E24: 269
A25: A2, pitch. 22 | B25: 2390 | D25: Pitch. 3 | E25: 471
A26: A2, pitch. 3 | B26: 2220 | D26: Pyrite 2 | E26: 0
A27: A5, pitch. | B27: 650 | D27: Pyrite 3 | E27: -49
A28: A7, pitch. | B28: 1640 | D28: Pyrite 4 | E28: -90
A29: A2, pyrite | B29: 610 | D29: 1B | E29: 445
A30: A5, pyrite | B30: 170 | D30: 2A-1 | E30: 530
A31: A7, pyrite | B31: 430 | D31: 2A-2 | E31: 462
A32: A2, total ore | B32: 450 | D32: 3B-2 | E32: 310
A33: A5, total ore | B33: 560 | D33: Total ore 1 | E33: 84
A34: A7, total ore | B34: 810 | D34: Total ore 1 (total) | E34: 82
A35: A2, charcoal | B35: 5850 | D35: Total ore 2 | E35: 79
D36: Total ore (average) | E36: 82
A39: TABLE 9. | B39: 206Pb | C39: 207Pb | D39: 207Pb | K39: TABLE 9.
B40: 238U | C40: 235U | D40: 206Pb | E40: Maximum Age | F40: Minimum Age | G40: Difference | H40: Difference | K40: Sample | L40: Maximum Age | M40: Minimum Age | N40: Difference | O40: Difference
A41: Sample | B41: Age (m.y.) | C41: Age (m.y.) | D41: Age (m.y.) | E41: Million Years | F41: Million Years | G41: Million Years | H41: Percentage | K41: Name | L41: Million Years | M41: Million Years | N41: Million Years | O41: Percentage
A42: MU-1_leach_1 | B42: 13.2 | C42: 17 | D42: 600 | E42: 600 | F42: 13.2 | G42: =(E42-F42) -> 586.8 | H42: =(G42/F42) -> 44.45454545 | K42: MU-1_leach_1 | L42: 600 | M42: 13.2 | N42: =(L42-M42) -> 586.8 | O42: =(N42/M42) -> 44.45454545
A43: MU-1_leach_2 | B43: 24.3 | C43: 30 | D43: 510 | E43: 510 | F43: 24.3 | G43: 485.7 | H43: 19.98765432 | K43: MU-1_leach_2 | L43: 510 | M43: 24.3 | N43: 485.7 | O43: 19.98765432
A44: MU-1_leach_3 | B44: 138 | C44: 166 | D44: 580 | E44: 580 | F44: 138 | G44: 442 | H44: 3.202898551 | K44: MU-1_leach_3 | L44: 580 | M44: 138 | N44: 442 | O44: 3.202898551
A45: MU-1_residue | B45: 1822 | C45: 1328 | D45: 600 | E45: 1822 | F45: 600 | G45: 1222 | H45: 2.036666667 | K45: MU-1_residue | L45: 1822 | M45: 600 | N45: 1222 | O45: 2.036666667
A46: MU-1_total | B46: 27.4 | C46: 33.9 | D46: 520 | E46: 520 | F46: 27.4 | G46: 492.6 | H46: 17.97810219 | K46: MU-1_total | L46: 520 | M46: 27.4 | N46: 492.6 | O46: 17.97810219
A47: MU-2 | B47: 29.8 | C47: 34.6 | D47: 390 | E47: 390 | F47: 29.8 | G47: 360.2 | H47: 12.08724832 | K47: MU-2 | L47: 390 | M47: 29.8 | N47: 360.2 | O47: 12.08724832
A48: MU-3 | B48: 24.1 | C48: 27 | D48: 300 | E48: 300 | F48: 24.1 | G48: 275.9 | H48: 11.44813278 | K48: MU-3 | L48: 300 | M48: 24.1 | N48: 275.9 | O48: 11.44813278
A49: MU-4 | B49: 27.5 | C49: 31.8 | D49: 360 | E49: 360 | F49: 27.5 | G49: 332.5 | H49: 12.09090909 | K49: MU-4 | L49: 360 | M49: 27.5 | N49: 332.5 | O49: 12.09090909
D52: Kenneth R. Ludwig
D53: Economic Geology, 1978
D54: Volume 73, Pages 29-49
D55: Uranium-Daughter Migration
A61: Sample | B61: Pb-206/204 | C61: Pb-207/204 | D61: Pb-207/206
A62: Pitch-1 | B62: 10100 | C62: 618 | D62: =(C62/B62) -> 0.06118811881 | E62: =[1]!AgePb76($D$62) -> 645.8535495
A63: Pitch-2 | B63: 9959 | C63: 529.2 | D63: =(C63/B63) -> 0.05313786525 | E63: =[1]!AgePb76($D$63) -> 334.6880995
A64: Pitch-3 | B64: 8792 | C64: 511.5 | D64: 0.05817788899 | E64: =[1]!AgePb76($D$64) -> 536.4674942
A65: Pyrite-2 | B65: 4103 | C65: 204.1 | D65: 0.04974408969 | E65: =[1]!AgePb76($D$65) -> 183.0528983
A66: Pyrite-3 | B66: 5076 | C66: 244.3 | D66: 0.0481284476 | E66: =[1]!AgePb76($D$66) -> 105.5878606
A67: Pyrite-4 | B67: 3516 | C67: 171.4 | D67: 0.04874857793 | E67: =[1]!AgePb76($D$67) -> 135.7562129
A68: 1B | B68: 1679 | C68: 108.7 | D68: 0.06474091721 | E68: =[1]!AgePb76($D$68) -> 765.9279589
A69: 2A-1 | B69: 4829 | C69: 295.1 | D69: 0.06110996065 | E69: =[1]!AgePb76($D$69) -> 643.1066856
A70: 2A-2 | B70: 1849 | C70: 119 | D70: 0.06435911303 | E70: =[1]!AgePb76($D$70) -> 753.4540019
A71: 3B-2 | B71: 7745 | C71: 422.1 | D71: 0.05449967721 | E71: =[1]!AgePb76($D$71) -> 391.7546785
A72: Total-Ore-1 | B72: 11360 | C72: 557.1 | D72: 0.04904049296 | E72: =[1]!AgePb76($D$72) -> 149.7673757
A73: Total-Ore-1 | B73: 50.08 | C73: 17.42 | D73: 0.3478434505 | E73: =[1]!AgePb76($D$73) -> 3697.57915
A74: Total-Ore-1 | B74: 2984 | C74: 157.4 | D74: 0.05274798928 | E74: =[1]!AgePb76($D$74) -> 317.9719638
A75: Total-Ore-2 | B75: 12930 | C75: 630.4 | D75: 0.04875483372 | E75: =[1]!AgePb76($D$75) -> 136.0577353
A83: Sample | B83: Maximum Age | C83: Minimum Age | D83: Difference | E83: Difference
A84: Name | B84: Million Years | C84: Million Years | D84: Million Years | E84: Percentage
A85: Pyrite 2, Residue | B85: 10478 | C85: 190 | D85: 10288 | E85: 54.14

Sheet Ages_07
B2: Age (m.y.) | C2: Error (m.y.)
A3: Sample AC-9 | B3: 699.4 | C3: 8.8 | D3: Maximum Age | E3: Minimum Age | F3: Difference | G3: Difference | J3: Sample | K3: Maximum Age | L3: Minimum Age | M3: Difference | N3: Difference
B4: 313 | C4: 4.7 | D4: Million Years | E4: Million Years | F4: Million Years | G4: Percentage | J4: Name | K4: Million Years | L4: Million Years | M4: Million Years | N4: Percentage
B5: 310.6 | C5: 6.5 | D5: 699.4 | E5: 280 | F5: =(D5-E5) -> 419.4 | G5: =(F5/E5) -> 1.497857143 | J5: AC-9 | K5: 699.4 | L5: 280 | M5: =(K5-L5) -> 419.4 | N5: =(M5/L5) -> 1.497857143
B6: 292.3 | C6: 27.9 | J6: AC-4 | K6: 599 | L6: 292 | M6: 307 | N6: 1.051369863
B7: 288 | C7: 3.1 | J7: DC-39 | K7: 1998 | L7: 287.1 | M7: 1710.9 | N7: 5.959247649
B8: 287.9 | C8: 3.3 | D8: J. Dostal | J8: DC-44 | K8: 611.9 | L8: 286.9 | M8: 325 | N8: 1.132798885
B9: 287.8 | C9: 3.1 | D9: Geology Magazine, 2005 | J9: AC-1 | K9: 1777.5 | L9: 234.9 | M9: 1542.6 | N9: 6.567049808
B10: 284.8 | C10: 4 | D10: Volume 142, Pages 159–172 | J10: AC-3 | K10: 315.7 | L10: 291.8 | M10: 23.9 | N10: 0.08190541467
B11: 281.4 | C11: 4 | D11: Crustal Xenoliths | J11: C-6 | K11: 293.8 | L11: 257.7 | M11: 36.1 | N11: 0.1400853706
B12: 280 | C12: 3.8
A15: Sample AC-4 | B15: 599 | C15: 6.5 | D15: Maximum Age | E15: Minimum Age | F15: Difference | G15: Difference
B16: 589.8 | C16: 7.5 | D16: Million Years | E16: Million Years | F16: Million Years | G16: Percentage
B17: 589.3 | C17: 6 | D17: 599 | E17: 292 | F17: =(D17-E17) -> 307 | G17: =(F17/E17) -> 1.051369863
B18: 584.2 | C18: 6.5
B19: 574.9 | C19: 8.5
B20: 570.7 | C20: 5.8
B21: 566.9 | C21: 7.8
B22: 563.5 | C22: 6.9
B23: 542.2 | C23: 6.4
B24: 536.6 | C24: 5.7
B25: 420.3 | C25: 4.4
B26: 292 | C26: 3.3
A28: Sample DC-39 | B28: 1998 | C28: 43 | D28: Maximum Age | E28: Minimum Age | F28: Difference | G28: Difference
B29: 1954.8 | C29: 46.5 | D29: Million Years | E29: Million Years | F29: Million Years | G29: Percentage
B30: 1924.5 | C30: 40.8 | D30: 1998 | E30: 287.1 | F30: =(D30-E30) -> 1710.9 | G30: =(F30/E30) -> 5.959247649
B31: 602.9 | C31: 8.3
B32: 601.8 | C32: 6.1
B33: 590.2 | C33: 6.2
B34: 586.2 | C34: 6.6
B35: 581.5 | C35: 6.5
B36: 567.9 | C36: 6.8
B37: 567.5 | C37: 7.3
B38: 565.4 | C38: 6.8
B39: 295.4 | C39: 3.1
B40: 293.1 | C40: 3.2
B41: 287.1 | C41: 3.1
A43: Sample DC-44 | B43: 611.9 | C43: 6.2 | D43: Maximum Age | E43: Minimum Age | F43: Difference | G43: Difference
B44: 599.4 | C44: 6.5 | D44: Million Years | E44: Million Years | F44: Million Years | G44: Percentage
B45: 596.3 | C45: 6.2 | D45: 611.9 | E45: 286.9 | F45: =(D45-E45) -> 325 | G45: =(F45/E45) -> 1.132798885
B46: 595.7 | C46: 6
B47: 592.4 | C47: 6.3
B48: 589.7 | C48: 5.9
B49: 587.7 | C49: 6
B50: 586.1 | C50: 6
B51: 577.1 | C51: 6.4
B52: 572.1 | C52: 6.8
B53: 569.6 | C53: 8
B54: 308.1 | C54: 3.4
B55: 303.1 | C55: 5.7
B56: 301.4 | C56: 4.9
B57: 301.4 | C57: 5.1
B58: 299.6 | C58: 3.2
B59: 297.7 | C59: 3.5
B60: 286.9 | C60: 3.1
A63: Sample AC-1 | B63: 1777.5 | C63: 30.5 | D63: Maximum Age | E63: Minimum Age | F63: Difference | G63: Difference
B64: 332.5 | C64: 4.5 | D64: Million Years | E64: Million Years | F64: Million Years | G64: Percentage
B65: 330.6 | C65: 4.1 | D65: 1777.5 | E65: 234.9 | F65: =(D65-E65) -> 1542.6 | G65: =(F65/E65) -> 6.567049808
B66: 328 | C66: 4.2
B67: 327.5 | C67: 4
B68: 326.7 | C68: 5.1
B69: 326.6 | C69: 3.9
B70: 326.5 | C70: 5.7
B71: 324.8 | C71: 5.1
B72: 293.5 | C72: 3.4
B73: 293.1 | C73: 3.4
B74: 292.5 | C74: 4.4
B75: 288.9 | C75: 3.3
B76: 284.8 | C76: 3.6
B77: 234.9 | C77: 4.3
A79: Sample AC-3 | B79: 315.7 | C79: 4.9 | D79: Maximum Age | E79: Minimum Age | F79: Difference | G79: Difference
B80: 314.9 | C80: 4.1 | D80: Million Years | E80: Million Years | F80: Million Years | G80: Percentage
B81: 299.4 | C81: 3.4 | D81: 315.7 | E81: 291.8 | F81: =(D81-E81) -> 23.9 | G81: =(F81/E81) -> 0.08190541467
B82: 297.3 | C82: 3.3
B83: 294.8 | C83: 3.5
B84: 293.7 | C84: 3.4
B85: 292.9 | C85: 3.3
B86: 292.8 | C86: 3.1
B87: 292.2 | C87: 3.3
B88: 291.8 | C88: 3.3
A90: Sample C-6 | B90: 293.8 | C90: 14.6 | D90: Maximum Age | E90: Minimum Age | F90: Difference | G90: Difference
B91: 284.8 | C91: 3.1 | D91: Million Years | E91: Million Years | F91: Million Years | G91: Percentage
B92: 283.1 | C92: 3.2 | D92: 293.8 | E92: 257.7 | F92: =(D92-E92) -> 36.1 | G92: =(F92/E92) -> 0.1400853706
B93: 277.9 | C93: 2.9
B94: 275.7 | C94: 2.8

Sheet Ages_08
A1: TABLE 1
J2: TABLE 1
A3: Sample QE902q | B3: Age (m.y.) | C3: Error (m.y.) | D3: Maximum Age | E3: Minimum Age | F3: Difference | G3: Difference | J3: Sample | K3: Maximum Age | L3: Minimum Age | M3: Difference | N3: Difference
A4: 600 | B4: 2095 | C4: 52 | D4: Million Years | E4: Million Years | F4: Million Years | G4: Percentage | J4: Name | K4: Million Years | L4: Million Years | M4: Million Years | N4: Percentage
A5: 700 | B5: 2091 | C5: 19 | D5: 2366 | E5: 2043 | F5: =(D5-E5) -> 323 | G5: =(F5/E5) -> 0.1581008321 | J5: QE-902 | K5: 2366 | L5: 2043 | M5: =(K5-L5) -> 323 | N5: =(M5/L5) -> 0.1581008321
A6: 800 | B6: 2046 | C6: 10 | J6: QE-903 | K6: 2482 | L6: 1951 | M6: 531 | N6: 0.2721681189
A7: 900 | B7: 2043 | C7: 11 | J7: S-6 | K7: 2196 | L7: 1463 | M7: 733 | N7: 0.5010252905
A8: 1000 | B8: 2048 | C8: 10 | J8: S-11 | K8: 2493 | L8: 1733 | M8: 760 | N8: 0.4385458742
A9: 1200 | B9: 2052 | C9: 12 | J9: I-4 | K9: 3171 | L9: 1640 | M9: 1531 | N9: 0.9335365854
A10: 1200 | B10: 2141 | C10: 29
A11: 1600 | B11: 2366 | C11: 79
A13: Sample QE903q | B13: 2169 | C13: 7 | D13: Maximum Age | E13: Minimum Age | F13: Difference | G13: Difference
A14: 600 | B14: 2482 | C14: 44 | D14: Million Years | E14: Million Years | F14: Million Years | G14: Percentage
A15: 700 | B15: 1951 | C15: 30 | D15: 2482 | E15: 1951 | F15: =(D15-E15) -> 531 | G15: =(F15/E15) -> 0.2721681189
A16: 775 | B16: 1930 | C16: 15
A17: 850 | B17: 1970 | C17: 8
A18: 900 | B18: 1971 | C18: 9 | D18: R. L. Gibson
A19: 950 | B19: 2007 | C19: 7 | D19: South African Journal Of Geology, 2000
A20: 1000 | B20: 2063 | C20: 2 | D20: Volume 103, Pages 175-190
A21: 1050 | B21: 1989 | C21: 14 | D21: 40Ar/39Ar Constraints
A22: 1100 | B22: 2015 | C22: 11
A23: 1200 | B23: 2031 | C23: 10
A24: 1600 | B24: 2050 | C24: 14
A26: Sample S6 | D26: Maximum Age | E26: Minimum Age | F26: Difference | G26: Difference
A27: 500 | B27: 2006 | C27: 12 | D27: Million Years | E27: Million Years | F27: Million Years | G27: Percentage
A28: 700 | B28: 1463 | C28: 5 | D28: 2196 | E28: 1463 | F28: =(D28-E28) -> 733 | G28: =(F28/E28) -> 0.5010252905
A29: 775 | B29: 1944 | C29: 2
A30: 825 | B30: 2080 | C30: 2
A31: 860 | B31: 2125 | C31: 2
A32: 890 | B32: 2164 | C32: 2
A33: 920 | B33: 2196 | C33: 2
A34: 950 | B34: 2168 | C34: 2
A35: 980 | B35: 2115 | C35: 2
A36: 1000 | B36: 2105 | C36: 2
A37: 1025 | B37: 2075 | C37: 2
A38: 1050 | B38: 2045 | C38: 2
A39: 1085 | B39: 2061 | C39: 2
A40: 1135 | B40: 2043 | C40: 2
A41: 1200 | B41: 2037 | C41: 2
A42: 1600 | B42: 2076 | C42: 2
A44: Sample S11 | D44: Maximum Age | E44: Minimum Age | F44: Difference | G44: Difference
A45: 500 | B45: 2493 | C45: 34 | D45: Million Years | E45: Million Years | F45: Million Years | G45: Percentage
A46: 600 | B46: 1987 | C46: 42 | D46: 2493 | E46: 1733 | F46: =(D46-E46) -> 760 | G46: =(F46/E46) -> 0.4385458742
A47: 700 | B47: 1733 | C47: 4
A48: 780 | B48: 1973 | C48: 2
A49: 830 | B49: 2055 | C49: 2
A50: 880 | B50: 2023 | C50: 2
A51: 930 | B51: 2081 | C51: 2
A52: 971 | B52: 2072 | C52: 2
A53: 1010 | B53: 2043 | C53: 2
A54: 1050 | B54: 2052 | C54: 2
A55: 1150 | B55: 2058 | C55: 2
A56: 1600 | B56: 2061 | C56: 2
A58: Sample I4 | D58: Maximum Age | E58: Minimum Age | F58: Difference | G58: Difference
A59: 700 | B59: 1961 | C59: 55 | D59: Million Years | E59: Million Years | F59: Million Years | G59: Percentage
A60: 800 | B60: 1890 | C60: 82 | D60: 3171 | E60: 1640 | F60: =(D60-E60) -> 1531 | G60: =(F60/E60) -> 0.9335365854
A61: 900 | B61: 2049 | C61: 46
A62: 975 | B62: 1640 | C62: 40
A63: 1025 | B63: 1717 | C63: 29
A64: 1050 | B64: 2505 | C64: 11
A65: 1120 | B65: 2613 | C65: 11
A66: 1145 | B66: 2639 | C66: 18
A67: 1170 | B67: 2698 | C67: 30
A68: 1195 | B68: 2736 | C68: 38
A69: 1225 | B69: 2858 | C69: 57
A70: 1275 | B70: 3171 | C70: 42
A71: 1350 | B71: 3143 | C71: 10
A72: 1650 | B72: 3120 | C72: 22
J73: TABLE 2
J74: Sample | K74: Maximum Age | L74: Minimum Age | M74: Difference | N74: Difference
A75: TABLE 2 | B75: Age (m.y.) | C75: Error (m.y.) | J75: Name | K75: Million Years | L75: Million Years | M75: Million Years | N75: Percentage
A76: V-40-1 | D76: Maximum Age | E76: Minimum Age | F76: Difference | G76: Difference | J76: V-40-1 | K76: 2092 | L76: 1975 | M76: =(K76-L76) -> 117 | N76: =(M76/L76) -> 0.05924050633
A77: 1 | B77: 1975 | C77: 9 | D77: Million Years | E77: Million Years | F77: Million Years | G77: Percentage | J77: V-40-2 | K77: 2100 | L77: 1639 | M77: 461 | N77: 0.2812690665
A78: 2 | B78: 2063 | C78: 3 | D78: 2092 | E78: 1975 | F78: =(D78-E78) -> 117 | G78: =(F78/E78) -> 0.05924050633 | J78: S-11-1 | K78: 2060 | L78: 2020 | M78: 40 | N78: 0.0198019802
A79: 3 | B79: 2039 | C79: 11 | J79: S-11-2 | K79: 2060 | L79: 1639 | M79: 421 | N79: 0.2568639414
A80: 4 | B80: 2092 | C80: 7 | J80: VH-34-1 | K80: 3335 | L80: 2433 | M80: 902 | N80: 0.3707357172
A81: 5 | B81: 2059 | C81: 19 | J81: VH-34-1 | K81: 2262 | L81: 2176 | M81: 86 | N81: 0.03952205882
A82: 6 | B82: 2072 | C82: 6 | J82: VH-34-1 | K82: 2590 | L82: 2156 | M82: 434 | N82: 0.2012987013
A83: 7 | B83: 2066 | C83: 8
A84: 8 | B84: 2065 | C84: 9
A85: 9 | B85: 2066 | C85: 12
A86: 10 | B86: 2076 | C86: 10
A88: V40-2 | D88: Maximum Age | E88: Minimum Age | F88: Difference | G88: Difference
A89: 1 | B89: 1639 | C89: 28 | D89: Million Years | E89: Million Years | F89: Million Years | G89: Percentage
A90: 2 | B90: 2058 | C90: 5 | D90: 2100 | E90: 1639 | F90: =(D90-E90) -> 461 | G90: =(F90/E90) -> 0.2812690665
A91: 3 | B91: 2063 | C91: 9
A92: 4 | B92: 2074 | C92: 8
A93: 5 | B93: 2090 | C93: 11
A94: 6 | B94: 2100 | C94: 7
A95: 7 | B95: 2063 | C95: 10
A96: 8 | B96: 2080 | C96: 8
A97: 9 | B97: 2093 | C97: 12
A98: 10 | B98: 2050 | C98: 9
A100: S11-1 | D100: Maximum Age | E100: Minimum Age | F100: Difference | G100: Difference
A101: 1 | B101: 2020 | C101: 10 | D101: Million Years | E101: Million Years | F101: Million Years | G101: Percentage
A102: 2 | B102: 2060 | C102: 13 | D102: 2060 | E102: 2020 | F102: =(D102-E102) -> 40 | G102: =(F102/E102) -> 0.0198019802
A103: 3 | B103: 2024 | C103: 10
A104: 4 | B104: 2042 | C104: 6
A106: S11-2 | D106: Maximum Age | E106: Minimum Age | F106: Difference | G106: Difference
A107: 1 | B107: 1913 | C107: 9 | D107: Million Years | E107: Million Years | F107: Million Years | G107: Percentage
A108: 2 | B108: 1994 | C108: 8 | D108: 2060 | E108: 1913 | F108: =(D108-E108) -> 147 | G108: =(F108/E108) -> 0.07684265551
A109: 3 | B109: 1978 | C109: 8
A110: 4 | B110: 2037 | C110: 9
A111: 5 | B111: 2028 | C111: 10
A112: 6 | B112: 2027 | C112: 14
A113: 7 | B113: 2060 | C113: 10
A115: VH34-1 | D115: Maximum Age | E115: Minimum Age | F115: Difference | G115: Difference
A116: 1 | B116: 3335 | C116: 26 | D116: Million Years | E116: Million Years | F116: Million Years | G116: Percentage
A117: 2 | B117: 2481 | C117: 8 | D117: 3335 | E117: 2433 | F117: =(D117-E117) -> 902 | G117: =(F117/E117) -> 0.3707357172
A118: 3 | B118: 2433 | C118: 13
A120: VH34-1 | D120: Maximum Age | E120: Minimum Age | F120: Difference | G120: Difference
A121: 1 | B121: 2262 | C121: 19 | D121: Million Years | E121: Million Years | F121: Million Years | G121: Percentage
A122: 2 | B122: 2176 | C122: 13 | D122: 2262 | E122: 2176 | F122: =(D122-E122) -> 86 | G122: =(F122/E122) -> 0.03952205882
A124: VH34-1 | D124: Maximum Age | E124: Minimum Age | F124: Difference | G124: Difference
A125: 1 | B125: 2374 | C125: 7 | D125: Million Years | E125: Million Years | F125: Million Years | G125: Percentage
A126: 2 | B126: 2236 | C126: 16 | D126: 2590 | E126: 2156 | F126: =(D126-E126) -> 434 | G126: =(F126/E126) -> 0.2012987013
A127: 3 | B127: 2590 | C127: 22
A128: 4 | B128: 2372 | C128: 6
A129: 5 | B129: 2220 | C129: 14
A130: 6 | B130: 2473 | C130: 17
A131: 7 | B131: 2156 | C131: 7

Sheet Ages_09
A1: TABLE 6 | C1: Upper Intercept | D1: Error | E1: Lower Intercept | F1: Error | G1: 206Pb/238U | H1: 206Pb/238U | I1: 207Pb/235U | J1: 207Pb/235U | K1: 207Pb/206Pb | L1: 207Pb/206Pb | M1: Maximum Age | N1: Minimum Age | O1: Difference | P1: Difference
A2: Deposit | B2: Mineral | C2: Million Years | D2: Million Years | E2: Million Years | F2: Million Years | G2: Million Years | H2: Million Years | I2: Million Years | J2: Million Years | K2: Million Years | L2: Million Years | M2: Million Years | N2: Million Years | O2: Million Years | P2: Percentage
A3: El Sherana | B3: uraninite | C3: 1600 | E3: 300 | G3: 605 | H3: 388 | I3: 447 | J3: 743 | K3: 766 | L3: 1196 | M3: 1196 | N3: 300 | O3: =(M3-N3) -> 896 | P3: =(O3/M3) -> 0.7491638796
A4: Palette | B4: uraninite | C4: 730 | G4: 476 | H4: 683 | I4: 506 | J4: 695 | K4: 494 | L4: 830 | M4: 830 | N4: 494 | O4: =(M4-N4) -> 336 | P4: =(O4/M4) -> 0.4048192771
A5: Adelaide River | B5: uraninite | G5: 1450 | I5: 1110 | J5: 1110 | K5: 470 | L5: 470 | M5: 1450 | N5: 470 | O5: 980 | P5: 0.675862069
A6: Mary Kathleen | B6: uraninite | C6: 1550 | D6: 15 | E6: 270 | F6: 70 | M6: 1550 | N6: 270 | O6: 1280 | P6: 0.8258064516
A7: Mary Kathleen | B7: uraninite | C7: 1472 | D7: 40 | O7: 0 | P7: 0
A8: Jabiluka | B8: pitchblende | G8: 371 | H8: 601 | I8: 417 | J8: 648 | K8: 682 | L8: 822 | M8: 822 | N8: 371 | O8: 451 | P8: 0.5486618005
A9: Nabarlek | B9: pitchblende | C9: 920 | E9: 200 | G9: 276 | H9: 851 | I9: 311 | J9: 872 | K9: 586 | L9: 924 | M9: 924 | N9: 276 | O9: 648 | P9: 0.7012987013
A10: Koongarra | B10: pitchblende | C10: 870 | D10: 0 | E10: 0 | G10: 447 | H10: 861 | I10: 610 | J10: 862 | K10: 864 | L10: 1282 | M10: 1282 | N10: 447 | O10: 835 | P10: 0.651326053
A11: Ranger | B11: pitchblende | C11: 1700 | E11: 900 | G11: 655 | H11: 1791 | I11: 782 | J11: 1752 | K11: 1168 | L11: 1704 | M11: 1791 | N11: 655 | O11: 1136 | P11: 0.6342825237
A12: Ranger | B12: whole rock | C12: 1711 | D12: 1 | E12: 520 | F12: 190 | G12: 488 | H12: 2754 | I12: 607 | J12: 2234 | K12: 782 | L12: 1855 | M12: 2754 | N12: 488 | O12: 2266 | P12: 0.8228031954
M15: TABLE 6
A16: TABLE 7 | M16: Mineral | N16: Maximum Age | O16: Minimum Age | P16: Difference | Q16: Difference
A17: Mineral | B17: 206Pb/238U | C17: Error | D17: 207Pb/235U | E17: Error | F17: 207Pb/206Pb | G17: Error | H17: Error | I17: Maximum Age | J17: Minimum Age | K17: Difference | L17: Difference | M17: Sample | N17: Million Years | O17: Million Years | P17: Million Years | Q17: Percentage
A18: Sample | B18: Million Years | C18: Million Years | D18: Million Years | E18: Million Years | F18: Million Years | G18: Million Years | H18: Percent | I18: Million Years | J18: Million Years | K18: Million Years | L18: Percentage | M18: El Sherana | N18: 1196 | O18: 300 | P18: =(N18-O18) -> 896 | Q18: =(P18/N18) -> 0.7491638796
A19: Uraninite | M19: Palette | N19: 830 | O19: 494 | P19: =(N19-O19) -> 336 | Q19: =(P19/N19) -> 0.4048192771
A20: Adelaide River 1 | B20: 290 | C20: 10 | D20: 350 | E20: 5 | F20: 812 | G20: 57 | H20: 65 | I20: 812 | J20: 290 | K20: =(I20-J20) -> 522 | L20: =(K20/J20) -> 1.8 | M20: Adelaide River | N20: 1450 | O20: 470 | P20: 980 | Q20: 0.675862069
A21: Adelaide River 2 | B21: 295 | C21: 10 | D21: 347 | E21: 5 | F21: 833 | G21: 55 | H21: 65 | I21: 833 | J21: 295 | K21: 538 | L21: 1.823728814 | M21: Mary Kathleen | N21: 1550 | O21: 270 | P21: 1280 | Q21: 0.8258064516
A22: Adelaide River 3 | B22: 224 | C22: 6 | D22: 293 | E22: 5 | F22: 808 | G22: 47 | H22: 72 | I22: 808 | J22: 224 | K22: 584 | L22: 2.607142857 | M22: Mary Kathleen | N22: 822 | O22: 371 | P22: =(N22-O22) -> 451 | Q22: 0.5486618005
A23: Adelaide River 4 | B23: 232 | C23: 11 | D23: 291 | E23: 10 | F23: 830 | G23: 59 | H23: 72 | I23: 830 | J23: 232 | K23: 598 | L23: 2.577586207 | M23: Jabiluka | N23: 924 | O23: 276 | P23: 648 | Q23: 0.7012987013
A24: Adelaide River 5 | B24: 228 | C24: 9 | D24: 267 | E24: 4 | F24: 746 | G24: 55 | H24: 69 | I24: 746 | J24: 228 | K24: 518 | L24: 2.271929825 | M24: Nabarlek | N24: 1282 | O24: 447 | P24: 835 | Q24: 0.651326053
A25: Adelaide River 6 | B25: 227 | C25: 7 | D25: 301 | E25: 4 | F25: 881 | G25: 47 | H25: 74 | I25: 881 | J25: 227 | K25: 654 | L25: 2.881057269 | M25: Koongarra | N25: 1791 | O25: 655 | P25: 1136 | Q25: 0.6342825237
A26: Adelaide River 7 | B26: 354 | C26: 22 | D26: 407 | E26: 17 | F26: 742 | G26: 45 | H26: 52 | I26: 742 | J26: 354 | K26: 388 | L26: 1.096045198 | M26: Ranger | N26: 2754 | O26: 488 | P26: 2266 | Q26: 0.8228031954
A27: Adelaide River 8 | B27: 170 | C27: 4 | D27: 216 | E27: 3 | F27: 735 | G27: 42 | H27: 77 | I27: 735 | J27: 170 | K27: 565 | L27: 3.323529412 | M27: Ranger
A28: Adelaide River 9 | B28: 357 | C28: 26 | D28: 409 | E28: 16 | F28: 759 | G28: 40 | H28: 53 | I28: 759 | J28: 357 | K28: 402 | L28: 1.12605042
A29: Adelaide River 10 | B29: 253 | C29: 9 | D29: 321 | E29: 4 | F29: 912 | G29: 44 | H29: 72 | I29: 912 | J29: 253 | K29: 659 | L29: 2.604743083
A30: Adelaide River 11 | B30: 260 | C30: 8 | D30: 341 | E30: 5 | F30: 901 | G30: 46 | H30: 71 | I30: 901 | J30: 260 | K30: 641 | L30: 2.465384615
A31: Adelaide River 12 | B31: 301 | C31: 10 | D31: 363 | E31: 6 | F31: 838 | G31: 47 | H31: 64 | I31: 838 | J31: 301 | K31: 537 | L31: 1.784053156
A32: Adelaide River 13 | B32: 301 | C32: 12 | D32: 368 | E32: 7 | F32: 902 | G32: 58 | H32: 67 | I32: 902 | J32: 301 | K32: 601 | L32: 1.996677741
A33: Adelaide River 14 | B33: 228 | C33: 9 | D33: 320 | E33: 5 | F33: 1069 | G33: 60 | H33: 79 | I33: 1069 | J33: 228 | K33: 841 | L33: 3.688596491
A34: Adelaide River 15 | B34: 269 | C34: 10 | D34: 335 | E34: 6 | F34: 936 | G34: 52 | H34: 71 | I34: 936 | J34: 269 | K34: 667 | L34: 2.479553903
A35: Adelaide River 16 | B35: 269 | C35: 10 | D35: 354 | E35: 7 | F35: 938 | G35: 58 | H35: 71 | I35: 938 | J35: 269 | K35: 669 | L35: 2.486988848
A36: Davidite
A37: Mt Isa 1 | B37: 1616 | C37: 59 | D37: 1414 | E37: 37 | F37: 1272 | G37: 63 | H37: –27 | I37: 1616 | J37: 1272 | K37: =(I37-J37) -> 344 | L37: =(K37/J37) -> 0.2704402516
A38: Mt Isa 4 | B38: 1536 | C38: 61 | D38: 1395 | E38: 30 | F38: 1384 | G38: 69 | H38: –11 | I38: 1536 | J38: 1384 | K38: 152 | L38: 0.1098265896
A39: Mt Isa 5 | B39: 1571 | C39: 41 | D39: 1396 | E39: 39 | F39: 1184 | G39: 50 | H39: –33 | I39: 1571 | J39: 1184 | K39: 387 | L39: 0.3268581081
A40: Mt Isa 7 | B40: 1056 | C40: 43 | D40: 922 | E40: 40 | F40: 765 | G40: 55 | H40: –34 | I40: 1056 | J40: 765 | K40: 291 | L40: 0.3803921569
A41: Mt Isa 8 | B41: 1109 | C41: 46 | D41: 980 | E41: 37 | F41: 908 | G41: 63 | H41: –22 | I41: 1109 | J41: 908 | K41: 201 | L41: 0.2213656388
A42: Mt Isa 9 | B42: 1662 | C42: 77 | D42: 1350 | E42: 62 | F42: 992 | G42: 55 | H42: –68 | I42: 1662 | J42: 992 | K42: 670 | L42: 0.6754032258
A43: Mt Isa 10 | B43: 1287 | C43: 59 | D43: 1027 | E43: 47 | F43: 868 | G43: 85 | H43: –48 | I43: 1287 | J43: 868 | K43: 419 | L43: 0.482718894
A44: Mt Isa 11 | B44: 1424 | C44: 51 | D44: 1194 | E44: 46 | F44: 908 | G44: 61 | H44: –55 | I44: 1424 | J44: 908 | K44: 516 | L44: 0.5682819383
A45: Mt Isa 13 | B45: 1437 | C45: 66 | D45: 1291 | E45: 57 | F45: 903 | G45: 70 | H45: –59 | I45: 1437 | J45: 903 | K45: 534 | L45: 0.5913621262
A46: Mt Isa 15 | B46: 1036 | C46: 19 | D46: 1261 | E46: 22 | F46: 1575 | G46: 49 | H46: 34 | I46: 1575 | J46: 1036 | K46: 539 | L46: 0.5202702703
A47: Mt Isa 16 | B47: 1007 | C47: 27 | D47: 1216 | E47: 27 | F47: 1540 | G47: 51 | H47: 35 | I47: 1540 | J47: 1007 | K47: 533 | L47: 0.5292949355
A48: Mt Isa 17 | B48: 1355 | C48: 24 | D48: 1365 | E48: 21 | F48: 1375 | G48: 27 | H48: 2 | I48: 1375 | J48: 1355 | K48: 20 | L48: 0.0147601476
A49: Mt Isa 18 | B49: 1325 | C49: 33 | D49: 1390 | E49: 16 | F49: 1505 | G49: 34 | H49: 12 | I49: 1505 | J49: 1325 | K49: 180 | L49: 0.1358490566
A50: Mt Isa 19 | B50: 1210 | C50: 35 | D50: 1316 | E50: 23 | F50: 1513 | G50: 36 | H50: 20 | I50: 1513 | J50: 1210 | K50: 303 | L50: 0.2504132231
A51: Mt Isa 20 | B51: 1049 | C51: 16 | D51: 1169 | E51: 12 | F51: 1364 | G51: 19 | H51: 23 | I51: 1364 | J51: 1049 | K51: 315 | L51: 0.3002859867
A52: Mt Isa 21 | B52: 1005 | C52: 18 | D52: 925 | E52: 15 | F52: 1446 | G52: 31 | H52: 31 | I52: 1446 | J52: 925 | K52: 521 | L52: 0.5632432432
A53: Mt Isa 22 | B53: 978 | C53: 24 | D53: 1178 | E53: 24 | F53: 1492 | G53: 33 | H53: 34 | I53: 1492 | J53: 978 | K53: 514 | L53: 0.5255623722
A54: Uraninite
A55: Palette 1 | B55: 707 | C55: 19 | D55: 736 | E55: 8 | F55: 813 | G55: 55 | H55: 13 | I55: 813 | J55: 707 | K55: =(I55-J55) -> 106 | L55: =(K55/J55) -> 0.1499292786
A56: Palette 2 | B56: 618 | C56: 22 | D56: 688 | E56: 7 | F56: 958 | G56: 72 | H56: 35 | I56: 958 | J56: 618 | K56: 340 | L56: 0.5501618123
A57: Palette 3 | B57: 636 | C57: 21 | D57: 681 | E57: 7 | F57: 848 | G57: 61 | H57: 25 | I57: 848 | J57: 636 | K57: 212 | L57: 0.3333333333
A58: Palette 4 | B58: 638 | C58: 19 | D58: 712 | E58: 7 | F58: 821 | G58: 55 | H58: 22 | I58: 821 | J58: 638 | K58: 183 | L58: 0.2868338558
A59: Palette 5 | B59: 581 | C59: 18 | D59: 653 | E59: 7 | F59: 818 | G59: 62 | H59: 29 | I59: 818 | J59: 581 | K59: 237 | L59: 0.4079173838
A60: Palette 6 | B60: 931 | C60: 34 | D60: 926 | E60: 9 | F60: 888 | G60: 63 | H60: –5 | I60: 926 | J60: 888 | K60: 38 | L60: 0.04279279279
A61: Palette 7 | B61: 548 | C61: 13 | D61: 576 | E61: 5 | F61: 675 | G61: 42 | H61: 19 | I61: 675 | J61: 548 | K61: 127 | L61: 0.2317518248
A62: Palette 8 | B62: 567 | C62: 14 | D62: 579 | E62: 5 | F62: 634 | G62: 42 | H62: 11 | I62: 634 | J62: 567 | K62: 67 | L62: 0.1181657848
A63: Palette 9 | B63: 553 | C63: 14 | D63: 585 | E63: 5 | F63: 674 | G63: 38 | H63: 18 | I63: 674 | J63: 553 | K63: 121 | L63: 0.2188065099
A64: Palette 10 | B64: 410 | C64: 9 | D64: 514 | E64: 5 | F64: 964 | G64: 34 | H64: 57 | I64: 964 | J64: 410 | K64: 554 | L64: 1.351219512
A65: Palette 11 | B65: 554 | C65: 12 | D65: 619 | E65: 4 | F65: 863 | G65: 35 | H65: 36 | I65: 863 | J65: 554 | K65: 309 | L65: 0.5577617329
A66: Palette 12 | B66: 770 | C66: 15 | D66: 756 | E66: 5 | F66: 704 | G66: 33 | H66: –9 | I66: 770 | J66: 704 | K66: 66 | L66: 0.09375
A67: Palette 13 | B67: 744 | C67: 15 | D67: 756 | E67: 5 | F67: 721 | G67: 30 | H67: –3 | I67: 756 | J67: 721 | K67: 35 | L67: 0.04854368932
A68: Palette 15 | B68: 775 | C68: 16 | D68: 772 | E68: 7 | F68: 807 | G68: 32 | H68: 4 | I68: 775 | J68: 772 | K68: 3 | L68: 0.003886010363
A69: Uraninite
A70: El Sherana 1 | B70: 366 | C70: 13 | D70: 561 | E70: 8 | F70: 820 | G70: 87 | H70: 55 | I70: 820 | J70: 366 | K70: =(I70-J70) -> 454 | L70: =(K70/J70) -> 1.240437158
A71: El Sherana 2 | B71: 439 | C71: 20 | D71: 600 | E71: 9 | F71: 1460 | G71: 62 | H71: 70 | I71: 1460 | J71: 439 | K71: 1021 | L71: 2.325740319
A72: El Sherana 3 | B72: 451 | C72: 23 | D72: 644 | E72: 10 | F72: 1520 | G72: 63 | H72: 70 | I72: 1520 | J72: 451 | K72: 1069 | L72: 2.370288248
A73: El Sherana 4 | B73: 464 | C73: 18 | D73: 681 | E73: 9 | F73: 1545 | G73: 66 | H73: 70 | I73: 1545 | J73: 464 | K73: 1081 | L73: 2.329741379
A74: El Sherana 5 | B74: 370 | C74: 13 | D74: 491 | E74: 7 | F74: 1146 | G74: 58 | H74: 68 | I74: 1146 | J74: 370 | K74: 776 | L74: 2.097297297
A75: El Sherana 6 | B75: 480 | C75: 33 | D75: 699 | E75: 13 | F75: 1855 | G75: 98 | H75: 74 | I75: 1855 | J75: 480 | K75: 1375 | L75: 2.864583333
A76: El Sherana 7 | B76: 440 | C76: 24 | D76: 605 | E76: 11 | F76: 1498 | G76: 80 | H76: 71 | I76: 1498 | J76: 440 | K76: 1058 | L76: 2.404545455
A77: El Sherana 8 | B77: 410 | C77: 26 | D77: 548 | E77: 9 | F77: 1394 | G77: 90 | H77: 71 | I77: 1394 | J77: 410 | K77: 984 | L77: 2.4
A78: El Sherana 9 | B78: 551 | C78: 46 | D78: 757 | E78: 33 | F78: 1604 | G78: 87 | H78: 66 | I78: 1604 | J78: 551 | K78: 1053 | L78: 1.91107078
A79: El Sherana 11 | B79: 445 | C79: 31 | D79: 595 | E79: 12 | F79: 1798 | G79: 109 | H79: 75 | I79: 1798 | J79: 445 | K79: 1353 | L79: 3.040449438
A80: El Sherana 12 | B80: 469 | C80: 32 | D80: 656 | E80: 10 | F80: 1825 | G80: 90 | H80: 74 | I80: 1825 | J80: 469 | K80: 1356 | L80: 2.891257996
A81: El Sherana 13 | B81: 457 | C81: 12 | D81: 649 | E81: 7 | F81: 1392 | G81: 48 | H81: 67 | I81: 1392 | J81: 457 | K81: 935 | L81: 2.04595186
A82: El Sherana 14 | B82: 410 | C82: 11 | D82: 573 | E82: 6 | F82: 1300 | G82: 50 | H82: 68 | I82: 1300 | J82: 410 | K82: 890 | L82: 2.170731707
A83: El Sherana 15 | B83: 475 | C83: 15 | D83: 614 | E83: 13 | F83: 1212 | G83: 30 | H83: 61 | I83: 1212 | J83: 475 | K83: 737 | L83: 1.551578947
A84: El Sherana 16 | B84: 524 | C84: 29 | D84: 658 | E84: 27 | F84: 660 | G84: 92 | H84: 21 | I84: 660 | J84: 524 | K84: 136 | L84: 0.2595419847
A85: El Sherana 17 | B85: 575 | C85: 26 | D85: 788 | E85: 27 | F85: 1387 | G85: 33 | H85: 59 | I85: 1387 | J85: 575 | K85: 812 | L85: 1.412173913
A86: El Sherana 18 | B86: 841 | C86: 64 | D86: 1035 | E86: 52 | F86: 1467 | G86: 32 | H86: 43 | I86: 1467 | J86: 841 | K86: 626 | L86: 0.744351962
A87: El Sherana 19 | B87: 501 | C87: 27 | D87: 698 | E87: 28 | F87: 1395 | G87: 42 | H87: 64 | I87: 1395 | J87: 501 | K87: 894 | L87: 1.784431138
I90: Don Chipley
I91: American Mineralogist, 2007
I92: Volume 92, Pages 1925–1935
I93: Measurement of U-Pb ages
H95: TABLE 7
H96: Mineral | I96: Maximum Age | J96: Minimum Age | K96: Difference | L96: Difference
H97: Sample | I97: Million Years | J97: Million Years | K97: Million Years | L97: Percentage
H98: Adelaide River 1 | I98: 812 | J98: 290 | K98: =(I98-J98) -> 522 | L98: =(K98/J98) -> 1.8
H99: Adelaide River 2 | I99: 833 | J99: 295 | K99: 538 | L99: 1.823728814
H100: Adelaide River 3 | I100: 808 | J100: 224 | K100: 584 | L100: 2.607142857
H101: Adelaide River 4 | I101: 830 | J101: 232 | K101: 598 | L101: 2.577586207
H102: Adelaide River 5 | I102: 746 | J102: 228 | K102: 518 | L102: 2.271929825
H103: Adelaide River 6 | I103: 881 | J103: 227 | K103: 654 | L103: 2.881057269
H104: Adelaide River 7 | I104: 742 | J104: 354 | K104: 388 | L104: 1.096045198
H105: Adelaide River 8 | I105: 735 | J105: 170 | K105: 565 | L105: 3.323529412
H106: Adelaide River 9 | I106: 759 | J106: 357 | K106: 402 | L106: 1.12605042
H107: Adelaide River 10 | I107: 912 | J107: 253 | K107: 659 | L107: 2.604743083
H108: Adelaide River 11 | I108: 901 | J108: 260 | K108: 641 | L108: 2.465384615
H109: Adelaide River 12 | I109: 838 | J109: 301 | K109: 537 | L109: 1.784053156
H110: Adelaide River 13 | I110: 902 | J110: 301 | K110: 601 | L110: 1.996677741
H111: Adelaide River 14 | I111: 1069 | J111: 228 | K111: 841 | L111: 3.688596491
H112: TABLE 7
H113: Mineral | I113: Maximum Age | J113: Minimum Age | K113: Difference | L113: Difference
H114: Sample | I114: Million Years | J114: Million Years | K114: Million Years | L114: Percentage
H115: Mt Isa 1 | I115: 1616 | J115: 1272 | K115: =(I115-J115) -> 344 | L115: =(K115/J115) -> 0.2704402516
H116: Mt Isa 4 | I116: 1536 | J116: 1384 | K116: 152 | L116: 0.1098265896
H117: Mt Isa 5 | I117: 1571 | J117: 1184 | K117: 387 | L117: 0.3268581081
H118: Mt Isa 7 | I118: 1056 | J118: 765 | K118: 291 | L118: 0.3803921569
H119: Mt Isa 8 | I119: 1109 | J119: 908 | K119: 201 | L119: 0.2213656388
H120: Mt Isa 9 | I120: 1662 | J120: 992 | K120: 670 | L120: 0.6754032258
H121: Mt Isa 10 | I121: 1287 | J121: 868 | K121: 419 | L121: 0.482718894
H122: Mt Isa 11 | I122: 1424 | J122: 908 | K122: 516 | L122: 0.5682819383
H123: Mt Isa 13 | I123: 1437 | J123: 903 | K123: 534 | L123: 0.5913621262
H124: Mt Isa 15 | I124: 1575 | J124: 1036 | K124: 539 | L124: 0.5202702703
H125: Mt Isa 16 | I125: 1540 | J125: 1007 | K125: 533 | L125: 0.5292949355
H126: Mt Isa 17 | I126: 1375 | J126: 1355 | K126: 20 | L126: 0.0147601476
H127: Mt Isa 18 | I127: 1505 | J127: 1325 | K127: 180 | L127: 0.1358490566
H128: Mt Isa 19 | I128: 1513 | J128: 1210 | K128: 303 | L128: 0.2504132231
H129: Mt Isa 20 | I129: 1364 | J129: 1049 | K129: 315 | L129: 0.3002859867
H130: TABLE 7
H131: Mineral | I131: Maximum Age | J131: Minimum Age | K131: Difference | L131: Difference
H132: Sample | I132: Million Years | J132: Million Years | K132: Million Years | L132: Percentage
H133: Palette 1 | I133: 813 | J133: 707 | K133: =(I133-J133) -> 106 | L133: =(K133/J133) -> 0.1499292786
H134: Palette 2 | I134: 958 | J134: 618 | K134: 340 | L134: 0.5501618123
H135: Palette 3 | I135: 848 | J135: 636 | K135: 212 | L135: 0.3333333333
H136: Palette 4 | I136: 821 | J136: 638 | K136: 183 | L136: 0.2868338558
H137: Palette 5 | I137: 818 | J137: 581 | K137: 237 | L137: 0.4079173838
H138: Palette 6 | I138: 926 | J138: 888 | K138: 38 | L138: 0.04279279279
H139: Palette 7 | I139: 675 | J139: 548 | K139: 127 | L139: 0.2317518248
H140: Palette 8 | I140: 634 | J140: 567 | K140: 67 | L140: 0.1181657848
H141: Palette 9 | I141: 674 | J141: 553 | K141: 121 | L141: 0.2188065099
H142: Palette 10 | I142: 964 | J142: 410 | K142: 554 | L142: 1.351219512
H143: Palette 11 | I143: 863 | J143: 554 | K143: 309 | L143: 0.5577617329
H144: Palette 12 | I144: 770 | J144: 704 | K144: 66 | L144: 0.09375
H145: TABLE 7
H146: Mineral | I146: Maximum Age | J146: Minimum Age | K146: Difference | L146: Difference
H147: Sample | I147: Million Years | J147: Million Years | K147: Million Years | L147: Percentage
H148: El Sherana 1 | I148: 820 | J148: 366 | K148: =(I148-J148) -> 454 | L148: =(K148/J148) -> 1.240437158
H149: El Sherana 2 | I149: 1460 | J149: 439 | K149: 1021 | L149: 2.325740319
H150: El Sherana 3 | I150: 1520 | J150: 451 | K150: 1069 | L150: 2.370288248
H151: El Sherana 4 | I151: 1545 | J151: 464 | K151: 1081 | L151: 2.329741379
H152: El Sherana 5 | I152: 1146 | J152: 370 | K152: 776 | L152: 2.097297297
H153: El Sherana 6 | I153: 1855 | J153: 480 | K153: 1375 | L153: 2.864583333
H154: El Sherana 7 | I154: 1498 | J154: 440 | K154: 1058 | L154: 2.404545455
H155: El Sherana 8 | I155: 1394 | J155: 410 | K155: 984 | L155: 2.4
H156: El Sherana 9 | I156: 1604 | J156: 551 | K156: 1053 | L156: 1.91107078
H157: El Sherana 11 | I157: 1798 | J157: 445 | K157: 1353 | L157: 3.040449438
H158: El Sherana 12 | I158: 1825 | J158: 469 | K158: 1356 | L158: 2.891257996
H159: El Sherana 13 | I159: 1392 | J159: 457 | K159: 935 | L159: 2.04595186
H160: El Sherana 14 | I160: 1300 | J160: 410 | K160: 890 | L160: 2.170731707
H161: El Sherana 15 | I161: 1212 | J161: 475 | K161: 737 | L161: 1.551578947
H162: El Sherana 16 | I162: 660 | J162: 524 | K162: 136 | L162: 0.2595419847
H163: El Sherana 17 | I163: 1387 | J163: 575 | K163: 812 | L163: 1.412173913
H164: El Sherana 18 | I164: 1467 | J164: 841 | K164: 626 | L164: 0.744351962
H165: El Sherana 19 | I165: 1395 | J165: 501 | K165: 894 | L165: 1.784431138
H166: El Sherana 19

Sheet Ages_10
A1: TABLE 2
C2: Age
A3: 1 | C3: 821 | E3: Maximum Age | F3: Minimum Age | G3: Difference | H3: Difference
A4: 2 | C4: 32.4 | E4: Million Years | F4: Million Years | G4: Million Years | H4: Percentage
A5: 3 | C5: 25.3 | E5: 1830 | F5: 21.3 | G5: =(E5-F5) -> 1808.7 | H5: =(G5/F5) -> 84.91549296
A6: 4 | C6: 21.3
A7: 5 | C7: 49
A8: 6 | C8: 1830
D11: David E. Seidemann
D12: Earth and Planetary Science Letters, 1976
D13: Volume 33, Pages 268-272
D14: 40ar/39ar Age Spectrum

Sheet Ages_11
A2: Table 2
A4: Sample no. | B4: Mineral | C4: Rb-Sr age (my) | D4: K-Ar age (my)
A5: Sulitjelma Schist | E5: Maximum Age | F5: Minimum Age | G5: Difference | H5: Difference | K5: TABLE 2
A6: 841 | B6: biotite | C6: 403 | D6: 558 | E6: Million Years | F6: Million Years | G6: Million Years | H6: Percentage | K6: Mineral | L6: Maximum Age | M6: Minimum Age | N6: Difference | O6: Difference
B7: biotite | C7: 398 | E7: 558 | F7: 398 | G7: =(E7-F7) -> 160 | H7: =(G7/F7) -> 0.4020100503 | K7: Sample | L7: Million Years | M7: Million Years | N7: Million Years | O7: Percentage
B8: whole-rock | K8: A | L8: 558 | M8: 398 | N8: =(L8-M8) -> 160 | O8: =(N8/M8) -> 0.4020100503
A9: Furulund Group | K9: B | L9: 1067 | M9: 381 | N9: 686 | O9: 1.800524934
A10: 845 | B10: biotite | C10: 382 | D10: 1067 | E10: Maximum Age | F10: Minimum Age | G10: Difference | H10: Difference | K10: C | L10: 1770 | M10: 390 | N10: 1380 | O10: 3.538461538
B11: biotite | C11: 381 | E11: Million Years | F11: Million Years | G11: Million Years | H11: Percentage | K11: D | L11: 738 | M11: 394 | N11: 344 | O11: 0.8730964467
B12: whole-rock | E12: 1067 | F12: 381 | G12: =(E12-F12) -> 686 | H12: =(G12/F12) -> 1.800524934 | K12: E | L12: 1267 | M12: 378 | N12: 889 | O12: 2.351851852
K13: F | L13: 1202 | M13: 383 | N13: 819 | O13: 2.138381201
A14: 846 | B14: biotite | C14: 395 | D14: 1770 | E14: Maximum Age | F14: Minimum Age | G14: Difference | H14: Difference | N14: 0
B15: biotite | C15: 390 | E15: Million Years | F15: Million Years | G15: Million Years | H15: Percentage | N15: 0
B16: whole-rock | E16: 1770 | F16: 390 | G16: =(E16-F16) -> 1380 | H16: =(G16/F16) -> 3.538461538 | N16: 0
A18: 848 | B18: biotite | C18: 394 | D18: 738 | E18: Maximum Age | F18: Minimum Age | G18: Difference | H18: Difference
B19: biotite | C19: 403 | E19: Million Years | F19: Million Years | G19: Million Years | H19: Percentage
B20: whole-rock | E20: 738 | F20: 394 | G20: =(E20-F20) -> 344 | H20: =(G20/F20) -> 0.8730964467
A22: A13 | B22: biotite | C22: 378 | D22: 1267 | E22: Maximum Age | F22: Minimum Age | G22: Difference | H22: Difference
B23: biotite | C23: 385 | E23: Million Years | F23: Million Years | G23: Million Years | H23: Percentage
B24: whole-rock | E24: 1267 | F24: 378 | G24: =(E24-F24) -> 889 | H24: =(G24/F24) -> 2.351851852
A26: A21 | B26: biotite | C26: 385 | D26: 1202 | E26: Maximum Age | F26: Minimum Age | G26: Difference | H26: Difference
B27: biotite | C27: 383 | E27: Million Years | F27: Million Years | G27: Million Years | H27: Percentage
B28: whole-rock | E28: 1202 | F28: 383 | G28: =(E28-F28) -> 819 | H28: =(G28/F28) -> 2.138381201
A31: Table 3
F32: M. R. Wilson
A33: Furulund Group: | B33: Mineral | C33: K-Ar age (my) | F33: Earth and Planetary Science Letters, 1972
A34: biotite | B34: biotite | C34: 1348 | F34: Volume 14, Pages 403-412
A35: biotite | B35: biotite | C35: 401 | F35: Excess Radiogenic Argon
A36: biotite | B36: biotite | C36: 621
A37: biotite | B37: biotite | C37: 486
A38: biotite | B38: biotite | C38: 548
A39: chlorite + biotite | B39: chlorite + biotite | C39: 479
A40: biotite + chlorite | B40: biotite + chlorite | C40: 1030
A41: biotite | B41: biotite | C41: 1067
A42: biotite | B42: biotite | C42: 1770
A43: biotite | B43: biotite | C43: 738
A44: biotite | B44: biotite | C44: 1267
A45: biotite | B45: biotite | C45: 585
A46: biotite | B46: biotite | C46: 1202
A47: biotite | B47: biotite | C47: 731
A48: biotite | B48: biotite | C48: 710
A49: Sulitjelma Amphibolites: Biotite
A50: biotite | C50: 682
A51: Furulund Group:
A52: hornblende | B52: hornblende | C52: 578
A53: hornblende | B53: hornblende | C53: 600
A54: hornblende | B54: hornblende | C54: 561
A55: Furulund Group:
A56: hornblende | B56: hornblende | C56: 2098
A57: hornblende | B57: hornblende | C57: 637
A58: hornblende | B58: hornblende | C58: 480
A59: actinolite | B59: actinolite | C59: 858
A60: Sulitjelma Amphibolites
A61: actinolite | B61: actinolite | C61: 747
A62: hornblende | B62: hornblende | C62: 589
A63: hornblende | B63: hornblende | C63: 965
A64: hornblende | B64: hornblende | C64: 482
A65: actinolite | B65: actinolite | C65: 905
A66: hornblende | B66: hornblende | C66: 831
A67: hornblende | B67: hornblende | C67: 2724
A68: hornblende | B68: hornblende | C68: 675
A69: Furulund Group:
A70: whole-rock | B70: whole-rock | C70: 420
A71: whole-rock | B71: whole-rock | C71: 396
A72: whole-rock | B72: whole-rock | C72: 417
A73: whole-rock | B73: whole-rock | C73: 402
A74: Furulund Group: Muscovite
A75: muscovite | B75: muscovite | C75: 425
A76: muscovite | B76: muscovite | C76: 432
A77: Furulund Granite
A78: biotite | B78: 64K322 | C78: 530
A79: biotite | B79: 802 | C79: 409
A80: biotite | B80: 804 | C80: 423
A81: biotite | B81: 806 | C81: 415
A82: biotite | B82: 833 | C82: 407
A83: muscovite | B83: 802 | C83: 431
A84: muscovite | B84: 804 | C84: 414
A86: biotite | B86: 64K147 | C86: 443
A87: biotite | B87: 841 | C87: 558
A88: biotite | B88: 843 | C88: 427
A89: muscovite | B89: 841 | C89: 399
A90: muscovite | B90: 843 | C90: 408
A92: biotite | B92: 64K110 | C92: 423
A93: biotite | B93: 64K237 | C93: 410
A94: biotite | B94: 801 | C94: 564
A95: hornblende | B95: 801 | C95: 495
A97: hornblende | B97: T15 | C97: 364
A98: hornblende | B98: T179 | C98: 392

Sheet Ages_12
A3: Temperature | B3: Age (b.y.) | C3: Error (b.y.)
A4: 400 | B4: 4.45 | C4: 0.16 | D4: Maximum Age | E4: Minimum Age | F4: Difference | G4: Difference
A5: 600 | B5: 6.2 | C5: 0.07 | D5: Million Years | E5: Million Years | F5: Million Years | G5: Percentage
A6: 700 | B6: 6.56 | C6: 0.06 | D6: 6560 | E6: 3110 | F6: =(D6-E6) -> 3450 | G6: =(F6/E6) -> 1.109324759
A7: 800 | B7: 3.8 | C7: 0.05
A8: 900 | B8: 3.27 | C8: 0.05
A9: 1000 | B9: 3.11 | C9: 0.05
A10: 1100 | B10: 3.93 | C10: 0.05
A11: 1200 | B11: 5.58 | C11: 0.05
A12: 1300 | B12: 5.12 | C12: 0.05
A15: 600 | B15: 0.58 | C15: 0 | D15: Maximum Age | E15: Minimum Age | F15: Difference | G15: Difference
A16: 700 | B16: 1.03 | C16: 0 | D16: Million Years | E16: Million Years | F16: Million Years | G16: Percentage
A17: 800 | B17: 2.41 | C17: 0 | D17: 3890 | E17: 580 | F17: =(D17-E17) -> 3310 | G17: =(F17/E17) -> 5.706896552
A18: 900 | B18: 3.89 | C18: 0.11
A19: 1000 | B19: 2.86 | C19: 0.05
A20: 1100 | B20: 2.82 | C20: 0.05
A21: 1200 | B21: 2.9 | C21: 0.05
A22: 1500 | B22: 3.47 | C22: 0.05
A25: 600 | B25: 5.48 | C25: 0.13 | D25: Maximum Age | E25: Minimum Age | F25: Difference | G25: Difference
A26: 700 | B26: 5.99 | C26: 0.13 | D26: Million Years | E26: Million Years | F26: Million Years | G26: Percentage
A27: 800 | B27: 6.04 | C27: 0.07 | D27: 9840 | E27: 4340 | F27: =(D27-E27) -> 5500 | G27: =(F27/E27) -> 1.267281106
A28: 900 | B28: 4.34 | C28: 0.11
A29: 1000 | B29: 4.82 | C29: 0.03
A30: 1100 | B30: 5.52 | C30: 0.07
A31: 1200 | B31: 7.33 | C31: 0.1
A32: 1500 | B32: 9.84 | C32: 0.11
D34: Ichiro Kaneoka
D35: Earth and Planetary Science Letters, 1974
D36: Volume 22, Pages 145-156
D37: Excess Argon In Ultramafic Rocks
D40: Maximum Age | E40: Minimum Age | F40: Difference | G40: Difference
D41: Million Years | E41: Million Years | F41: Million Years | G41: Percentage
D42: 6560 | E42: 3110 | F42: =(D42-E42) -> 3450 | G42: =(F42/E42) -> 1.109324759
D43: 3890 | E43: 580 | F43: =(D43-E43) -> 3310 | G43: =(F43/E43) -> 5.706896552
D44: 9840 | E44: 4340 | F44: =(D44-E44) -> 5500 | G44: =(F44/E44) -> 1.267281106

Sheet Ages_13
A1: APPENDIX
A3: Temperature ( C) | B3: Apparent age
A4: FA43 plagioclase mixture | B4: 40Ar/39Ar | C4: Error
A5: 450 | B5: 124.6 | C5: 15.8 | D5: Maximum Age | E5: Minimum Age | F5: Difference | G5: Difference | I5: Mineral | J5: Maximum Age | K5: Minimum Age | L5: Difference | M5: Difference
A6: 530 | B6: 175.8 | C6: 2.7 | D6: Million Years | E6: Million Years | F6: Million Years | G6: Percentage | I6: Sample | J6: Million Years | K6: Million Years | L6: Million Years | M6: Percentage
A7: 600 | B7: 197.7 | C7: 0.9 | D7: 250.4 | E7: 124.6 | F7: =(D7-E7) -> 125.8 | G7: =(F7/E7) -> 1.009630819 | I7: A | J7: 250.4 | K7: 124.6 | L7: =(J7-K7) -> 125.8 | M7: =(L7/K7) -> 1.009630819
A8: 670 | B8: 198.1 | C8: 0.6 | I8: B | J8: 201.3 | K8: 133 | L8: 68.3 | M8: 0.5135338346
A9: 740 | B9: 201.3 | C9: 0.9 | I9: C | J9: 193.9 | K9: 78.9 | L9: 115 | M9: 1.457541191
A10: 810 | B10: 198.9 | C10: 1.3 | I10: D | J10: 190 | K10: 117.1 | L10: 72.9 | M10: 0.6225448335
A11: 880 | B11: 195.1 | C11: 0.9 | D11: A. Sebai | I11: E | J11: 195.1 | K11: 56 | L11: 139.1 | M11: 2.483928571
A12: 950 | B12: 193.2 | C12: 0.5 | D12: Earth and Planetary Science Letters, 1991 | I12: F | J12: 197.5 | K12: 126 | L12: 71.5 | M12: 0.5674603175
A13: 1020 | B13: 195.4 | C13: 1.3 | D13: Volume 104, Pages | I13: G | J13: 234.5 | K13: 77.6 | L13: =(J13-K13) -> 156.9 | M13: =(L13/K13) -> 2.021907216
A14: 1090 | B14: 203.9 | C14: 0.7 | D14: 40ar/39ar Dating And Geochemistry | I14: H | J14: 320.9 | K14: 106.7 | L14: 214.2 | M14: 2.007497657
A15: 1160 | B15: 222 | C15: 0.7 | I15: I | J15: 198.3 | K15: 130.8 | L15: 67.5 | M15: 0.5160550459
A16: 1230 | B16: 241.3 | C16: 0.8 | I16: J | J16: 373 | K16: 107.9 | L16: 265.1 | M16: 2.456904541
A17: 1310 | B17: 250.4 | C17: 1.1 | I17: K | J17: 204.6 | K17: 177.8 | L17: 26.8 | M17: 0.1507311586
A18: 1410 | B18: 235.1 | C18: 3 | I18: L | J18: 203.8 | K18: 164.7 | L18: 39.1 | M18: 0.2374013358
A19: Fusion | B19: 215 | C19: 4.9 | I19: M | J19: 3471.1 | K19: 170.7 | L19: 3300.4 | M19: 19.33450498
I20: N | J20: 199.3 | K20: 53.5 | L20: 145.8 | M20: 2.725233645
A21: FA43 plagioclase transparent | I21: O | J21: 192.2 | K21: 7.9 | L21: 184.3 | M21: 23.32911392
A22: 450 | B22: 133 | C22: 18 | D22: Maximum Age | E22: Minimum Age | F22: Difference | G22: Difference | I22: P | J22: 209 | K22: 177.1 | L22: 31.9 | M22: 0.1801242236
A23: 550 | B23: 167.1 | C23: 1.6 | D23: Million Years | E23: Million Years | F23: Million Years | G23: Percentage | I23: Q | J23: 219.6 | K23: 64.8 | L23: =(J23-K23) -> 154.8 | M23: =(L23/K23) -> 2.388888889
A24: 640 | B24: 181.3 | C24: 1.5 | D24: 201.3 | E24: 133 | F24: =(D24-E24) -> 68.3 | G24: =(F24/E24) -> 0.5135338346 | I24: R | J24: 365 | K24: 200.7 | L24: 164.3 | M24: 0.8186347783
A25: 730 | B25: 189.1 | C25: 1.1 | I25: S | J25: 237 | K25: 198.4 | L25: 38.6 | M25: 0.1945564516
A26: 820 | B26: 192.6 | C26: 0.7 | I26: T | J26: 388.5 | K26: 53.1 | L26: =(J26-K26) -> 335.4 | M26: =(L26/K26) -> 6.316384181
A27: 910 | B27: 189.1 | C27: 0.7
A28: 1000 | B28: 182.2 | C28: 0.5
A29: 1090 | B29: 184 | C29: 0.6
A30: 1180 | B30: 190.2 | C30: 0.6
A31: 1270 | B31: 195.9 | C31: 0.8
A32: 1360 | B32: 195.3 | C32: 2.7
A33: 1460 | B33: 199.2 | C33: 2.5
A34: Fusion | B34: 201.3 | C34: 1.7
A36: FA43 plagioclase cloudy 450 | B36: 78.9 | C36: 11.5 | D36: Maximum Age | E36: Minimum Age | F36: Difference | G36: Difference
A37: 580 | B37: 160.1 | C37: 1.6 | D37: Million Years | E37: Million Years | F37: Million Years | G37: Percentage
A38: 710 | B38: 182.3 | C38: 0.5 | D38: 193.9 | E38: 78.9 | F38: =(D38-E38) -> 115 | G38: =(F38/E38) -> 1.457541191
A39: 830 | B39: 189.6 | C39: 0.5
A40: 960 | B40: 183.8 | C40: 0.4
A41: 1090 | B41: 181.3 | C41: 0.6
A42: 1220 | B42: 189.4 | C42: 0.5
A43: 1350 | B43: 192.2 | C43: 1.7
A44: Fusion | B44: 193.9 | C44: 1.7
A46: CI plagioclase mixture
A47: 450 | B47: 117.1 | C47: 1.1 | D47: Maximum Age | E47: Minimum Age | F47: Difference | G47: Difference
A48: 530 | B48: 155.9 | C48: 0.9 | D48: Million Years | E48: Million Years | F48: Million Years | G48: Percentage
A49: 600 | B49: 174.6 | C49: 0.6 | D49: 190 | E49: 117.1 | F49: =(D49-E49) -> 72.9 | G49: =(F49/E49) -> 0.6225448335
A50: 670 | B50: 188.9 | C50: 0.6
A51: 740 | B51: 190.7 | C51: 0.6
A52: 810 | B52: 184.2 | C52: 0.6
A53: 880 | B53: 176.4 | C53: 0.5
A54: 950 | B54: 173.8 | C54: 0.4
A55: 1020 | B55: 172.9 | C55: 0.5
A56: 1090 | B56: 178.6 | C56: 0.6
A57: 1160 | B57: 184.4 | C57: 0.6
A58: 1230 | B58: 185.5 | C58: 1
A59: 1310 | B59: 190 | C59: 1.2
A60: 1410 | B60: 189 | C60: 1
A61: Fusion | B61: 189 | C61: 1.2
A63: CI plagioclase cloudy
A64: 450 | B64: 56 | C64: 98 | D64: Maximum Age | E64: Minimum Age | F64: Difference | G64: Difference
A65: 580 | B65: 144.1 | C65: 3.3 | D65: Million Years | E65: Million Years | F65: Million Years | G65: Percentage
A66: 710 | B66: 180.8 | C66: 0.9 | D66: 195.1 | E66: 56 | F66: =(D66-E66) -> 139.1 | G66: =(F66/E66) -> 2.483928571
A67: 830 | B67: 192.1 | C67: 0.9
A68: 930 | B68: 189.3 | C68: 0.9
A69: 1030 | B69: 187.1 | C69: 1.6
A70: 1130 | B70: 186.2 | C70: 1
A71: 1230 | B71: 188.9 | C71: 0.6
A72: 1330 | B72: 194.1 | C72: 4.3
A73: Fusion | B73: 195.1 | C73: 2
A75: Cl plagioclase transparent
A76: 450 | B76: 126 | C76: 155 | D76: Maximum Age | E76: Minimum Age | F76: Difference | G76: Difference
A77: 560 | B77: 153.1 | C77: 4.3 | D77: Million Years | E77: Million Years | F77: Million Years | G77: Percentage
A78: 670 | B78: 185.2 | C78: 2.1 | D78: 197.5 | E78: 126 | F78: =(D78-E78) -> 71.5 | G78: =(F78/E78) -> 0.5674603175
A79: 780 | B79: 196.6 | C79: 1.2
A80: 880 | B80: 192.2 | C80: 1.9
A81: 980 | B81: 181.9 | C81: 1.4
A82: 1080 | B82: 184.7 | C82: 1.5
A83: 1180 | B83: 191.8 | C83: 1
A84: 1280 | B84: 195.6 | C84: 1.7
A85: 1400 | B85: 197.5 | C85: 3.4
A86: Fusion | B86: 195.6 | C86: 1.9
A88: PIA amphibole
A89: 600 | B89: 77.6 | C89: 4.7 | D89: Maximum Age | E89: Minimum Age | F89: Difference | G89: Difference
A90: 800 | B90: 234.5 | C90: 3.1 | D90: Million Years | E90: Million Years | F90: Million Years | G90: Percentage
A91: 930 | B91: 217.6 | C91: 2.3 | D91: 234.5 | E91: 77.6 | F91: =(D91-E91) -> 156.9 | G91: =(F91/E91) -> 2.021907216
A92: 1060 | B92: 204.7 | C92: 2.5
A93: 1160 | B93: 210.1 | C93: 8.9
A94: 1300 | B94: 227 | C94: 12.3
A95: Fusion | B95: 170 | C95: 180
A97: AL whole rock
A98: 450 | B98: 320.9 | C98: 90.5 | D98: Maximum Age | E98: Minimum Age | F98: Difference | G98: Difference
A99: 530 | B99: 118.2 | C99: 7.4 | D99: Million Years | E99: Million Years | F99: Million Years | G99: Percentage
A100: 600 | B100: 111.9 | C100: 5.7 | D100: 320.9 | E100: 106.7 | F100: =(D100-E100) -> 214.2 | G100: =(F100/E100) -> 2.007497657
A101: 670 | B101: 106.7 | C101: 2.3
A102: 740 | B102: 151.4 | C102: 1.4
A103: 810 | B103: 182.7 | C103: 0.8
A104: 880 | B104: 192.6 | C104: 0.7
A105: 950 | B105: 196.4 | C105: 0.7
A106: 1020 | B106: 197.4 | C106: 0.6
A107: 1090 | B107: 191.9 | C107: 0.5
A108: 1160 | B108: 183.9 | C108: 0.6
A109: 1230 | B109: 180.8 | C109: 0.5
A110: 1310 | B110: 182.4 | C110: 0.6
A111: 1410 | B111: 181.3 | C111: 0.6
A112: Fusion | B112: 187.8 | C112: 1.3
A114: P02 whole rock
A115: 450 | B115: 130.8 | C115: 1.3 | D115: Maximum Age | E115: Minimum Age | F115: Difference | G115: Difference
A116: 530 | B116: 176.9 | C116: 0.8 | D116: Million Years | E116: Million Years | F116: Million Years | G116: Percentage
A117: 620 | B117: 189.9 | C117: 10.5 | D117: 198.3 | E117: 130.8 | F117: =(D117-E117) -> 67.5 | G117: =(F117/E117) -> 0.5160550459
A118: 680 | B118: 194.8 | C118: 8.8
A119: 740 | B119: 196.8 | C119: 4.6
A120: 800 | B120: 197.9 | C120: 2.5
A121: 860 | B121: 196.4 | C121: 2.5
A122: 920 | B122: 197.7 | C122: 0.8
A123: 1010 | B123: 198.3 | C123: 0.7
A124: 1110 | B124: 198.3 | C124: 0.5
A125: 1180 | B125: 193.3 | C125: 1.7
A126: 1250 | B126: 191.6 | C126: 0.6
A127: 1350 | B127: 187.4 | C127: 7.4
A128: 1520 | B128: 181.5 | C128: 1.1
A129: Fusion | B129: 176.6 | C129: 1.1
A131: P3 whole rock
A132: 450 | B132: 373 | C132: 367 | D132: Maximum Age | E132: Minimum Age | F132: Difference | G132: Difference
A133: 560 | B133: 107.9 | C133: 3.8 | D133: Million Years | E133: Million Years | F133: Million Years | G133: Percentage
A134: 670 | B134: 189.4 | C134: 1.7 | D134: 373 | E134: 107.9 | F134: =(D134-E134) -> 265.1 | G134: =(F134/E134) -> 2.456904541
A135: 780 | B135: 199.9 | C135: 0.7
A136: 880 | B136: 199.2 | C136: 1.2
A137: 980 | B137: 194.8 | C137: 0.7
A138: 1080 | B138: 194.4 | C138: 1
A139: 1180 | B139: 195.6 | C139: 1.7
A140: 1280 | B140: 200.8 | C140: 2.9
A141: 1400 | B141: 197.2 | C141: 2
A142: Fusion | B142: 199.9 | C142: 4.5
A144: M1216 plagioclase
A145: 450 | B145: 177.8 | C145: 19.6 | D145: Maximum Age | E145: Minimum Age | F145: Difference | G145: Difference
A146: 560 | B146: 165.9 | C146: 2.4 | D146: Million Years | E146: Million Years | F146: Million Years | G146: Percentage
A147: 670 | B147: 193.3 | C147: 2 | D147: 204.6 | E147: 177.8 | F147: =(D147-E147) -> 26.8 | G147: =(F147/E147) -> 0.1507311586
A148: 780 | B148: 197.8 | C148: 1.9
A149: 880 | B149: 199.1 | C149: 2.1
A150: 980 | B150: 199.5 | C150: 2.2
A151: 1080 | B151: 195.4 | C151: 2.3
A152: 1180 | B152: 195.2 | C152: 2.7
A153: 1280 | B153: 196.6 | C153: 2.7
A154: 1400 | B154: 199.5 | C154: 3.2
A155: Fusion | B155: 204.6 | C155: 9.6
A157: M1208 plagioclase
A158: 450 | B158: 164.7 | C158: 18.5 | D158: Maximum Age | E158: Minimum Age | F158: Difference | G158: Difference
A159: 550 | B159: 203.8 | C159: 5.1 | D159: Million Years | E159: Million Years | F159: Million Years | G159: Percentage
A160: 640 | B160: 204 | C160: 1.3 | D160: 203.8 | E160: 164.7 | F160: =(D160-E160) -> 39.1 | G160: =(F160/E160) -> 0.2374013358
A161: 730 | B161: 202.3 | C161: 0.8
A162: 820 | B162: 202.4 | C162: 0.8
A163: 910 | B163: 201.9 | C163: 0.7
A164: 1000 | B164: 201.2 | C164: 0.7
A165: 1090 | B165: 200 | C165: 0.6
A166: 1180 | B166: 199.1 | C166: 1.4
A167: 1270 | B167: 197.5 | C167: 2.7
A168: 1360 | B168: 202.5 | C168: 2.7
A169: Fusion | B169: 203.8 | C169: 6
A171: M1125 plagioclase
A172: 450 | B172: 269.5 | C172: 16 | D172: Maximum Age | E172: Minimum Age | F172: Difference | G172: Difference
A173: 550 | B173: 170.7 | C173: 4.3 | D173: Million Years | E173: Million Years | F173: Million Years | G173: Percentage
A174: 640 | B174: 197.2 | C174: 5.9 | D174: 3471.1 | E174: 170.7 | F174: =(D174-E174) -> 3300.4 | G174: =(F174/E174) -> 19.33450498
A175: 730 | B175: 200.5 | C175: 3.1
A176: 820 | B176: 202.8 | C176: 4.1
A177: 910 | B177: 208.9 | C177: 7.3
A178: 1000 | B178: 191 | C178: 9.6
A179: 1090 | B179: 184 | C179: 4.9
A180: 1180 | B180: 185.5 | C180: 8.9
A181: 1270 | B181: 205.9 | C181: 17
A182: 1360 | B182: 206.8 | C182: 12.8
A183: 1460 | B183: 346 | C183: 180
A184: Fusion | B184: 3471.1 | C184: 1256
A186: FZ 1018 plagioclase
A187: 450 | B187: 53.5 | C187: 14.9 | D187: Maximum Age | E187: Minimum Age | F187: Difference | G187: Difference
A188: 560 | B188: 151.1 | C188: 3.1 | D188: Million Years | E188: Million Years | F188: Million Years | G188: Percentage
A189: 670 | B189: 180.2 | C189: 3 | D189: 199.3 | E189: 53.5 | F189: =(D189-E189) -> 145.8 | G189: =(F189/E189) -> 2.725233645
A190: 780 | B190: 192 | C190: 2.8
A191: 880 | B191: 189.2 | C191: 2.4
A192: 980 | B192: 180 | C192: 1.8
A193: 1080 | B193: 176.6 | C193: 2.1
A194: 1180 | B194: 195 | C194: 3.4
A195: 1280 | B195: 199.3 | C195: 3.1
A196: 1400 | B196: 196.9 | C196: 3.8
A197: Fusion | B197: 197.1 | C197: 4.4
A200: FZ 1002 plagioclase 450 | B200: 7.9 | C200: 25.9 | D200: Maximum Age | E200: Minimum Age | F200: Difference | G200: Difference
A201: 560 | B201: 143.5 | C201: 2.2 | D201: Million Years | E201: Million Years | F201: Million Years | G201: Percentage
A202: 670 | B202: 168.7 | C202: 0.8 | D202: 192.2 | E202: 7.9 | F202: =(D202-E202) -> 184.3 | G202: =(F202/E202) -> 23.32911392
A203: 780 | B203: 179.5 | C203: 0.7
A204: 880 | B204: 174.6 | C204: 0.6
A205: 980 | B205: 170.7 | C205: 0.6
A206: 1080 | B206: 176.2 | C206: 0.6
A207: 1180 | B207: 185 | C207: 0.7
A208: 1280 | B208: 189 | C208: 1.4
A209: 1400 | B209: 192.2 | C209: 2.3
A210: Fusion | B210: 189 | C210: 2.2
A212: Ksi-Ksou plagioclase 450 | B212: 187 | C212: 21 | D212: Maximum Age | E212: Minimum Age | F212: Difference | G212: Difference
A213: 550 | B213: 177.1 | C213: 5.5 | D213: Million Years | E213: Million Years | F213: Million Years | G213: Percentage
A214: 640 | B214: 171.9 | C214: 6.1 | D214: 209 | E214: 177.1 | F214: =(D214-E214) -> 31.9 | G214: =(F214/E214) -> 0.1801242236
A215: 730 | B215: 203.1 | C215: 4.5
A216: 820 | B216: 199.5 | C216: 2.9
... 52 more rows

Sheet Ages_14
A1: TABLE 4
A2: Temp. | B2: Age (Ma) | C2: Error (Ma)
A3: 200 | B3: 970 | C3: 87 | D3: Maximum Age | E3: Minimum Age | F3: Difference | G3: Difference
A4: 300 | B4: 655 | C4: 50 | D4: Million Years | E4: Million Years | F4: Million Years | G4: Percentage
A5: 400 | B5: 721 | C5: 23 | D5: 2815 | E5: 655 | F5: =(D5-E5) -> 2160 | G5: =(F5/E5) -> 3.297709924
A6: 500 | B6: 1117 | C6: 13
A7: 600 | B7: 1192 | C7: 4
A8: 650 | B8: 1313 | C8: 3
A9: 700 | B9: 1362 | C9: 3
A10: 800 | B10: 1500 | C10: 3
A11: 900 | B11: 1456 | C11: 3
A12: 1000 | B12: 1432 | C12: 6
A13: 1100 | B13: 1510 | C13: 3
A14: 1200 | B14: 1698 | C14: 4
A15: 1300 | B15: 2070 | C15: 23
A16: 1400 | B16: 2815 | C16: 60
A17: 1500 | B17: 2154 | C17: 106
D21: Grenville Turner
D22: Earth and Planetary Science Letters, 1992
D23: Volume 110, Pages
D24: Excess Argon

Sheet Ages_15
A2: Sample 03–130 | C2: 206Pb/238U (Ma) | D2: Error (Ma) | E2: 207Pb/206Pb (Ma) | F2: Error (Ma) | G2: Maximum Age | H2: Minimum Age | I2: Difference | J2: Difference
A3: 1.1 c | C3: 347 | D3: 5 | G3: Million Years | H3: Million Years | I3: Million Years | J3: Percentage
A4: 2.1 r | C4: 332 | D4: 4 | G4: 391 | H4: 330 | I4: =(G4-H4) -> 61 | J4: =(I4/H4) -> 0.1848484848
A5: 3.1 c | C5: 346 | D5: 5
A6: 4.1 r | C6: 351 | D6: 4
A7: 5.1 c | C7: 344 | D7: 4
A8: 6.1 c | C8: 344 | D8: 5
A9: 7.1 c | C9: 391 | D9: 11 | G9: William C. Mc Clelland
A10: 8.1 r | C10: 346 | D10: 4 | G10: European Journal Of Minerology, 2009
A11: 9.1 r | C11: 341 | D11: 4 | G11: Volume 21, Pages
A12: 10.1 r | C12: 354 | D12: 4 | G12: TraceElement Record in Zircons
A13: 11.1 c | C13: 353 | D13: 5
A14: 12.1 c | C14: 345 | D14: 5
A15: 13.1 c | C15: 330 | D15: 4
A16: 14.1 c | C16: 348 | D16: 5
A17: 15.1 r | C17: 345 | D17: 4
A19: Sample 03–154 | G19: Maximum Age | H19: Minimum Age | I19: Difference | J19: Difference
A20: 1.1 r | C20: 339 | D20: 5 | G20: Million Years | H20: Million Years | I20: Million Years | J20: Percentage
A21: 2.1 r | C21: 333 | D21: 5 | G21: 1994 | H21: 333 | I21: =(G21-H21) -> 1661 | J21: =(I21/H21) -> 4.987987988
A22: 3.1 c | C22: 1896 | D22: 17 | E22: 1938 | F22: 5
A23: 4.1 r | C23: 334 | D23: 5
A24: 5.1 c | C24: 1854 | D24: 21 | E24: 1975 | F24: 14
A25: 6.1 c | C25: 1500 | D25: 14 | E25: 1916 | F25: 13 | G25: Maximum Age | H25: Minimum Age | I25: Difference | J25: Difference
A26: 7.1 c | C26: 1796 | D26: 17 | E26: 1951 | F26: 12 | G26: Million Years | H26: Million Years | I26: Million Years | J26: Percentage
A27: 8.1 c | C27: 1994 | D27: 21 | E27: 1982 | F27: 11 | G27: 391 | H27: 330 | I27: =(G27-H27) -> 61 | J27: =(I27/H27) -> 0.1848484848
A28: 9.1 r | C28: 339 | D28: 5 | G28: 1994 | H28: 333 | I28: =(G28-H28) -> 1661 | J28: =(I28/H28) -> 4.987987988
A29: 10.1 c | C29: 1314 | D29: 12 | E29: 1903 | F29: 11 | G29: 1922 | H29: 314 | I29: =(G29-H29) -> 1608 | J29: =(I29/H29) -> 5.121019108
A30: 11.1 c | C30: 1264 | D30: 13 | E30: 1859 | F30: 15
A31: 12.1 c | C31: 1561 | D31: 15 | E31: 1936 | F31: 12
A32: 13.1 r | C32: 315 | D32: 6
A33: 14.1 c | C33: 1505 | D33: 15 | E33: 1904 | F33: 12
A34: 15.1 r | C34: 321 | D34: 4
A35: 16.1 c | C35: 1436 | D35: 14 | E35: 1904 | F35: 12
A36: 17.1 c | C36: 1711 | D36: 17 | E36: 2008 | F36: 12
A37: 18.1 r | C37: 325 | D37: 5
A38: 19.1 c | C38: 1323 | D38: 13 | E38: 1910 | F38: 20
A39: 20.1 r | C39: 318 | D39: 6
A40: 21.1 c | C40: 1391 | D40: 12 | E40: 1873 | F40: 8
A41: 22.1 c | C41: 1625 | D41: 16 | E41: 1940 | F41: 11
A42: 23.1 c | C42: 1741 | D42: 16 | E42: 1951 | F42: 9
A43: 24.1 c | C43: 1103 | D43: 11 | E43: 1859 | F43: 23
A44: 25.1 r | C44: 337 | D44: 8
A46: Sample 03–155 | G46: Maximum Age | H46: Minimum Age | I46: Difference | J46: Difference
A47: 1.1 r | C47: 318 | D47: 4 | G47: Million Years | H47: Million Years | I47: Million Years | J47: Percentage
A48: 2.1 c | C48: 321 | D48: 3 | G48: 1922 | H48: 314 | I48: =(G48-H48) -> 1608 | J48: =(I48/H48) -> 5.121019108
A49: 3.1 r | C49: 324 | D49: 3
A50: 4.1 r | C50: 330 | D50: 3
A51: 5.1 r | C51: 318 | D51: 8
A52: 6.1 c | C52: 322 | D52: 3
A53: 7.1 r | C53: 329 | D53: 4
A54: 8.1 c | C54: 314 | D54: 4
A55: 9.1 c | C55: 326 | D55: 3
A56: 10.1 c | C56: 325 | D56: 3
A57: 11.1 c | C57: 316 | D57: 2
A58: 12.1 c | C58: 324 | D58: 2
A59: 13.1 c | C59: 332 | D59: 1
A60: 14.1 c | C60: 321 | D60: 1
A61: 15.1 c | C61: 321 | D61: 9
A62: 16.1 | C62: 331 | D62: 2
A63: 17.1 | C63: 319 | D63: 2
A64: 17.2 | C64: 328 | D64: 1
A65: 18.1 | C65: 323 | D65: 2
A66: 19.1 | C66: 314 | D66: 2
A67: 20.1 | C67: 318 | D67: 3
A68: 21.1 | C68: 321 | D68: 1
A69: 22.1 | C69: 329 | D69: 2
A70: 23.1 | C70: 329 | D70: 1
A71: 24.1 | C71: 331 | D71: 4
A72: 25.1 | C72: 1301 | D72: 6 | E72: 1922 | F72: 15
A73: 26.1 | C73: 287 | D73: 8
A74: 27.1 | C74: 330 | D74: 2
A75: 28.1 | C75: 329 | D75: 2
A76: 29.1 | C76: 327 | D76: 1
A77: 30.1 | C77: 338 | D77: 2
A78: 31.1 | C78: 328 | D78: 1
A79: 32.1 | C79: 330 | D79: 1
A80: 33.1 | C80: 329 | D80: 1

Sheet Ages_16
A1: 206Pb | B1: 207Pb | C1: 207Pb
A2: 238U | B2: 235U | C2: 206Pb | D2: Tabel 2b
A3: Million | B3: Million | C3: Million | D3: Maximum Age | E3: Minimum Age | F3: Difference | G3: Difference
A4: Years | B4: Years | C4: Years | D4: Million Years | E4: Million Years | F4: Million Years | G4: Percentage
A5: 403.8 | B5: 488.8 | C5: 910 | D5: 910 | E5: 403.8 | F5: =(D5-E5) -> 506.2 | G5: =(F5/E5) -> 1.253590887
A6: 222.8 | B6: 236.5 | C6: 374.6 | D6: 374.6 | E6: 222.8 | F6: 151.8 | G6: 0.6813285458
A7: 212.2 | B7: 222 | C7: 327.6 | D7: 327.6 | E7: 212.2 | F7: 115.4 | G7: 0.5438265787
A8: 252.2 | B8: 227 | C8: 492 | D8: 492 | E8: 227 | F8: 265 | G8: 1.167400881
A9: 236 | B9: 249 | C9: 374.1 | D9: 374.1 | E9: 236 | F9: 138.1 | G9: 0.5851694915
A10: 607.1 | B10: 849 | C10: 1549.6 | D10: 1549.6 | E10: 607.1 | F10: 942.5 | G10: 1.552462527
A11: 795 | B11: 1016.3 | C11: 1529.8 | D11: 1529.8 | E11: 795 | F11: 734.8 | G11: 0.9242767296
A12: 198 | B12: 309.3 | C12: 1264.3 | D12: 1264.3 | E12: 198 | F12: 1066.3 | G12: 5.385353535
A13: 182.3 | B13: 300.3 | C13: 1360.9 | D13: 1360.9 | E13: 182.3 | F13: 1178.6 | G13: 6.465167307
A14: 490.6 | B14: 623.7 | C14: 1141.7 | D14: 1141.7 | E14: 490.6 | F14: 651.1 | G14: 1.327150428
A15: 305.9 | B15: 311.8 | C15: 356.6 | D15: 356.6 | E15: 305.9 | F15: 50.7 | G15: 0.1657404381
A16: 302.3 | B16: 312.9 | C16: 392.5 | D16: 392.5 | E16: 302.3 | F16: 90.2 | G16: 0.2983790936
A17: 293.9 | B17: 316.9 | C17: 489.6 | D17: 489.6 | E17: 293.9 | F17: 195.7 | G17: 0.6658727458
A18: 315.2 | B18: 335.3 | C18: 477 | D18: 477 | E18: 315.2 | F18: 161.8 | G18: 0.5133248731
A19: 739.8 | B19: 901.3 | C19: 1321.3 | D19: 1321.3 | E19: 739.8 | F19: 581.5 | G19: 0.7860232495
A20: 690.7 | B20: 849.3 | C20: 1289.8 | D20: 1289.8 | E20: 690.7 | F20: 599.1 | G20: 0.8673809179
A21: 310.1 | B21: 321.4 | C21: 404.6 | D21: 404.6 | E21: 310.1 | F21: 94.5 | G21: 0.3047404063
A22: 303.9 | B22: 303.3 | C22: 289.9 | D22: 303.9 | E22: 289.9 | F22: 14 | G22: 0.04829251466
A23: 700.5 | B23: 866.9 | C23: 1320.2 | D23: 1320.2 | E23: 700.5 | F23: 619.7 | G23: 0.8846538187
A24: 1174.3 | B24: 1563 | C24: 2136.7 | D24: 2136.7 | E24: 1174.3 | F24: 962.4 | G24: 0.8195520736
A25: 755.8 | B25: 933 | C25: 1378.7 | D25: 1378.7 | E25: 755.8 | F25: 622.9 | G25: 0.8241598306
A26: 609.1 | B26: 787.9 | C26: 1334.4 | D26: 1334.4 | E26: 609.1 | F26: 725.3 | G26: 1.190773272
E30: Sakiko N. Olsen
E31: European Journal Of Minerology, 2000
E32: Volume 12, Pages
E33: New U-Pb Zircon Data

Sheet Ages_17
A1: TABLE 4. | J1: TABLE 4.
A2: Sample | B2: 206Pb/238U | C2: 207Pb/235U | D2: Pb206/Pb207 | E2: Maximum Age | F2: Minimum Age | G2: Difference | H2: Difference | J2: Sample | K2: Maximum Age | L2: Minimum Age | M2: Difference | N2: Difference
A3: Name | B3: age (m.y.) | C3: age (m.y.) | D3: age (m.y.) | E3: Million Years | F3: Million Years | G3: Million Years | H3: Percentage | J3: Name | K3: Million Years | L3: Million Years | M3: Million Years | N3: Percentage
A4: CG-A1 | B4: 12.4 | C4: 12.9 | D4: 93 | E4: 93 | F4: 12.4 | G4: =(E4-F4) -> 80.6 | H4: =(G4/F4) -> 6.5 | J4: CG-A1 | K4: 93 | L4: 12.4 | M4: =(K4-L4) -> 80.6 | N4: =(M4/L4) -> 6.5
A5: CG-A4 | B5: 26.2 | C5: 29.7 | D5: 330 | E5: 330 | F5: 26.2 | G5: 303.8 | H5: 11.59541985 | J5: CG-A1 | K5: 1070 | L5: 12.8 | M5: 1057.2 | N5: 82.59375
A6: CG-A4 | B6: 4355 | C6: 1892 | D6: -290 | E6: 1892 | F6: 290 | G6: 1602 | H6: 5.524137931 | J6: CG-A1 | K6: 3540 | L6: 790 | M6: 2750 | N6: 3.481012658
A7: CG-A4 | B7: 7323 | C7: 2581 | D7: -340 | E7: 2581 | F7: 340 | G7: 2241 | H7: 6.591176471 | J7: CG-A4 | K7: 330 | L7: 26.2 | M7: 303.8 | N7: 11.59541985
A8: CG-A5 | B8: 26.1 | C8: 27.3 | D8: 130 | E8: 130 | F8: 26.1 | G8: 103.9 | H8: 3.980842912 | J8: CG-A4 | K8: 1892 | L8: 290 | M8: 1602 | N8: 5.524137931
A9: CG-A5 | B9: 26.4 | C9: 26.4 | D9: 32 | E9: 32 | F9: 26.4 | G9: 5.6 | H9: 0.2121212121 | J9: CG-A4 | K9: 2581 | L9: 340 | M9: 2241 | N9: 6.591176471
A10: CG-A5 | B10: 25.9 | C10: 26.7 | D10: 98 | E10: 98 | F10: 25.9 | G10: 72.1 | H10: 2.783783784 | J10: CG-A5 | K10: 130 | L10: 26.1 | M10: 103.9 | N10: 3.980842912
A11: CG-A5 | B11: 4654 | C11: 1886 | D11: -550 | E11: 4654 | F11: 550 | G11: 4104 | H11: 7.461818182 | J11: CG-A5 | K11: 32 | L11: 26.4 | M11: 5.6 | N11: 0.2121212121
A12: CG-Al | B12: 12.8 | C12: 20.7 | D12: 1070 | E12: 1070 | F12: 12.8 | G12: 1057.2 | H12: 82.59375 | J12: CG-A5 | K12: 98 | L12: 25.9 | M12: 72.1 | N12: 2.783783784
A13: CG-Al | B13: 3540 | C13: 2061 | D13: 790 | E13: 3540 | F13: 790 | G13: 2750 | H13: 3.481012658 | J13: CG-A5 | K13: 4654 | L13: 550 | M13: 4104 | N13: 7.461818182
A16: TABLE 5. | J16: TABLE 5.
A17: Sample | B17: 206Pb/238U | C17: 207Pb/235U | D17: Pb206/Pb207 | E17: Maximum Age | F17: Minimum Age | G17: Difference | H17: Difference | J17: Sample | K17: Maximum Age | L17: Minimum Age | M17: Difference | N17: Difference
A18: Name | B18: age (m.y.) | C18: age (m.y.) | D18: age (m.y.) | E18: Million Years | F18: Million Years | G18: Million Years | H18: Percentage | J18: Name | K18: Million Years | L18: Million Years | M18: Million Years | N18: Percentage
A19: GH-A6 | B19: 28.1 | C19: 27.4 | D19: -34 | E19: 34 | F19: 27.4 | G19: =(E19-F19) -> 6.6 | H19: =(G19/F19) -> 0.2408759124 | J19: GH-A6 | K19: 34 | L19: 27.4 | M19: =(K19-L19) -> 6.6 | N19: =(M19/L19) -> 0.2408759124
A20: GH-A6 | B20: 3430 | C20: 1640 | D20: -240 | E20: 3430 | F20: 240 | G20: 3190 | H20: 13.29166667 | J20: GH-A6 | K20: 3430 | L20: 240 | M20: 3190 | N20: 13.29166667
A21: GH-A6 | B21: 4830 | C21: 1950 | D21: -500 | E21: 4830 | F21: 500 | G21: 4330 | H21: 8.66 | J21: GH-A6 | K21: 4830 | L21: 500 | M21: 4330 | N21: 8.66
A22: GH-A6 | B22: 24.9 | C22: 24.7 | D22: 8 | E22: 24.9 | F22: 8 | G22: 16.9 | H22: 2.1125 | J22: GH-A6 | K22: 24.9 | L22: 8 | M22: 16.9 | N22: 2.1125
A23: GH-A6 | B23: 1830 | C23: 1070 | D23: -260 | E23: 1830 | F23: 260 | G23: 1570 | H23: 6.038461538 | J23: GH-A6 | K23: 1830 | L23: 260 | M23: 1570 | N23: 6.038461538
A24: GH-A6 | B24: 5060 | C24: 1960 | D24: -650 | E24: 5060 | F24: 650 | G24: 4410 | H24: 6.784615385 | J24: GH-A6 | K24: 5060 | L24: 650 | M24: 4410 | N24: 6.784615385
A25: GH-A6 | B25: 39.6 | C25: 36.6 | D25: -160 | E25: 160 | F25: 36.6 | G25: 123.4 | H25: 3.371584699 | J25: GH-A6 | K25: 160 | L25: 36.6 | M25: 123.4 | N25: 3.371584699
A26: GH-A6 | B26: 97.7 | C26: 74.7 | D26: -610 | E26: 610 | F26: 74.7 | G26: 535.3 | H26: 7.165997323 | J26: GH-A6 | K26: 610 | L26: 74.7 | M26: 535.3 | N26: 7.165997323
A30: TABLE 3. | J30: TABLE 3.
A31: Sample | B31: 206Pb/238U | C31: 207Pb/236U | D31: 207Pb/206Pb | E31: Maximum Age | F31: Minimum Age | G31: Difference | H31: Difference | J31: Sample | K31: Maximum Age | L31: Minimum Age | M31: Difference | N31: Difference
A32: Name | B32: Age (m.y.) | C32: Age (m.y.) | D32: Age (m.y.) | E32: Million Years | F32: Million Years | G32: Million Years | H32: Percentage | J32: Name | K32: Million Years | L32: Million Years | M32: Million Years | N32: Percentage
A33: GH-B1 | B33: 15.1 | C33: 38.9 | D33: 1970 | E33: 1970 | F33: 15.1 | G33: =(E33-F33) -> 1954.9 | H33: =(G33/F33) -> 129.4635762 | J33: GH-B1 | K33: 1970 | L33: 15.1 | M33: =(K33-L33) -> 1954.9 | N33: =(M33/L33) -> 129.4635762
A34: GH-B1 | B34: 11780 | C34: 4405 | D34: 1720 | E34: 11780 | F34: 1720 | G34: 10060 | H34: 5.848837209 | J34: GH-B1 | K34: 11780 | L34: 1720 | M34: 10060 | N34: 5.848837209
A35: GH-B20A | B35: 920 | C35: 647 | D35: -220 | E35: 920 | F35: 220 | G35: 700 | H35: 3.181818182 | J35: GH-B20A | K35: 920 | L35: 220 | M35: 700 | N35: 3.181818182
A36: GH-B20A | B36: 814 | C36: 592 | D36: -190 | E36: 814 | F36: 190 | G36: 624 | H36: 3.284210526 | J36: GH-B20A | K36: 814 | L36: 190 | M36: 624 | N36: 3.284210526
A37: GH-B20B | B37: 2030 | C37: 1130 | D37: -340 | E37: 2030 | F37: 340 | G37: 1690 | H37: 4.970588235 | J37: GH-B20B | K37: 2030 | L37: 340 | M37: 1690 | N37: 4.970588235
A38: GH-B23 | B38: 712 | C38: 780 | D38: 990 | E38: 990 | F38: 712 | G38: 278 | H38: 0.3904494382 | J38: GH-B23 | K38: 990 | L38: 712 | M38: 278 | N38: 0.3904494382
A39: GH-A6 | B39: 25.5 | C39: 28.8 | D39: 310 | E39: 310 | F39: 25.5 | G39: 284.5 | H39: 11.15686275 | J39: GH-A6 | K39: 310 | L39: 25.5 | M39: 284.5 | N39: 11.15686275
A40: GH-A6 | B40: 24.4 | C40: 28.8 | D40: 420 | E40: 420 | F40: 24.4 | G40: 395.6 | H40: 16.21311475 | J40: GH-A6 | K40: 420 | L40: 24.4 | M40: 395.6 | N40: 16.21311475
A41: GH-A6 | B41: 23.7 | C41: 28.8 | D41: 480 | E41: 480 | F41: 23.7 | G41: 456.3 | H41: 19.25316456 | J41: GH-A6 | K41: 480 | L41: 23.7 | M41: 456.3 | N41: 19.25316456
A42: GH-A6 | B42: 23.8 | C42: 28.4 | D42: 440 | E42: 440 | F42: 23.8 | G42: 416.2 | H42: 17.48739496 | J42: GH-A6 | K42: 440 | L42: 23.8 | M42: 416.2 | N42: 17.48739496
A43: GH-A6 | B43: 124 | C43: 77 | D43: -1240 | E43: 1240 | F43: 77 | G43: 1163 | H43: 15.1038961 | J43: GH-A6 | K43: 1240 | L43: 77 | M43: 1163 | N43: 15.1038961
A44: GH-A6 | B44: 78.9 | C44: 62.5 | D44: -530 | E44: 530 | F44: 62.5 | G44: 467.5 | H44: 7.48 | J44: GH-A6 | K44: 530 | L44: 62.5 | M44: 467.5 | N44: 7.48
A45: GH-A6 | B45: 71.9 | C45: 59.5 | D45: -420 | E45: 420 | F45: 59.5 | G45: 360.5 | H45: 6.058823529 | J45: GH-A6 | K45: 420 | L45: 59.5 | M45: 360.5 | N45: 6.058823529
A46: GH-A6 | B46: 77.6 | C46: 66.7 | D46: -310 | E46: 310 | F46: 77.6 | G46: 232.4 | H46: 2.994845361 | J46: GH-A6 | K46: 310 | L46: 77.6 | M46: 232.4 | N46: 2.994845361
A47: GH-A6 | B47: 44.3 | C47: 40.2 | D47: -200 | E47: 200 | F47: 40.2 | G47: 159.8 | H47: 3.975124378 | J47: GH-A6 | K47: 200 | L47: 40.2 | M47: 159.8 | N47: 3.975124378
A48: GH-VHG | B48: 1565 | C48: 897 | D48: -530 | E48: 1565 | F48: 530 | G48: 1035 | H48: 1.952830189 | J48: GH-VHG | K48: 1565 | L48: 530 | M48: 1035 | N48: 1.952830189
B52: Table 3 | C52: Table 4 | D52: Table 5
B53: Million Years | C53: Million Years | D53: Million Years
B54: 11780 | C54: 7232 | D54: 5060
B55: -190 | C55: 4654 | D55: 4830 | J55: TABLE 4. | L55: Whole | M55: Rock | N55: Formation
B56: -200 | C56: 4355 | D56: -34 | J56: Sample | K56: Maximum Age | L56: Minimum Age | M56: Difference | N56: Difference
B57: -220 | C57: 3540 | D57: -160 | J57: Name | K57: Million Years | L57: Million Years | M57: Million Years | N57: Percentage
B58: -310 | C58: -290 | D58: -240 | J58: CG-A1 | K58: 3540 | L58: 12.4 | M58: =(K58-L58) -> 3527.6 | N58: =(M58/L58) -> 284.483871
B59: -340 | C59: -340 | D59: -260 | J59: CG-A4 | K59: 2581 | L59: 26.2 | M59: =(K59-L59) -> 2554.8 | N59: =(M59/L59) -> 97.51145038
B60: -420 | C60: -550 | D60: -500 | J60: CG-A5 | K60: 4654 | L60: 25.9 | M60: =(K60-L60) -> 4628.1 | N60: =(M60/L60) -> 178.6911197
B61: -530 | D61: -610
B62: -530 | D62: -650
B63: -1240 | J63: TABLE 5. | L63: Whole | M63: Rock | N63: Formation
J64: Sample | K64: Maximum Age | L64: Minimum Age | M64: Difference | N64: Difference
D65: Kenneth R. Ludwig | J65: Name | K65: Million Years | L65: Million Years | M65: Million Years | N65: Percentage
D66: Economic Geology, 1979 | J66: GH-A6 | K66: 34 | L66: 8 | M66: =(K66-L66) -> 26 | N66: =(M66/L66) -> 3.25
D67: Volume 74, Pages | J67: GH-A6 | K67: 3430 | L67: 8 | M67: 3422 | N67: 427.75
D68: Age Of Uranium Mineralization | J68: GH-A6 | K68: 4830 | L68: 8 | M68: 4822 | N68: 602.75
J69: GH-A6 | K69: 24.9 | L69: 8 | M69: 16.9 | N69: 2.1125
J70: GH-A6 | K70: 1830 | L70: 8 | M70: 1822 | N70: 227.75
J71: GH-A6 | K71: 5060 | L71: 8 | M71: 5052 | N71: 631.5
J72: GH-A6 | K72: 160 | L72: 8 | M72: 152 | N72: 19
J73: GH-A6 | K73: 610 | L73: 8 | M73: 602 | N73: 75.25
D76: TABLE 4. | F76: Whole | G76: Rock | H76: Formation | J76: TABLE 3. | L76: Whole | M76: Rock | N76: Formation
D77: Sample | E77: Maximum Age | F77: Minimum Age | G77: Difference | H77: Difference | J77: Sample | K77: Maximum Age | L77: Minimum Age | M77: Difference | N77: Difference
D78: Name | E78: Million Years | F78: Million Years | G78: Million Years | H78: Percentage | J78: Name | K78: Million Years | L78: Million Years | M78: Million Years | N78: Percentage
D79: CG-A4 | E79: 7323 | F79: -340 | G79: =(E79-F79) -> 7663 | H79: =(G79/F79) -> -22.53823529 | J79: GH-B1 | K79: 1970 | L79: 15.1 | M79: =(K79-L79) -> 1954.9 | N79: =(M79/L79) -> 129.4635762
D80: CG-A5 | E80: 4654 | F80: -550 | G80: 5204 | H80: -9.461818182 | J80: GH-B1 | K80: 11780 | L80: 15.1 | M80: 11764.9 | N80: 779.1324503
D81: CG-A1 | E81: 4355 | F81: -290 | G81: =(E81-F81) -> 4645 | H81: =(G81/F81) -> -16.01724138 | J81: GH-B20A | K81: 920 | L81: 190 | M81: 730 | N81: 3.842105263
J82: GH-B20A | K82: 814 | L82: 190 | M82: 624 | N82: 3.284210526
J83: GH-B20B | K83: 2030 | L83: 190 | M83: 1840 | N83: 9.684210526
J84: GH-A6 | K84: 310 | L84: 23.7 | M84: 286.3 | N84: 12.08016878
J85: GH-A6 | K85: 420 | L85: 23.7 | M85: 396.3 | N85: 16.72151899
J86: GH-A6 | K86: 480 | L86: 23.7 | M86: 456.3 | N86: 19.25316456
D87: Sample | E87: 206Pb/204Pb | F87: 207Pb/204Pb | G87: 207Pb/206Pb | H87: 207Pb/206Pb | J87: GH-A6 | K87: 440 | L87: 23.7 | M87: 416.3 | N87: 17.56540084
D88: Number | E88: Ratio | F88: Ratio | G88: Ratio | H88: Million Years | J88: GH-A6 | K88: 1240 | L88: 23.7 | M88: 1216.3 | N88: 51.32067511
D89: GH-B3 | E89: 41.75 | F89: 19.27 | G89: =(F89/E89) -> 0.4615568862 | H89: =[1]!AgePb76($G$89) -> 4122.8829 | J89: GH-A6 | K89: 530 | L89: 23.7 | M89: 506.3 | N89: 21.3628692
D90: GH-B3 | E90: 40.85 | F90: 19.61 | G90: =(F90/E90) -> 0.4800489596 | H90: =[1]!AgePb76($G$90) -> 4181.083919 | J90: GH-A6 | K90: 420 | L90: 23.7 | M90: 396.3 | N90: 16.72151899
D91: GH-B6 | E91: 64.25 | F91: 20.28 | G91: 0.3156420233 | H91: =[1]!AgePb76($G$91) -> 3548.729447 | J91: GH-A6 | K91: 310 | L91: 23.7 | M91: 286.3 | N91: 12.08016878
D92: GH-D2407 | E92: 60.66 | F92: 20.16 | G92: 0.3323442136 | H92: =[1]!AgePb76($G$92) -> 3627.927765 | J92: GH-A6 | K92: 200 | L92: 23.7 | M92: 176.3 | N92: 7.438818565
D93: GH-D2407 | E93: 50.34 | F93: 20.8 | G93: 0.4131903059 | H93: =[1]!AgePb76($G$93) -> 3957.784387
D94: GH-D2407 | E94: 51.9 | F94: 21.14 | G94: 0.4073217726 | H94: =[1]!AgePb76($G$94) -> 3936.327648
D95: CG-A6 | E95: 60.96 | F95: 21.4 | G95: 0.3510498688 | H95: =[1]!AgePb76($G$95) -> 3711.560531
D96: CG-A6 | E96: 57.74 | F96: 20.97 | G96: 0.3631797714 | H96: =[1]!AgePb76($G$96) -> 3763.20734
D102: Sample | E102: 207Pb/206Pb | F102: 207Pb/206Pb
D103: Number | E103: Ratio | F103: Million Years
D104: GH-B3 | E104: 0.4615568862 | F104: 4122.8829
D105: GH-B3 | E105: 0.4800489596 | F105: 4181.083919
D106: GH-B6 | E106: 0.3156420233 | F106: 3548.729447
D107: GH-D2407 | E107: 0.3323442136 | F107: 3627.927765
D108: GH-D2407 | E108: 0.4131903059 | F108: 3957.784387
D109: GH-D2407 | E109: 0.4073217726 | F109: 3936.327648
D110: CG-A6 | E110: 0.3510498688 | F110: 3711.560531
D111: CG-A6 | E111: 0.3631797714 | F111: 3763.20734

Sheet Ages_18
A2: Table 4. | B2: 206Pb | C2: 207Pb | D2: 207Pb
B3: 238U | C3: 235U | D3: 206Pb | E3: Maximum Age | F3: Minimum Age | G3: Difference | H3: Difference
A4: Sample | B4: Million Years | C4: Million Years | D4: Million Years | E4: Million Years | F4: Million Years | G4: Million Years | H4: Percentage
A5: JA-222-1z | B5: 22.07 | C5: 22.35 | D5: 54.28 | E5: 54.28 | F5: 22.07 | G5: =(E5-F5) -> 32.21 | H5: =(G5/F5) -> 1.459447213
A6: JA-222-2z | B6: 22.1 | C6: 24.15 | D6: 231.79 | E6: 231.79 | F6: 22.1 | G6: 209.69 | H6: 9.488235294
A7: JA-222-3z | B7: 22.09 | C7: 25.73 | D7: 379.38 | E7: 379.38 | F7: 22.09 | G7: 357.29 | H7: 16.17428701
A8: JA-222-4z | B8: 21.58 | C8: 23.85 | D8: 258.83 | E8: 258.83 | F8: 21.58 | G8: 237.25 | H8: 10.9939759
A9: JA-222-5z | B9: 21.69 | C9: 21.16 | D9: –38.52 | E9: 38.52 | F9: 21.16 | G9: 17.36 | H9: 0.820415879
A10: JA-222-6z | B10: 21.96 | C10: 23.77 | D10: 210.62 | E10: 210.62 | F10: 21.96 | G10: 188.66 | H10: 8.591074681
A11: JA-250
A12: JA-250-1z | B12: 21.81 | C12: 22.67 | D12: 114.82 | E12: 114.82 | F12: 21.81 | G12: =(E12-F12) -> 93.01 | H12: =(G12/F12) -> 4.264557542
A13: JA-250-2z | B13: 21.58 | C13: 22.62 | D13: 134.96 | E13: 134.96 | F13: 21.58 | G13: 113.38 | H13: 5.253938832
A14: JA-250-3z | B14: 21.74 | C14: 22.01 | D14: 51.08 | E14: 51.08 | F14: 21.74 | G14: 29.34 | H14: 1.349586017
A15: JA-250-4z | B15: 21.94 | C15: 21.98 | D15: 27.22 | E15: 27.22 | F15: 21.94 | G15: 5.28 | H15: 0.2406563355
A16: JA-250-18z | B16: 21.95 | C16: 23.13 | D16: 147.29 | E16: 147.29 | F16: 21.95 | G16: 125.34 | H16: 5.710250569
A17: JA-250-7b | B17: 22.1 | C17: 22.84 | D17: 100.91 | E17: 100.91 | F17: 22.1 | G17: 78.81 | H17: 3.566063348
A18: JA-250-8b | B18: 21.92 | C18: 22.53 | D18: 88.38 | E18: 88.38 | F18: 21.92 | G18: 66.46 | H18: 3.031934307
A19: JA-250-9b | B19: 21.98 | C19: 23.06 | D19: 137.56 | E19: 137.56 | F19: 21.98 | G19: 115.58 | H19: 5.258416742
A20: JA-250-10b | B20: 21.97 | C20: 23.22 | D20: 154.41 | E20: 154.41 | F20: 21.97 | G20: 132.44 | H20: 6.0282203
A21: JA-250-11b | B21: 21.98 | C21: 22.84 | D21: 114.45 | E21: 114.45 | F21: 21.98 | G21: 92.47 | H21: 4.207006369
A22: JA-250-14b | B22: 21.92 | C22: 22.39 | D22: 72.7 | E22: 72.7 | F22: 21.92 | G22: 50.78 | H22: 2.316605839
A23: JA-250-16b | B23: 21.9 | C23: 22.08 | D23: 41.45 | E23: 41.45 | F23: 21.9 | G23: 19.55 | H23: 0.8926940639
E27: James Allibon
E28: Canadian Journal Of Earth Science, 2011
E29: Volume 48, Pages 567–592
E30: U–Pb Dating on Coexisting Zircon
D33: Table 4.
D34: Sample | E34: Maximum Age | F34: Minimum Age | G34: Difference | H34: Difference
D35: Name | E35: Million Years | F35: Million Years | G35: Million Years | H35: Percentage
D36: JA-222-1z | E36: 54.28 | F36: 22.07 | G36: =(E36-F36) -> 32.21 | H36: =(G36/F36) -> 1.459447213
D37: JA-222-2z | E37: 231.79 | F37: 22.1 | G37: 209.69 | H37: 9.488235294
D38: JA-222-3z | E38: 379.38 | F38: 22.09 | G38: 357.29 | H38: 16.17428701
D39: JA-222-4z | E39: 258.83 | F39: 21.58 | G39: 237.25 | H39: 10.9939759
D40: JA-222-5z | E40: 38.52 | F40: 21.16 | G40: 17.36 | H40: 0.820415879
D41: JA-222-6z | E41: 210.62 | F41: 21.96 | G41: 188.66 | H41: 8.591074681
D42: JA-250-1z | E42: 114.82 | F42: 21.81 | G42: =(E42-F42) -> 93.01 | H42: =(G42/F42) -> 4.264557542
D43: JA-250-2z | E43: 134.96 | F43: 21.58 | G43: 113.38 | H43: 5.253938832
D44: JA-250-3z | E44: 51.08 | F44: 21.74 | G44: 29.34 | H44: 1.349586017
D45: JA-250-4z | E45: 27.22 | F45: 21.94 | G45: 5.28 | H45: 0.2406563355
D46: JA-250-18z | E46: 147.29 | F46: 21.95 | G46: 125.34 | H46: 5.710250569
D47: JA-250-7b | E47: 100.91 | F47: 22.1 | G47: 78.81 | H47: 3.566063348
D48: JA-250-8b | E48: 88.38 | F48: 21.92 | G48: 66.46 | H48: 3.031934307
D49: JA-250-9b | E49: 137.56 | F49: 21.98 | G49: 115.58 | H49: 5.258416742
D50: JA-250-10b | E50: 154.41 | F50: 21.97 | G50: 132.44 | H50: 6.0282203
D51: JA-250-11b | E51: 114.45 | F51: 21.98 | G51: 92.47 | H51: 4.207006369
D52: JA-250-14b | E52: 72.7 | F52: 21.92 | G52: 50.78 | H52: 2.316605839
D53: JA-250-16b | E53: 41.45 | F53: 21.9 | G53: 19.55 | H53: 0.8926940639

Sheet Ages_19
A1: TABLE 2
A2: Amitsoq gneisses | C2: K-Ar Age | D2: Error | E2: K-Ar Total Age | F2: Error | G2: K-Ar Plateau Age
A3: 125519 | B3: biotite | C3: 3100 | D3: 100
C4: 3080 | D4: 100 | E4: 3110 | F4: 50 | G4: 3170
A5: 110870 | B5: biotite | C5: 3220 | D5: 100
C6: 3280 | D6: 100 | E6: 3330 | F6: 50 | G6: 3340
A7: 110999 | B7: biotite | C7: 2300 | D7: 70
A8: 125522 | B8: biotite | C8: 2460 | D8: 80
A9: 125540 | B9: biotite | C9: 2990 | D9: 90 | E9: 2990 | F9: 50 | G9: 2990
C10: 3000 | D10: 90
A11: 110869 | B11: biotite | C11: 1890 | D11: 60
A12: 86431 | B12: biotite | C12: 2310 | D12: 70
A13: 125519 | B13: hornblende | C13: 2500 | D13: 80
C14: 2620 | D14: 80 | E14: 2520 | F14: 50 | G14: 2490
A15: 110870 | B15: hornblende (impure) | C15: 3100 | D15: 100 | E15: 3050 | F15: 50 | G15: 2610
A16: 110999 | B16: hornblende (Impure) | C16: 2250 | D16: 70
A17: Amitsoq gneiss enclaves | C17: 2380 | D17: 80
A18: 125526 | B18: hornblende | C18: 2480 | D18: 80 | E18: 2520 | F18: 50 | G18: 2560
A19: 155713 | B19: biotite | C19: 2750 | D19: 90
A20: 155714 | B20: biotite | C20: 2260 | D20: 70 | E20: 2340 | F20: 50 | G20: 2360
A21: 155806 | B21: biotite | C21: 2660 | D21: 80 | E21: 2760 | F21: 50 | G21: 2700
A22: 155713 | B22: hornblende | C22: 2750 | D22: 90
A23: 155714 | B23: hornblende | C23: 2490 | D23: 80 | E23: 2650 | F23: 50 | G23: 2660
A24: 155806 | B24: hornblende | C24: 3520 | D24: 100
A25: Isua gneisses | C25: 3490 | D25: 100
A26: 155764 | B26: biotite | C26: 2430 | D26: 80
C27: 2030 | D27: 60
A28: 155765 | B28: muscovite | C28: 3440 | D28: 100
A29: 155766 | B29: biotite | C29: 3450 | D29: 100
A30: 155774 | B30: biotite | C30: 4920 | D30: 150 | E30: 4970 | F30: 70 | G30: 5030
C31: 4960 | D31: 150
A32: 155785 | B32: biotite | C32: 2350 | D32: 80
B33: biotite | C33: 2500 | D33: 80
A34: Qarqut Pegmatite
A35: 155754 | B35: biotite
A36: 155754 | B36: muscovite
A40: TABLE 4
A41: Sample | B41: Mineral | C41: 87 Sr/86 Sr Age (my)
A42: 125519 | B42: biotite | C42: 1612
A43: 110870 | B43: biotite | C43: 1733
A44: 125540 | B44: biotite | C44: 1637
A45: 155806 | B45: biotite | C45: 1618
A46: 155764 | B46: biotite | C46: 1733
A47: 155774 | B47: biotite | C47: 1616
A48: 155785 | B48: biotite | C48: 1581
A49: 125519 | B49: hornblende | C49: 1610
A50: 125519 | B50: plagioclase | C50: 1890
A51: 125519 | B51: sphene | C51: 2380
A52: 125519 | B52: apatite | C52: 2380
A53: 155754 | B53: biotite | C53: 3200
A54: 155754 | B54: muscovite | C54: 2500
A56: TABLE 3 | K56: Maximum Age | L56: Minimum Age | M56: Difference | N56: Difference
A57: Sample | B57: K-Ar Age | C57: K-Ar Age | D57: K-Ar Age | E57: K-Ar Age | F57: K-Ar Age | G57: K-Ar Age | H57: K-Ar Age | I57: K-Ar Age | J57: K-Ar Age | K57: Million Years | L57: Million Years | M57: Million Years | N57: Percentage
A58: 125519 | B58: 2180 | C58: 2990 | D58: 3140 | E58: 3160 | F58: 3160 | G58: 3050 | H58: 2910 | I58: 3110 | J58: 3160 | K58: 3160 | L58: 2180 | M58: =(K58-L58) -> 980 | N58: =(M58/K58) -> 0.3101265823
A59: 110870 | B59: 2750 | C59: 3360 | D59: 3320 | E59: 3340 | F59: 3320 | G59: 3340 | H59: 3300 | I59: 3330 | J59: 3340 | K59: 3340 | L59: 2750 | M59: =(K59-L59) -> 590 | N59: =(M59/K59) -> 0.1766467066
A60: 155713 | B60: 1590 | C60: 2180 | D60: 2530 | E60: 2560 | F60: 2560 | G60: 2560 | H60: 2570 | I60: 2520 | J60: 2560 | K60: 2560 | L60: 1590 | M60: 970 | N60: 0.37890625
A61: 155806 | B61: 1710 | C61: 2230 | D61: 2350 | E61: 2370 | F61: 2360 | G61: 2360 | H61: 2400 | I61: 2340 | J61: 2360 | K61: 2400 | L61: 1710 | M61: 690 | N61: 0.2875
A62: 125540 | B62: 2990 | C62: 3000 | D62: 3010 | E62: 2990 | F62: 3000 | G62: 2990 | H62: 2990 | I62: 2990 | K62: 3010 | L62: 2990 | M62: 20 | N62: 0.006644518272
A63: 155785 | B63: 3410 | C63: 3840 | D63: 4930 | E63: 5120 | F63: 5010 | G63: 4990 | H63: 5100 | I63: 4970 | J63: 5030 | K63: 5030 | L63: 3410 | M63: 1620 | N63: 0.3220675944
A64: 125519 | B64: 3710 | C64: 3210 | D64: 3280 | E64: 3300 | F64: 2450 | G64: 2510 | H64: 2540 | I64: 2520 | J64: 2490 | K64: 3710 | L64: 2450 | M64: 1260 | N64: 0.3396226415
A65: 110870 | B65: 3230 | C65: 3280 | D65: 3280 | E65: 3240 | F65: 2630 | G65: 2580 | H65: 2530 | I65: 3050 | J65: 2610 | K65: 3280 | L65: 2530 | M65: 750 | N65: 0.2286585366
A66: 155713 | B66: 2860 | C66: 2950 | D66: 2950 | E66: 2760 | F66: 2640 | G66: 2720 | H66: 2760 | I66: 2700 | K66: 2950 | L66: 2640 | M66: =(K66-L66) -> 310 | N66: =(M66/K66) -> 0.1050847458
A67: 155806 | B67: 4740 | C67: 2000 | D67: 3750 | E67: 2770 | F67: 2610 | G67: 2720 | H67: 2650 | I67: 2660 | K67: 4740 | L67: 2000 | M67: 2740 | N67: 0.5780590717
A68: 125519 | B68: 2300 | C68: 2320 | D68: 2880 | E68: 3090 | F68: 3110 | G68: 3160 | H68: 3165 | K68: 3165 | L68: 2300 | M68: =(K68-L68) -> 865 | N68: =(M68/K68) -> 0.2733017378
A69: J=0.0491 | B69: 3170 | C69: 3175 | D69: 3165 | E69: 3130 | F69: 3040 | G69: 3100 | H69: 3170 | K69: 3175 | L69: 3100 | M69: 75 | N69: 0.02362204724
A71: ALL THREE TABLES | B71: COMBINED | C71: TABLE 2 AND 3
A72: TABLE 2 | B72: TABLE 2 | C72: TABLE 2 | D72: TABLE 2 | E72: TABLE 2 | F72: TABLE 4 | G72: TABLE 3 | H72: TABLE 3 | I72: TABLE 3 | J72: TABLE 3 | K72: TABLE 3 | L72: TABLE 3 | M72: TABLE 3 | N72: TABLE 3 | O72: Maximum Age | P72: Minimum Age | Q72: Difference | R72: Difference
A73: Sample | B73: Mineral | C73: K-Ar Age | D73: K-Ar Total Age | E73: K-Ar Plateau Age | F73: Rb-Sr Age | G73: K-Ar Age | H73: K-Ar Age | I73: K-Ar Age | J73: K-Ar Age | K73: K-Ar Age | L73: K-Ar Age | M73: K-Ar Age | N73: K-Ar Age | O73: Million Years | P73: Million Years | Q73: Million Years | R73: Percentage
A74: 86431 | B74: biotite | C74: 2310
A75: 110869 | B75: biotite | C75: 1890
A76: 110870 | B76: biotite | C76: 3220 | F76: 1733 | O76: 3220 | P76: 1733 | Q76: =(O76-P76) -> 1487 | R76: =(Q76/O76) -> 0.4618012422
A77: 110870 | B77: biotite | C77: 3280 | D77: 3330 | E77: 3340 | G77: 2750 | H77: 3360 | I77: 3320 | J77: 3340 | K77: 3320 | L77: 3340 | M77: 3300 | N77: 3330 | O77: 3360 | P77: 2750 | Q77: =(O77-P77) -> 610 | R77: =(Q77/O77) -> 0.181547619
A78: 110870 | B78: hornblende (impure) | C78: 3100 | D78: 3050 | E78: 2610 | G78: 3230 | H78: 3280 | I78: 3280 | J78: 3240 | K78: 2630 | L78: 2580 | M78: 2530 | N78: 3050 | O78: 3280 | P78: 2530 | Q78: 750 | R78: =(Q78/O78) -> 0.2286585366
A79: 110999 | B79: biotite | C79: 2300
A80: 110999 | B80: hornblende (Impure) | C80: 2250
A81: 125519 | B81: biotite | C81: 3100 | F81: 1612 | G81: 2180 | H81: 2990 | I81: 3140 | J81: 3160 | K81: 3160 | L81: 3050 | M81: 2910 | N81: 3110 | O81: 3160 | P81: 1612 | Q81: 1548 | R81: =(Q81/O81) -> 0.4898734177
A82: 125519 | B82: biotite | C82: 3080 | D82: 3110 | E82: 3170 | F82: 1610 | G82: 3710 | H82: 3210 | I82: 3280 | J82: 3300 | K82: 2450 | L82: 2510 | M82: 2540 | N82: 2520 | O82: 3710 | P82: 1610 | Q82: 2100 | R82: 0.5660377358
A83: 125519 | B83: hornblende | C83: 2500 | F83: 1890 | G83: 2300 | H83: 2320 | I83: 2880 | J83: 3090 | K83: 3110 | L83: 3160 | M83: 3165 | O83: 3165 | P83: 1890 | Q83: 1275 | R83: 0.4028436019
A84: 125519 | B84: hornblende | C84: 2620 | D84: 2520 | E84: 2490 | F84: 2380 | O84: 2620 | P84: 2380 | Q84: 240 | R84: 0.09160305344
A85: 125522 | B85: biotite | C85: 2460 | F85: 2380 | O85: 2460 | P85: 2380 | Q85: 80 | R85: 0.0325203252
A86: 125526 | B86: hornblende | C86: 2380
A87: 125540 | B87: biotite | C87: 2990 | D87: 2990 | E87: 2990 | F87: 1637 | G87: 2990 | H87: 3000 | I87: 3010 | J87: 2990 | K87: 3000 | L87: 2990 | M87: 2990 | N87: 2990 | O87: 3010 | P87: 1637 | Q87: 1373 | R87: =(Q87/O87) -> 0.4561461794
A88: 125540 | B88: biotite | C88: 3000
A89: 155713 | B89: hornblende | C89: 2480 | D89: 2520 | E89: 2560 | G89: 1590 | H89: 2180 | I89: 2530 | J89: 2560 | K89: 2560 | L89: 2560 | M89: 2570 | N89: 2520 | O89: 2570 | P89: 1590 | Q89: 980 | R89: =(Q89/O89) -> 0.3813229572
A90: 155713 | B90: biotite | C90: 2660 | D90: 2760 | E90: 2700 | G90: 2860 | H90: 2950 | I90: 2950 | J90: 2760 | K90: 2640 | L90: 2720 | M90: 2760 | N90: 2700 | O90: 2950 | P90: 2640 | Q90: 310 | R90: =(Q90/O90) -> 0.1050847458
A91: 155714 | B91: biotite | C91: 2750
A92: 155714 | B92: hornblende | C92: 2750
A93: 155754 | B93: biotite | C93: 2350 | F93: 3200 | O93: 3200 | P93: 2350 | Q93: 850 | R93: =(Q93/O93) -> 0.265625
A94: 155754 | B94: muscovite | C94: 2500 | F94: 2500 | O94: 2500 | P94: 2500
A95: 155764 | B95: hornblende | C95: 3520 | F95: 1733 | O95: 3520 | P95: 1733 | Q95: 1787 | R95: =(Q95/O95) -> 0.5076704545
A96: 155764 | B96: biotite | C96: 3490
A97: 155765 | B97: biotite | C97: 2430
A98: 155766 | B98: biotite | C98: 2030
A99: 155774 | B99: muscovite | C99: 3440 | F99: 1616 | O99: 3440 | P99: 1616 | Q99: 1824 | R99: =(Q99/O99) -> 0.5302325581
A100: 155774 | B100: biotite | C100: 3450
A101: 155785 | B101: biotite | C101: 4920 | D101: 4970 | E101: 5030 | F101: 1581 | G101: 3410 | H101: 3840 | I101: 4930 | J101: 5120 | K101: 5010 | L101: 4990 | M101: 5100 | N101: 4970 | O101: 5120 | P101: 1581 | Q101: 3539 | R101: =(Q101/O101) -> 0.6912109375
A102: 155785 | B102: biotite | C102: 4960
A103: 155806 | B103: biotite | C103: 2260 | D103: 2340 | E103: 2360 | F103: 1618 | G103: 1710 | H103: 2230 | I103: 2350 | J103: 2370 | K103: 2360 | L103: 2360 | M103: 2400 | N103: 2340 | O103: 2350 | P103: 1618 | Q103: 732 | R103: =(Q103/O103) -> 0.3114893617
A104: 155806 | B104: hornblende | C104: 2490 | D104: 2650 | E104: 2660 | G104: 4740 | H104: 2000 | I104: 3750 | J104: 2770 | K104: 2610 | L104: 2720 | M104: 2650 | N104: 2660 | O104: 4740 | P104: 2000 | Q104: 2740 | R104: =(Q104/O104) -> 0.5780590717
A105: Amitsoq gneisses
A108: R. J. Pankhurst
A109: Earth and Planetary Science Letters, 1973
A110: Volume 20, Pages 157-170
A111: Mineral Age Patterns
B112: COMBINED | C112: TABLE 2 AND 3
A113: ALL THREE TABLES | B113: Mineral | C113: Maximum Age | D113: Minimum Age | E113: Difference | F113: Difference
A114: TABLE 2 | B114: Name | C114: Million Years | D114: Million Years | E114: Million Years | F114: Percentage
A115: 110869 | B115: biotite | C115: 3220 | D115: 1733 | E115: =(C115-D115) -> 1487 | F115: =(E115/C115) -> 0.4618012422
A116: 110870 | B116: biotite | C116: 3360 | D116: 2750 | E116: =(C116-D116) -> 610 | F116: =(E116/C116) -> 0.181547619
A117: 110870 | B117: biotite | C117: 3280 | D117: 2530 | E117: 750 | F117: =(E117/C117) -> 0.2286585366
A118: 110999 | B118: hornblende | C118: 3160 | D118: 1612 | E118: =(C118-D118) -> 1548 | F118: =(E118/C118) -> 0.4898734177
A119: 125519 | B119: biotite | C119: 3710 | D119: 1610 | E119: 2100 | F119: 0.5660377358
A120: 125519 | B120: biotite | C120: 3165 | D120: 1890 | E120: 1275 | F120: 0.4028436019
A121: 125519 | B121: hornblende | C121: 2620 | D121: 2380 | E121: 240 | F121: 0.09160305344
A122: 125519 | B122: hornblende | C122: 2460 | D122: 2380 | E122: 80 | F122: 0.0325203252
A123: 125526 | B123: hornblende | C123: 3010 | D123: 1637 | E123: =(C123-D123) -> 1373 | F123: =(E123/C123) -> 0.4561461794
A124: 125540 | B124: biotite | C124: 2570 | D124: 1590 | E124: =(C124-D124) -> 980 | F124: 0.3813229572
A125: 155713 | B125: hornblende | C125: 2950 | D125: 2640 | E125: 310 | F125: 0.1050847458
A126: 155714 | B126: hornblende | C126: 3200 | D126: 2350 | E126: =(C126-D126) -> 850 | F126: 0.265625
A127: 155754 | B127: muscovite | C127: 3520 | D127: 1733 | E127: =(C127-D127) -> 1787 | F127: 0.5076704545
A128: 155766 | B128: biotite | C128: 3440 | D128: 1616 | E128: =(C128-D128) -> 1824 | F128: 0.5302325581
A129: 155774 | B129: biotite | C129: 5120 | D129: 1581 | E129: =(C129-D129) -> 3539 | F129: 0.6912109375
A130: 155785 | B130: biotite | C130: 2350 | D130: 1618 | E130: =(C130-D130) -> 732 | F130: 0.3114893617
A131: 155806 | B131: biotite | C131: 4740 | D131: 2000 | E131: 2740 | F131: 0.5780590717
A132: 155806

Sheet Allibon
A1: Sample | B1: Million Years | C1: Million Years | D1: Million Years
A2: Number | B2: Pb-206 | C2: Pb-207 | D2: Pb-207 | E2: Pb-206/U-238 | F2: Pb-206/U-238
B3: U-238 | C3: U-235 | D3: Pb-206 | E3: Versus Pb-207/Pb206 | F3: Versus Pb-207/Pb206
E4: Age Difference, Years | F4: Percentage Difference
A5: JA-222
A6: JA-222-1z | B6: 22.07 | C6: 22.35 | D6: 54.28 | E6: =(D6-B6) -> 32.21 | F6: =(D6/B6) -> 2.459447213
A7: JA-222-2z | B7: 22.1 | C7: 24.15 | D7: 231.79 | E7: =(D7-B7) -> 209.69 | F7: =(D7/B7) -> 10.48823529
A8: JA-222-3z | B8: 22.09 | C8: 25.73 | D8: 379.38 | E8: 357.29 | F8: 17.17428701
A9: JA-222-4z | B9: 21.58 | C9: 23.85 | D9: 258.83 | E9: 237.25 | F9: 11.9939759
A10: JA-222-5z | B10: 21.69 | C10: 21.16 | D10: 38.52 | E10: 16.83 | F10: 1.77593361
A11: JA-222-6z | B11: 21.96 | C11: 23.77 | D11: 210.62 | E11: 188.66 | F11: 9.591074681
A12: JA-250-1z | B12: 21.81 | C12: 22.67 | D12: 114.82 | E12: =(D12-B12) -> 93.01 | F12: =(D12/B12) -> 5.264557542
A13: JA-250-2z | B13: 21.58 | C13: 22.62 | D13: 134.96 | E13: 113.38 | F13: 6.253938832
A14: JA-250-3z | B14: 21.74 | C14: 22.01 | D14: 51.08 | E14: 29.34 | F14: 2.349586017
A15: JA-250-4z | B15: 21.94 | C15: 21.98 | D15: 27.22 | E15: 5.28 | F15: 1.240656335
A16: JA-250-18z | B16: 21.95 | C16: 23.13 | D16: 147.29 | E16: 125.34 | F16: 6.710250569
A17: JA-250-7b | B17: 22.1 | C17: 22.84 | D17: 100.91 | E17: 78.81 | F17: 4.566063348
A18: JA-250-8b | B18: 21.92 | C18: 22.53 | D18: 88.38 | E18: 66.46 | F18: 4.031934307
A19: JA-250-9b | B19: 21.98 | C19: 23.06 | D19: 137.56 | E19: 115.58 | F19: 6.258416742
A20: JA-250-10b | B20: 21.97 | C20: 23.22 | D20: 154.41 | E20: 132.44 | F20: 7.0282203
A21: JA-250-11b | B21: 21.98 | C21: 22.84 | D21: 114.45 | E21: 92.47 | F21: 5.207006369
A22: JA-250-14b | B22: 21.92 | C22: 22.39 | D22: 72.7 | E22: 50.78 | F22: 3.316605839
A23: JA-250-16b | B23: 21.9 | C23: 22.08 | D23: 41.45 | E23: 19.55 | F23: 1.892694064
E25: J. Allibon.
E26: Canadian Journal Of Earth Science
E27: Volume 48, Pages 567 – 592
E28: U–Pb Dating On Coexisting Zircon
E29: 2011

Sheet Amelin-A
B1: Meteorite Dating | T1: Yuri Amelin
M2: Ages | N2: Ages | O2: Ages | P2: Ages | R2: Ages | T2: Geochemica Et Cosmochemica Acta
M3: Million Years | N3: Million Years | O3: Million Years | P3: Million Years | R3: Million Years | T3: Volume 69, Number 2, pages 505–518
M4: Pb-206 | N4: Pb-207 | O4: Pb-208 | P4: Pb-207-a | R4: Pb-207-b | T4: Precise U-Pb dating
M5: U-238 | N5: U-235 | O5: Th-232 | P5: Pb-206-a | R5: Pb-206-b | T5: 2005
A6: 1 | B6: Phosphate | C6: 1 | D6: 1.0503 | E6: 0.51 | F6: 89.687 | G6: 0.52 | H6: 0.98435 | I6: 0.25599 | J6: 0.42 | K6: 0.61933 | L6: 0.092 | M6: 4628 | N6: 4577 | O6: 4607 | P6: 4554 | Q6: 1.3 | R6: 4557.4 | S6: 1.4
A7: 2 | B7: Phosphate | C7: 2 | D7: 1.0399 | E7: 0.38 | F7: 88.88 | G7: 0.39 | H7: 0.99146 | I7: 0.25675 | J7: 0.37 | K7: 0.61991 | L7: 0.05 | M7: 4596 | N7: 4568 | O7: 4619 | P7: 4555.4 | Q7: 0.7 | R7: 4558.1 | S7: 0.8
A8: 3 | B8: Phosphate | C8: 3 | D8: 1.0561 | E8: 0.46 | F8: 90.13 | G8: 0.47 | H8: 0.99382 | I8: 0.26071 | J8: 0.36 | K8: 0.61894 | L8: 0.052 | M8: 4647 | N8: 4582 | O8: 4683 | P8: 4553.1 | Q8: 0.8 | R8: 4556.6 | S8: 0.8
A9: 4 | B9: Phosphate | C9: 4 | D9: 1.1205 | E9: 1.18 | F9: 96.056 | G9: 1.18 | H9: 0.99572 | I9: 0.27936 | J9: 0.68 | K9: 0.62174 | L9: 0.11 | M9: 4845 | N9: 4646 | O9: 4980 | P9: 4559.7 | Q9: 1.6 | R9: 4570.5 | S9: 1.8
A10: 5 | B10: Phosphate | C10: 5 | D10: 1.0248 | E10: 0.4 | F10: 67.383 | G10: 0.4 | H10: 0.99185 | I10: 0.25582 | J10: 0.31 | K10: 0.61841 | L10: 0.051 | M10: 4548 | N10: 4551 | O10: 4604 | P10: 4551.9 | Q10: 0.7 | R10: 4553 | S10: 0.8
A11: 6 | B11: Troilite | C11: 1.7295 | D11: 25.8 | E11: 138.367 | F11: 25.8 | G11: 0.99991 | H11: 16.4568 | I11: 27.1 | J11: 0.58025 | K11: 0.343 | L11: 6473 | M11: 6473 | N11: 5013 | P11: 4459.3 | Q11: 5 | R11: na
A12: 7 | B12: Low-density | C12: frac. | D12: 1 | E12: 1.2282 | F12: 37.9 | G12: 105.795 | H12: 37.8 | I12: 0.99993 | J12: 0.25556 | K12: 9.55 | L12: 0.62472 | M12: 5165 | N12: 4743 | O12: 4600 | P12: 4566.6 | Q12: 6.5 | R12: 4567.4 | S12: 5.2
A13: 8 | B13: Low-density | C13: frac. | D13: 2 | E13: 1.0808 | F13: 23.1 | G13: 92.914 | H13: 23.1 | I13: 0.99991 | J13: 0.25719 | K13: 6.4 | L13: 0.6235 | M13: 4724 | N13: 4612 | O13: 4626 | P13: 4563.8 | Q13: 4.5 | R13: 4567.4 | S13: 3.7
A14: 9 | B14: Olivine | C14: 1.3541 | D14: 164 | E14: 116.17 | F14: 164 | G14: 0.99994 | H14: 0.28871 | I14: 51 | J14: 0.62223 | K14: 1.8 | L14: 5519 | M14: 5519 | N14: 4837 | O14: 5127 | P14: 4560.8 | Q14: 26.1 | R14: 4586.4 | S14: 24.9
A15: 10 | B15: Chondrule | C15: Fragm | D15: 1 | E15: 1.0337 | F15: 1.78 | G15: 88.759 | H15: 1.78 | I15: 0.99953 | J15: 0.25447 | K15: 0.65 | L15: 0.62278 | M15: 4576 | N15: 4566 | O15: 4582 | P15: 4562.1 | Q15: 0.8 | R15: 4562.9 | S15: 0.8
A16: 11 | B16: Chondrule | C16: Fragm | D16: 2 | E16: 1.039 | F16: 2.42 | G16: 89.252 | H16: 2.42 | I16: 0.99972 | J16: 0.25368 | K16: 0.86 | L16: 0.62304 | M16: 4593 | N16: 4572 | O16: 4570 | P16: 4562.7 | Q16: 0.8 | R16: 4563.5 | S16: 0.8
A17: 12 | B17: Chondrule | C17: Fragm | D17: 3 | E17: 1.0268 | F17: 0.58 | G17: 88.185 | H17: 0.58 | I17: 0.99627 | J17: 0.25336 | K17: 0.38 | L17: 0.62287 | M17: 4554 | N17: 4560 | O17: 4565 | P17: 4562.3 | Q17: 0.7 | R17: 4562.9 | S17: 0.7
A18: 13 | B18: Chondrule | C18: 3 | D18: 1.0549 | E18: 0.49 | F18: 90.616 | G18: 0.49 | H18: 0.99472 | I18: 0.2383 | J18: 0.35 | K18: 0.623 | L18: 0.05 | M18: 4643 | N18: 4587 | O18: 4320 | P18: 4562.6 | Q18: 0.7 | R18: 4564.1 | S18: 0.7
A19: 14 | B19: Chondrule | C19: 4 | D19: nd | E19: nd | F19: nd | G19: nd | H19: nd | I19: nd | J19: nd | K19: 0.62244 | L19: 0.052 | M19: nd | N19: nd | O19: nd | P19: 4561.3 | Q19: 0.8 | R19: 4562.3 | S19: 0.8
A20: 15 | B20: Chondrule | C20: 8 | D20: 1.0492 | E20: 2.2 | F20: 90.012 | G20: 2.2 | H20: 0.99946 | I20: 0.23394 | J20: 0.65 | K20: 0.62224 | L20: 0.072 | M20: 4625 | N20: 4580 | O20: 4249 | P20: 4560.8 | Q20: 1 | R20: 4563.2 | S20: 1.1
M22: All Dates
M23: 6473 | N23: Maximum Age | O23: 6473 | P23: Million Years
M24: 5519 | N24: Minimum Age | O24: 4249 | P24: Million Years
M25: 5165 | N25: Average Age | O25: 4675 | P25: Million Years
M26: 5127 | N26: Age Difference | O26: =(O23-O24) -> 2224 | P26: Million Years
M27: 5013 | N27: Difference | O27: =(O23/O24) -> 1.523417275 | P27: Percent
M28: 4980 | N28: Standard Deviation | O28: 315 | P28: Million Years
M29: 4845
M30: 4837
M31: 4743
M32: 4724
M33: 4683
M34: 4647
M35: 4646
M36: 4643
M37: 4628
M38: 4626
M39: 4625
M40: 4619
M41: 4612
M42: 4607
M43: 4604
M44: 4600
M45: 4596
M46: 4593
M47: 4587
M48: 4586.4
M49: 4582
M50: 4582
M51: 4580
M52: 4577
M53: 4576
M54: 4572
M55: 4570.5
M56: 4570
M57: 4568
M58: 4567.4
M59: 4567.4
M60: 4566
M61: 4565
M62: 4564.1
M63: 4563.5
M64: 4563.2
M65: 4562.9
M66: 4562.9
M67: 4562.3
M68: 4560
M69: 4558.1
M70: 4557.4
M71: 4556.6
M72: 4554
M73: 4553
M74: 4551
M75: 4548
M76: 4320
M77: 4249
M78: =STDEV(M23:M77) -> 314.9056775
A82: Table 1.
C83: 238U/206Pb | D83: 206Pb/238U | E83: Age | G83: 207Pb/206Pb | H83: Age
A84: 247 | B84: 2.5 | C84: 0.91914 | D84: =(1/C84) -> 1.08797354 | E84: =[1]!AgePb6U8(D84) -> 4745.811428 | F84: 2.27 | G84: 0.63619 | H84: =[1]!AgePb76($G$84) -> 4592.90993 | I84: 0.522
A85: 311.9 | B85: 2.1 | C85: 0.93485 | D85: =(1/C85) -> 1.069690325 | E85: =[1]!AgePb6U8(D85) -> 4689.115194 | F85: 1.94 | G85: 0.63347 | H85: =[1]!AgePb76($G$85) -> 4586.71045 | I85: 0.591
A86: 234.2 | B86: 1.7 | C86: 0.91251 | D86: 1.095878401 | E86: =[1]!AgePb6U8(D86) -> 4770.170831 | F86: 1.56 | G86: 0.63661 | H86: =[1]!AgePb76($G$86) -> 4593.864668 | I86: 0.592
A87: 81.6 | B87: 2.9 | C87: 0.81003 | D87: 1.234522178 | E87: =[1]!AgePb6U8(D87) -> 5183.093729 | F87: 2.13 | G87: 0.66647 | H87: =[1]!AgePb76($G$87) -> 4660.065473 | I87: 0.801
A88: 714.7 | B88: 0.85 | C88: 0.96353 | D88: 1.037850404 | E88: =[1]!AgePb6U8(D88) -> 4589.173434 | F88: 0.74 | G88: 0.62453 | H88: =[1]!AgePb76($G$88) -> 4566.131171 | I88: 0.006
A89: 5.35 | B89: 25.8 | C89: 0.28827 | D89: 3.468970063 | E89: =[1]!AgePb6U8(D89) -> 9651.300378 | F89: 0.17 | G89: 0.84391 | H89: =[1]!AgePb76($G$89) -> 4997.711051 | I89: 0.005
A90: 994.7 | B90: 582 | C90: 0.80802 | D90: 1.237593129 | E90: =[1]!AgePb6U8(D90) -> 5191.947089 | F90: 571 | G90: 0.62836 | H90: =[1]!AgePb76($G$90) -> 4574.98603 | I90: 0.993
A91: 245.2 | B91: 89.7 | C91: 0.89386 | D91: 1.118743427 | E91: =[1]!AgePb6U8(D91) -> 4840.11726 | F91: 80.2 | G91: 0.63987 | H91: =[1]!AgePb76($G$91) -> 4601.25236 | I91: 0.992
A92: 32.7 | B92: 194 | C92: 0.61031 | D92: 1.638511576 | E92: =[1]!AgePb6U8(D92) -> 6254.407486 | F92: 61.5 | G92: 0.70622 | H92: =[1]!AgePb76($G$92) -> 4743.426588 | I92: 0.988
A93: 1032.5 | B93: 27.3 | C93: 0.95909 | D93: 1.042655017 | E93: =[1]!AgePb6U8(D93) -> 4604.354169 | F93: 26.8 | G93: 0.62696 | H93: =[1]!AgePb76($G$93) -> 4571.756001 | I93: 0.952
A94: 1103.2 | B94: 40 | C94: 0.95474 | D94: 1.047405576 | E94: =[1]!AgePb6U8(D94) -> 4619.329052 | F94: 39.2 | G94: 0.62693 | H94: =[1]!AgePb76($G$94) -> 4571.686701 | I94: 0.972
A95: 1545.8 | B95: 18.2 | C95: 0.9682 | D95: 1.032844454 | E95: =[1]!AgePb6U8(D95) -> 4573.318427 | F95: 17.9 | G95: 0.62568 | H95: =[1]!AgePb76($G$95) -> 4568.79605 | I95: 0.832
A96: 574.1 | B96: 2.8 | C96: 0.9336 | D96: 1.071122536 | E96: =[1]!AgePb6U8(D96) -> 4693.574526 | F96: 2.7 | G96: 0.63031 | H96: =[1]!AgePb76($G$96) -> 4579.472154 | I96: 0.477
A97: nd | B97: nd | C97: nd | F97: 7.77 | G97: 0.62719 | H97: =[1]!AgePb76($G$97) -> 4572.287179 | I97: 0.719
A98: 377.4 | B98: 10.3 | C98: 0.93126 | D98: 1.073813972 | E98: =[1]!AgePb6U8(D98) -> 4701.946242 | F98: 9.62 | G98: 0.63336 | H98: =[1]!AgePb76($G$98) -> 4586.459136 | I98: 0.914
E99: =AVERAGE(E84:E98) -> 5221.97566 | H99: =AVERAGE(H84:H98) -> 4624.500996
E100: =MAX(E84:E99) -> 9651.300378 | H100: =MAX(H84:H99) -> 4997.711051

Sheet Amelin-B
A1: Potential problem | B1: Step | C1: Perceived importance | D1: Level of awareness and suggested actions
A2: 1
A3: Presence of non-radiogenic Pb of unknown isotopic composition | B3: 3 | C3: The most important and common problem of all | D3: Recognized by most of the community.
D4: Better methods for removal of non-radiogenic Pb are required.
A5: 2
A6: Deviations from closed system evolution (loss of Pb, gain or loss of U) | B6: 3, 4 | C6: Important and common | D6: Requires monitoring U–Pb concordance and studying distribution of U and radiogenic Pb.
A8: 3
A9: Mis identification of the processes that start or reset the isotopic clocks | B9: 5 | C9: Important and common | D9: Requires studying distribution of U and radiogenic Pb, improving experimental reference
D10: data set for element migration caused by diffusion, alteration and shock, and linking isotopic dating
D11: to the studies in mineralogy and petrology of meteorites.
A12: 4
A13: Analytical problems (fractionation, instrument-specific etc.) and blank subtraction | B13: 1, 2 | C13: Important | D13: Problems are widely recognized. Ongoing analytical developments help to reduce them.
A15: 5
A16: Fractionation of radiogenic Pb isotopes induced by leaching of alpha recoil tracks | B16: 3 | C16: Potentially important | D16: Recognized by some ‘‘terrestrial” geochronologists, less known to meteoriticists.
D17: Detailed experimental studies are required to understand the nature and extent of fractionation.
A18: 6
A19: Variations in the 235U/238U ratio | B19: 4 | C19: Unlikely but not impossible | D19: Variations in terrestrial rocks are recently discovered, not observed in meteorites so far.
D20: Monitoring 235U/238U ratio is desirable.
A21: 7
A22: Uncertainties in the half lives of 238 U and 235 U | B22: 4 | C22: Insignificant for most studies | D22: New precise determinations of half lives are desirable but not crucial.
A24: 8
A25: Deviations of the 234U/238U ratio from secular equilibrium | B25: 4 | C25: Insignificant | D25: Further improvement in the models of r-process, and experimental simulation
D26: of asteroidal alteration with subsequent U-series analysis are desirable but not crucial
A28: Yuri Amelin
A29: Geochemica Et Cosmochemica Acta
A30: Volume 73, Pages 5212–5223
A31: Resolution Reveals New Problems
A32: 2009
A41: Potential problem | B41: Level of awareness and suggested actions
A42: 1 | B42: 1
A43: Presence of non-radiogenic Pb of unknown isotopic composition | B43: Recognized by most of the community.
A44: The most important and common problem of all | B44: Better methods for removal of non-radiogenic Pb are required.
A45: 2 | B45: 2
A46: Deviations from closed system evolution (loss of Pb, gain or loss of U) | B46: Requires monitoring U–Pb concordance and studying distribution of U and radiogenic Pb.
A47: Important and common
A48: 3 | B48: 3
A49: Mis-identification of the processes that start or reset the isotopic clocks | B49: Requires studying distribution of U and radiogenic Pb, improving experimental reference
A50: Important and common | B50: data set for element migration caused by diffusion, alteration and shock, and linking isotopic dating
B51: to the studies in mineralogy and petrology of meteorites.
A52: 4 | B52: 4
A53: Analytical problems (fractionation, instrument-specific etc.) and blank subtraction | B53: Problems are widely recognized. Ongoing analytical developments help to reduce them.
A54: Important
A55: 5 | B55: 5
A56: Fractionation of radiogenic Pb isotopes induced by leaching of alpha recoil tracks | B56: Recognized by some ‘‘terrestrial” geochronologists, less known to meteoriticists.
A57: Potentially important | B57: Detailed experimental studies are required to understand the nature and extent of fractionation.

Sheet Amelin-C
O1: Pb-206 | P1: Pb-207 | S1: Ages, Million Years | X1: 10066 | Z1: 4587.1
O2: U-238 | P2: Pb-206 | X2: 6945 | Z2: 4576.7
A3: 1 | B3: 1 | C3: 1 | D3: 0.00208 | E3: 0.0097 | F3: nm | G3: 0.0418 | H3: 87 | I3: 47.36 | J3: 47.7 | K3: 0.02096 | L3: 0.79 | M3: 0.72 | N3: 0.15 | O3: 4536 | P3: 4570.5 | Q3: 3.2 | X3: 5956 | Z3: 4574.8
A4: 2 | B4: 1 | C4: 1 | D4: 0.00257 | E4: 0.0071 | F4: nm | G4: 0.0283 | H4: 73 | I4: 42.15 | J4: 42.27 | K4: 0.02366 | L4: 0.68 | M4: 0.73185 | N4: 0.17 | O4: 4423 | P4: 4570 | Q4: 3.6 | S4: Yuri Amelin | X4: 5604 | Z4: 4573.6
A5: 3 | B5: 1 | C5: 1 | D5: 0.00417 | E5: 0.0137 | F5: nm | G5: 0.0485 | H5: 202 | I5: 43.42 | J5: 43.54 | K5: 0.02297 | L5: 0.46 | M5: 0.72885 | N5: 0.18 | O5: 4536 | P5: 4570.2 | Q5: 4 | S5: Meteoritics And Planetary Science | X5: 5526 | Z5: 4570.5
A6: 4 | B6: 1 | C6: 1 | D6: 0.0055 | E6: 0.0158 | F6: nm | G6: 0.0477 | H6: 263 | I6: 64.95 | J6: 65.43 | K6: 0.01528 | L6: 0.67 | M6: 0.69205 | N6: 0.19 | O6: 4483 | P6: 4563.5 | Q6: 3.7 | S6: Volume 42, Numbers 7/8, Pages 1321–1335 | X6: 5462 | Z6: 4570.2
A7: 5 | B7: 1 | C7: 1 | D7: 0.00319 | E7: 0.012 | F7: nm | G7: 0.0346 | H7: 110 | I7: 89.8 | J7: 92.21 | K7: 0.01085 | L7: 0.84 | M7: 0.67385 | N7: 0.11 | O7: 4614 | P7: 4568 | Q7: 1.9 | S7: Pb isotopic age of the Allende chondrules | X7: 5396 | Z7: 4570
A8: 6 | B8: 2 | C8: 1 | D8: 0.00154 | E8: 0.0058 | F8: nm | G8: 0.02 | H8: 31 | I8: 50.85 | J8: 51.88 | K8: 0.01927 | L8: 1.5 | M8: 0.70711 | N8: 0.22 | O8: 4659 | P8: 4555.4 | Q8: 3.7 | S8: 2007 | X8: 5345 | Z8: 4569.4
A9: 7 | B9: 2 | C9: 1 | D9: 0.00657 | E9: 0.0033 | F9: nm | G9: 0.0146 | H9: 96 | I9: 30.37 | J9: 30.66 | K9: 0.03261 | L9: 0.5 | M9: 0.76892 | N9: 0.11 | O9: 4569 | P9: 4560.2 | Q9: 2.1 | X9: 5336 | Z9: 4568.4
A10: 8 | B10: 2 | C10: 1 | D10: 0.00464 | E10: 0.0007 | F10: nm | G10: 0.0065 | H10: 30 | I10: 19.47 | J10: 19.34 | K10: 0.05171 | L10: 0.49 | M10: 0.85276 | N10: 0.23 | O10: 5526 | P10: 4550.3 | Q10: 9.5 | X10: 5180 | Z10: 4568.1
A11: 9 | B11: 2 | C11: 1 | D11: 0.00655 | E11: 0.0028 | F11: nm | G11: 0.0151 | H11: 99 | I11: 29.68 | J11: 29.94 | K11: 0.0334 | L11: 0.8 | M11: 0.76978 | N11: 0.25 | O11: 5147 | P11: 4551.2 | Q11: 7.1 | X11: 5147 | Z11: 4568.1
A12: 10 | B12: 2 | C12: 1 | D12: 0.00339 | E12: 0.0071 | F12: nm | G12: 0.0211 | H12: 72 | I12: 87.42 | J12: 93.66 | K12: 0.01068 | L12: 3.3 | M12: 0.67062 | N12: 0.23 | O12: 4791 | P12: 4561.6 | Q12: 1.8 | X12: 4950 | Z12: 4568
A13: 11 | B13: 2 | C13: 2 | D13: 0.00596 | E13: 0.0047 | F13: nm | G13: 0.017 | H13: 101 | I13: 64.12 | J13: 66.3 | K13: 0.01508 | L13: 1.9 | M13: 0.69172 | N13: 0.35 | O13: 5180 | P13: 4565 | Q13: 6.5 | X13: 4879 | Z13: 4567.7
A14: 12 | B14: 2 | C14: 1 | D14: 0.00509 | E14: 0.013 | F14: nm | G14: 0.0714 | H14: 363 | I14: 171.4 | J14: 182.2 | K14: 0.00549 | L14: 2.8 | M14: 0.64879 | N14: 0.11 | O14: 4733 | P14: 4565.3 | Q14: 1.1 | X14: 4875 | Z14: 4567.7
A15: 13 | B15: 2 | C15: 2 | D15: 0.00586 | E15: 0.0056 | F15: nm | G15: 0.019 | H15: 111 | I15: 79.56 | J15: 83.04 | K15: 0.01204 | L15: 2 | M15: 0.67785 | N15: 0.16 | O15: 4875 | P15: 4564.5 | Q15: 1.6 | S15: Pb-206 | X15: 4850 | Z15: 4567.3
A16: 14 | B16: 2 | C16: 2 | D16: 0.00696 | E16: 0.0054 | F16: nm | G16: 0.0172 | H16: 120 | I16: 60.11 | J16: 61.72 | K16: 0.0162 | L16: 1.2 | M16: 0.69749 | N16: 0.14 | O16: 4590 | P16: 4567.1 | Q16: 1.7 | S16: U-238 | X16: 4842 | Z16: 4567.1
A17: 15 | B17: 2 | C17: 6 | D17: 0.00483 | E17: 0.0072 | F17: nm | G17: 0.0285 | H17: 138 | I17: 80.66 | J17: 84.11 | K17: 0.01189 | L17: 1.9 | M17: 0.67651 | N17: 0.2 | O17: 4824 | P17: 4562.7 | Q17: 2.6 | S17: Maximum Age | T17: 10066 | U17: Million Years | X17: 4824 | Z17: 4567.1
A18: 16 | B18: 2 | C18: 4 | D18: 0.00598 | E18: 0.0056 | F18: nm | G18: 0.0178 | H18: 106 | I18: 71.73 | J18: 74.43 | K18: 0.01344 | L18: 1.7 | M18: 0.68339 | N18: 0.16 | O18: 4798 | P18: 4562.5 | Q18: 1.8 | S18: Minimum Age | T18: 1799 | U18: Million Years | X18: 4798 | Z18: 4566.3
A19: 17 | B19: 2 | C19: 4 | D19: 0.01007 | E19: 0.006 | F19: nm | G19: 0.0224 | H19: 225 | I19: 57.85 | J19: 58.73 | K19: 0.01703 | L19: 0.83 | M19: 0.69896 | N19: 0.13 | O19: 4850 | P19: 4561 | Q19: 2.4 | S19: Average Age | T19: 4509 | U19: Million Years | X19: 4791 | Z19: 4566.2
A20: 18 | B20: 3 | C20: Multiple 1 | D20: 0.006 | E20: nm | F20: nm | G20: 0.0077 | H20: 46 | I20: 45.96 | J20: 48.04 | K20: 0.02082 | L20: 3.6 | M20: 0.71782 | N20: 0.38 | P20: 4566.2 | Q20: 3.6 | S20: Age Difference | T20: =(T17-T18) -> 8267 | U20: Million Years | X20: 4756 | Z20: 4566.1
A21: 19 | B21: 3 | C21: Multiple 2 | D21: 0.009 | E21: nm | F21: nm | G21: 0.0088 | H21: 79 | I21: 33.89 | J21: 34.4 | K21: 0.02907 | L21: 1.23 | M21: 0.75717 | N21: 0.17 | P21: 4573.6 | Q21: 3.1 | S21: Difference | T21: =(T17/T18) -> 5.595330739 | U21: Percent | X21: 4733 | Z21: 4565.9
A22: 20a | B22: 3 | C22: Multiple 3 | D22: 0.015 | E22: nm | F22: nm | G22: 0.0126 | H22: 189 | I22: 27.98 | J22: 28.12 | K22: 0.03557 | L22: 0.44 | M22: 0.78448 | N22: 0.1 | P22: 4568.1 | Q22: 3.1 | S22: Standard Deviation | T22: 1640 | U22: Million Years | X22: 4659 | Z22: 4565.9
A23: 20c | B23: 3 | C23: Multiple 3 | D23: 0.015 | E23: nm | F23: nm | G23: 0.0058 | H23: 86 | I23: 132.7 | J23: 146.5 | K23: 0.00683 | L23: 9.1 | M23: 0.65646 | N23: 0.48 | P23: 4569.4 | Q23: 7.6 | X23: 4614 | Z23: 4565.6
A24: 21 | B24: 4 | C24: 12 | D24: 0.01441 | E24: 0.0051 | F24: 0.0205 | G24: 0.0171 | H24: 247 | I24: 163.5 | J24: 180.7 | K24: 0.00553 | L24: 7.7 | M24: 0.6491 | N24: 0.31 | O24: 5396 | P24: 4565.6 | Q24: 3.3 | X24: 4590 | Z24: 4565.6
A25: 22 | B25: 4 | C25: 8 | D25: 0.00335 | E25: 0.0047 | F25: 0.014 | G25: 0.0115 | H25: 39 | I25: 207.9 | J25: 661.5 | K25: 0.00151 | L25: 165 | M25: 0.63127 | N25: 1.52 | O25: 4879 | P25: 4566.1 | Q25: 4.5 | X25: 4569 | Z25: 4565.3
A26: 23 | B26: 4 | C26: 19 | D26: 0.00733 | E26: 0.0061 | F26: 0.0226 | G26: 0.0201 | H26: 147 | I26: 174.5 | J26: 208.6 | K26: 0.00479 | L26: 14.1 | M26: 0.6468 | N26: 0.44 | O26: 5462 | P26: 4568.1 | Q26: 3.4 | S26: Pb-207 | X26: 4536 | Z26: 4565.3
A27: 24 | B27: 4 | C27: 21 | D27: 0.00893 | E27: 0.0053 | F27: 0.021 | G27: 0.0177 | H27: 158 | I27: 112 | J27: 123.4 | K27: 0.00811 | L27: 7.4 | M27: 0.66004 | N27: 0.35 | O27: 5345 | P27: 4564.1 | Q27: 2.3 | S27: Pb-206 | X27: 4536 | Z27: 4565
A28: 25 | B28: 4 | C28: 16 | D28: 0.0068 | E28: 0.0051 | F28: 0.0206 | G28: 0.0165 | H28: 112 | I28: 137.4 | J28: 164.2 | K28: 0.00609 | L28: 14.2 | M28: 0.65227 | N28: 0.51 | O28: 5336 | P28: 4567.3 | Q28: 2.4 | S28: Maximum Age | T28: 4587 | U28: Million Years | X28: 4525 | Z28: 4565
A29: 26 | B29: 4 | C29: 9 | D29: 0.00758 | E29: 0.0068 | F29: 0.03 | G29: 0.0291 | H29: 221 | I29: 268.5 | J29: 319.9 | K29: 0.00313 | L29: 13.5 | M29: 0.63862 | N29: 0.27 | O29: 6945 | P29: 4566.3 | Q29: 1.8 | S29: Minimum Age | T29: 4361 | U29: Million Years | X29: 4483 | Z29: 4564.6
A30: 27 | B30: 4 | C30: 14 | D30: 0.00664 | E30: 0.0073 | F30: 0.0311 | G30: 0.0252 | H30: 168 | I30: 177.6 | J30: 208.8 | K30: 0.00479 | L30: 12.6 | M30: 0.64588 | N30: 0.37 | O30: 5604 | P30: 4565.9 | Q30: 2 | S30: Average Age | T30: 4547 | U30: Million Years | X30: 4423 | Z30: 4564.5
A31: 28 | B31: 4 | C31: 20 | D31: 0.02271 | E31: 0.0056 | F31: 0.0249 | G31: 0.0219 | H31: 498 | I31: 154.6 | J31: 161.8 | K31: 0.00618 | L31: 3.4 | M31: 0.65199 | N31: 0.15 | O31: 5956 | P31: 4565.6 | Q31: 1.7 | S31: Age Difference | T31: =(T28-T29) -> 226 | U31: Million Years | X31: 4399 | Z31: 4564.1
A32: 29 | B32: 5 | C32: Multiple | D32: 0.01353 | E32: nm | F32: nm | G32: 0.0125 | H32: 168 | I32: 122.4 | J32: 131.2 | K32: 0.00762 | L32: 4.5 | M32: 0.65748 | N32: 0.22 | P32: 4563.1 | Q32: 1.7 | S32: Difference | T32: =(T28/T29) -> 1.051822976 | U32: Percent | X32: 4281 | Z32: 4563.5
A33: 30 | B33: 5 | C33: Multiple | D33: 0.01143 | E33: nm | F33: nm | G33: 0.0192 | H33: 219 | I33: 71.7 | J33: 73.7 | K33: 0.01357 | L33: 1.8 | M33: 0.68349 | N33: 0.16 | P33: 4561.3 | Q33: 2 | S33: Standard Deviation | T33: 53 | U33: Million Years | X33: 4208 | Z33: 4563.5
A34: 31 | B34: 5 | C34: Multiple | D34: 0.00605 | E34: nm | F34: nm | G34: 0.0088 | H34: 53 | I34: 104.3 | J34: 124.7 | K34: 0.00802 | L34: 12.9 | M34: 0.65999 | N34: 0.59 | P34: 4565 | Q34: 2.8 | X34: 4175 | Z34: 4563.1
A35: 32 | B35: 6 | C35: Multiple | D35: 0.00684 | E35: nm | F35: nm | G35: 0.0132 | H35: 90 | I35: 159.6 | J35: 215.6 | K35: 0.00464 | L35: 26.2 | M35: 0.64468 | N35: 0.73 | P35: 4564.6 | Q35: 3 | X35: 4151 | Z35: 4562.9
A36: 33 | B36: 6 | C36: Multiple | D36: 0.01015 | E36: nm | F36: nm | G36: 0.0303 | H36: 308 | I36: 105.3 | J36: 111.1 | K36: 0.009 | L36: 4.1 | M36: 0.66386 | N36: 0.22 | P36: 4563.5 | Q36: 2.2 | X36: 4125 | Z36: 4562.7
A37: 35 | B37: 6 | C37: Multiple | D37: 0.0084 | E37: nm | F37: nm | G37: 0.0322 | H37: 271 | I37: 248 | J37: 292 | K37: 0.00342 | L37: 12.8 | M37: 0.63979 | N37: 0.28 | P37: 4565.9 | Q37: 1.7 | X37: 4092 | Z37: 4562.5
A38: Acid | B38: leachates | X38: 3986 | Z38: 4561.6
A39: 21 | B39: 4 | C39: 12 | D39: 0.01441 | E39: 0.0087 | F39: nm | G39: 0.0878 | H39: 1265 | I39: 14.94 | J39: 14.93 | K39: 0.06696 | L39: 0.29 | M39: 0.92077 | N39: 0.22 | O39: 4525 | P39: 4542.3 | Q39: 13 | X39: 3926 | Z39: 4561.3
A40: 21 | B40: 4 | C40: 12 | D40: 0.01441 | E40: 0.0024 | F40: nm | G40: 0.0068 | H40: 98 | I40: 69.45 | J40: 94.19 | K40: 0.01062 | L40: 31 | M40: 0.67271 | N40: 1.78 | O40: 4281 | P40: 4567.7 | Q40: 7.3 | X40: 3855 | Z40: 4561
A41: 22 | B41: 4 | C41: 8 | D41: 0.00335 | E41: 0.0126 | F41: nm | G41: 0.0782 | H41: 262 | I41: 22.21 | J41: 22.39 | K41: 0.04466 | L41: 0.94 | M41: 0.81614 | N41: 0.13 | O41: 4950 | P41: 4531.8 | Q41: 7.3 | X41: 1799 | Z41: 4560.2
A42: 22 | B42: 4 | C42: 8 | D42: 0.00335 | E42: 0.0033 | F42: nm | G42: 0.0607 | H42: 203 | I42: 24.83 | J42: 25.25 | K42: 0.0396 | L42: 1.74 | M42: 0.75014 | N42: 0.48 | O42: 10066 | P42: 4360.9 | Q42: 9.8 | Z42: 4559
A43: 23 | B43: 4 | C43: 19 | D43: 0.00733 | E43: 0.0132 | F43: nm | G43: 0.0618 | H43: 453 | I43: 23.65 | J43: 23.83 | K43: 0.04197 | L43: 0.71 | M43: 0.81038 | N43: 0.103 | O43: 4151 | P43: 4557.7 | Q43: 4.9 | Z43: 4557.7
A44: 23 | B44: 4 | C44: 19 | D44: 0.00733 | E44: 0.003 | F44: nm | G44: 0.0091 | H44: 66 | I44: 74.29 | J44: 122.82 | K44: 0.00814 | L44: 58 | M44: 0.66164 | N44: 2.68 | O44: 4842 | P44: 4567.7 | Q44: 11 | Z44: 4555.4
A45: 24 | B45: 4 | C45: 21 | D45: 0.00893 | E45: 0.0072 | F45: nm | G45: 0.0488 | H45: 436 | I45: 18.34 | J45: 18.34 | K45: 0.05453 | L45: 0.6 | M45: 0.8674 | N45: 0.15 | O45: 4399 | P45: 4559 | Q45: 9 | Z45: 4552.9
A46: 24 | B46: 4 | C46: 21 | D46: 0.00893 | E46: 0.001 | F46: nm | G46: 0.0025 | H46: 23 | I46: 39.99 | J46: 72.17 | K46: 0.01386 | L46: 96 | M46: 0.69455 | N46: 6.61 | O46: 3926 | P46: 4587.1 | Q46: 35.6 | Z46: 4551.2
A47: 25 | B47: 4 | C47: 16 | D47: 0.0068 | E47: 0.0089 | F47: nm | G47: 0.064 | H47: 435 | I47: 16.56 | J47: 16.52 | K47: 0.06054 | L47: 0.48 | M47: 0.89524 | N47: 0.18 | O47: 4092 | P47: 4562.9 | Q47: 8.2 | Z47: 4550.3
A48: 25 | B48: 4 | C48: 16 | D48: 0.0068 | E48: 0.0017 | F48: nm | G48: 0.0051 | H48: 35 | I48: 52.27 | J48: 95.93 | K48: 0.01042 | L48: 85 | M48: 0.67537 | N48: 4.73 | O48: 4756 | P48: 4576.7 | Q48: 20.1 | Z48: 4542.3
A49: 26 | B49: 4 | C49: 9 | D49: 0.00758 | E49: 0.01 | F49: nm | G49: 0.0432 | H49: 327 | I49: 22.48 | J49: 22.64 | K49: 0.04417 | L49: 0.8 | M49: 0.81912 | N49: 0.12 | O49: 3855 | P49: 4552.9 | Q49: 6.5 | Z49: 4531.8
A50: 26 | B50: 4 | C50: 9 | D50: 0.00758 | E50: 0.0054 | F50: nm | G50: 0.0124 | H50: 94 | I50: 84.95 | J50: 123.54 | K50: 0.00809 | L50: 38 | M50: 0.6612 | N50: 1.76 | O50: 4175 | P50: 4567.1 | Q50: 6.5 | Z50: 4511.2
A51: 27 | B51: 4 | C51: 14 | D51: 0.00664 | E51: 0.0113 | F51: nm | G51: 0.0581 | H51: 386 | I51: 21.49 | J51: 21.6 | K51: 0.0463 | L51: 0.52 | M51: 0.83179 | N51: 0.1 | O51: 4125 | P51: 4565.3 | Q51: 5.4 | Z51: 4360.9
A52: 27 | B52: 4 | C52: 14 | D52: 0.00664 | E52: 0.0031 | F52: nm | G52: 0.0082 | H52: 55 | I52: 54.71 | J52: 80.62 | K52: 0.0124 | L52: 44 | M52: 0.68341 | N52: 2.86 | O52: 4208 | P52: 4574.8 | Q52: 13.2
A53: 28 | B53: 4 | C53: 20 | D53: 0.02271 | E53: nm | F53: nm | G53: 0.06 | H53: 1363 | I53: 17.38 | J53: 17.4 | K53: 0.05748 | L53: 6.2 | M53: 0.87135 | N53: 3.97 | O53: 1799 | P53: 4511.2 | Q53: 200.5
A54: 28 | B54: 4 | C54: 20 | D54: 0.02271 | E54: 0.0017 | F54: nm | G54: 0.0043 | H54: 99 | I54: 59.16 | J54: 74.23 | K54: 0.01347 | L54: 22 | M54: 0.68574 | N54: 1.56 | O54: 3986 | P54: 4568.4 | Q54: 7.4
O55: =STDEV(O39:O54) -> 1640.078535 | P55: =STDEV(P39:P54) -> 52.93438037

Sheet PlotDat5 (hidden)
A1: Source sheet | B1: Amelin-D | C1: 88.17 | D1: 0.34 | E1: 40 | F1: 0.5961886495
A2: Plot name | B2: Isochron5 | C2: 88.326 | D2: 0.42 | E2: 180 | F2: 1.097311291
A3: Plot Type | B3: 11 | C3: 87.906 | D3: 0.48
A4: 1st free col | B4: 7 | C4: 88.739 | D4: 0.3
A5: Sigma Level | B5: 2 | C5: 67.046 | D5: 0.91
A6: Absolute Errs | B6: FALSE | C6: 67.24 | D6: 0.4
A7: Symbol Type | B7: 4 | C7: 133.96 | D7: 1.13
A8: Inverse Plot | B8: FALSE | C8: 153.76 | D8: 1.35
A9: Color Plot | B9: TRUE | C9: IsoLine | D9: IsoLine
A10: 3D plot | B10: FALSE
A11: Linear | B11: FALSE
A12: Data Range | B12: F84:G91
A13: Filled Symbols | B13: FALSE
A14: ConcAge | B14: FALSE
A15: ConcSwap | B15: FALSE
A16: 1st Symbol-row | B16: 1

Sheet Amelin-D
A1: Sample | B1: Mineral/ rock | C1: Pb-206/U-238 | D1: Pb-206/Pb-207 | E1: U–Pb discord. (%)
A2: Angra dos Reis | C2: Million Years | D2: Million Years
A3: 1R | B3: Px | C3: 4554.7 | D3: 4557.7 | E3: 0.1
A4: 2R | B4: Px | C4: 4553 | D4: 4557.7 | E4: 0.1
A5: 3R | B5: Px | C5: 4556 | D5: 4557.5 | E5: 0
A6: 4Ra | B6: Px | C6: 4568.5 | D6: 4556.7 | E6: -0.4
A7: 5R | B7: Px | C7: 4398.4 | D7: 4557.8 | E7: 4.8
A8: 4W3 | B8: Px Wash-3 | C8: 5534.9 | D8: 4556.5 | E8: -32.3
A9: 5W3 | B9: Px Wash-3 | C9: 5658.1 | D9: 4558.8 | E9: -36.7
A10: Lewis Cliff 86010
A11: 6R | B11: Px | C11: 4561.9 | D11: 4558.6 | E11: -0.1
A12: 7R | B12: Px | C12: 4567.3 | D12: 4558.8 | E12: -0.3
A13: 8R | B13: Px | C13: 4552.2 | D13: 4558.6 | E13: 0.2
A14: 9R | B14: Px | C14: 4583.1 | D14: 4558.6 | E14: -0.8
A15: 10R | B15: Px | C15: 3727.8 | D15: 4558 | E15: 23.8
A16: 11R | B16: Px | C16: 3735 | D16: 4558.5 | E16: 23.7
A17: 10W3a | B17: Px Wash-3 | C17: 6071.6 | D17: 4557.7 | E17: -52.2
A18: 11W3 | B18: PxWash-3 | C18: 6625.4 | D18: 4558.7 | E18: -74.5
A19: D’Orbigny
A20: 12R | B20: Px | C20: 4491.6 | D20: 4566.6 | E20: 2.3
A21: 13R | B21: Px | C21: 4613.3 | D21: 4564.9 | E21: -1.5
A22: 15R | B22: WR (fragm) | C22: 4841.6 | D22: 4564.6 | E22: -8.7
A23: 16Ra | B23: WR (fines) | C23: 4892.9 | D23: 4562.1 | E23: -10.4
A24: 17R | B24: Px | C24: 4694.6 | D24: 4564.7 | E24: 4
A25: 18R | B25: Px | C25: 4971.9 | D25: 4564.2 | E25: -12.9
A26: 19R | B26: WRminusPx | C26: 5080.4 | D26: 4564.5 | E26: -16.4
A27: 20R | B27: WR (rel. fine) | C27: 4957.4 | D27: 4564.4 | E27: -12.4
A28: 22Ra | B28: WR | C28: 3672.2 | D28: 4570 | E28: 25.6
A29: 23R | B29: WR | C29: 2833.7 | D29: 4563.6 | E29: 46.4
A30: 21W3 | B30: Px | C30: 5471 | D30: 4564.4 | E30: -29.8
A31: 22W3 | B31: WR | C31: 5290.6 | D31: 4564.3 | E31: -23.5
A32: 23W3 | B32: WR | C32: 5567.8 | D32: 4564.4 | E32: -33.2
A36: Number | B36: 51
A37: Author | B37: Yuri Amelin
A38: Journal | B38: Geochemica Et Cosmochemica Acta
A39: Edition | B39: Volume 72, Pages 221 – 232
A40: Title | B40: U–Pb ages of angrites
A41: Year | B41: 2008
A42: Spreadsheet | B42: Amelin-D
A43: Mineral, Location | B43: Meteorites
A48: Sample | B48: Pb-206/U-238
A49: Name | B49: Million Years
A50: Angra dos Reis
A51: 4W3 | B51: 5534.9
A52: 5W3 | B52: 5658.1
A53: Lewis Cliff 86010
A54: 10W3a | B54: 6071.6
A55: 11W3 | B55: 6625.4
A56: D’Orbigny
A57: 15R | B57: 4841.6
A58: 16Ra | B58: 4892.9
A59: 17R | B59: 4694.6
A60: 18R | B60: 4971.9
A61: 19R | B61: 5080.4
A62: 20R | B62: 4957.4
A63: 21W3 | B63: 5471
A64: 22W3 | B64: 5290.6
A65: 23W3 | B65: 5567.8
F74: 207Pb/235U
F75: Ratio
A76: 1R | B76: Px | C76: 0.185 | D76: 0.377 | E76: 55299 | F76: 87.916 | G76: =[1]!AgePb7U5(F76) -> 4556.72651 | H76: 1.027 | I76: 0.12 | J76: 0.987 | K76: 4554.7 | L76: 4557.7 | M76: 0.1
A77: 2R | B77: Px | C77: 0.173 | D77: 0.351 | E77: 57559 | F77: 87.875 | G77: =[1]!AgePb7U5(F77) -> 4556.2582 | H77: 1.0265 | I77: 0.09 | J77: 0.9804 | K77: 4553 | L77: 4557.7 | M77: 0.1
A78: 3R | B78: Px | C78: 0.158 | D78: 0.318 | E78: 75869 | F78: 87.942 | G78: =[1]!AgePb7U5(F78) -> 4557.023376 | H78: 1.0274 | I78: 0.11 | J78: 0.9865 | K78: 4556 | L78: 4557.5 | M78: 0
A79: 4Ra | B79: Px | C79: 0.156 | D79: 0.327 | E79: 725 | F79: 88.23 | G79: =[1]!AgePb7U5(F79) -> 4560.305941 | H79: 1.0313 | I79: 0.33 | J79: 0.9981 | K79: 4568.5 | L79: 4556.7 | M79: -0.4
A80: 5R | B80: Px | C80: 0.139 | D80: 0.267 | E80: 35946 | F80: 83.769 | G80: =[1]!AgePb7U5(F80) -> 4508.229588 | H80: 0.9784 | I80: 0.23 | J80: 0.9961 | K80: 4398.4 | L80: 4557.8 | M80: 4.8
A81: 4W3 | B81: Px | C81: 0.016 | D81: 0.042 | E81: 1977 | F81: 116.32 | G81: =[1]!AgePb7U5(F81) -> 4838.204035 | H81: 1.3599 | I81: 1.81 | J81: 0.9983 | K81: 5534.9 | L81: 4556.5 | M81: -32.3
A82: 5W3 | B82: Px | C82: 0.021 | D82: 0.058 | E82: 4131 | F82: 120.41 | G82: =[1]!AgePb7U5(F82) -> 4872.999185 | H82: 1.4054 | I82: 1.1 | J82: 0.999 | K82: 5658.1 | L82: 4558.8 | M82: -36.7
A83: Lewis | B83: Cliff | C83: 86010
A84: 6R | B84: Px | C84: 0.071 | D84: 0.159 | E84: 26915 | F84: 88.17 | G84: =[1]!AgePb7U5(F84) -> 4559.622948 | H84: 1.0293 | I84: 0.34 | J84: 0.9976 | K84: 4561.9 | L84: 4558.6 | M84: -0.1
A85: 7R | B85: Px | C85: 0.046 | D85: 0.101 | E85: 7850 | F85: 88.326 | G85: =[1]!AgePb7U5(F85) -> 4561.397775 | H85: 1.0309 | I85: 0.43 | J85: 0.9982 | K85: 4567.3 | L85: 4558.8 | M85: -0.3
A86: 8R | B86: Px | C86: 0.063 | D86: 0.14 | E86: 11330 | F86: 87.906 | G86: =[1]!AgePb7U5(F86) -> 4556.612308 | H86: 1.0262 | I86: 0.49 | J86: 0.9984 | K86: 4552.2 | L86: 4558.6 | M86: 0.2
A87: 9R | B87: Px | C87: 0.071 | D87: 0.157 | E87: 42407 | F87: 88.739 | G87: =[1]!AgePb7U5(F87) -> 4566.081593 | H87: 1.0359 | I87: 0.3 | J87: 0.9973 | K87: 4583.1 | L87: 4558.6 | M87: -0.8
A88: 10R | B88: Px | C88: 0.038 | D88: 0.067 | E88: 2208 | F88: 67.046 | G88: =[1]!AgePb7U5(F88) -> 4285.103261 | H88: 0.783 | I88: 0.91 | J88: 0.9993 | K88: 3727.8 | L88: 4558 | M88: 23.8
A89: 11R | B89: Px | C89: 0.042 | D89: 0.073 | E89: 10011 | F89: 67.24 | G89: =[1]!AgePb7U5(F89) -> 4287.994012 | H89: 0.785 | I89: 0.4 | J89: 0.9977 | K89: 3735 | L89: 4558.5 | M89: 23.7
A90: 10W3a | B90: Px | C90: 0.019 | D90: 0.065 | E90: 778 | F90: 133.96 | G90: =[1]!AgePb7U5(F90) -> 4980.431983 | H90: 1.5647 | I90: 1.15 | J90: 0.999 | K90: 6071.6 | L90: 4557.7 | M90: -52.2
A91: 11W3 | B91: Px | C91: 0.014 | D91: 0.053 | E91: 28507 | F91: 153.76 | G91: =[1]!AgePb7U5(F91) -> 5119.43497 | H91: 1.7948 | I91: 1.36 | J91: 0.9993 | K91: 6625.4 | L91: 4558.7 | M91: -74.5
A92: D’Orbigny
A93: 12R | B93: Px | C93: 0.003 | D93: 0.01 | E93: 2160 | F93: 86.762 | G93: =[1]!AgePb7U5(F93) -> 4543.462055 | H93: 1.0073 | I93: 1.27 | J93: 0.9972 | K93: 4491.6 | L93: 4566.6 | M93: 2.3
A94: 13R | B94: Px | C94: 0.005 | D94: 0.017 | E94: 158039 | F94: 89.952 | G94: =[1]!AgePb7U5(F94) -> 4579.714571 | H94: 1.0455 | I94: 0.74 | J94: 0.9985 | K94: 4613.3 | L94: 4564.9 | M94: -1.5
A95: 15R | B95: WR | C95: 0.006 | D95: 0.019 | E95: 7877 | F95: 96.275 | G95: =[1]!AgePb7U5(F95) -> 4647.958592 | H95: 1.1192 | I95: 0.42 | J95: 0.998 | K95: 4841.6 | L95: 4564.6 | M95: -8.7
A96: 16Ra | B96: WR | C96: 0.006 | D96: 0.02 | E96: 693 | F96: 97.561 | G96: =[1]!AgePb7U5(F96) -> 4661.294254 | H96: 1.1362 | I96: 0.2 | J96: 0.9919 | K96: 4892.9 | L96: 4562.1 | M96: -10.4
A97: 17R | B97: Px | C97: 0.008 | D97: 0.027 | E97: 12865 | F97: 92.17 | G97: =[1]!AgePb7U5(F97) -> 4604.179095 | H97: 1.0715 | I97: 0.32 | J97: 0.9972 | K97: 4694.6 | L97: 4564.7 | M97: -4
A98: 18R | B98: Px | C98: 0.013 | D98: 0.047 | E98: 247141 | F98: 99.969 | G98: =[1]!AgePb7U5(F98) -> 4685.803461 | H98: 1.1625 | I98: 0.15 | J98: 0.9917 | K98: 4971.9 | L98: 4564.2 | M98: -12.9
A99: 19R | B99: WR | C99: 0.007 | D99: 0.026 | E99: 27663 | F99: 103.15 | G99: =[1]!AgePb7U5(F99) -> 4717.299251 | H99: 1.1992 | I99: 0.22 | J99: 0.9953 | K99: 5080.4 | L99: 4564.5 | M99: -16.4
A100: 20R | B100: WR | C100: 0.005 | D100: 0.018 | E100: 8719 | F100: 99.567 | G100: =[1]!AgePb7U5(F100) -> 4681.752726 | H100: 1.1576 | I100: 0.21 | J100: 0.9943 | K100: 4957.4 | L100: 4564.4 | M100: -12.4 | N100: 4564.4 | O100: -12.4
A101: 22Ra | B101: WR | C101: 0.003 | D101: 0.007 | E101: 392 | F101: 66.28 | G101: =[1]!AgePb7U5(F101) -> 4273.60818 | H101: 0.7676 | I101: 1.12 | J101: 0.9956 | K101: 3672.2 | L101: 4570 | M101: 25.6
A102: 23R | B102: WR | C102: 0.001 | D102: 0.002 | E102: 2216 | F102: 47.452 | G102: =[1]!AgePb7U5(F102) -> 3940.268688 | H102: 0.552 | I102: 1.06 | J102: 0.9964 | K102: 2833.7 | L102: 4563.6 | M102: 46.4
A103: 21W3 | B103: Px | C103: 0.001 | D103: 0.002 | E103: 21295 | F103: 114.96 | G103: =[1]!AgePb7U5(F103) -> 4826.36473 | H103: 1.3366 | I103: 0.53 | J103: 0.9986 | K103: 5471 | L103: 4564.4 | M103: -29.8
A104: 22W3 | B104: WR | C104: 0.005 | D104: 0.017 | E104: 201042 | F104: 109.4 | G104: =[1]!AgePb7U5(F104) -> 4776.473711 | H104: 1.2721 | I104: 0.26 | J104: 0.9969 | K104: 5290.6 | L104: 4564.3 | M104: -23.5
A105: 23W3 | B105: WR | C105: 0.004 | D105: 0.018 | E105: 112916 | F105: 118 | G105: =[1]!AgePb7U5(F105) -> 4852.641004 | H105: 1.3719 | I105: 0.18 | J105: 0.9865 | K105: 5567.8 | L105: 4564.4 | M105: -33.2

Sheet Amelin-E
A1: Sample | B1: Sample | C1: Pb-206/U-238 | D1: Error | E1: Pb-207/U-235 | F1: Error | G1: Pb-207/U-235 | H1: Error | I1: Pb-206/U-234 | J1: Error | K1: Pb-206/Th-230 | L1: Error | M1: U-238/Th-230 | N1: Error | O1: Maximum Age | P1: Minimum Age | Q1: Difference | R1: Difference | T1: Sample | U1: Maximum Age | V1: Minimum Age | W1: Difference | X1: Difference
A2: Number | B2: Name | C2: Million Years | D2: Million Years | E2: Million Years | F2: Million Years | G2: Million Years | H2: Million Years | I2: Million Years | J2: Million Years | K2: Million Years | L2: Million Years | M2: Million Years | N2: Million Years | O2: Million Years | P2: Million Years | Q2: Million Years | R2: Percentage | T2: Number | U2: Million Years | V2: Million Years | W2: Million Years | X2: Percentage
A3: 1 | B3: HD2008Pb1 | C3: 1708 | D3: 20 | E3: 812 | F3: 64 | G3: 859 | H3: 64 | I3: 851 | J3: 12 | K3: 0 | L3: 0 | M3: 0 | N3: 0 | O3: 1708 | P3: 812 | Q3: =(O3-P3) -> 896 | R3: =(O3/P3) -> 2.103448276 | T3: 1 | U3: 1708 | V3: 812 | W3: =(U3-V3) -> 896 | X3: =(U3/V3) -> 2.103448276
A4: 2 | B4: HD2055Pb1 | C4: 648 | D4: 10 | E4: 124 | F4: 31 | G4: 170 | H4: 32 | I4: 211.4 | J4: 1.6 | K4: 0 | L4: 0 | M4: 0 | N4: 0 | O4: 648 | P4: 124 | Q4: =(O4-P4) -> 524 | R4: =(O4/P4) -> 5.225806452 | T4: 2 | U4: 648 | V4: 124 | W4: =(U4-V4) -> 524 | X4: =(U4/V4) -> 5.225806452
A5: 3 | B5: HD2055Pb1a | C5: 0 | D5: 0 | E5: 0 | F5: 0 | G5: 0 | H5: 64.5 | K5: 0 | L5: 0 | M5: 64.5 | N5: 0.5 | T5: 3
A6: 4 | B6: HD2055Pb4-1 | C6: 1952 | D6: 177 | E6: 288 | F6: 570 | G6: 335 | H6: 570 | I6: 359 | J6: 24 | K6: 372 | L6: 31 | M6: 131 | N6: 2.7 | O6: 1952 | P6: 288 | Q6: 1664 | R6: 6.777777778 | T6: 4 | U6: 1952 | V6: 288 | W6: =(U6-V6) -> 1664 | X6: =(U6/V6) -> 6.777777778
A7: 5 | B7: HD2055Pb4-2 | C7: 1255 | D7: 6 | E7: 310.3 | F7: 9.8 | G7: 357 | H7: 10 | I7: 372 | J7: 0.6 | K7: 322.9 | L7: 1.3 | M7: 188.1 | N7: 2.2 | O7: 1255 | P7: 310.3 | Q7: 944.7 | R7: 4.044473091 | T7: 5 | U7: 1255 | V7: 310.3 | W7: 944.7 | X7: 4.044473091
A8: 6 | B8: HD2056Pb1 | C8: 933 | D8: 8 | E8: 208 | F8: 6 | G8: 24 | H8: 6 | I8: 1.1 | J8: 6 | K8: 0 | L8: 0 | M8: 0 | N8: 0 | O8: 933 | P8: 1.1 | Q8: 931.9 | R8: 848.1818182 | T8: 6 | U8: 933 | V8: 1.1 | W8: 931.9 | X8: 848.1818182
A9: 7 | B9: HD2056Pb1a | C9: 0 | D9: 0 | E9: 0 | F9: 0 | G9: 0 | H9: 151 | K9: 0 | L9: 0 | M9: 151 | N9: 1.9 | T9: 7
A10: 8 | B10: HD2059Pb3 | C10: 1592 | D10: 14 | E10: 294 | F10: 42 | G10: 341 | H10: 42 | I10: 406.7 | J10: 2.2 | K10: 0 | L10: 0 | M10: 0 | N10: 0 | O10: 1592 | P10: 294 | Q10: 1298 | R10: 5.414965986 | T10: 8 | U10: 1592 | V10: 294 | W10: =(U10-V10) -> 1298 | X10: =(U10/V10) -> 5.414965986
A11: 9 | B11: HD2059Pb3a | C11: 0 | D11: 0 | E11: 0 | F11: 0 | G11: 0 | H11: 180 | K11: 0 | L11: 0 | M11: 180 | N11: 2.8 | T11: 9
A12: 10 | B12: HD2063Pb1 | C12: 1373 | D12: 32 | E12: 234 | F12: 104 | G12: 281 | H12: 110 | I12: 292.8 | J12: 4.1 | K12: 0 | L12: 0 | M12: 0 | N12: 0 | O12: 1373 | P12: 234 | Q12: 1139 | R12: 5.867521368 | T12: 10 | U12: 1373 | V12: 234 | W12: =(U12-V12) -> 1139 | X12: =(U12/V12) -> 5.867521368
A13: 11 | B13: HD2065Pb1 | C13: 998 | D13: 6 | E13: 58 | F13: 6 | G13: 59 | H13: 6 | I13: 2.3 | J13: 6 | K13: 0 | L13: 0 | M13: 0 | N13: 0 | O13: 998 | P13: 2.3 | Q13: 995.7 | R13: 433.9130435 | T13: 11 | U13: 998 | V13: 2.3 | W13: 995.7 | X13: 433.9130435
A14: 12 | B14: HD2065Pb1a | C14: 0 | D14: 0 | E14: 0 | F14: 0 | G14: 0 | H14: 64.9 | K14: 0 | L14: 0 | M14: 64.9 | N14: 1.1 | T14: 12
A15: 13 | B15: HD2065Pb2 | C15: 814 | D15: 89 | E15: 48 | F15: 188 | G15: 88 | H15: 188 | I15: 198 | J15: 12 | K15: 193 | L15: 14 | M15: 92.78 | N15: 0.85 | O15: 814 | P15: 48 | Q15: 766 | R15: 16.95833333 | T15: 13 | U15: 814 | V15: 48 | W15: =(U15-V15) -> 766 | X15: =(U15/V15) -> 16.95833333
A16: 14 | B16: HD2066Pb1-1 | C16: 2156 | D16: 14 | E16: 587 | F16: 43 | G16: 634 | H16: 43 | I16: 518.4 | J16: 2.1 | K16: 0 | L16: 0 | M16: 0 | N16: 0 | O16: 2156 | P16: 518.4 | Q16: 1637.6 | R16: 4.158950617 | T16: 14 | U16: 2156 | V16: 518.4 | W16: 1637.6 | X16: 4.158950617
A17: 15 | B17: HD2066Pb1-2 | C17: 1863 | D17: 48 | E17: 423 | F17: 166 | G17: 470 | H17: 170 | I17: 413.7 | J17: 7.9 | K17: 0 | L17: 0 | M17: 0 | N17: 0 | O17: 1863 | P17: 413.7 | Q17: 1449.3 | R17: 4.503263234 | T17: 15 | U17: 1863 | V17: 413.7 | W17: 1449.3 | X17: 4.503263234
A18: 16 | B18: HD2066Pb1a | C18: 0 | D18: 0 | E18: 0 | F18: 0 | G18: 0 | H18: 222 | K18: 0 | L18: 0 | M18: 222 | N18: 13 | T18: 16
A19: 17 | B19: HD2079CPb1 | C19: 2905 | D19: 10 | E19: 585 | F19: 12 | G19: 632 | H19: 32 | I19: 645 | J19: 2 | K19: 0 | L19: 0 | M19: 0 | N19: 0 | O19: 2905 | P19: 585 | Q19: 2320 | R19: 4.965811966 | T19: 17 | U19: 2905 | V19: 585 | W19: =(U19-V19) -> 2320 | X19: =(U19/V19) -> 4.965811966
A20: 18 | B20: HD2079CPb1a | C20: 0 | D20: 0 | E20: 0 | F20: 0 | G20: 0 | H20: 221 | K20: 0 | L20: 0 | M20: 221 | N20: 4 | T20: 18
A21: 19 | B21: HD2079CPb2-1 | C21: 3964 | D21: 30 | E21: 519 | F21: 77 | G21: 566 | H21: 77 | I21: 762.8 | J21: 5.2 | K21: 671 | L21: 13 | M21: 274 | N21: 31 | O21: 3964 | P21: 519 | Q21: 3445 | R21: 7.637764933 | T21: 19 | U21: 3964 | V21: 519 | W21: =(U21-V21) -> 3445 | X21: =(U21/V21) -> 7.637764933
A22: 20 | B22: HD2079CPb2-2 | C22: 3153 | D22: 15 | E22: 944 | F22: 19 | G22: 991 | H22: 19 | I22: 887 | J22: 14 | K22: 686 | L22: 9 | M22: 452 | N22: 32 | O22: 3153 | P22: 887 | Q22: 2266 | R22: 3.554678692 | T22: 20 | U22: 3153 | V22: 887 | W22: 2266 | X22: 3.554678692
A23: 21 | B23: HD2079CPb2-3 | C23: 2895 | D23: 33 | E23: 1059 | F23: 56 | G23: 1106 | H23: 56 | I23: 828.6 | J23: 5.3 | K23: 643 | L23: 19 | M23: 465 | N23: 200 | O23: 2895 | P23: 828.6 | Q23: 2066.4 | R23: 3.49384504 | T23: 21 | U23: 2895 | V23: 828.6 | W23: 2066.4 | X23: 3.49384504
A24: 22 | B24: HD2098Pb1 | C24: 204 | D24: 19 | E24: 50 | F24: 92 | G24: 90 | H24: 90 | I24: 97.7 | J24: 3.7 | K24: 0 | L24: 0 | M24: 0 | N24: 0 | O24: 204 | P24: 50 | Q24: 154 | R24: 4.08 | T24: 22 | U24: 204 | V24: 50 | W24: 154 | X24: 4.08
A25: 23 | B25: HD2098Pb1a | C25: 0 | D25: 0 | E25: 0 | F25: 0 | G25: 0 | H25: 0 | K25: 0 | L25: 0 | M25: 82.7 | N25: 1.7 | T25: 23
A26: 24 | B26: HD2098Pb2 | C26: 60 | D26: 36 | E26: 45 | F26: 335 | G26: 84 | H26: 335 | I26: 50.1 | J26: 9.1 | K26: 39 | L26: 14 | M26: 34.1 | N26: 0.6 | O26: 84 | P26: 45 | Q26: 39 | R26: 1.866666667 | T26: 24 | U26: 84 | V26: 45 | W26: =(U26-V26) -> 39 | X26: =(U26/V26) -> 1.866666667
A27: 25 | B27: HD2100Pb1 | C27: 2115 | D27: 12 | E27: 718 | F27: 12 | G27: 829 | H27: 12 | I27: 734 | J27: 19 | K27: 0 | L27: 0 | M27: 0 | N27: 0 | O27: 2115 | P27: 718 | Q27: 1397 | R27: 2.945682451 | T27: 25 | U27: 2115 | V27: 718 | W27: 1397 | X27: 2.945682451
A28: 26 | B28: HD2100Pb1a | C28: 0 | D28: 0 | E28: 0 | F28: 0 | G28: 0 | H28: 439 | K28: 0 | L28: 0 | M28: 439 | N28: 28 | T28: 26
A29: 27 | B29: HD2168Pb1 | C29: 5445 | D29: 27 | E29: 1725 | F29: 40 | G29: 1772 | H29: 40 | I29: 1595 | J29: 285 | K29: 1021 | L29: 30 | M29: 389 | N29: 31 | O29: 5445 | P29: 1595 | Q29: 3850 | R29: 3.413793103 | T29: 27 | U29: 5445 | V29: 1595 | W29: =(U29-V29) -> 3850 | X29: =(U29/V29) -> 3.413793103
A30: 28 | B30: HD2179Pb1 | C30: 5571 | D30: 43 | E30: 299 | F30: 71 | G30: 346 | H30: 71 | I30: 816.7 | J30: 4.6 | K30: 807 | L30: 23 | M30: 166.1 | N30: 3.2 | O30: 5571 | P30: 299 | Q30: 5272 | R30: 18.63210702 | T30: 28 | U30: 5571 | V30: 299 | W30: 5272 | X30: 18.63210702
A31: 29 | B31: HD2179Pb2 | C31: 2194 | D31: 11 | E31: 1160 | F31: 16 | G31: 1207 | H31: 16 | I31: 852 | J31: 5.1 | K31: 643.3 | L31: 7.3 | M31: 265.9 | N31: 5.6 | O31: 2194 | P31: 852 | Q31: 1342 | R31: 2.575117371 | T31: 29 | U31: 2194 | V31: 852 | W31: 1342 | X31: 2.575117371
A32: 30 | B32: HD2179Pb2-2 | C32: 1062 | D32: 141 | E32: 282 | F32: 313 | G32: 329 | H32: 1 | I32: 363 | J32: 36 | K32: 328 | L32: 50 | M32: 156.8 | N32: 6.9 | O32: 1062 | P32: 282 | Q32: 780 | R32: 3.765957447 | T32: 30 | U32: 1062 | V32: 282 | W32: 780 | X32: 3.765957447
A33: 31 | B33: HD2179Pb2-3 | C33: 1407 | D33: 32 | E33: 324 | F33: 59 | G33: 371 | H33: 59 | I33: 436.3 | J33: 8 | K33: 396 | L33: 14 | M33: 171.2 | N33: 3.2 | O33: 1407 | P33: 324 | Q33: 1083 | R33: 4.342592593 | T33: 31 | U33: 1407 | V33: 324 | W33: 1083 | X33: 4.342592593
A34: 32 | B34: HD2181APb1 | C34: 2280 | D34: 20 | E34: 1109 | F34: 35 | G34: 1156 | H34: 35 | I34: 917 | J34: 28 | K34: 676 | L34: 15 | M34: 260 | N34: 11 | O34: 2280 | P34: 917 | Q34: 1363 | R34: 2.486368593 | T34: 32 | U34: 2280 | V34: 917 | W34: 1363 | X34: 2.486368593
A35: 33 | B35: HD2274Pb1 | C35: 2149 | D35: 11 | E35: 763 | F35: 28 | G35: 810 | H35: 28 | I35: 780.2 | J35: 5.9 | K35: 594 | L35: 6.6 | M35: 332.2 | N35: 9.3 | O35: 2149 | P35: 763 | Q35: 1386 | R35: 2.816513761 | T35: 33 | U35: 2149 | V35: 763 | W35: 1386 | X35: 2.816513761
A36: 34 | B36: HD2281Pb1 | C36: 2287 | D36: 46 | E36: 488 | F36: 84 | G36: 535 | H36: 84 | I36: 467.9 | J36: 8.2 | K36: 677 | L36: 14 | M36: 51.08 | N36: 0.57 | O36: 2287 | P36: 467.9 | Q36: 1819.1 | R36: 4.887796538 | T36: 34 | U36: 2287 | V36: 467.9 | W36: 1819.1 | X36: 4.887796538
A37: 35 | B37: HD2283Pb1 | C37: 2640 | D37: 13 | E37: 1429 | F37: 20 | G37: 1476 | H37: 20 | I37: 1276 | J37: 43 | K37: 775 | L37: 12 | M37: 333 | N37: 120 | O37: 2640 | P37: 1276 | Q37: 1364 | R37: 2.068965517 | T37: 35 | U37: 2640 | V37: 1276 | W37: 1364 | X37: 2.068965517
B40: Number | C40: 52
B41: Author | C41: Yuri Amelin | T41: Sample | U41: Maximum Age | V41: Minimum Age | W41: Difference | X41: Difference
B42: Journal | C42: Geochemica Et Cosmochemica Acta | T42: Number | U42: Million Years | V42: Million Years | W42: Million Years | X42: Percentage
B43: Edition | C43: Volume 64, Number 17, Pages 2913 – 2928 | T43: HD2168Pb1 | U43: 5445 | V43: 1595 | W43: =(U43-V43) -> 3850 | X43: =(U43/V43) -> 3.413793103
B44: Title | C44: Geochronology of Quaternary Opal | T44: HD2179Pb1 | U44: 5571 | V44: 299 | W44: 5272 | X44: 18.63210702
B45: Year | C45: 2000
B46: Spreadsheet | C46: Amelin-E
B47: Mineral, Location | C47: Opals, Nevada

Sheet Amelin-F
A1: Sample | F1: Pb-206/U-238 | G1: Error | H1: Pb-207/U-235 | I1: Error | J1: Pb-208/Th-232 | K1: Error | L1: Sample | M1: Maximum Age | N1: Minimum Age | O1: Difference | P1: Difference
A2: Number | F2: Million Years | G2: Million Years | H2: Million Years | I2: Million Years | J2: Million Years | K2: Million Years | L2: Number | M2: Million Years | N2: Million Years | O2: Million Years | P2: Percentage
A3: HD1939Pb1-Cc | B3: Calcite | C3: 9.8 | D3: 223 | E3: 70 | F3: 38.2 | G3: 3.7 | H3: 28 | I3: 62 | J3: 96 | K3: 68 | L3: 1 | M3: 96 | N3: 28 | O3: =(M3-N3) -> 68 | P3: =(M3/N3)*100 -> 342.8571429
A4: HD2055Pb6-Cc | B4: Calcite | C4: 15 | F4: 798 | G4: 119 | L4: 2
A5: HD2055Pb7-Cc1 | B5: Calcite | C5: 3.8 | D5: 624 | F5: 631 | G5: 24 | H5: 64 | I5: 399 | L5: 3 | M5: 631 | N5: 64 | O5: =(M5-N5) -> 567 | P5: =(M5/N5)*100 -> 985.9375
A6: HD2055Pb7-Cc2 | B6: Calcite | C6: 4.9 | D6: 118 | E6: 85 | F6: 442 | G6: 22 | H6: 285 | I6: 336 | J6: 1864 | K6: 1589 | L6: 4 | M6: 1864 | N6: 285 | O6: 1579 | P6: 654.0350877
A7: HD2055Pb10-Cc | B7: Calcite | C7: 2.8 | D7: 168 | F7: 103.8 | G7: 2.9 | H7: 23 | I7: 39 | L7: 5 | M7: 104 | N7: 23 | O7: 81 | P7: 452.173913
A8: HD2055Pb11-Cc | B8: Calcite | C8: 0.41 | D8: 6 | F8: 365.3 | G8: 1.5 | H8: 29.3 | I8: 1.8 | L8: 6 | M8: 365 | N8: 29.3 | O8: 335.7 | P8: 1245.733788
A9: HD2055Pb11-Op | B9: Opal | C9: 0.43 | D9: 1.4 | E9: 32 | F9: 1.096 | G9: 0.005 | H9: 0.2451 | I9: 0.0034 | J9: 1951 | K9: 630 | L9: 7 | M9: 1951 | N9: 1 | O9: 1950 | P9: 195100
A10: HD2055Pb12-Cc | B10: Calcite | C10: 0.18 | D10: 3.9 | F10: 775.9 | G10: 1.4 | H10: 49 | I10: 1.9 | L10: 8 | M10: 776 | N10: 49 | O10: 727 | P10: 1583.673469
A11: HD2055Pb12-Op | B11: Opal | C11: 0.41 | D11: 0.43 | E11: 18 | F11: 5.726 | G11: 0.024 | H11: 4.702 | I11: 0.02 | J11: 88 | K11: 15 | L11: 9 | M11: 88 | N11: 6 | O11: 82 | P11: 1466.666667
A12: HD-2057-Pb1-Cc | B12: Calcite | C12: 1.7 | F12: 1455 | G12: 25 | L12: 10
A13: HD-2057-Pb2-Cc | B13: Calcite | C13: 0.51 | F13: 248.8 | G13: 1.3 | L13: 11
A14: HD-2057-Pb2-Op | B14: Opal | C14: 0.24 | D14: 0.59 | E14: 41 | F14: 1.454 | G14: 0.004 | H14: 0.3944 | I14: 0.0023 | L14: 12 | M14: 1.45 | N14: 0.39 | O14: 1.06 | P14: 371.7948718
A15: HD2059Pb4-Cc | B15: Calcite | C15: 0.33 | D15: 15.3 | E15: 31 | F15: 1737.9 | G15: 5.7 | H15: 162 | I15: 25 | J15: 12900 | K15: 4040 | L15: 13 | M15: 12900 | N15: 162 | O15: 12738 | P15: 7962.962963
A16: HD2062Pb1-Cc | B16: Calcite | C16: 0.18 | D16: 25 | F16: 420.2 | G16: 0.8 | H16: 3.29 | I16: 0.83 | L16: 14 | M16: 420.2 | N16: 3.29 | O16: 416.91 | P16: 12772.03647
A17: HD2062Pb2-Cc | B17: Calcite | C17: 3.2 | F17: 118.8 | G17: 3.8 | J17: 9 | K17: 61 | L17: 15 | M17: 118 | N17: 9 | O17: 109 | P17: 1311.111111
A18: HD2065Pb4-Cc | B18: Calcite | C18: 0.23 | D18: 46 | E18: 192 | F18: 505.9 | G18: 1.6 | H18: 18.8 | I18: 8.7 | J18: 276 | K18: 537 | L18: 16 | M18: 505.9 | N18: 18.8 | O18: 487.1 | P18: 2690.957447
A19: HD2074Pb1-Cc2 | B19: Calcite | C19: 0.27 | F19: 744.6 | G19: 2 | L19: 17
A20: HD2074Pb1-Cc3 | B20: Calcite | C20: 0.59 | D20: 200 | E20: 289 | F20: 81.37 | G20: 0.48 | H20: 2.9 | I20: 5.8 | J20: 1300 | K20: 3800 | L20: 18 | M20: 1300 | N20: 2.9 | O20: 1297.1 | P20: 44827.58621
A21: HD2074Pb2-Cc1 | B21: Calcite | C21: 0.24 | D21: 17 | F21: 145.7 | G21: 0.35 | H21: 11.9 | I21: 2 | L21: 19 | M21: 145.7 | N21: 11.9 | O21: 133.8 | P21: 1224.369748
A22: HD2074Pb2-Cc2 | B22: Calcite | C22: 0.41 | D22: 48 | F22: 78.26 | G22: 0.32 | H22: 10.9 | I22: 5.3 | L22: 20 | M22: 78.26 | N22: 10.9 | O22: 67.36 | P22: 717.9816514
A23: HD2074Pb2-Op | B23: Opal | C23: 0.59 | D23: 6.1 | F23: 0.5327 | G23: 0.0032 | H23: 0.1329 | I23: 0.008 | L23: 21 | M23: 0.53 | N23: 0.13 | O23: 0.4 | P23: 407.6923077
A24: HD2089APb1-Cc1 | B24: Calcite | C24: 0.62 | D24: 72 | F24: 7940 | G24: 49 | H24: 16 | I24: 12 | L24: 22 | M24: 7940 | N24: 16 | O24: 7924 | P24: 49625
A25: HD2089APb1-Cc2a | B25: Calcite | C25: 0.2 | F25: 6372 | G25: 13 | L25: 23
A26: HD2089APb1-Cc2b | B26: Calcite | C26: 0.95 | D26: 60 | F26: 7504 | G26: 71 | H26: 15 | I26: 9 | L26: 24 | M26: 7504 | N26: 15 | O26: 7489 | P26: 50026.66667
A27: HD2089APb1-Cc2c | B27: Calcite | C27: 0.45 | D27: 112 | F27: 6292 | G27: 29 | H27: 9 | I27: 10 | L27: 25 | M27: 6292 | N27: 9 | O27: 6283 | P27: 69911.11111
A28: HD2089APb1-Cc3 | B28: Calcite | C28: 0.37 | F28: 4423 | G28: 30 | H28: No Data | I28: No Data | J28: 28600 | K28: 7700 | L28: 26 | M28: 28600 | N28: 4423 | O28: 24177 | P28: 646.6199412
A29: HD2089APb2-Cc | B29: Calcite | C29: 0.32 | F29: 3270 | G29: 14 | H29: No Data | I29: No Data | J29: 166 | K29: 30 | L29: 27 | M29: 3270 | N29: 166 | O29: 3104 | P29: 1969.879518
A30: HD2092Pb1-Cc | B30: Calcite | C30: 2.3 | D30: 150 | E30: 17 | F30: 37.5 | G30: 0.85 | H30: 10 | I30: 15 | J30: 37 | K30: 6 | L30: 28 | M30: 37.5 | N30: 10 | O30: 27.5 | P30: 375
A31: HD2098Pb3-Cc | B31: Calcite | C31: 0.62 | F31: 2734 | G31: 20 | J31: 250 | K31: 110 | L31: 29 | M31: 2734 | N31: 250 | O31: 2484 | P31: 1093.6
A32: HD2109Pb1-Cc | B32: Calcite | C32: 0.77 | D32: 79 | E32: 26 | F32: 3353 | G32: 26 | H32: 486 | I32: 383 | J32: 161 | K32: 42 | L32: 30 | M32: 3353 | N32: 161 | O32: 3192 | P32: 2082.608696
A33: HD2155Pb1-Cc | B33: Calcite | C33: 0.35 | D33: 5770 | E33: 20 | F33: 398.6 | G33: 1.4 | H33: 0.5 | I33: 18 | J33: 607 | K33: 123 | L33: 31 | M33: 607 | N33: 0.5 | O33: 606.5 | P33: 121400
A34: HD2177Pb1-Cc | B34: Calcite | C34: 0.35 | D34: 166 | E34: 9 | F34: 20209 | G34: 50 | H34: 277 | I34: 460 | J34: 1555 | K34: 140 | L34: 32 | M34: 20209 | N34: 277 | O34: 19932 | P34: 7295.66787
A35: HD2177Pb2-Cc | B35: Calcite | C35: 1.1 | D35: 214 | E35: 488 | F35: 66.62 | G35: 0.73 | H35: 6 | I35: 14 | J35: 49 | K35: 239 | L35: 33 | M35: 66.62 | N35: 49 | O35: 17.62 | P35: 135.9591837
A36: HD2227Pb1-Cc | B36: Calcite | C36: 0.34 | F36: 279.9 | G36: 1 | J36: 112 | K36: 24 | L36: 34 | M36: 280 | N36: 112 | O36: 168 | P36: 250
A37: HD2231Pb1-Cc | B37: Calcite | C37: 17 | D37: 81 | E37: 234 | F37: 3.11 | G37: 0.53 | H37: 12 | I37: 10 | J37: 3.2 | K37: 7.5 | L37: 35 | M37: 12 | N37: 3.11 | O37: 8.89 | P37: 385.85209
A38: HD2233Pb1-Ch1e | B38: Chalcedony | C38: 0.37 | D38: 2.1 | F38: 10.781 | G38: 0.039 | H38: 4.218 | I38: 0.08 | L38: 36 | M38: 10.78 | N38: 4.22 | O38: 6.56 | P38: 255.450237
A39: HD2233Pb1-Ch2 | B39: Chalcedony | C39: 0.3 | D39: 1.08 | E39: 220 | F39: 7.687 | G39: 0.032 | H39: 4.133 | I39: 0.093 | J39: 82030 | K39: 180500 | L39: 37 | M39: 82030 | N39: 4.13 | O39: 82025.87 | P39: 1986198.547
A40: HD2233Pb2-Ch1 | B40: Chalcedony | C40: 0.7 | D40: 2.5 | F40: 6.979 | G40: 0.049 | H40: 5.01 | I40: 0.12 | L40: 38 | M40: 6.98 | N40: 5.01 | O40: 1.97 | P40: 139.3213573
A41: HD2233Pb2-Ch2 | B41: Chalcedony | C41: 0.3 | D41: 1 | E41: 70 | F41: 6.85 | G41: 0.021 | H41: 5.023 | I41: 0.034 | J41: 57900 | K41: 40800 | L41: 39 | M41: 57900 | N41: 5.02 | O41: 57894.98 | P41: 1153386.454
A44: Sample | B44: Pb-206/U-238 | C44: Pb-208/Th-232 | D44: Error | E44: Difference
A45: Number | B45: Million Years | C45: Million Years | D45: Million Years | E45: Percentage
A46: HD2059Pb4-Cc | B46: 1737.9 | C46: 12900 | D46: 4040 | E46: 7962.962963 | I46: Yuri Amelin,
A47: HD2089APb1-Cc1 | B47: 7940 | I47: Natural Radionuclide Mobility,
A48: HD2089APb1-Cc2a | B48: 6372 | I48: Geochemica Et Cosmochemica Acta,
A49: HD2089APb1-Cc2b | B49: 7504 | I49: 2008, Volume 72,
A50: HD2089APb1-Cc2c | B50: 6292 | I50: Pages 2067 – 2089
A51: HD2089APb1-Cc3 | B51: 4423 | C51: 28600 | D51: 7700 | E51: 647
A52: HD2177Pb1-Cc | B52: 20209 | C52: 1555 | D52: 140 | E52: 7296
A53: HD2233Pb1-Ch2 | B53: 7.687 | C53: 82030 | D53: 180500 | E53: 1986199
A54: HD2233Pb2-Ch2 | B54: 6.85 | C54: 57900 | D54: 40800 | E54: 1153386
A57: Sample | B57: Difference
A58: Number | B58: Percentage
A59: HD1939Pb1-Cc | B59: 342.8571429
A60: HD2055Pb6-Cc
A61: HD2055Pb7-Cc1 | B61: 985.9375
A62: HD2055Pb7-Cc2 | B62: 654.0350877
A63: HD2055Pb10-Cc | B63: 452.173913
A64: HD2055Pb11-Cc | B64: 1245.733788
A65: HD2055Pb11-Op | B65: 195100
A66: HD2055Pb12-Cc | B66: 1583.673469
A67: HD2055Pb12-Op | B67: 1466.666667
A68: HD-2057-Pb1-Cc
A69: HD-2057-Pb2-Cc
A70: HD-2057-Pb2-Op | B70: 371.7948718
A71: HD2059Pb4-Cc | B71: 7962.962963
A72: HD2062Pb1-Cc | B72: 12772.03647
A73: HD2062Pb2-Cc | B73: 1311.111111
A74: HD2065Pb4-Cc | B74: 2690.957447
A75: HD2074Pb1-Cc2
A76: HD2074Pb1-Cc3 | B76: 44827.58621
A77: HD2074Pb2-Cc1 | B77: 1224.369748
A78: HD2074Pb2-Cc2 | B78: 717.9816514
A79: HD2074Pb2-Op | B79: 407.6923077
A80: HD2089APb1-Cc1 | B80: 49625
A81: HD2089APb1-Cc2a
A82: HD2089APb1-Cc2b | B82: 50026.66667
A83: HD2089APb1-Cc2c | B83: 69911.11111
A84: HD2089APb1-Cc3 | B84: 646.6199412
A85: HD2089APb2-Cc | B85: 1969.879518
A86: HD2092Pb1-Cc | B86: 375
A87: HD2098Pb3-Cc | B87: 1093.6
A88: HD2109Pb1-Cc | B88: 2082.608696
A89: HD2155Pb1-Cc | B89: 121400
A90: HD2177Pb1-Cc | B90: 7295.66787
A91: HD2177Pb2-Cc | B91: 135.9591837
A92: HD2227Pb1-Cc | B92: 250
A93: HD2231Pb1-Cc | B93: 385.85209
A94: HD2233Pb1-Ch1e | B94: 255.450237
A95: HD2233Pb1-Ch2 | B95: 1986198.547
A96: HD2233Pb2-Ch1 | B96: 139.3213573
A97: HD2233Pb2-Ch2 | B97: 1153386.454
A100: Sample | B100: Difference
A101: Number | B101: Percentage
A102: HD2098Pb3-Cc | B102: 1093.6
A103: HD2074Pb2-Cc1 | B103: 1224.369748
A104: HD2055Pb11-Cc | B104: 1245.733788
A105: HD2062Pb2-Cc | B105: 1311.111111
A106: HD2055Pb12-Op | B106: 1466.666667
A107: HD2055Pb12-Cc | B107: 1583.673469
A108: HD2089APb2-Cc | B108: 1969.879518
A109: HD2109Pb1-Cc | B109: 2082.608696
A110: HD2065Pb4-Cc | B110: 2690.957447
A111: HD2177Pb1-Cc | B111: 7295.66787
A112: HD2059Pb4-Cc | B112: 7962.962963
A113: HD2062Pb1-Cc | B113: 12772.03647
A114: HD2074Pb1-Cc3 | B114: 44827.58621
A115: HD2089APb1-Cc1 | B115: 49625
A116: HD2089APb1-Cc2b | B116: 50026.66667
A117: HD2089APb1-Cc2c | B117: 69911.11111
A118: HD2155Pb1-Cc | B118: 121400
A119: HD2055Pb11-Op | B119: 195100
A120: HD2233Pb2-Ch2 | B120: 1153386.454
A121: HD2233Pb1-Ch2 | B121: 1986198.547

Sheet Amelin-G
E1: Pb-206/U-238 | F1: Pb-207/U-235 | G1: Pb-207/U-235 | H1: 207-Pb/206-Pb | I1: Maximum Age | J1: Minimum Age | K1: Difference | L1: Difference | N1: Sample | O1: Maximum Age | P1: Minimum Age | Q1: Difference | R1: Difference
E2: Million Years | F2: Million Years | G2: Million Years | H2: Million Years | I2: Million Years | J2: Million Years | K2: Million Years | L2: Percentage | N2: Number | O2: Million Years | P2: Million Years | Q2: Million Years | R2: Percentage
A3: 1 | B3: AL#5 | C3: 00-28.5 | D3: Cdy-1(1) | E3: 7.245 | F3: 6.243 | G3: 6.29 | H3: -366 | I3: 7.245 | J3: -366 | K3: =(I3-J3) -> 373.245 | L3: =ABS((J3/I3)*100) -> 5051.759834 | N3: 1 | O3: 7.245 | P3: -366 | Q3: =(O3-P3) -> 373.245 | R3: =ABS((P3/O3)*100) -> 5051.759834
A4: 2 | B4: AL#5 | C4: 00-28.5 | D4: Op-1a(1) | E4: 6.587 | F4: 5.731 | G4: 5.777 | H4: -341 | I4: 6.587 | J4: -341 | K4: =(I4-J4) -> 347.587 | L4: =ABS((J4/I4)*100) -> 5176.863519 | N4: 2 | O4: 6.587 | P4: -341 | Q4: =(O4-P4) -> 347.587 | R4: =ABS((P4/O4)*100) -> 5176.863519
A5: 3 | B5: AL#5 | C5: 00-28.5 | D5: Op-2a(1) | E5: 5.965 | F5: 5.731 | G5: 5.778 | H5: -91 | I5: 5.965 | J5: -91 | K5: 96.965 | L5: 1525.565801 | N5: 3 | O5: 5.965 | P5: -91 | Q5: 96.965 | R5: 1525.565801
A6: 4 | B6: ECRB | C6: 2025-01-01 | D6: Op-1(1) | E6: 0.748 | F6: 0.721 | G6: 0.768 | H6: -90 | I6: 0.768 | J6: -90 | K6: 90.768 | L6: 11718.75 | N6: 4 | O6: 0.768 | P6: -90 | Q6: 90.768 | R6: 11718.75
A7: 5 | B7: ECRB | C7: 07-40.5 | D7: Op-1(1) | E7: 2.211 | F7: 0.98 | G7: 1.028 | H7: -2546 | I7: 2.211 | J7: -2546 | K7: 2548.211 | L7: 115151.5152 | N7: 5 | O7: 2.211 | P7: -2546 | Q7: 2548.211 | R7: 115151.5152
A8: 6 | B8: ECRB | C8: 07-40.5 | D8: Op-2(1) | E8: 1.586 | F8: 0.618 | G8: 0.665 | H8: -3144 | I8: 1.586 | J8: -3144 | K8: 3145.586 | L8: 198234.5523 | N8: 6 | O8: 1.586 | P8: -3144 | Q8: 3145.586 | R8: 198234.5523
A9: 7 | B9: ECRB | C9: 14-49 | D9: Op-1(1) | E9: 3.266 | F9: 1.176 | G9: 1.223 | H9: -3560 | I9: 3.266 | J9: -3560 | K9: 3563.266 | L9: 109001.8371 | N9: 7 | O9: 3.266 | P9: -3560 | Q9: 3563.266 | R9: 109001.8371
A10: 8 | B10: ESF | C10: 1944-04-01 | D10: Op-1(1) | E10: 4.708 | F10: 4.161 | G10: 4.208 | H10: -303 | I10: 4.708 | J10: -303 | K10: 307.708 | L10: 6435.853866 | N10: 8 | O10: 4.708 | P10: -303 | Q10: 307.708 | R10: 6435.853866
A11: 9 | B11: ESF | C11: 04-73.4 | D11: Op-1(1) | E11: 9.375 | F11: 9.011 | G11: 9.057 | H11: -87 | I11: 9.375 | J11: -87 | K11: 96.375 | L11: 928 | N11: 9 | O11: 9.375 | P11: -87 | Q11: 96.375 | R11: 928
A12: 10 | B12: ESF | C12: 05-09.1 | D12: Op-1(1) | E12: 3.676 | F12: 0.861 | G12: 0.907 | H12: 0 | I12: 3.676 | J12: 0.861 | K12: 2.815 | L12: 23.42219804 | N12: 10 | O12: 3.676 | P12: 0.861 | Q12: 2.815 | R12: 23.42219804
A13: 11 | B13: ESF | C13: 05-57.1 | D13: Cdy-1(1) | N13: 11
A14: 12 | B14: ESF | C14: 05-57.1 | D14: Cdy-1(2) | E14: 3.346 | F14: 2.799 | G14: 2.847 | H14: -446 | I14: 3.346 | J14: -446 | K14: 449.346 | L14: 13329.34848 | N14: 12 | O14: 3.346 | P14: -446 | Q14: =(O14-P14) -> 449.346 | R14: =ABS((P14/O14)*100) -> 13329.34848
A15: 13 | B15: ESF | C15: 05-57.1 | D15: Cdy-2(1) | E15: 6.785 | F15: 4.437 | G15: 4.485 | H15: -1142 | I15: 6.785 | J15: -1142 | K15: 1148.785 | L15: 16831.24539 | N15: 13 | O15: 6.785 | P15: -1142 | Q15: 1148.785 | R15: 16831.24539
A16: 14 | B16: ESF | C16: 13-19 | D16: Cdy-2(1) | E16: 4.879 | F16: 3.951 | G16: 3.999 | H16: -531 | I16: 4.879 | J16: -531 | K16: 535.879 | L16: 10883.37774 | N16: 14 | O16: 4.879 | P16: -531 | Q16: 535.879 | R16: 10883.37774
A17: 15 | B17: ESF | C17: 13-19 | D17: Op-1(1) | E17: 3.063 | F17: 1.647 | G17: 1.695 | H17: -1792 | I17: 3.063 | J17: -1792 | K17: 1795.063 | L17: 58504.73392 | N17: 15 | O17: 3.063 | P17: -1792 | Q17: 1795.063 | R17: 58504.73392
A18: 16 | B18: ESF | C18: 27-84 | D18: Op-1(1) | E18: 3.107 | F18: 1.905 | G18: 1.952 | H18: -1348 | I18: 3.107 | J18: -1348 | K18: 1351.107 | L18: 43385.9028 | N18: 16 | O18: 3.107 | P18: -1348 | Q18: 1351.107 | R18: 43385.9028
A19: 17 | B19: ESF | C19: 27-84 | D19: Op-1(2) | E19: 2.971 | F19: 1.837 | G19: 1.885 | H19: -1321 | I19: 2.971 | J19: -1321 | K19: 1323.971 | L19: 44463.14372 | N19: 17 | O19: 2.971 | P19: -1321 | Q19: 1323.971 | R19: 44463.14372
A20: 18 | B20: ESF | C20: 27-84 | D20: Op-1(3) | E20: 2.983 | F20: 1.905 | G20: 1.953 | H20: -1219 | I20: 2.983 | J20: -1219 | K20: 1221.983 | L20: 40864.90111 | N20: 18 | O20: 2.983 | P20: -1219 | Q20: 1221.983 | R20: 40864.90111
A21: 19 | B21: ESF | C21: 27-84 | D21: Op-2(1) | E21: 1.876 | F21: 0.697 | G21: 0.744 | H21: -3388 | I21: 1.876 | J21: -3388 | K21: 3389.876 | L21: 180597.0149 | N21: 19 | O21: 1.876 | P21: -3388 | Q21: 3389.876 | R21: 180597.0149
A22: 20 | B22: ESF | C22: 27-84 | D22: Op-2(2) | E22: 2.173 | F22: 0.945 | G22: 0.991 | H22: -2630 | I22: 2.173 | J22: -2630 | K22: 2632.173 | L22: 121030.8329 | N22: 20 | O22: 2.173 | P22: -2630 | Q22: 2632.173 | R22: 121030.8329
A23: 21 | B23: ESF | C23: 27-84 | D23: Op-3(1) | E23: 6.07 | F23: 5.272 | G23: 5.319 | H23: -346 | I23: 6.07 | J23: -346 | K23: 352.07 | L23: 5700.164745 | N23: 21 | O23: 6.07 | P23: -346 | Q23: 352.07 | R23: 5700.164745
A24: 22 | B24: ESF | C24: 27-84 | D24: Op-3a(1) | E24: 3.247 | F24: 1.924 | G24: 1.972 | H24: -1457 | I24: 3.247 | J24: -1457 | K24: 1460.247 | L24: 44872.18971 | N24: 22 | O24: 3.247 | P24: -1457 | Q24: 1460.247 | R24: 44872.18971
A25: 23 | B25: ESF | C25: 27-84 | D25: Op-4a(1) | E25: 1.909 | F25: 0.672 | G25: 0.718 | H25: -3690 | I25: 1.909 | J25: -3690 | K25: 3691.909 | L25: 193294.9188 | N25: 23 | O25: 1.909 | P25: -3690 | Q25: 3691.909 | R25: 193294.9188
A26: 24 | B26: ESF | C26: 27-84 | D26: Op-5a(1) | E26: 2.629 | F26: 1.356 | G26: 1.404 | H26: -1942 | I26: 2.629 | J26: -1942 | K26: 1944.629 | L26: 73868.39102 | N26: 24 | O26: 2.629 | P26: -1942 | Q26: 1944.629 | R26: 73868.39102
A27: 25 | B27: ESF | C27: 27-84 | D27: Op-6a(1) | E27: 2.636 | F27: 0.342 | G27: 0.389 | H27: 0 | I27: 2.636 | J27: 0.342 | K27: 2.294 | L27: 12.97420334 | N27: 25 | O27: 2.636 | P27: 0.342 | Q27: 2.294 | R27: 12.97420334
A28: 26 | B28: ESF | C28: 28-80 | D28: Op-1(1) | E28: 3.291 | F28: 3.246 | G28: 3.294 | H28: -30 | I28: 3.294 | J28: -30 | K28: 33.294 | L28: 910.7468124 | N28: 26 | O28: 3.294 | P28: -30 | Q28: 33.294 | R28: 910.7468124
A29: 27 | B29: ESF | C29: 28-80 | D29: Op-1(2) | E29: 3.878 | F29: 3.83 | G29: 3.877 | H29: -27 | I29: 3.878 | J29: -27 | K29: 30.878 | L29: 696.2351728 | N29: 27 | O29: 3.878 | P29: -27 | Q29: 30.878 | R29: 696.2351728
A30: 28 | B30: ESF | C30: 28-80 | D30: Op-1(3) | E30: 3.804 | F30: 3.798 | G30: 3.845 | H30: 0 | I30: 3.845 | J30: 3.798 | K30: 0.047 | L30: 98.77763329 | N30: 28 | O30: 3.845 | P30: 3.798 | Q30: 0.047 | R30: 98.77763329
A31: 29 | B31: ESF | C31: 28-80 | D31: Op-2(1) | E31: 1.033 | F31: 0.275 | G31: 0.322 | H31: 0 | I31: 1.033 | J31: 0.275 | K31: 0.758 | L31: 26.6214908 | N31: 29 | O31: 1.033 | P31: 0.275 | Q31: 0.758 | R31: 26.6214908
A32: 30 | B32: ESF | C32: 28-80 | D32: Op-2(2) | E32: 1.183 | F32: 0.329 | G32: 0.376 | H32: 0 | I32: 1.183 | J32: 0.329 | K32: 0.854 | L32: 27.81065089 | N32: 30 | O32: 1.183 | P32: 0.329 | Q32: 0.854 | R32: 27.81065089
A33: 31 | B33: ESF | C33: 2011-11-29 | D33: Op-1(1) | E33: 1.963 | F33: 0.371 | G33: 0.418 | H33: 0 | I33: 1.963 | J33: 0.371 | K33: 1.592 | L33: 18.8996434 | N33: 31 | O33: 1.963 | P33: 0.371 | Q33: 1.592 | R33: 18.8996434
A34: 32 | B34: ESF | C34: 2011-11-29 | D34: Op-2(1) | E34: 2.842 | F34: 1.142 | G34: 1.19 | H34: -2991 | I34: 2.842 | J34: -2991 | K34: 2993.842 | L34: 105242.7868 | N34: 32 | O34: 2.842 | P34: -2991 | Q34: 2993.842 | R34: 105242.7868
A35: 33 | B35: ESF | C35: 32-31 | D35: Cdy-1(1) | E35: 9.639 | F35: 7.892 | G35: 7.938 | H35: -498 | I35: 9.639 | J35: -498 | K35: 507.639 | L35: 5166.511049 | N35: 33 | O35: 9.639 | P35: -498 | Q35: 507.639 | R35: 5166.511049
A36: 34 | B36: ESF | C36: 60-52.5 | D36: Op-1(1) | E36: 2.431 | F36: 0.828 | G36: 0.875 | H36: -3879 | I36: 2.431 | J36: -3879 | K36: 3881.431 | L36: 159563.9654 | N36: 34 | O36: 2.431 | P36: -3879 | Q36: 3881.431 | R36: 159563.9654
A37: 35 | B37: ESF | C37: 60-52.5 | D37: Op-1(2) | E37: 2.544 | F37: 0.646 | G37: 0.693 | H37: 0 | I37: 2.544 | J37: 0.646 | K37: 1.898 | L37: 25.39308176 | N37: 35 | O37: 2.544 | P37: 0.646 | Q37: 1.898 | R37: 25.39308176
A38: 36 | B38: ESF | C38: 64-95 | D38: Op-1(1) | E38: 4.324 | F38: 4.132 | G38: 4.18 | H38: -107 | I38: 4.324 | J38: -107 | K38: 111.324 | L38: 2474.560592 | N38: 36 | O38: 4.324 | P38: -107 | Q38: 111.324 | R38: 2474.560592
A39: 37 | B39: ESF | C39: 67-81 | D39: Op-1(1) | E39: 5.965 | F39: 5.593 | G39: 5.639 | H39: -152 | I39: 5.965 | J39: -152 | K39: 157.965 | L39: 2548.197821 | N39: 37 | O39: 5.965 | P39: -152 | Q39: 157.965 | R39: 2548.197821
A40: 38 | B40: ESF | C40: 72-25 | D40: Op-1(1) | E40: 3.761 | F40: 2.852 | G40: 2.9 | H40: -712 | I40: 3.761 | J40: -712 | K40: 715.761 | L40: 18931.13534 | N40: 38 | O40: 3.761 | P40: -712 | Q40: 715.761 | R40: 18931.13534
A41: 39 | B41: ESF | C41: 76-59.5 | D41: Op-1(1) | E41: 11.174 | F41: 7.741 | G41: 7.787 | H41: -966 | I41: 11.174 | J41: -966 | K41: 977.174 | L41: 8645.06891 | N41: 39 | O41: 11.174 | P41: -966 | Q41: 977.174 | R41: 8645.06891
A42: 40 | B42: ESF | C42: 76-59.5 | D42: Op-2(1) | E42: 2.167 | F42: 0.665 | G42: 0.712 | H42: 0 | I42: 2.167 | J42: 0.665 | K42: 1.502 | L42: 30.68758653 | N42: 40 | O42: 2.167 | P42: 0.665 | Q42: 1.502 | R42: 30.68758653
A43: 41 | B43: ESF | C43: 76-59.5 | D43: Op-2(2) | E43: 1.843 | F43: 0.877 | G43: 0.924 | H43: -2252 | I43: 1.843 | J43: -2252 | K43: 2253.843 | L43: 122192.0781 | N43: 41 | O43: 1.843 | P43: -2252 | Q43: 2253.843 | R43: 122192.0781
H46: Yuri Amelin
H47: Geochemica Et Cosmochemica Acta
H48: Volume 67, Number 6, Pages 1145 – 1176
H49: Silica Mineral Formation
H50: 2003
H51: Amelin-G
H52: Opals, Nevada

Sheet Below_Zero
A1: Sample | B1: Age | C1: Age | D1: Percetage
A2: Number | B2: Billion Years | C2: Billion Years | D2: Difference | G2: Author | H2: Anne H. Peslier
A3: AL-40 | C3: 0.08 | G3: Journal | H3: Geochimica et Cosmochimica Acta
A4: AL-42 | B4: Less Than 0 | C4: 0.46 | D4: =(C4/0.0001) -> 4600 | G4: Edition | H4: Volume 64, Number 17, Pages 3061–3071
A5: AL-46 | C5: Less Than 0 | G5: Title | H5: Northern Canadian Cordillera
A6: AL-47 | C6: 0.5 | G6: Year | H6: 2000
A7: AL-70 | G7: Spreadsheet | H7: Below_Zero
A8: AL-75 | B8: Less Than 0 | C8: 0.43 | D8: =(C8/0.0001) -> 4300 | G8: Mineral, Location | H8: Canada
A9: AL-76a | B9: Less Than 0 | C9: 0.1 | D9: =(C9/0.0001) -> 1000
A10: AL-86 | B10: Less Than 0 | C10: 0.52 | D10: =(C10/0.0001) -> 5200 | G10: Negative Dates! Future Ages!
A11: AL-88 | B11: 0.32 | C11: Less Than 0 | D11: =(B11/0.0001) -> 3200 | G11: Ages less than ZERO!
A12: AL-41 | B12: Less Than 0 | C12: 0.48 | D12: =(C12/0.0001) -> 4800
A13: AL-49 | C13: 1.11
A14: AL-52 | B14: Less Than 0 | C14: 0.22 | D14: =(C14/0.0001) -> 2200
A15: AL-53 | C15: 0.52
A16: AL-54 | B16: 0.55 | C16: 0.35
A17: AL-56 | B17: 2.4 | C17: 0.25
A18: XLG-30N | B18: < 4.5 | C18: 0.63
A19: XLG-29A | B19: Less Than 0 | C19: 0.92 | D19: =(C19/0.0001) -> 9200
A20: XLG-12A | B20: Less Than 0 | C20: Less Than 0
A21: XLG-25A | B21: 0.54 | C21: Less Than 0 | D21: =(B21/0.0001) -> 5400
A22: RRX-19 | B22: 0.68 | C22: 0.64
A23: RRX-21 | B23: 0.61 | C23: 0.51
A24: KLX-47 | B24: Less Than 0 | C24: 0.33 | D24: =(C24/0.0001) -> 3300
A25: KRX-11b | B25: 0.84 | C25: 0.75
A26: BTX-26b | B26: Less Than 0 | C26: Less Than 0

Sheet Birck
A1: Meteorite | B1: Age
B2: Billion Years
A3: Canyon Diablo | D3: J. L. Birck
A4: Troilite 0 | B4: 3.42 | D4: Meteoritics And Planetary Science
A5: Troilite 1 | B5: 1.63 | D5: Volume 33, Pages 641 - 453
A6: Troilite 2 | B6: 1.89 | D6: Rhenium-187-Osmium-187 in iron meteorites
A7: Troilite 3 | B7: 2.54 | D7: 1998
A8: Troilite 4 | B8: 1.13
A9: Leach Acetone | B9: 5.73
A10: Leach H,O | B10: 8.31
A11: Leach HCI 0.04N | B11: 1.49
A12: Troilite dissolved | B12: 10.43
A13: Metal 1 | B13: 13.7
A14: Sardis
A15: Troilite 3 | B15: 1.05
A16: Troilite 4 | B16: 0.42
A17: St. Severin
A18: Troilite | B18: 3.34
A23: Meteorite | B23: Age
A24: Name | B24: Billion Years
A25: Canyon Diablo
A26: Leach Acetone | B26: 5.73
A27: Leach H,O | B27: 8.31
A28: Troilite dissolved | B28: 10.43
A29: Metal 1 | B29: 13.7
A35: Osmium 186/188 | B35: Osmium 187/188 | C35: Osmium 187/186
B36: 0.14163
A37: 0.11981 | B37: 0.14173 | C37: =(B37/A37) -> 1.182956348
A38: 0.11983 | B38: 0.14171 | C38: =(B38/A38) -> 1.182592005
A39: 0.11986 | B39: 0.14162 | C39: =(B39/A39) -> 1.181545136
B40: 0.14167
A41: 0.11983 | B41: 0.14169 | C41: =(B41/A41) -> 1.182425102
A42: 0.11997 | B42: 0.16901 | C42: =(B42/A42) -> 1.408768859
B43: 0.16883
A44: 0.11991 | B44: 0.1689 | C44: =(B44/A44) -> 1.408556417
B45: 0.16893
A46: 0.119812 | B46: 0.120912 | C46: =(B46/A46) -> 1.00918105
A47: 0.119827 | B47: 0.12096 | C47: =(B47/A47) -> 1.009455298
B48: 0.120942
B49: 0.13584
A50: 0.11982 | B50: 0.13427 | C50: =(B50/A50) -> 1.120597563
B51: 0.13542
B52: 0.18361
A53: 0.11979 | B53: 0.18171 | C53: =(B53/A53) -> 1.516904583
B54: 0.12919
B55: 0.12943
B56: 0.12896
A57: 0.11978 | B57: 0.1296 | C57: =(B57/A57) -> 1.081983637
B58: 0.12926
A64: Osmium | B64: Today | C64: The | D64: Step | E64: Age | F64: Age | G64: Age
A65: Dating | B65: 187Os/186Os | C65: Ratio | D65: Two | E65: Years | F65: Million Years | G65: Billion Years
B66: 1.182956348 | C66: =(1.04-B66) -> -0.1429563476 | D66: =(C66/0.050768) -> -2.815875109 | E66: =(D66 * 1000000000) -> -2815875109 | F66: =(E66/1000000) -> -2815.875109 | G66: =(F66/1000) -> -2.815875109
B67: 1.182592005 | C67: =(1.04-B67) -> -0.1425920053 | D67: =(C67/0.050768) -> -2.808698498 | E67: =(D67 * 1000000000) -> -2808698498 | F67: =(E67/1000000) -> -2808.698498 | G67: =(F67/1000) -> -2.808698498
B68: 1.181545136 | C68: -0.141545136 | D68: -2.788077844 | E68: -2788077844 | F68: -2788.077844 | G68: -2.788077844
B69: 1.182425102 | C69: -0.1424251022 | D69: -2.805410933 | E69: -2805410933 | F69: -2805.410933 | G69: -2.805410933
B70: 1.408768859 | C70: -0.3687688589 | D70: -7.263805131 | E70: -7263805131 | F70: -7263.805131 | G70: -7.263805131
B71: 1.408556417 | C71: -0.3685564173 | D71: -7.259620574 | E71: -7259620574 | F71: -7259.620574 | G71: -7.259620574
B72: 1.00918105 | C72: 0.03081894969 | D72: 0.6070546346 | E72: 607054634.6 | F72: 607.0546346 | G72: 0.6070546346
B73: 1.009455298 | C73: 0.03054470195 | D73: 0.6016526541 | E73: 601652654.1 | F73: 601.6526541 | G73: 0.6016526541
B74: 1.120597563 | C74: -0.08059756301 | D74: -1.587566243 | E74: -1587566243 | F74: -1587.566243 | G74: -1.587566243
B75: 1.516904583 | C75: -0.476904583 | D75: -9.393802849 | E75: -9393802849 | F75: -9393.802849 | G75: -9.393802849
B76: 1.081983637 | C76: -0.04198363667 | D76: -0.826970467 | E76: -826970467 | F76: -826.970467 | G76: -0.826970467

Sheet Bogard-A
A1: Sample | B1: Age | C1: Error Level | R1: 1.55 | S1: 5.32
B2: Billion Years | C2: Billion Years | D2: =(A3) -> 1. Bondoc | H2: Meteorite | I2: Maximum Age | J2: Minimum Age | K2: Average Age | L2: Age Difference | M2: Percentage | N2: Standard Deviation | R2: 1.77 | S2: 5.48
A3: 1. Bondoc | D3: Maximum Age | E3: 4.02 | F3: Billion Years | H3: Name | I3: Billion Years | J3: Billion Years | K3: Billion Years | L3: Billion Years | M3: Difference | N3: Billion Years | R3: 1.8 | S3: 5.52
A4: 300 | B4: 4.02 | C4: 0.09 | D4: Minimum Age | E4: 3.2 | F4: Billion Years | H4: 1. Bondoc | I4: 4.02 | J4: 3.2 | K4: 3.56 | L4: 0.82 | M4: 1.25625 | N4: 0.199 | R4: 1.82 | S4: 6.14
A5: 400 | B5: 3.2 | C5: 0.42 | D5: Average Age | E5: 3.56 | F5: Billion Years | H5: 2. Budulan Plag. | I5: 4.3 | J5: 3.18 | K5: 3.8 | L5: 1.12 | M5: 1.352201258 | N5: 0.221 | R5: 2.26 | S5: 6.23
A6: 500 | B6: 3.4 | C6: 0.33 | D6: Age Difference | E6: =(E3-E4) -> 0.82 | F6: Billion Years | H6: 3. Emery | I6: 9.08 | J6: 3.31 | K6: 4.11 | L6: 5.77 | M6: 2.743202417 | N6: 0.183 | R6: 2.39 | S6: 7.36
A7: 600 | B7: 3.49 | C7: 0.36 | D7: Difference | E7: =(E3/E4) -> 1.25625 | F7: Percent | H7: 4. Estherville | I7: 13.96 | J7: 3.18 | K7: 4.53 | L7: 10.78 | M7: 4.389937107 | N7: 0.198 | R7: 2.42 | S7: 7.67
A8: 700 | B8: 3.57 | C8: 0.29 | D8: Standard Deviation | E8: 0.199 | F8: Billion Years | H8: 5. Hainholz | I8: 5.48 | J8: 1.55 | K8: 3.53 | L8: 3.93 | M8: 3.535483871 | N8: 0.685 | R8: 2.53 | S8: 7.92
A9: 850 | B9: 3.66 | C9: 0.25 | H9: 6. Lowicz | I9: 9.93 | J9: 2.92 | K9: 4.21 | L9: 7.01 | M9: 3.400684932 | N9: 0.263 | R9: 2.54 | S9: 8.43
A10: 1000 | B10: 3.53 | C10: 0.26 | H10: 7. Morristown | I10: 7.92 | J10: 3.6 | K10: 4.23 | L10: 4.32 | M10: 2.2 | N10: 1.24 | R10: 2.61 | S10: 9.08
A11: 1150 | B11: 3.62 | C11: 0.06 | H11: 8. Mount Padbury | I11: 5.52 | J11: 3.49 | K11: 3.8 | L11: 2.03 | M11: 1.581661891 | N11: 0.1 | R11: 2.67 | S11: 9.17
A12: 1300 | B12: 3.49 | C12: 0.07 | H12: 9. Patwar Basalt | I12: 6.14 | J12: 1.8 | K12: 3.6 | L12: 4.34 | M12: 3.411111111 | N12: 0.466 | R12: 2.68 | S12: 9.93
A13: 1500 | B13: 3.63 | C13: 0.07 | H13: 10. Patwar Gabbro | I13: 8.43 | J13: 2.67 | K13: 3.91 | L13: 5.76 | M13: 3.157303371 | N13: 0.224 | R13: 2.71 | S13: 10.92
A14: 1600 | B14: 3.55 | C14: 0.07 | H14: 11. Pinnaroo | I14: 3.74 | J14: 1.77 | K14: 2.86 | L14: 1.97 | M14: 2.11299435 | N14: 0.71 | R14: 2.76 | S14: 13.13
H15: 12. QUE-86900 | I15: 10.92 | J15: 3.24 | K15: 4.3 | L15: 7.68 | M15: 3.37037037 | N15: 0.2 | R15: 2.92 | S15: 13.96
D16: =(A17) -> 2. Budulan Plag. | H16: 13. Simondium | I16: 9.17 | J16: 3.27 | K16: 4.1 | L16: 5.9 | M16: 2.804281346 | N16: 0.151 | R16: 2.92
A17: 2. Budulan Plag. | D17: Maximum Age | E17: 4.3 | F17: Billion Years | H17: 14. Vaca Muerta Basalt | I17: 4.2 | J17: 3.33 | K17: 3.72 | L17: 0.87 | M17: 1.261261261 | N17: 0.06 | R17: 2.94
A18: 300 | B18: 4.3 | C18: 0.05 | D18: Minimum Age | E18: 3.18 | F18: Billion Years | H18: 15. Vaca Muerta Gabbro | I18: 4.41 | J18: 2.68 | K18: 3.63 | L18: 1.73 | M18: 1.645522388 | N18: 0.28 | R18: 3.02
A19: 500 | B19: 3.6 | C19: 0.07 | D19: Average Age | E19: 3.8 | F19: Billion Years | H19: 16. Veramin | I19: 13.13 | J19: 2.71 | K19: 4.57 | L19: 10.42 | M19: 4.84501845 | N19: 2.88 | R19: 3.06
A20: 650 | B20: 4.21 | C20: 0.08 | D20: Age Difference | E20: =(E17-E18) -> 1.12 | F20: Billion Years | R20: 3.07
A21: 750 | B21: 3.76 | C21: 0.05 | D21: Difference | E21: =(E17/E18) -> 1.352201258 | F21: Percent | R21: 3.08
A22: 850 | B22: 3.62 | C22: 0.05 | D22: Standard Deviation | E22: 0.221 | F22: Billion Years | R22: 3.11
A23: 950 | B23: 3.63 | C23: 0.06 | R23: 3.11
A24: 1000 | B24: 3.72 | C24: 0.06 | R24: 3.16
A25: 1050 | B25: 3.75 | C25: 0.06 | R25: 3.18
A26: 1100 | B26: 3.8 | C26: 0.07 | D26: D. D. Bogard | R26: 3.18
A27: 1150 | B27: 3.84 | C27: 0.07 | D27: Geochemica Et Cosmochemica Acta | R27: 3.2
A28: 1200 | B28: 3.93 | C28: 0.07 | D28: Volume 54, pages 2549-2564 | R28: 3.2
A29: 1300 | B29: 3.95 | C29: 0.07 | D29: Ar-39, Ar-40 Dating of Mesosiderites | R29: 3.2
A30: 1400 | B30: 3.95 | C30: 0.07 | D30: 1990 | R30: 3.24
A31: 1550 | B31: 3.85 | C31: 0.05 | R31: 3.24
A32: 1600 | B32: 3.18 | C32: 0.06 | R32: 3.24
R33: 3.24
D34: =(A35) -> 3. Emery | R34: 3.25
A35: 3. Emery | D35: Maximum Age | E35: 9.08 | F35: Billion Years | R35: 3.27
A36: 350 | B36: 9.08 | C36: 0.29 | D36: Minimum Age | E36: 3.31 | F36: Billion Years | R36: 3.28
A37: 500 | B37: 3.94 | C37: 0.05 | D37: Average Age | E37: 4.11 | F37: Billion Years | R37: 3.28
A38: 625 | B38: 3.31 | C38: 0.03 | D38: Age Difference | E38: =(E35-E36) -> 5.77 | F38: Billion Years | R38: 3.29
A39: 700 | B39: 3.36 | C39: 0.04 | D39: Difference | E39: =(E35/E36) -> 2.743202417 | F39: Percent | R39: 3.3
A40: 750 | B40: 3.56 | C40: 0.04 | D40: Standard Deviation | E40: 0.183 | F40: Billion Years | R40: 3.3
A41: 800 | B41: 3.61 | C41: 0.05 | R41: 3.31
A42: 850 | B42: 3.64 | C42: 0.06 | R42: 3.32
A43: 925 | B43: 3.7 | C43: 0.07 | R43: 3.33
A44: 1000 | B44: 3.78 | C44: 0.08 | R44: 3.33
A45: 1075 | B45: 3.86 | C45: 0.09 | R45: 3.36
A46: 1150 | B46: 3.84 | C46: 0.09 | R46: 3.36
A47: 1225 | B47: 3.89 | C47: 0.13 | R47: 3.37
A48: 1350 | B48: 4.09 | C48: 0.2 | R48: 3.38
A49: 1500 | B49: 4.07 | C49: 0.21 | R49: 3.38
A50: 1600 | B50: 4.01 | C50: 0.2 | R50: 3.38
R51: 3.39
D52: =(A53) -> 4. Estherville | R52: 3.4
A53: 4. Estherville | D53: Maximum Age | E53: 13.96 | F53: Billion Years | R53: 3.42
A54: 330 | B54: 13.96 | C54: 5.63 | D54: Minimum Age | E54: 3.18 | F54: Billion Years | R54: 3.42
A55: 450 | B55: 7.67 | C55: 0.69 | D55: Average Age | E55: 4.53 | F55: Billion Years | R55: 3.43
A56: 550 | B56: 3.24 | C56: 0.06 | D56: Age Difference | E56: =(E53-E54) -> 10.78 | F56: Billion Years | R56: 3.43
A57: 650 | B57: 3.18 | C57: 0.03 | D57: Difference | E57: =(E53/E54) -> 4.389937107 | F57: Percent | R57: 3.43
A58: 750 | B58: 3.44 | C58: 0.03 | D58: Standard Deviation | E58: 0.198 | F58: Billion Years | R58: 3.44
A59: 825 | B59: 3.38 | C59: 0.03 | R59: 3.45
A60: 875 | B60: 3.43 | C60: 0.03 | R60: 3.45
A61: 925 | B61: 3.47 | C61: 0.04 | R61: 3.47
A62: 975 | B62: 3.53 | C62: 0.04 | R62: 3.47
A63: 1025 | B63: 3.62 | C63: 0.05 | R63: 3.49
A64: 1075 | B64: 3.67 | C64: 0.05 | R64: 3.49
A65: 1125 | B65: 3.71 | C65: 0.06 | R65: 3.49
A66: 1200 | B66: 3.75 | C66: 0.06 | R66: 3.49
A67: 1300 | B67: 3.86 | C67: 0.11 | R67: 3.5
A68: 1550 | B68: 4.01 | C68: 0.1 | R68: 3.5
R69: 3.52
D70: =(A71) -> 5. Hainholz | R70: 3.53
A71: 5. Hainholz | D71: Maximum Age | E71: 5.48 | F71: Billion Years | R71: 3.53
A72: 300 | B72: 5.48 | C72: 0.12 | D72: Minimum Age | E72: 1.55 | F72: Billion Years | R72: 3.53
A73: 500 | B73: 2.92 | C73: 0.06 | D73: Average Age | E73: 3.53 | F73: Billion Years | R73: 3.54
A74: 700 | B74: 3.08 | C74: 0.05 | D74: Age Difference | E74: =(E71-E72) -> 3.93 | F74: Billion Years | R74: 3.54
A75: 850 | B75: 3.24 | C75: 0.06 | D75: Difference | E75: =(E71/E72) -> 3.535483871 | F75: Percent | R75: 3.55
A76: 950 | B76: 3.43 | C76: 0.07 | D76: Standard Deviation | E76: 0.685 | F76: Billion Years | R76: 3.55
A77: 1000 | B77: 1.55 | C77: 0.08 | R77: 3.55
A78: 1050 | B78: 3.62 | C78: 0.09 | R78: 3.56
A79: 1150 | B79: 3.71 | C79: 0.09 | R79: 3.56
A80: 1200 | B80: 3.81 | C80: 0.09 | R80: 3.57
A81: 1100 | B81: 3.84 | C81: 0.1 | R81: 3.58
A82: 1400 | B82: 3.84 | C82: 0.1 | R82: 3.59
A83: 1500 | B83: 3.88 | C83: 0.1 | R83: 3.59
R84: 3.59
D85: =(A86) -> 6. Lowicz | R85: 3.59
A86: 6. Lowicz | D86: Maximum Age | E86: 9.93 | F86: Billion Years | R86: 3.6
A87: 320 | B87: 9.93 | C87: 0.86 | D87: Minimum Age | E87: 2.92 | F87: Billion Years | R87: 3.6
A88: 450 | B88: 6.23 | C88: 0.28 | D88: Average Age | E88: 4.21 | F88: Billion Years | R88: 3.6
A89: 600 | B89: 2.92 | C89: 0.05 | D89: Age Difference | E89: =(E86-E87) -> 7.01 | F89: Billion Years | R89: 3.6
A90: 750 | B90: 3.07 | C90: 0.03 | D90: Difference | E90: =(E86/E87) -> 3.400684932 | F90: Percent | R90: 3.6
A91: 850 | B91: 3.3 | C91: 0.03 | D91: Standard Deviation | E91: 0.263 | F91: Billion Years | R91: 3.6
A92: 950 | B92: 3.42 | C92: 0.04 | R92: 3.6
A93: 1000 | B93: 3.55 | C93: 0.05 | R93: 3.61
A94: 1050 | B94: 3.68 | C94: 0.06 | R94: 3.62
A95: 1100 | B95: 3.69 | C95: 0.07 | R95: 3.62
A96: 1200 | B96: 3.69 | C96: 0.09 | R96: 3.62
A97: 1275 | B97: 3.84 | C97: 0.14 | R97: 3.62
A98: 1325 | B98: 3.85 | C98: 0.16 | R98: 3.62
A99: 1400 | B99: 3.86 | C99: 10.15 | R99: 3.62
A100: 1500 | B100: 3.89 | C100: 0.16 | R100: 3.63
R101: 3.63
D102: =(A103) -> 7. Morristown | R102: 3.64
A103: 7. Morristown | D103: Maximum Age | E103: 7.92 | F103: Billion Years | I103: 7. Morristown | R103: 3.64
A104: 300 | B104: 7.92 | C104: 0.17 | D104: Minimum Age | E104: 3.6 | F104: Billion Years | I104: 8. Mount Padbury | R104: 3.64
A105: 500 | B105: 4.29 | C105: 0.08 | D105: Average Age | E105: 4.23 | F105: Billion Years | I105: 9. Patwar Basalt | R105: 3.65
A106: 700 | B106: 3.76 | C106: 0.05 | D106: Age Difference | E106: =(E103-E104) -> 4.32 | F106: Billion Years | I106: 10. Patwar Gabbro | R106: 3.66
A107: 850 | B107: 3.6 | C107: 0.04 | D107: Difference | E107: =(E103/E104) -> 2.2 | F107: Percent | I107: 11. Pinnaroo | R107: 3.66
A108: 950 | B108: 3.66 | C108: 0.06 | D108: Standard Deviation | E108: 1.24 | F108: Billion Years | I108: 12. QUE-86900 | R108: 3.66
A109: 1000 | B109: 3.73 | C109: 0.09 | I109: 13. Simondium | R109: 3.66
A110: 1050 | B110: 3.81 | C110: 0.1 | I110: 14. Vaca Muerta Basalt | R110: 3.66
A111: 1100 | B111: 3.89 | C111: 0.19 | I111: 15. Vaca Muerta Gabbro | R111: 3.67
A112: 1150 | B112: 3.87 | C112: 0.16 | I112: 16. Veramin | R112: 3.67
A113: 1200 | B113: 3.92 | C113: 0.29 | R113: 3.67
A114: 1550 | B114: 4.1 | C114: 0.49 | R114: 3.67
R115: 3.68
D116: =(A117) -> 8. Mount Padbury | R116: 3.69
A117: 8. Mount Padbury | D117: Maximum Age | E117: 5.52 | F117: Billion Years | R117: 3.69
A118: 300 | B118: 5.52 | C118: 0.05 | D118: Minimum Age | E118: 3.49 | F118: Billion Years | R118: 3.69
A119: 500 | B119: 4.46 | C119: 0.21 | D119: Average Age | E119: 3.8 | F119: Billion Years | R119: 3.7
A120: 700 | B120: 3.88 | C120: 0.05 | D120: Age Difference | E120: =(E117-E118) -> 2.03 | F120: Billion Years | R120: 3.7
A121: 850 | B121: 3.6 | C121: 0.04 | D121: Difference | E121: =(E117/E118) -> 1.581661891 | F121: Percent | R121: 3.7
A122: 950 | B122: 3.49 | C122: 0.04 | D122: Standard Deviation | E122: 0.1 | F122: Billion Years | R122: 3.7
A123: 1000 | B123: 3.49 | C123: 0.04 | R123: 3.71
A124: 1050 | B124: 3.5 | C124: 0.05 | R124: 3.71
A125: 1100 | B125: 3.56 | C125: 0.06 | R125: 3.71
A126: 1150 | B126: 3.59 | C126: 0.1 | R126: 3.71
A127: 1200 | B127: 3.6 | C127: 0.11 | R127: 3.72
A128: 1250 | B128: 3.62 | C128: 0.11 | R128: 3.72
A129: 1350 | B129: 3.6 | C129: 0.12 | R129: 3.72
A130: 1550 | B130: 3.59 | C130: 0.07 | R130: 3.72
R131: 3.72
D132: =(A133) -> 9. Patwar Basalt | R132: 3.73
A133: 9. Patwar Basalt | D133: Maximum Age | E133: 6.14 | F133: Billion Years | R133: 3.74
A134: 300 | B134: 6.14 | C134: 0.1 | D134: Minimum Age | E134: 1.8 | F134: Billion Years | R134: 3.75
A135: 450 | B135: 2.76 | C135: 0.03 | D135: Average Age | E135: 3.6 | F135: Billion Years | R135: 3.75
A136: 600 | B136: 3.16 | C136: 0.03 | D136: Age Difference | E136: =(E133-E134) -> 4.34 | F136: Billion Years | R136: 3.75
A137: 750 | B137: 3.2 | C137: 0.03 | D137: Difference | E137: =(E133/E134) -> 3.411111111 | F137: Percent | R137: 3.76
A138: 850 | B138: 3.3 | C138: 0.03 | D138: Standard Deviation | E138: 0.466 | F138: Billion Years | R138: 3.76
A139: 950 | B139: 3.38 | C139: 0.03 | R139: 3.76
A140: 1050 | B140: 3.39 | C140: 0.04 | R140: 3.76
A141: 1150 | B141: 3.37 | C141: 0.05 | R141: 3.76
A142: 1250 | B142: 3.32 | C142: 0.06 | R142: 3.77
A143: 1350 | B143: 3.2 | C143: 0.16 | R143: 3.77
A144: 1450 | B144: 3.11 | C144: 0.25 | R144: 3.78
A145: 1600 | B145: 3.52 | C145: 0.09 | R145: 3.79
A146: 1660 | B146: 1.8 | C146: 0.11 | R146: 3.79
R147: 3.8
D148: =(A149) -> 10. Patwar Gabbro | R148: 3.8
A149: 10. Patwar Gabbro | D149: Maximum Age | E149: 8.43 | F149: Billion Years | R149: 3.8
A150: 300 | B150: 8.43 | C150: 0.39 | D150: Minimum Age | E150: 2.67 | F150: Billion Years | R150: 3.81
A151: 500 | B151: 2.67 | C151: 0.02 | D151: Average Age | E151: 3.91 | F151: Billion Years | R151: 3.81
A152: 700 | B152: 3.06 | C152: 0.02 | D152: Age Difference | E152: =(E149-E150) -> 5.76 | F152: Billion Years | R152: 3.81
A153: 900 | B153: 3.25 | C153: 0.02 | D153: Difference | E153: =(E149/E150) -> 3.157303371 | F153: Percent | R153: 3.83
A154: 1000 | B154: 3.45 | C154: 0.04 | D154: Standard Deviation | E154: 0.224 | F154: Billion Years | R154: 3.84
A155: 1075 | B155: 3.53 | C155: 0.04 | R155: 3.84
A156: 1150 | B156: 3.58 | C156: 0.05 | R156: 3.84
A157: 1225 | B157: 3.66 | C157: 0.07 | R157: 3.84
A158: 1300 | B158: 3.77 | C158: 0.12 | R158: 3.84
A159: 1375 | B159: 3.87 | C159: 0.1 | R159: 3.84
A160: 1450 | B160: 3.91 | C160: 0.07 | R160: 3.85
A161: 1525 | B161: 3.92 | C161: 0.06 | R161: 3.85
A162: 1600 | B162: 3.96 | C162: 0.06 | R162: 3.86
A163: 1700 | B163: 3.7 | C163: 0.07 | R163: 3.86
R164: 3.86
D165: =(A166) -> 11. Pinnaroo | R165: 3.87
A166: 11. Pinnaroo | D166: Maximum Age | E166: 3.74 | F166: Billion Years | R166: 3.87
A167: 300 | B167: 2.42 | C167: 0.01 | D167: Minimum Age | E167: 1.77 | F167: Billion Years | R167: 3.88
A168: 500 | B168: 2.39 | C168: 0.18 | D168: Average Age | E168: 2.86 | F168: Billion Years | R168: 3.88
A169: 700 | B169: 1.82 | C169: 0.08 | D169: Age Difference | E169: =(E166-E167) -> 1.97 | F169: Billion Years | R169: 3.89
A170: 850 | B170: 1.77 | C170: 0.02 | D170: Difference | E170: =(E166/E167) -> 2.11299435 | F170: Percent | R170: 3.89
A171: 950 | B171: 2.26 | C171: 0.02 | D171: Standard Deviation | E171: 0.71 | F171: Billion Years | R171: 3.89
A172: 1000 | B172: 2.54 | C172: 0.03 | R172: 3.91
A173: 1050 | B173: 2.53 | C173: 0.03 | R173: 3.92
A174: 1100 | B174: 2.61 | C174: 0.03 | R174: 3.92
A175: 1150 | B175: 3.24 | C175: 0.06 | R175: 3.93
A176: 1200 | B176: 3.6 | C176: 0.08 | R176: 3.94
A177: 1250 | B177: 3.67 | C177: 0.08 | R177: 3.94
A178: 1300 | B178: 3.7 | C178: 0.09 | R178: 3.95
A179: 1400 | B179: 3.74 | C179: 0.1 | R179: 3.95
A180: 1550 | B180: 3.71 | C180: 0.09 | R180: 3.96
R181: 3.98
D182: =(A183) -> 12. QUE-86900 | R182: 4.01
A183: 12. QUE-86900 | D183: Maximum Age | E183: 10.92 | F183: Billion Years | R183: 4.01
A184: 300 | B184: 10.92 | C184: 1.45 | D184: Minimum Age | E184: 3.24 | F184: Billion Years | R184: 4.02
A185: 500 | B185: 7.36 | C185: 0.21 | D185: Average Age | E185: 4.3 | F185: Billion Years | R185: 4.03
A186: 700 | B186: 3.28 | C186: 0.04 | D186: Age Difference | E186: =(E183-E184) -> 7.68 | F186: Billion Years | R186: 4.05
A187: 850 | B187: 3.28 | C187: 0.03 | D187: Difference | E187: =(E183/E184) -> 3.37037037 | F187: Percent | R187: 4.05
A188: 950 | B188: 3.24 | C188: 0.04 | D188: Standard Deviation | E188: 0.2 | F188: Billion Years | R188: 4.07
A189: 1000 | B189: 3.33 | C189: 0.05 | R189: 4.08
A190: 1050 | B190: 3.38 | C190: 0.06 | R190: 4.09
A191: 1100 | B191: 3.43 | C191: 0.06 | R191: 4.1
A192: 1150 | B192: 3.47 | C192: 0.07 | R192: 4.19
A193: 1200 | B193: 3.55 | C193: 0.08 | R193: 4.2
A194: 1250 | B194: 3.65 | C194: 0.13 | R194: 4.2
A195: 1300 | B195: 3.72 | C195: 0.31 | R195: 4.21
A196: 1400 | B196: 3.76 | C196: 0.27 | R196: 4.29
A197: 1550 | B197: 3.81 | C197: 0.11 | R197: 4.3
R198: 4.34
D199: =(A200) -> 13. Simondium | R199: 4.41
A200: 13. Simondium | D200: Maximum Age | E200: 9.17 | F200: Billion Years | R200: 4.46
... 60 more rows

Sheet Bogard-B
A1: Meteorite Dating
A4: 1 | B4: Age | C4: Error Level | D4: Meteorite Dating
A5: Wellman | B5: Billion Years | C5: Billion Years | D5: =(A5) -> Wellman
A6: 350 | B6: 5.2 | C6: 0.2 | D6: Maximum Age | E6: 5.2 | F6: Billion Years | H6: Meteor's | I6: Maximum Age | J6: Minimum Age | K6: Average Age | L6: Age Difference | M6: Percentage | N6: Billion Years
A7: 425 | B7: 3.737 | C7: 0.1049 | D7: Minimum Age | E7: 3.737 | F7: Billion Years | H7: Name | I7: Billion Years | J7: Billion Years | K7: Billion Years | L7: Billion Years | M7: Difference | N7: Standard Deviation
A8: 500 | B8: 4.301 | C8: 0.042 | D8: Average Age | E8: 4.31 | F8: Billion Years | H8: Wellman | I8: 5.2 | J8: 3.737 | K8: 4.31 | L8: 1.463 | M8: 1.3914905 | N8: 0.313
A9: 575 | B9: 4.244 | C9: 0.042 | D9: Age Difference | E9: =(E6-E7) -> 1.463 | F9: Billion Years | H9: Wickenburg | I9: 3.005 | J9: 0.568 | K9: 1.46 | L9: 2.437 | M9: 5.290492958 | N9: 0.883
A10: 635 | B10: 4.232 | C10: 0.042 | D10: Difference | E10: =(E6/E7) -> 1.3914905 | F10: Percent | H10: Shaw | I10: 5.15 | J10: 4.17 | K10: 4.375 | L10: 0.98 | M10: 1.23501199 | N10: 0.232
A11: 685 | B11: 4.273 | C11: 0.043 | D11: Standard Deviation | E11: 0.313 | F11: Billion Years | H11: Louisville | I11: 5.5 | J11: 0.51 | K11: 1.06 | L11: 4.99 | M11: 10.78431373 | N11: 0.256
A12: 735 | B12: 4.342 | C12: 0.042 | H12: Arapahoe | I12: 9.71 | J12: 0.89 | K12: 3.356 | L12: 8.82 | M12: 10.91011236 | N12: 2.365
A13: 785 | B13: 4.415 | C13: 0.042 | H13: Farmington | I13: 3.7 | J13: 0.511 | K13: 0.94 | L13: 3.189 | M13: 7.240704501 | N13: 0.831
A14: 835 | B14: 4.569 | C14: 0.1062 | D14: D. D. Bogard | H14: Lubbock | I14: 9.4 | J14: 0.12 | K14: 2.462 | L14: 9.28 | M14: 78.33333333 | N14: 0.809
A15: 925 | B15: 4.295 | C15: 0.043 | D15: Geochemica Et Cosmochemica Acta | H15: Orvinio | I15: 8.78 | J15: 0.764 | K15: 2.292 | L15: 8.016 | M15: 11.4921466 | N15: 2.106
A16: 1050 | B16: 4.309 | C16: 0.1042 | D16: Volume 44, pages 1667 to 1682
A17: 1200 | B17: 4.143 | C17: 0.045 | D17: Ar diffusion properties,
A18: 1350 | B18: 4.139 | C18: 0.055 | D18: 1980
A19: 1550 | B19: 4.22 | C19: 0.23
A20: 2 | D20: Meteorite Dating
A21: Wickenburg | D21: =(A21) -> Wickenburg
A22: 4511 | B22: 2.71 | C22: 0.11 | D22: Maximum Age | E22: 3.005 | F22: Billion Years
A23: 550 | B23: 1.16 | C23: 0.067 | D23: Minimum Age | E23: 0.568 | F23: Billion Years
A24: 640 | B24: 0.731 | C24: 0.032 | D24: Average Age | E24: 1.46 | F24: Billion Years
A25: 725 | B25: 0.629 | C25: 3021 | D25: Age Difference | E25: =(E22-E23) -> 2.437 | F25: Billion Years
A26: 810 | B26: 0.568 | C26: 0.015 | D26: Difference | E26: =(E22/E23) -> 5.290492958 | F26: Percent
A27: 890 | B27: 0.783 | C27: 0.032 | D27: Standard Deviation | E27: 0.883 | F27: Billion Years
A28: 980 | B28: 0.653 | C28: 0.024
A29: 1070 | B29: 0.774 | C29: 0.02
A30: 1160 | B30: 1.284 | C30: 0.028
A31: 1220 | B31: 1.499 | C31: 0.028
A32: 1270 | B32: 1.707 | C32: 0.056
A33: 1320 | B33: 2.173 | C33: 0.043
A34: 1370 | B34: 3.005 | C34: 0.081
A35: 1450 | B35: 2.84 | C35: 31
A36: 3 | D36: Meteorite Dating
A37: Shaw | D37: =(A37) -> Shaw
A38: 340 | B38: 4.17 | C38: 0.17 | D38: Maximum Age | E38: 5.15 | F38: Billion Years
A39: 425 | B39: 4.548 | C39: 0.069 | D39: Minimum Age | E39: 4.17 | F39: Billion Years
A40: 500 | B40: 4.586 | C40: 0.1379 | D40: Average Age | E40: 4.375 | F40: Billion Years
A41: 600 | B41: 4.434 | C41: 0.087 | D41: Age Difference | E41: =(E38-E39) -> 0.98 | F41: Billion Years
A42: 700 | B42: 4.38 | C42: 0.059 | D42: Difference | E42: =(E38/E39) -> 1.23501199 | F42: Percent
A43: 775 | B43: 4.295 | C43: 0.058 | D43: Standard Deviation | E43: 0.232 | F43: Billion Years
A44: 825 | B44: 4.311 | C44: 0.058
A45: 875 | B45: 4.313 | C45: 0.058
A46: 925 | B46: 4.294 | C46: 0.063
A47: 975 | B47: 4.273 | C47: 0.098
A48: 1050 | B48: 4.278 | C48: 0.065
A49: 1125 | B49: 4.273 | C49: 0.058
A50: 1200 | B50: 4.261 | C50: 0.06
A51: 1275 | B51: 4.266 | C51: 0.06
A52: 1375 | B52: 4.257 | C52: 0.064
A53: 1475 | B53: 4.294 | C53: 0.059
A54: 1620 | B54: 5.15 | C54: 0.09
A55: 4 | D55: Meteorite Dating
A56: Louisville | D56: =(A56) -> Louisville
A57: 300 | B57: 5.5 | C57: 0.42 | D57: Maximum Age | E57: 5.5 | F57: Billion Years
A58: 400 | B58: 2.21 | C58: 0.09 | D58: Minimum Age | E58: 0.51 | F58: Billion Years
A59: 500 | B59: 1.45 | C59: 0.05 | D59: Average Age | E59: 1.06 | F59: Billion Years
A60: 600 | B60: 0.747 | C60: 0.026 | D60: Age Difference | E60: =(E57-E58) -> 4.99 | F60: Billion Years
A61: 700 | B61: 0.613 | C61: 0.017 | D61: Difference | E61: =(E57/E58) -> 10.78431373 | F61: Percent
A62: 800 | B62: 0.501 | C62: 0.015 | D62: Standard Deviation | E62: 0.256 | F62: Billion Years
A63: 900 | B63: 0.501 | C63: 0.008
A64: 975 | B64: 0.51 | C64: 0.008
A65: 1050 | B65: 0.516 | C65: 0.008
A66: 1125 | B66: 0.52 | C66: 0.007
A67: 1200 | B67: 0.55 | C67: 0.011
A68: 1275 | B68: 0.566 | C68: 0.013
A69: 1350 | B69: 0.616 | C69: 0.02
A70: 1425 | B70: 0.662 | C70: 0.007
A71: 1500 | B71: 0.668 | C71: 0.12
A72: 1575 | B72: 0.95 | C72: 0.03
A73: 5 | D73: Meteorite Dating
A74: Arapahoe | D74: =(A74) -> Arapahoe
A75: 400 | B75: 9.71 | C75: 0.04 | D75: Maximum Age | E75: 9.71 | F75: Billion Years
A76: 500 | B76: 4.33 | C76: 0.04 | D76: Minimum Age | E76: 0.89 | F76: Billion Years
A77: 600 | B77: 3.22 | C77: 0.03 | D77: Average Age | E77: 3.356 | F77: Billion Years
A78: 700 | B78: 1.134 | C78: 0.019 | D78: Age Difference | E78: =(E75-E76) -> 8.82 | F78: Billion Years
A79: 775 | B79: 0.961 | C79: 0.018 | D79: Difference | E79: =(E75/E76) -> 10.91011236 | F79: Percent
A80: 875 | B80: 0.89 | C80: 0.02 | D80: Standard Deviation | E80: 2.365 | F80: Billion Years
A81: 975 | B81: 1.982 | C81: 0.034
A82: 1075 | B82: 3.353 | C82: 0.034
A83: 1150 | B83: 2.971 | C83: 0.31
A84: 1225 | B84: 3.394 | C84: 0.035
A85: 1300 | B85: 4.362 | C85: 0.053
A86: 1610 | B86: 3.97 | C86: 0.54
A87: 6 | D87: Meteorite Dating
A88: Farmington | D88: =(A88) -> Farmington
A89: 550 | B89: 1.435 | C89: 0.028 | D89: Maximum Age | E89: 3.7 | F89: Billion Years
A90: 625 | B90: 1.005 | C90: 0.044 | D90: Minimum Age | E90: 0.511 | F90: Billion Years
A91: 700 | B91: 0.537 | C91: 0.01 | D91: Average Age | E91: 0.94 | F91: Billion Years
A92: 775 | B92: 0.511 | C92: 0.009 | D92: Age Difference | E92: =(E89-E90) -> 3.189 | F92: Billion Years
A93: 850 | B93: 0.511 | C93: 0.009 | D93: Difference | E93: =(E89/E90) -> 7.240704501 | F93: Percent
A94: 925 | B94: 0.548 | C94: 0.01 | D94: Standard Deviation | E94: 0.831 | F94: Billion Years
A95: 1000 | B95: 0.766 | C95: 0.032
A96: 1075 | B96: 0.731 | C96: 0.033
A97: 1150 | B97: 0.618 | C97: 0.032
A98: 1225 | B98: 0.647 | C98: 0.042
A99: 1300 | B99: 0.702 | C99: 0.031
A100: 1375 | B100: 0.636 | C100: 0.087
A101: 1450 | B101: 0.811 | C101: 0.131
A102: 1610 | B102: 3.7 | C102: 2.3
A103: 7 | D103: Meteorite Dating
A104: Lubbock | D104: =(A104) -> Lubbock
A105: 340 | B105: 9.4 | C105: 0.2 | D105: Maximum Age | E105: 9.4 | F105: Billion Years
A106: 450 | B106: 5.82 | C106: 0.307 | D106: Minimum Age | E106: 0.12 | F106: Billion Years
A107: 555 | B107: 2.184 | C107: 0.032 | D107: Average Age | E107: 2.462 | F107: Billion Years
A108: 625 | B108: 1.507 | C108: 0.027 | D108: Age Difference | E108: =(E105-E106) -> 9.28 | F108: Billion Years
A109: 700 | B109: 1.407 | C109: 0.025 | D109: Difference | E109: =(E105/E106) -> 78.33333333 | F109: Percent
A110: 750 | B110: 1.07 | C110: 0.022 | D110: Standard Deviation | E110: 0.809 | F110: Billion Years
A111: 810 | B111: 0.99 | C111: 0.021
A112: 890 | B112: 0.953 | C112: 0.022
A113: 975 | B113: 0.1204 | C113: 0.032
A114: 1075 | B114: 1.412 | C114: 0.028
A115: 1150 | B115: 1.977 | C115: 0.035
A116: 1200 | B116: 2.342 | C116: 0.1036
A117: 1250 | B117: 2.495 | C117: 0.036
A118: 1300 | B118: 2.511 | C118: 0.035
A119: 1350 | B119: 2.299 | C119: 0.062
A120: 1425 | B120: 2.305 | C120: 0.45
A121: 1500 | B121: 3.07 | C121: 0.27 | J121: 0.1204
A122: 8 | D122: Meteorite Dating | J122: 0.501
A123: Orvinio | D123: =(A123) -> Orvinio | J123: 0.501
A124: 330 | B124: 8.78 | D124: Maximum Age | E124: 8.78 | F124: Billion Years | J124: 0.51
A125: 450 | B125: 4.79 | C125: 0.13 | D125: Minimum Age | E125: 0.764 | F125: Billion Years | J125: 0.511
A126: 550 | B126: 2.05 | C126: 0.06 | D126: Average Age | E126: 2.292 | F126: Billion Years | J126: 0.511
A127: 650 | B127: 0.916 | C127: 0.057 | D127: Age Difference | E127: =(E124-E125) -> 8.016 | F127: Billion Years | J127: 0.516
A128: 725 | B128: 0.764 | C128: 0.023 | D128: Difference | E128: =(E124/E125) -> 11.4921466 | F128: Percent | J128: 0.52
A129: 800 | B129: 1.243 | C129: 0.023 | D129: Standard Deviation | E129: 2.106 | F129: Billion Years | J129: 0.537
A130: 875 | B130: 0.879 | C130: 0.192 | J130: 0.548
A131: 975 | B131: 1.471 | C131: 0.074 | J131: 0.55
A132: 1075 | B132: 1.554 | C132: 0.04 | J132: 0.566
A133: 1150 | B133: 1.903 | C133: 0.08 | J133: 0.568
A134: 1250 | B134: 1.844 | C134: 0.035 | J134: 0.613
A135: 1325 | B135: 1.829 | C135: 0.033 | J135: 0.616
A136: 1305 | B136: 1.89 | C136: 0.07 | J136: 0.618
A137: 1450 | B137: 2.17 | C137: 0.13 | J137: 0.629
A138: 1550 | B138: =STDEV(B124:B137) -> 2.106389679 | C138: 0.13 | J138: 0.636
J139: 0.647
J140: 0.653
J141: 0.662
J142: 0.668
J143: 0.702
J144: 0.731
J145: 0.731
J146: 0.747
J147: 0.764
J148: 0.766
J149: 0.774
J150: 0.783
J151: 0.811
J152: 0.879
J153: 0.89
J154: 0.916
J155: 0.95
J156: 0.953
J157: 0.961
J158: 0.99
J159: 1.005
J160: 1.07
J161: 1.134
J162: 1.16
J163: 1.243
J164: 1.284
J165: 1.407
J166: 1.412
J167: 1.435
J168: 1.45
J169: 1.471
J170: 1.499
J171: 1.507
J172: 1.554
J173: 1.707
J174: 1.829
J175: 1.844
J176: 1.89
J177: 1.903
J178: 1.977
J179: 1.982
J180: 2.05
J181: =STDEV(J167:J180) -> 0.2272370597
J182: 2.17
J183: 2.173
J184: 2.184
J185: 2.21
J186: 2.299
J187: 2.305
J188: 2.342
J189: 2.495
J190: 2.511
J191: 2.71
J192: 2.84
J193: 2.971
J194: 3.005
J195: 3.07
J196: 3.22
J197: 3.353
J198: 3.394
J199: 3.7
J200: 3.737
J201: 3.97
J202: 4.139
... 37 more rows

Sheet Bogard-C
A1: Meteorite Dating | M1: Age | N1: Error
M2: Billion Years | N2: Billion Years
A3: Abee clast 1, 1, 04 | O3: =(A3) -> Abee clast 1, 1, 04
A4: 350 | B4: 4.36 | C4: 83.75 | D4: 0.85 | E4: 1.168 | F4: 0.013 | G4: 1.29 | H4: 0.031 | I4: 0.0884 | J4: 0.0019 | K4: 0.397 | L4: 0.009 | M4: 4.1 | N4: 0.02 | O4: Maximum Age | P4: 4530 | Q4: Million Years
A5: 450 | B5: 7.93 | C5: 102.3 | D5: 0.7 | E5: 0.525 | F5: 0.006 | G5: 1.102 | H5: 0.025 | I5: 0.0298 | J5: 0.0007 | K5: 0.465 | L5: 0.01 | M5: 4.43 | N5: 0.02 | O5: Minimum Age | P5: 3560 | Q5: Million Years
A6: 525 | B6: 6.64 | C6: 106.9 | D6: 0.7 | E6: 0.423 | F6: 0.005 | G6: 1.446 | H6: 0.042 | I6: 0.029 | J6: 0.0021 | K6: 0.354 | L6: 0.01 | M6: 4.5 | N6: 0.02 | O6: Average Age | P6: 4270 | Q6: Million Years
A7: 600 | B7: 10.22 | C7: 99.39 | D7: 0.51 | E7: 0.417 | F7: 0.004 | G7: 1.385 | H7: 0.031 | I7: 0.0257 | J7: 0.0007 | K7: 0.37 | L7: 0.008 | M7: 4.38 | N7: 0.02 | O7: Age Difference | P7: =(P4-P5) -> 970 | Q7: Million Years
A8: 650 | B8: 4.04 | C8: 101 | D8: 0.9 | E8: 0.448 | F8: 0.006 | G8: 1.153 | H8: 0.026 | I8: 0.0323 | J8: 0.001 | K8: 0.444 | L8: 0.01 | M8: 4.41 | N8: 0.02 | O8: Difference | P8: =(P4/P5) -> 1.27247191 | Q8: Percent
A9: 725 | B9: 2.07 | C9: 108 | D9: 0.7 | E9: 0.51 | F9: 0.006 | G9: 1.131 | H9: 0.036 | I9: 0.029 | J9: 0.0021 | K9: 0.453 | L9: 0.015 | M9: 4.52 | N9: 0.02 | O9: Standard Deviation | P9: 330 | Q9: Million Years
A10: 800 | B10: 14.11 | C10: 106.4 | D10: 0.5 | E10: 0.779 | F10: 0.006 | G10: 2.014 | H10: 0.034 | I10: 0.0409 | J10: 0.0019 | K10: 0.254 | L10: 0.004 | M10: 4.5 | N10: 0.02
A11: 875 | B11: 3.05 | C11: 108.5 | D11: 1.2 | E11: 0.826 | F11: 0.011 | G11: 2.03 | H11: 0.064 | I11: 0.0679 | J11: 0.0068 | K11: 0.252 | L11: 0.008 | M11: 4.53 | N11: 0.02
A12: 975 | B12: 4.1 | C12: 105.3 | D12: 1.4 | E12: 0.82 | F12: 0.015 | G12: 3.49 | H12: 0.11 | I12: 0.1035 | J12: 0.0029 | K12: 0.147 | L12: 0.005 | M12: 4.48 | N12: 0.03 | O12: D. D. Bogard
A13: 1090 | B13: 4.75 | C13: 99.9 | D13: 0.6 | E13: 0.991 | F13: 0.009 | G13: 10.8 | H13: 0.25 | I13: 0.375 | J13: 0.004 | K13: 0.047 | L13: 0.001 | M13: 4.39 | N13: 0.02 | O13: Earth and Planetary Science Letters
A14: 1250 | B14: 9.91 | C14: 84.96 | D14: 0.7 | E14: 1.131 | F14: 0.014 | G14: 6.63 | H14: 0.16 | I14: 1.122 | J14: 0.02 | K14: 0.077 | L14: 0.002 | M14: 4.13 | N14: 0.02 | O14: Volume 62, pages 132-146
A15: 1400 | B15: 3.01 | C15: 62.11 | D15: 2.18 | E15: 1.95 | F15: 0.07 | G15: 9.5 | H15: 0.4 | I15: 2.9 | J15: 0.11 | K15: 0.054 | L15: 0.002 | M15: 3.63 | N15: 0.06 | O15: U Th Pb dating of Abee E4 Meteorite
A16: 1500 | B16: 0.67 | C16: 59.5 | D16: 2.3 | E16: 3.17 | F16: 0.17 | G16: 11.4 | H16: 0.7 | I16: 5.25 | J16: 0.27 | K16: 0.045 | L16: 0.003 | M16: 3.56 | N16: 0.06 | O16: 1983
M17: =STDEV(M4:M16) -> 0.3308710338
A19: Abee clast 2, 2, 05 | M19: X | O19: =(A19) -> Abee clast 2, 2, 05
A20: 300 | B20: 300 | C20: 0.07 | D20: 522 | E20: 0.32 | G20: 4.75 | I20: 1.59 | K20: 0.11 | M20: 7.2 | O20: Maximum Age | P20: 7200 | Q20: Million Years
A21: 400 | B21: 400 | C21: 0.33 | D21: 131 | E21: 0.94 | G21: 2.61 | I21: 0.197 | K21: 0.2 | M21: 4.8 | O21: Minimum Age | P21: 3990 | Q21: Million Years
A22: 500 | B22: 99.22 | C22: 0.31 | D22: 0.464 | E22: 0.024 | F22: 1.7 | G22: 0.04 | H22: 0.0501 | I22: 0.0011 | J22: 0.302 | K22: 0.007 | M22: 4.33 | N22: 0.02 | O22: Average Age | P22: 4640 | Q22: Million Years
A23: 600 | B23: 109.8 | C23: 0.2 | D23: 0.35 | E23: 0.004 | F23: 1.03 | G23: 0.02 | H23: 0.0294 | I23: 0.0013 | J23: 0.498 | K23: 0.01 | M23: 4.5 | N23: 0.02 | O23: Age Difference | P23: =(P20-P21) -> 3210 | Q23: Million Years
A24: 675 | B24: 110.8 | C24: 0.2 | D24: 0.365 | E24: 0.003 | F24: 1.12 | G24: 0.02 | H24: 0.0273 | I24: 0.0004 | J24: 0.458 | K24: 0.009 | M24: 4.52 | N24: 0.02 | O24: Difference | P24: =(P20/P21) -> 1.804511278 | Q24: Percent
A25: 750 | B25: 110.9 | C25: 0.7 | D25: 0.534 | E25: 0.007 | F25: 1.82 | G25: 0.02 | H25: 0.04 | I25: 0.0007 | J25: 0.281 | K25: 0.014 | M25: 4.52 | N25: 0.02 | O25: Standard Deviation | P25: 840 | Q25: Million Years
A26: 800 | B26: 112.1 | C26: 1.2 | D26: 0.702 | E26: 0.011 | F26: 2.43 | G26: 0.06 | H26: 0.0639 | I26: 0.0014 | J26: 0.211 | K26: 0.005 | M26: 4.54 | N26: 0.02
A27: 900 | B27: 109.6 | C27: 0.8 | D27: 0.88 | E27: 0.009 | F27: 3.38 | G27: 0.07 | H27: 0.0889 | I27: 0.002 | J27: 0.152 | K27: 0.003 | M27: 4.5 | N27: 0.02
A28: 1000 | B28: 105.3 | C28: 1.3 | D28: 0.923 | E28: 0.018 | F28: 6.91 | G28: 0.21 | H28: 0.171 | I28: 0.004 | J28: 0.0741 | K28: 0.0022 | M28: 4.43 | N28: 0.03
A29: 1150 | B29: 95.3 | C29: 0.8 | D29: 1.323 | E29: 0.014 | F29: 18.3 | G29: 0.4 | H29: 0.936 | I29: 0.009 | J29: 0.028 | K29: 0.0007 | M29: 4.27 | N29: 0.02
A30: 1300 | B30: 82.2 | C30: 0.5 | D30: 1.25 | E30: 0.011 | F30: 7.77 | G30: 0.16 | H30: 1.38 | I30: 0.01 | J30: 0.0659 | K30: 0.0014 | M30: 4.03 | N30: 0.02
A31: 1550 | B31: 80.1 | C31: 4.4 | D31: 3.3 | E31: 0.26 | F31: 14.6 | G31: 1.3 | H31: 5.71 | I31: 0.44 | J31: 0.035 | K31: 0.003 | M31: 3.99 | N31: 0.09
M32: =STDEV(M19:M31) -> 0.8382173545
M34: X
A35: Abee clast 3, 3, 06 | O35: =(A35) -> Abee clast 3, 3, 06
A36: 300 | B36: 0.2 | C36: 1355 | D36: 2.16 | F36: 4.7 | H36: 4.43 | J36: 0.11 | M36: 8.9 | O36: Maximum Age | P36: 8900 | Q36: Million Years
A37: 400 | B37: 0.83 | C37: 193 3 | D37: 0.75 | E37: 0.01 | F37: 2.9 | H37: 0.48 | J37: 0.17 | M37: 5.4 | O37: Minimum Age | P37: 3580 | Q37: Million Years
A38: 500 | B38: 4.87 | C38: 72.47 | D38: 0.8 | E38: 0.393 | F38: 0.006 | G38: 2.32 | H38: 0.06 | I38: 0.0479 | J38: 0.003 | K38: 0.221 | L38: 0.006 | M38: 3.82 | N38: 0.02 | O38: Average Age | P38: 4610 | Q38: Million Years
A39: 600 | B39: 8.52 | C39: 88.94 | D39: 0.35 | E39: 0.486 | F39: 0.004 | G39: 3.62 | H39: 0.08 | I39: 0.0302 | J39: 0.001 | K39: 0.141 | L39: 0.003 | M39: 4.15 | N39: 0.02 | O39: Age Difference | P39: =(P36-P37) -> 5320 | Q39: Million Years
A40: 675 | B40: 5.68 | C40: 97.98 | D40: 0.42 | E40: 0.697 | F40: 0.016 | G40: 3.66 | H40: 0.08 | I40: 0.0294 | J40: 0.0011 | K40: 0.14 | L40: 0.003 | M40: 4.31 | N40: 0.02 | O40: Difference | P40: =(P36/P37) -> 2.48603352 | Q40: Percent
A41: 725 | B41: 11.59 | C41: 102.2 | D41: 0.6 | E41: 0.826 | F41: 0.008 | G41: 3.47 | H41: 0.09 | I41: 0.0318 | J41: 0.0012 | K41: 0.148 | L41: 0.004 | M41: 4.38 | N41: 0.02 | O41: Standard Deviation | P41: 1360 | Q41: Million Years
A42: 775 | B42: 7.22 | C42: 108.4 | D42: 0.8 | E42: 1.13 | F42: 0.014 | G42: 3.68 | H42: 0.08 | I42: 0.0435 | J42: 0.0013 | K42: 0.139 | L42: 0.003 | M42: 4.47 | N42: 0.02
A43: 850 | B43: 2.65 | C43: 109.4 | D43: 0.6 | E43: 1.235 | F43: 0.011 | G43: 3.28 | H43: 0.09 | I43: 0.0516 | J43: 0.0023 | K43: 0.156 | L43: 0.004 | M43: 4.49 | N43: 0.02
A44: 950 | B44: 9.3 | C44: 103.2 | D44: 0.2 | E44: 1.326 | F44: 0.006 | G44: 4.48 | H44: 0.09 | I44: 0.0598 | J44: 0.0012 | K44: 0.114 | L44: 0.002 | M44: 4.39 | N44: 0.02
A45: 1050 | B45: 6.27 | C45: 97.3 | D45: 0.4 | E45: 1.14 | F45: 0.007 | G45: 7.02 | H45: 0.15 | I45: 0.1003 | J45: 0.0022 | K45: 0.0729 | L45: 0.0015 | M45: 4.29 | N45: 0.02
A46: 1175 | B46: 10.28 | C46: 81 | D46: 0.47 | E46: 0.884 | F46: 0.008 | G46: 19.3 | H46: 0.4 | I46: 0.25 | J46: 0.002 | K46: 0.0265 | L46: 0.0006 | M46: 4 | N46: 0.02
A47: 1325 | B47: 7.64 | C47: 69.8 | D47: 0.5 | E47: 1.177 | F47: 0.012 | G47: 10 | H47: 0.3 | I47: 0.489 | J47: 0.008 | K47: 0.0512 | L47: 0.0012 | M47: 3.76 | N47: 0.02
A48: 1500 | B48: 1.21 | C48: 62 | D48: 3.4 | E48: 2.12 | F48: 0.17 | G48: 12.2 | H48: 1.2 | I48: 1.95 | J48: 0.16 | K48: 0.0419 | L48: 0.0041 | M48: 3.58 | N48: 0.09
M49: =STDEV(M36:M48) -> 1.364645629
A59: TABLES 4 And 5 | B59: 206Pb/204Pb | D59: 207Pb/204Pb | F59: 208Pb/204Pb | H59: Pb-206/207 | I59: Pb-206/207
A60: 1,1,01 | H60: Ratio | I60: Age
A61: 1,1,I | B61: 9.44 | C61: 0.012 | D61: 10.377 | E61: 0.014 | F61: 29.594 | G61: 0.05 | H61: 1.0992 | I61: =[1]!AgePb76($H$61) -> 5369.924387 | J61: 3.1348 | K61: 0.0036 | L61: 4.56 | M61: 0.15
A62: 1,1 | B62: 9.576 | C62: 0.01 | D62: 10.481 | E62: 0.012 | F62: 29.753 | G62: 0.04 | H62: 1.0945 | I62: =[1]!AgePb76($H$62) -> 5363.934169 | J62: 3.1069 | K62: 0.0026 | L62: 4.72 | M62: 0.05
A63: I,I,E2 | B63: 9.53 | C63: 0.012 | D63: 10.433 | E63: 0.015 | F63: 29.661 | G63: 0.044 | H63: 1.0947 | I63: =[1]!AgePb76($H$63) -> 5364.189624 | J63: 3.1123 | K63: 0.0027 | L63: 4.56 | M63: 0.1
A64: I,I,E2(H20 | B64: 10.79 | C64: 0.08 | D64: 11.15 | E64: 0.1 | F64: 30.61 | G64: 0.27 | H64: 1.033 | I64: =[1]!AgePb76($H$64) -> 5282.952099 | J64: 2.836 | K64: 0.014 | L64: 4.45 | M64: 0.07
A65: 2,2,02
A66: 2,2,I | B66: 9.443 | C66: 0.008 | D66: 10.387 | E66: 0.011 | F66: 29.559 | G66: 0.037 | H66: 1.1 | I66: =[1]!AgePb76($H$66) -> 5370.941308 | J66: 3.1302 | K66: 0.0028 | L66: 4.7 | M66: 0.1
A67: 2,2,E | B67: 9.487 | C67: 0.015 | D67: 10.405 | E67: 0.018 | F67: 29.556 | G67: 0.058 | H67: 1.0966 | I67: =[1]!AgePb76($H$67) -> 5366.613995 | J67: 3.1152 | K67: 0.0035 | L67: 4.54 | M67: 0.13
A68: 2,2,E(H20 | B68: 15.17 | C68: 0.11 | D68: 13.59 | E68: 0.12 | F68: 34.52 | G68: 0.31 | H68: 0.8958 | I68: =[1]!AgePb76($H$68) -> 5082.255717 | J68: 2.275 | K68: 0.012 | L68: 4.41 | M68: 0.03
A69: 3,3,07
A70: 3,3,1 | B70: 9.472 | C70: 0.013 | D70: 10.397 | E70: 0.015 | F70: 29.642 | G70: 0.045 | H70: 1.0976 | I70: =[1]!AgePb76($H$70) -> 5367.888201 | J70: 3.1293 | K70: 0.0021 | L70: 4.56 | M70: 0.1
A71: 3,3,E | B71: 9.517 | C71: 0.01 | D71: 10.438 | E71: 0.011 | F71: 29.737 | G71: 0.037 | H71: 1.0967 | I71: =[1]!AgePb76($H$71) -> 5366.74147 | J71: 3.1245 | K71: 0.0022 | L71: 4.7 | M71: 0.06
A72: 3,3,E(H20 | B72: 10.03 | C72: 0.04 | D72: 10.74 | E72: 0.05 | F72: 30.03 | G72: 0.15 | H72: 1.0708 | I72: =[1]!AgePb76($H$72) -> 5333.308948 | J72: 2.993 | K72: 0.008 | L72: 4.55 | M72: 0.05
A78: TABLE 7 | C78: Pb-206/204 | D78: Pb-207/204 | E78: Pb-207/206 | F78: Pb-207/206
A79: Abee | B79: 1,1,01 | C79: Ratio | D79: Ratio | E79: Ratio | F79: Age | K79: Pb-206/204 | L79: Pb-207/204 | M79: Pb-208/204 | N79: 238U/204Pb
A80: 1,1,I | B80: 0.008 | C80: 9.44 | D80: 10.377 | E80: =(D80/C80) -> 1.099258475 | F80: =[1]!AgePb76($E$80) -> 5369.998743 | I80: Abee | J80: 1,1,01 | K80: Ratio | L80: Ratio | M80: Ratio | N80: Ratio
A81: 1,1,El | B81: 33.4 | C81: 9.472 | D81: 10.424 | E81: =(D81/C81) -> 1.100506757 | F81: =[1]!AgePb76($E$81) -> 5371.58507 | I81: 1,1,I | J81: 0.008 | K81: 9.44 | L81: 10.377 | M81: 29.594 | N81: 0.1281 | O81: 10.293 | P81: -0.01 | Q81: 29.489 | S81: 0.04
A82: 1,I,E2 | B82: 26.4 | C82: 9.451 | D82: 10.39 | E82: 1.099354566 | F82: =[1]!AgePb76($E$82) -> 5370.120924 | I82: 1,1,El | J82: 33.4 | K82: 9.472 | L82: 10.424 | M82: 29.655 | N82: 0.1588 | O82: 10.32 | Q82: 0.25 | R82: 29.539 | T82: 0.21
A83: Abee | B83: 2,2,02 | E83: 0 | I83: 1,I,E2 | J83: 26.4 | K83: 9.451 | L83: 10.39 | M83: 29.587 | N83: 0.1397 | O83: 10.299 | Q83: 0.05 | R83: 29.481 | T83: 0.02
A84: 2,2,I | B84: 2.9 | C84: 9.435 | D84: 10.383 | E84: 1.100476948 | F84: =[1]!AgePb76($E$84) -> 5371.54721 | I84: Abee | J84: 2,2,02
A85: 2,2,E | B85: 12.1 | C85: 9.448 | D85: 10.384 | E85: 1.099068586 | F85: =[1]!AgePb76($E$85) -> 5369.757265 | I85: 2,2,I | J85: 2.9 | K85: 9.435 | L85: 10.383 | M85: 29.551 | N85: 0.1234 | O85: 10.302 | Q85: 0.08 | R85: 29.442 | S85: -0.11
A86: Abee | B86: 3,3,07 | E86: 0 | I86: 2,2,E | J86: 12.1 | K86: 9.448 | L86: 10.384 | M86: 29.519 | N86: 0.1362 | O86: 10.295 | Q86: 0.01 | R86: 29.399 | S86: -0.26
A87: 3,3,I | B87: 23 | C87: 9.434 | D87: 10.376 | E87: 1.099851601 | F87: =[1]!AgePb76($E$87) -> 5370.752729 | I87: Abee | J87: 3,3,07
A88: 3,3,E | B88: 30 | C88: 9.472 | D88: 10.413 | E88: 1.099345439 | F88: =[1]!AgePb76($E$88) -> 5370.10932 | I88: 3,3,I | J88: 23 | K88: 9.434 | L88: 10.376 | M88: 29.607 | N88: 0.1227 | O88: 10.296 | R88: 0.02 | S88: 29.479 | V88: 0.01
A89: Mean | E89: 0 | I89: 3,3,E | J89: 30 | K89: 9.472 | L89: 10.413 | M89: 29.694 | N89: 0.1589 | O89: 10.309 | Q89: 0.14 | R89: 29.555 | T89: 0.27
A90: Indarch | B90: c | C90: 9.452 | D90: 10.402 | E90: 1.100507829 | F90: =[1]!AgePb76($E$90) -> 5371.586432 | I90: Mean | J90: . | K90: . | L90: . | M90: . | N90: . | O90: 10.302 | R90: 0.007 | S90: 0.08 | V90: 0.07 | W90: 29.483 | X90: _ | Y90: 0.04 | Z90: 0.02 | AC90: 0.14
A91: St. Sauveur | B91: c | C91: 9.47 | D91: 10.408 | E91: 1.09904963 | F91: =[1]!AgePb76($E$90) -> 5371.586432 | I91: Indarch | J91: 0 | K91: 9.452 | L91: 10.402 | M91: 29.7 | N91: 0.157 | O91: 10.3 | R91: 0.06 | S91: -29.54 | T91: ( | W91: 0.22)
A92: Cation | B92: Diablo | E92: 0 | I92: Sauveur | J92: 13.5 | K92: 9.47 | L92: 10.408 | M92: 29.69 | N92: 0.157 | O92: 10.306 | Q92: 0.11 | R92: -29.53 | S92: ( | T92: 0.17)
A93: troilite | B93: d | C93: 9.307 | D93: 10.294 | E93: 1.10604921 | F93: =[1]!AgePb76($E$93) -> 5378.605627 | I93: Diablo | J93: 0 | K93: 9.307 | L93: 10.294 | M93: 29.476 | N93: 0 | O93: 10.294 | P93: 0 | Q93: 29.476 | R93: 0
D97: Meteorite | E97: Pb-207/206 | F97: Pb-207/206
D98: Name | E98: Ratio | F98: Age
D99: Abee 1 | E99: 1.099258475 | F99: =[1]!AgePb76(E99) -> 5369.998743
E100: 1.100506757 | F100: =[1]!AgePb76(E100) -> 5371.58507
E101: 1.099354566 | F101: =[1]!AgePb76(E101) -> 5370.120924
D103: Abee 2 | E103: 1.100476948 | F103: =[1]!AgePb76(E103) -> 5371.54721
E104: 1.099068586 | F104: =[1]!AgePb76(E104) -> 5369.757265
D106: Abee 3 | E106: 1.099851601 | F106: =[1]!AgePb76(E106) -> 5370.752729
E107: 1.099345439 | F107: =[1]!AgePb76(E107) -> 5370.10932
D109: Indarch | E109: 1.100507829 | F109: =[1]!AgePb76(E109) -> 5371.586432
D111: St. Sauveur | E111: 0.7014814815 | F111: =[1]!AgePb76(E111) -> 4733.756298
D113: Canyon Diablo | E113: 1.10604921 | F113: =[1]!AgePb76($E$93) -> 5378.605627
A117: TABLES 4 And 5
A118: TABLE | C118: 206Pb/238U | G118: 208Pb/232Th | H118: 208Pb/232Th | I118: 207Pb/206Pb | J118: 207Pb/206Pb
A119: l,l,01 | B119: 206Pb/238U | C119: Age | D119: 204Pb/238U | E119: 204Pb/232Th | F119: 232Th/204Pb | G119: Ratio | H119: Age | I119: Ratio | J119: Age | K119: 238U/204Pb | M119: 232Th/238U | O119: 238U/235U | Q119: 206Pb/204Pb | R119: 207Pb/204Pb | S119: 208Pb/204Pb
A120: l,l,I | B120: =(Q120/K120) -> 73.69242779 | C120: =[1]!AgePb6U8(B120) -> 27805.82575 | D120: =(1/K120) -> 7.806401249 | E120: =(D120/M120) -> 2.431900701 | F120: =(1/E120) -> 0.411201 | G120: =(S120/F120) -> 71.96966933 | H120: =[1]!AgePb8Th2(G120) -> 86711.34646 | I120: =(R120/Q120) -> 1.099258475 | J120: =[1]!AgePb76(I120) -> 5369.998743 | K120: 0.1281 | L120: 0.008 | M120: 3.21 | N120: 0.04 | O120: - | Q120: 9.44 | R120: 10.377 | S120: 29.594
A121: 1,I,EI | B121: =(Q121/K121) -> 60.99363057 | C121: =[1]!AgePb6U8(B121) -> 26604.55534 | D121: =(1/K121) -> 6.369426752 | E121: =(D121/M121) -> 2.219312457 | F121: =(1/E121) -> 0.45059 | G121: =(S121/F121) -> 66.03120353 | H121: =[1]!AgePb8Th2(G121) -> 84995.6187 | I121: =(R121/Q121) -> 1.094507101 | J121: =[1]!AgePb76(I121) -> 5363.94324 | K121: 0.157 | L121: 0.0009 | M121: 2.87 | N121: 0.02 | O121: - | Q121: 9.576 | R121: 10.481 | S121: 29.753
A122: 1,I,E2 | B122: 68.80866426 | C122: =[1]!AgePb6U8(B122) -> 27369.91544 | D122: 7.220216606 | E122: 2.414788163 | F122: 0.414115 | G122: =(S122/F122) -> 71.62503169 | H122: =[1]!AgePb8Th2(G122) -> 86615.65743 | I122: 1.09475341 | J122: =[1]!AgePb76(I122) -> 5364.257835 | K122: 0.1385 | L122: 0.001 | M122: 2.99 | N122: 0.03 | O122: 138 | P122: 1.4 | Q122: 9.53 | R122: 10.433 | S122: 29.661
A123: 1,1,E2 | B123: 35.96666667 | C123: =[1]!AgePb6U8(B123) -> 23271.66224 | D123: 3.333333333 | E123: 2.192982456 | F123: 0.456 | G123: =(S123/F123) -> 67.12719298 | H123: =[1]!AgePb8Th2(G123) -> 85323.42482 | I123: 1.033364226 | J123: =[1]!AgePb76(I123) -> 5283.446546 | K123: 0.3 | L123: 0.011 | M123: 1.52 | N123: 0.09 | O123: - | Q123: 10.79 | R123: 11.15 | S123: 30.61
A124: 2,2,02
A125: 2,2,I | B125: 76.58556367 | C125: =[1]!AgePb6U8(B125) -> 28050.80661 | D125: 8.110300081 | E125: 2.317228595 | F125: 0.43155 | G125: =(S125/F125) -> 68.49496003 | H125: =[1]!AgePb8Th2(G125) -> 85725.19924 | I125: 1.09996823 | J125: =[1]!AgePb76(I125) -> 5370.900939 | K125: 0.1233 | L125: 0.001 | M125: 3.5 | N125: 0.04 | O125: - | Q125: 9.443 | R125: 10.387 | S125: 29.559
A126: 2,2,E | B126: 69.96312684 | C126: =[1]!AgePb6U8(B126) -> 27475.65126 | D126: 7.374631268 | E126: 2.119146916 | F126: 0.471888 | G126: =(S126/F126) -> 62.63350626 | H126: =[1]!AgePb8Th2(G126) -> 83944.21747 | I126: 1.096763993 | J126: =[1]!AgePb76(I126) -> 5366.823039 | K126: 0.1356 | L126: 0.0009 | M126: 3.48 | N126: 0.03 | O126: 138.5 | P126: 0.8 | Q126: 9.487 | R126: 10.405 | S126: 29.556
A127: 2,2,E | B127: 17.47695853 | C127: =[1]!AgePb6U8(B127) -> 18801.12471 | D127: 1.152073733 | E127: 2.880184332 | F127: 0.3472 | G127: =(S127/F127) -> 99.42396313 | H127: =[1]!AgePb8Th2(G127) -> 93166.26287 | I127: 0.8958470666 | J127: =[1]!AgePb76(I127) -> 5082.330023 | K127: 0.868 | L127: 0.078 | M127: 0.4 | N127: 0.07 | Q127: 15.17 | R127: 13.59 | S127: 34.52
A128: 3,3,07
A129: 3,3,I | B129: 77.51227496 | C129: =[1]!AgePb6U8(B129) -> 28127.34879 | D129: 8.183306056 | E129: 1.995928306 | F129: 0.50102 | G129: =(S129/F129) -> 59.16330685 | H129: =[1]!AgePb8Th2(G129) -> 82810.76596 | I129: 1.09765625 | J129: =[1]!AgePb76(I129) -> 5367.959838 | K129: 0.1222 | L129: 0.0009 | M129: 4.1 | N129: 0.1 | Q129: 9.472 | R129: 10.397 | S129: 29.642
A130: 3,3,E | B130: 60.15802781 | C130: =[1]!AgePb6U8(B130) -> 26517.07419 | D130: 6.321112516 | E130: 1.832206526 | F130: 0.54579 | G130: =(S130/F130) -> 54.48432547 | H130: =[1]!AgePb8Th2(G130) -> 81174.34173 | I130: 1.096774194 | J130: =[1]!AgePb76(I130) -> 5366.836041 | K130: 0.1582 | L130: 0.001 | M130: 3.45 | N130: 0.04 | O130: 137.6 | P130: 0.5 | Q130: 9.517 | R130: 10.438 | S130: 29.737
A131: 3,3,E | B131: 30.02994012 | C131: =[1]!AgePb6U8(B131) -> 22143.12682 | D131: 2.994011976 | E131: 1.360914535 | F131: 0.7348 | G131: =(S131/F131) -> 40.86826347 | H131: =[1]!AgePb8Th2(G131) -> 75483.13502 | I131: 1.070787637 | J131: =[1]!AgePb76(I131) -> 5333.292787 | K131: 0.334 | L131: 0.006 | M131: 2.2 | N131: 0.05 | Q131: 10.03 | R131: 10.74 | S131: 30.03

Sheet Bogard-D
A1: Meteorite | B1: Age | C1: Dating
A2: Name | B2: Billion Years | C2: Method
A3: Watson | B3: 3.676 | C3: Ar–Ar | D3: Donald D. Bogard And Daniel H. Garrison
B4: 3.5 | C4: K–Ar | D4: Geochemica Et Cosmochemica Acta
B5: 3 | C5: Sm–Nd | D5: Volume 64, Number 12, Pages 2133 – 2154
A6: Kodaikanal | B6: 3.676 | C6: Pb–Pb | D6: Silicates From IIE Iron Meteorites
B7: 3.7 | C7: Rb–Sr | D7: 2000
B8: 3.4 | C8: K–Ar
B9: 4.62 | C9: Re–Os
A10: Netschaevo | B10: 3.745 | C10: Ar–Ar
A11: Colomera | B11: 4.47 | C11: Ar–Ar
B12: 4.51 | C12: Rb–Sr
A13: Sombrerete | B13: 4.541 | C13: Ar–Ar
A14: Weekeroo Station | B14: 4.49 | C14: Ar–Ar
B15: 4.3 | C15: K–Ar
B16: 4.555 | C16: I–Xe
B17: 4.28 | C17: Rb–Sr
B18: 4.39 | C18: Rb–Sr
B19: 0.7 | C19: Sm–Nd
A20: Miles | B20: 4.408 | C20: Ar–Ar
B21: 4.27 | C21: Sm–Nd
A22: Techado | B22: 4.489 | C22: Ar–Ar
B23: 4.6 | C23: K–Ar | D23: Meteorite Dating
A27: Table A-1.
A28: Sample | B28: Age | C28: Error | D28: Sample | E28: Max | F28: Min | G28: Difference | H28: Difference
A29: Temperature | B29: Billion Years | C29: Billion Years | D29: Name | E29: Billion Years | F29: Billion Years | G29: Billion Years | H29: Percent
A30: Watson | D30: Watson | E30: 3.968 | F30: 2.275 | G30: =(E30-F30) -> 1.693 | H30: =(G30/E30) * 100 -> 42.66633065
A31: 400 | B31: 2.677 | C31: 0.008 | D31: Techado | E31: 4.794 | F31: 3.735 | G31: =(E31-F31) -> 1.059 | H31: =(G31/E31) * 100 -> 22.09011264
A32: 450 | B32: 3.843 | C32: 0.004 | D32: Miles | E32: 4.414 | F32: 1.465 | G32: 2.949 | H32: 66.81014952
A33: 500 | B33: 3.968 | C33: 0.002 | D33: Colomera Feldspar | E33: 5.164 | F33: 3.194 | G33: 1.97 | H33: 38.14872192
A34: 550 | B34: 3.909 | C34: 0.002 | D34: Sombrerete | E34: 4.572 | F34: 3.949 | G34: 0.623 | H34: 13.6264217
A35: 600 | B35: 3.791 | C35: 0.001
A36: 625 | B36: 3.729 | C36: 0.001
A37: 650 | B37: 3.685 | C37: 0.001
A38: 675 | B38: 3.67 | C38: 0.001
A39: 725 | B39: 3.672 | C39: 0.001
A40: 750 | B40: 3.678 | C40: 0.002
A41: 775 | B41: 3.682 | C41: 0.001
A42: 800 | B42: 3.681 | C42: 0.001
A43: 825 | B43: 3.675 | C43: 0.001
A44: 875 | B44: 3.675 | C44: 0.001
A45: 910 | B45: 3.667 | C45: 0.001
A46: 950 | B46: 3.644 | C46: 0.002
A47: 1000 | B47: 3.632 | C47: 0.002
A48: 1075 | B48: 3.627 | C48: 0.001
A49: 1125 | B49: 3.391 | C49: 0.007
A50: 1250 | B50: 3.337 | C50: 0.005
A51: 1350 | B51: 2.83 | C51: 0.014
A52: 1450 | B52: 2.501 | C52: 0.128
A53: 1550 | B53: 2.275 | C53: 0.33
B54: =MIN(B31:B53) -> 2.275
A55: Techado
A56: 400 | B56: 3.735 | C56: 0.107
A57: 550 | B57: 4.349 | C57: 0.02
A58: 625 | B58: 4.487 | C58: 0.008
A59: 675 | B59: 4.433 | C59: 0.008
A60: 725 | B60: 4.481 | C60: 0.011
A61: 800 | B61: 4.488 | C61: 0.005
A62: 850 | B62: 4.495 | C62: 0.006
A63: 900 | B63: 4.241 | C63: 0.017
A64: 975 | B64: 4.407 | C64: 0.012
A65: 1075 | B65: 4.332 | C65: 0.013
A66: 1175 | B66: 4.473 | C66: 0.019
A67: 1300 | B67: 4.487 | C67: 0.096
A68: 1550 | B68: 4.794 | C68: 0.411
B69: =MIN(B56:B68) -> 3.735
A70: Miles
A71: 400 | B71: 1.465 | C71: 0.01
A72: 500 | B72: 3.315 | C72: 0.009
A73: 575 | B73: 4.056 | C73: 0.008
A74: 650 | B74: 4.293 | C74: 0.006
A75: 700 | B75: 4.396 | C75: 0.006
A76: 750 | B76: 4.411 | C76: 0.004
A77: 775 | B77: 4.411 | C77: 0.004
A78: 800 | B78: 4.404 | C78: 0.003
A79: 850 | B79: 4.414 | C79: 0.002
A80: 900 | B80: 4.385 | C80: 0.004
A81: 950 | B81: 4.313 | C81: 0.008
A82: 1050 | B82: 4.247 | C82: 0.006
A83: 1150 | B83: 4.297 | C83: 0.006
A84: 1200 | B84: 4.313 | C84: 0.01
A85: 1300 | B85: 3.763 | C85: 0.039
A86: 1450 | B86: 2.938 | C86: 0.134
A87: 1550 | B87: 2.66 | C87: 0.401
B88: =MIN(B71:B87) -> 1.465
A89: Colomera Feldspar
A90: 400 | B90: 4.451 | C90: 0.017
A91: 500 | B91: 3.194 | C91: 0.025
A92: 550 | B92: 3.499 | C92: 0.013
A93: 600 | B93: 3.852 | C93: 0.007
A94: 625 | B94: 4.021 | C94: 0.006
A95: 650 | B95: 4.11 | C95: 0.004
A96: 675 | B96: 4.142 | C96: 0.002
A97: 705 | B97: 4.323 | C97: 0.001
A98: 725 | B98: 4.387 | C98: 0.002
A99: 750 | B99: 4.403 | C99: 0.002
A100: 775 | B100: 4.437 | C100: 0.001
A101: 800 | B101: 4.456 | C101: 0.001
A102: 815 | B102: 4.464 | C102: 0.001
A103: 830 | B103: 4.465 | C103: 0.001
A104: 850 | B104: 4.465 | C104: 0.001
A105: 870 | B105: 4.469 | C105: 0.002
A106: 890 | B106: 4.473 | C106: 0.001
A107: 915 | B107: 4.479 | C107: 0.001
A108: 940 | B108: 4.48 | C108: 0.002
A109: 965 | B109: 4.473 | C109: 0.001
A110: 1000 | B110: 4.465 | C110: 0.001
A111: 1050 | B111: 4.468 | C111: 0.001
A112: 1100 | B112: 4.482 | C112: 0.001
A113: 1125 | B113: 4.488 | C113: 0.001
A114: 1150 | B114: 4.499 | C114: 0.001
A115: 1175 | B115: 4.501 | C115: 0.002
A116: 1200 | B116: 4.507 | C116: 0.002
A117: 1250 | B117: 4.51 | C117: 0.001
A118: 1300 | B118: 4.507 | C118: 0.001
A119: 1350 | B119: 4.485 | C119: 0.009
A120: 1450 | B120: 4.552 | C120: 0.015
A121: 1550 | B121: 5.164 | C121: 0.052
B122: =MIN(B90:B121) -> 3.194
A123: Sombrerete
A124: 350 | B124: 4.363 | C124: 0.01
A125: 450 | B125: 3.949 | C125: 0.007
A126: 500 | B126: 4.261 | C126: 0.013
A127: 575 | B127: 4.476 | C127: 0.009
A128: 625 | B128: 4.527 | C128: 0.007
A129: 675 | B129: 4.551 | C129: 0.005
A130: 700 | B130: 4.572 | C130: 0.006
A131: 725 | B131: 4.567 | C131: 0.003
A132: 750 | B132: 4.559 | C132: 0.002
A133: 775 | B133: 4.546 | C133: 0.002
A134: 800 | B134: 4.546 | C134: 0.001
A135: 825 | B135: 4.544 | C135: 0.001
A136: 850 | B136: 4.542 | C136: 0.001
A137: 875 | B137: 4.54 | C137: 0.001
A138: 900 | B138: 4.544 | C138: 0.001
A139: 925 | B139: 4.539 | C139: 0.001
A140: 950 | B140: 4.535 | C140: 0.001
A141: 975 | B141: 4.533 | C141: 0.001
A142: 1000 | B142: 4.541 | C142: 0.002
A143: 1075 | B143: 4.536 | C143: 0.002
A144: 1200 | B144: 4.54 | C144: 0.003
A145: 1350 | B145: 4.536 | C145: 0.001
A146: 1550 | B146: 4.502 | C146: 0.009
B147: =MIN(B124:B146) -> 3.949

Sheet Bogard-E
A1: Meteorite Sample | C1: Age | D1: Error | N1: Meteorite | O1: Maximum Age | P1: Minimum Age | Q1: Average Age | R1: Age Difference | S1: Percent | T1: Standard Deviation | Y1: 9.669
A2: A. QUE 97053,8 | C2: Billion Years | D2: Billion Years | J2: =(A2) -> A. QUE 97053,8 | N2: Sample | O2: Million Years | P2: Million Years | Q2: Million Years | R2: Million Years | S2: Difference | T2: Million Years | Y2: 7.496
A3: 350 | B3: 0.3 | C3: 9.669 | D3: 0.316 | E3: 10105 | F3: 89.83 | G3: 64.3 | H3: 346.83 | J3: Maximum Age | K3: 9669 | L3: Million Years | N3: A. QUE 97053,8 | O3: 9669 | P3: 3749 | Q3: 4660 | R3: 5920 | S3: =(O3-P3)/P3 -> 1.579087757 | T3: 1071 | Y3: 7.008
A4: 450 | B4: 0.7 | C4: 3.749 | D4: 0.249 | E4: 333.8 | F4: 20.22 | G4: 114 | H4: 4.89 | J4: Minimum Age | K4: 3749 | L4: Million Years | N4: B. GRA 98098,26 WR | O4: 7008 | P4: 3239 | Q4: 4470 | R4: 3769 | S4: =(O4-P4)/P4 -> 1.16363075 | T4: 521 | Y4: 6.742
A5: 525 | B5: 3.8 | C5: 4.043 | D5: 0.074 | E5: 401.4 | F5: 11.4 | G5: 102.5 | H5: 3.83 | J5: Average Age | K5: 4660 | L5: Million Years | N5: C. PCA - 82502,81 | O5: 5431 | P5: 3300 | Q5: 4366 | R5: 2131 | S5: 0.6457575758 | T5: 414 | Y5: 6.1
A6: 575 | B6: 5.5 | C6: 4.202 | D6: 0.055 | E6: 442.7 | F6: 6.63 | G6: 96.2 | H6: 3.87 | J6: Age Difference | K6: =(K3-K4) -> 5920 | L6: Million Years | N6: D. PCA - 91007,26 | O6: 4460 | P6: 1560 | Q6: 4062 | R6: 2900 | S6: 1.858974359 | T6: 720 | Y6: 5.817
A7: 625 | B7: 7.6 | C7: 4.348 | D7: 0.041 | E7: 483.9 | F7: 5.99 | G7: 87.3 | H7: 3.63 | J7: Difference | K7: =(K3/K4) -> 2.579087757 | L7: Percent | N7: E. Caldera | O7: 4493 | P7: 2819 | Q7: 4110 | R7: 1674 | S7: 0.5938275984 | T7: 501 | Y7: 5.788
A8: 675 | B8: 8.9 | C8: 4.389 | D8: 0.069 | E8: 496.3 | F8: 5.75 | G8: 79.3 | H8: 3.57 | J8: Standard Deviation | K8: 1071 | L8: Million Years | N8: F. Asuka-881388,55 | O8: 4853 | P8: 3250 | Q8: 4360 | R8: 1603 | S8: 0.4932307692 | T8: 297 | Y8: =AVERAGE(Y1:Y7) -> 6.945714286
A9: 720 | B9: 20.9 | C9: 4.46 | D9: 0.017 | E9: 517.9 | F9: 5.08 | G9: 72.6 | H9: 3.24 | N9: G. Asuka-881467,42 | O9: 4465 | P9: 202 | Q9: 3814 | R9: 4263 | S9: 21.1039604 | T9: 1163 | Y9: 5.481
A10: 750 | B10: 25.1 | C10: 4.456 | D10: 0.015 | E10: 516.9 | F10: 4.75 | G10: 69.6 | H10: 3.08 | N10: H. GRO - 95533,7 | O10: 4096 | P10: 2823 | Q10: 3635 | R10: 1273 | S10: 0.4509387177 | T10: 278 | Y10: 5.341
A11: 775 | B11: 34.5 | C11: 4.491 | D11: 0.012 | E11: 527.7 | F11: 4.66 | G11: 69.1 | H11: 3.05 | N11: I. QUE - 97014,5 | O11: 4553 | P11: 2947 | Q11: 3527 | R11: 1606 | S11: 0.5449609773 | T11: 294 | Y11: 5.324
A12: 800 | B12: 42.9 | C12: 4.479 | D12: 0.01 | E12: 524.1 | F12: 4.69 | G12: 68.5 | H12: 3.03 | N12: J. Moama | O12: 4484 | P12: 866 | Q12: 3659 | R12: 3618 | S12: 4.177829099 | T12: 1189 | Y12: 5.209
A13: 825 | B13: 45.7 | C13: 4.475 | D13: 0.01 | E13: 522.6 | F13: 4.84 | G13: 69 | H13: 3.03 | N13: K. EET - 87520 | O13: 5481 | P13: 2004 | Q13: 4180 | R13: 3477 | S13: 1.73502994 | T13: 683 | Y13: 4.853
A14: 850 | B14: 35.2 | C14: 4.46 | D14: 0.012 | E14: 518.1 | F14: 5.11 | G14: 68.5 | H14: 3.03 | N14: L. Moore County | O14: 6742 | P14: 1827 | Q14: 4064 | R14: 4915 | S14: 2.690202518 | T14: 860 | Y14: 4.754
A15: 875 | B15: 25.9 | C15: 4.465 | D15: 0.015 | E15: 519.5 | F15: 5.47 | G15: 67.4 | H15: 3.02 | N15: M. Serra de Mage | O15: 6100 | P15: 499 | Q15: 3199 | R15: 5601 | S15: 11.2244489 | T15: 1125 | Y15: 4.737
A16: 900 | B16: 15.5 | C16: 4.45 | D16: 0.022 | E16: 514.9 | F16: 5.81 | G16: 65.7 | H16: 3.02 | N16: N. EET -87548 | O16: 3674 | P16: 1738 | Q16: 3230 | R16: 1936 | S16: 1.113924051 | T16: 568 | Y16: 4.645
A17: 950 | B17: 15.9 | C17: 4.427 | D17: 0.022 | E17: 507.8 | F17: 6.37 | G17: 66 | H17: 3.13 | N17: O. ALH -85001,32 | O17: 4754 | P17: 3097 | Q17: 3600 | R17: 1657 | S17: 0.5350339038 | T17: 350 | Y17: 4.614
A18: 1000 | B18: 28.7 | C18: 4.44 | D18: 0.013 | E18: 511.8 | F18: 6.85 | G18: 72.9 | H18: 3.62 | N18: P. Piplia Kalan | O18: 4284 | P18: 162 | Q18: 3526 | R18: 4122 | S18: 25.44444444 | T18: 889 | Y18: 4.579
A19: 1040 | B19: 24.4 | C19: 4.43 | D19: 0.015 | E19: 508.6 | F19: 6.75 | G19: 77.7 | H19: 4.05 | N19: Q. Sioux County | O19: 4513 | P19: 2189 | Q19: 3810 | R19: 2324 | S19: 1.061671996 | T19: 453 | Y19: 4.553
A20: 1080 | B20: 34.2 | C20: 4.466 | D20: 0.012 | E20: 520 | F20: 9.33 | G20: 92.7 | H20: 4.92 | J20: D. D. Bogard | N20: R. Asuka-87272,49 | O20: 3652 | P20: 342 | Q20: 2895 | R20: 3310 | S20: 9.678362573 | T20: 813 | Y20: 4.541
A21: 1110 | B21: 31 | C21: 4.466 | D21: 0.013 | E21: 520 | F21: 10.61 | G21: 113.1 | H21: 6.31 | J21: Meteoritics And Planetary Science | N21: S. Macibini Glass | O21: 5788 | P21: 2621 | Q21: 3873 | R21: 3167 | S21: 1.208317436 | T21: 600 | Y21: 4.513
A22: 1140 | B22: 24.8 | C22: 4.467 | D22: 0.016 | E22: 520.1 | F22: 14.22 | G22: 164.7 | H22: 8.86 | J22: Volume 38, Number 5, Pages 669–710 | N22: T. QUE - 94200,13 | O22: 3724 | P22: 3169 | Q22: 3516 | R22: 555 | S22: 0.1751341117 | T22: 179 | Y22: 4.512
A23: 1180 | B23: 20.5 | C23: 4.464 | D23: 0.019 | E23: 519.2 | F23: 18.78 | G23: 243 | H23: 12.24 | J23: 39Ar-40Ar Ages of Eucrites | N23: U. EET - 87509,24 | O23: 7496 | P23: 4026 | Q23: 4382 | R23: 3470 | S23: 0.8618976652 | T23: 983 | Y23: 4.512
A24: 1250 | B24: 17.4 | C24: 4.496 | D24: 0.021 | E24: 529.5 | F24: 15.65 | G24: 202.3 | H24: 10.31 | J24: 2003 | N24: V. EET - 87509,71 | O24: 4449 | P24: 3558 | Q24: 4012 | R24: 891 | S24: 0.2504215852 | T24: 224 | Y24: 4.511
A25: 1350 | B25: 45.6 | C25: 4.488 | D25: 0.01 | E25: 527.1 | F25: 7.55 | G25: 103.8 | H25: 4.98 | N25: W. EET -87509,74 | O25: 4645 | P25: 873 | Q25: 3761 | R25: 3772 | S25: 4.320733104 | T25: 882 | Y25: 4.51
A26: 1425 | B26: 53.2 | C26: 4.481 | D26: 0.01 | E26: 524.8 | F26: 6.19 | G26: 89.2 | H26: 4.11 | N26: X. EET - 87531,21 | O26: 4176 | P26: 3301 | Q26: 3861 | R26: 875 | S26: 0.2650711905 | T26: 206 | Y26: 4.507
A27: 1500 | B27: 2.4 | C27: 4.579 | D27: 0.107 | E27: 556.8 | F27: 6.1 | G27: 84.4 | H27: 5.81 | N27: Y. EET - 87503,53 | O27: 5209 | P27: 3568 | Q27: 3856 | R27: 1641 | S27: 0.4599215247 | T27: 437 | Y27: 4.505
A28: 1600 | B28: 0.1 | C28: 5.817 | D28: 0.542 | E28: 1152.5 | F28: 11.5 | G28: 57.3 | H28: 28.04 | N28: Z. EET - 87503,23 | O28: 5324 | P28: 2294 | Q28: 3524 | R28: 3030 | S28: 1.320836966 | T28: 930 | Y28: 4.496
C29: =AVERAGE(C3:C28) -> 4.659884615 | Y29: 4.495
A30: B. GRA 98098,26 WR | C30: Age | D30: Error | J30: =(A30) -> B. GRA 98098,26 WR | Y30: 4.493
A31: 350 | B31: 2.1 | C31: 7.008 | D31: 0.119 | E31: 2275.5 | F31: 44.62 | G31: 16.4 | H31: 78.36 | J31: Maximum Age | K31: 7008 | L31: Million Years | Y31: 4.491
A32: 450 | B32: 1.2 | C32: 3.239 | D32: 0.183 | E32: 239.8 | F32: 28.56 | G32: 23.9 | H32: 6.01 | J32: Minimum Age | K32: 3239 | L32: Million Years | Y32: 4.49
A33: 525 | B33: 5.7 | C33: 3.872 | D33: 0.049 | E33: 360.7 | F33: 15.67 | G33: 30.6 | H33: 4.35 | J33: Average Age | K33: 4470 | L33: Million Years | Y33: 4.489
A34: 600 | B34: 20.7 | C34: 4.368 | D34: 0.016 | E34: 490.1 | F34: 7.86 | G34: 29.2 | H34: 3.87 | J34: Age Difference | K34: =(K31-K32) -> 3769 | L34: Million Years | Y34: 4.488
A35: 635 | B35: 16.1 | C35: 4.487 | D35: 0.021 | E35: 526.6 | F35: 4.72 | G35: 22.3 | H35: 2.84 | J35: Difference | K35: =(K31/K32) -> 2.16363075 | L35: Percent | Y35: 4.488
A36: 675 | B36: 36.4 | C36: 4.345 | D36: 0.086 | E36: 483 | F36: 4.99 | G36: 22.2 | H36: 2.92 | J36: Standard Deviation | K36: 521 | L36: Million Years | Y36: 4.487
A37: 700 | B37: 29.9 | C37: 4.438 | D37: 0.013 | E37: 511.2 | F37: 4.99 | G37: 23.2 | H37: 3.16 | Y37: 4.484
A38: 725 | B38: 34.8 | C38: 4.458 | D38: 0.011 | E38: 517.4 | F38: 5.87 | G38: 28.2 | H38: 3.81 | Y38: 4.483
A39: 750 | B39: 37.3 | C39: 4.458 | D39: 0.011 | E39: 517.5 | F39: 6.87 | G39: 33.2 | H39: 4.51 | Y39: 4.483
A40: 775 | B40: 45.1 | C40: 4.466 | D40: 0.01 | E40: 520.1 | F40: 8.03 | G40: 40.4 | H40: 5.27 | Y40: 4.483
A41: 800 | B41: 68.5 | C41: 4.452 | D41: 0.011 | E41: 515.6 | F41: 9.69 | G41: 48.2 | H41: 6.26 | Y41: 4.481
A42: 825 | B42: 46.2 | C42: 4.428 | D42: 0.009 | E42: 508.1 | F42: 10.57 | G42: 52.3 | H42: 6.79 | Y42: 4.481
A43: 850 | B43: 38.5 | C43: 4.467 | D43: 0.01 | E43: 520.3 | F43: 12 | G43: 58.6 | H43: 7.69 | Y43: 4.481
A44: 875 | B44: 39.8 | C44: 4.456 | D44: 0.01 | E44: 516.8 | F44: 13.69 | G44: 63.4 | H44: 8.42 | Y44: 4.481
A45: 900 | B45: 29.7 | C45: 4.459 | D45: 0.012 | E45: 517.8 | F45: 16.27 | G45: 69.1 | H45: 9.38 | Y45: 4.48
A46: 925 | B46: 21.6 | C46: 4.433 | D46: 0.016 | E46: 509.6 | F46: 19.44 | G46: 73.7 | H46: 10.32 | Y46: 4.48
A47: 950 | B47: 12.3 | C47: 4.483 | D47: 0.025 | E47: 525.2 | F47: 21.96 | G47: 78.9 | H47: 11.1 | Y47: 4.479
A48: 1000 | B48: 23.3 | C48: 4.475 | D48: 0.015 | E48: 522.8 | F48: 24.86 | G48: 81.6 | H48: 11.78 | Y48: 4.479
A49: 1000 | B49: 1403.2 | C49: 4.403 | D49: 0.006 | E49: 500.6 | F49: 4.27 | G49: 21.7 | H49: 2.75 | Y49: 4.479
A50: 1050 | B50: 22.1 | C50: 4.481 | D50: 0.016 | E50: 524.7 | F50: 28.48 | G50: 80.9 | H50: 12.25 | Y50: 4.478
A51: 1100 | B51: 22.6 | C51: 4.474 | D51: 0.015 | E51: 522.5 | F51: 34.58 | G51: 86.1 | H51: 13.91 | Y51: 4.476
A52: 1100 | B52: 45.4 | C52: 4.462 | D52: 0.018 | E52: 518.8 | F52: 12.44 | G52: 54.1 | H52: 7.28 | Y52: 4.475
A53: 1150 | B53: 19.3 | C53: 4.454 | D53: 0.017 | E53: 516.1 | F53: 51.97 | G53: 142.8 | H53: 23.06 | Y53: 4.475
A54: 1200 | B54: 88.8 | C54: 4.473 | D54: 0.011 | E54: 522 | F54: 11.85 | G54: 53.6 | H54: 7.28 | Y54: 4.475
A55: 1225 | B55: 19.4 | C55: 4.466 | D55: 0.02 | E55: 520 | F55: 91.24 | G55: 361.6 | H55: 54.7 | Y55: 4.474
A56: 1275 | B56: 32.2 | C56: 4.512 | D56: 0.025 | E56: 534.6 | F56: 23.86 | G56: 108.9 | H56: 15.14 | Y56: 4.473
A57: 1325 | B57: 26.9 | C57: 4.478 | D57: 0.015 | E57: 523.9 | F57: 79.18 | G57: 296.2 | H57: 46.02 | Y57: 4.473
A58: 1375 | B58: 141.5 | C58: 4.483 | D58: 0.009 | E58: 525.3 | F58: 20.4 | G58: 94.7 | H58: 12.81 | Y58: 4.473
A59: 1425 | B59: 62.8 | C59: 4.511 | D59: 0.01 | E59: 534.1 | F59: 54.23 | G59: 170.3 | H59: 27.04 | Y59: =AVERAGE(Y27:Y58) -> 4.48275
A60: 1450 | B60: 15.1 | C60: 4.467 | D60: 0.054 | E60: 520.4 | F60: 17.93 | G60: 93.5 | H60: 12.21 | Y60: 4.469
A61: 1575 | B61: 7.7 | C61: 4.384 | D61: 0.042 | E61: 494.6 | F61: 41.79 | G61: 188.3 | H61: 27.32 | Y61: 4.467
A62: 1575 | B62: 1.5 | C62: 4.219 | D62: 0.291 | E62: 447.3 | F62: 16.07 | G62: 79.3 | H62: 13.46 | Y62: 4.467
C63: =AVERAGE(C31:C62) -> 4.47059375 | Y63: 4.467
A64: C. PCA - 82502,81 | C64: Age | D64: Error | J64: =(A64) -> C. PCA - 82502,81 | Y64: 4.466
A65: 350 | B65: 2.1 | C65: 3.348 | D65: 0.031 | E65: 2275.5 | F65: 44.62 | G65: 16.4 | H65: 78.36 | J65: Maximum Age | K65: 5431 | L65: Million Years | Y65: 4.466
A66: 450 | B66: 1.2 | C66: 3.3 | D66: 0.019 | E66: 239.8 | F66: 28.56 | G66: 23.9 | H66: 6.01 | J66: Minimum Age | K66: 3300 | L66: Million Years | Y66: 4.466
A67: 550 | B67: 5.7 | C67: 4.061 | D67: 0.012 | E67: 360.7 | F67: 15.67 | G67: 30.6 | H67: 4.35 | J67: Average Age | K67: 4366 | L67: Million Years | Y67: 4.466
A68: 600 | B68: 20.7 | C68: 4.301 | D68: 0.011 | E68: 490.1 | F68: 7.86 | G68: 29.2 | H68: 3.87 | J68: Age Difference | K68: =(K65-K66) -> 2131 | L68: Million Years | Y68: 4.466
A69: 650 | B69: 16.1 | C69: 4.416 | D69: 0.012 | E69: 526.6 | F69: 4.72 | G69: 22.3 | H69: 2.84 | J69: Difference | K69: =(K65/K66) -> 1.645757576 | L69: Percent | Y69: 4.465
A70: 700 | B70: 36.4 | C70: 4.475 | D70: 0.008 | E70: 483 | F70: 4.99 | G70: 22.2 | H70: 2.92 | J70: Standard Deviation | K70: 414 | L70: Million Years | Y70: 4.465
A71: 720 | B71: 29.9 | C71: 4.505 | D71: 0.01 | E71: 511.2 | F71: 4.99 | G71: 23.2 | H71: 3.16 | Y71: 4.465
A72: 745 | B72: 34.8 | C72: 4.507 | D72: 0.009 | E72: 517.4 | F72: 5.87 | G72: 28.2 | H72: 3.81 | Y72: 4.465
A73: 775 | B73: 37.3 | C73: 4.51 | D73: 0.008 | E73: 517.5 | F73: 6.87 | G73: 33.2 | H73: 4.51 | Y73: 4.464
A74: 800 | B74: 45.1 | C74: 4.512 | D74: 0.008 | E74: 520.1 | F74: 8.03 | G74: 40.4 | H74: 5.27 | Y74: 4.464
A75: 825 | B75: 68.5 | C75: 4.495 | D75: 0.008 | E75: 515.6 | F75: 9.69 | G75: 48.2 | H75: 6.26 | Y75: 4.463
A76: 850 | B76: 46.2 | C76: 4.465 | D76: 0.01 | E76: 508.1 | F76: 10.57 | G76: 52.3 | H76: 6.79 | Y76: 4.463
A77: 900 | B77: 38.5 | C77: 4.4 | D77: 0.009 | E77: 520.3 | F77: 12 | G77: 58.6 | H77: 7.69 | Y77: 4.462
A78: 950 | B78: 39.8 | C78: 4.341 | D78: 0.009 | E78: 516.8 | F78: 13.69 | G78: 63.4 | H78: 8.42 | Y78: 4.461
A79: 1000 | B79: 29.7 | C79: 4.362 | D79: 0.01 | E79: 517.8 | F79: 16.27 | G79: 69.1 | H79: 9.38 | Y79: 4.46
A80: 1050 | B80: 21.6 | C80: 4.403 | D80: 0.014 | E80: 509.6 | F80: 19.44 | G80: 73.7 | H80: 10.32 | Y80: 4.46
A81: 1100 | B81: 12.3 | C81: 4.408 | D81: 0.032 | E81: 525.2 | F81: 21.96 | G81: 78.9 | H81: 11.1 | Y81: 4.46
A82: 1200 | B82: 23.3 | C82: 4.451 | D82: 0.018 | E82: 522.8 | F82: 24.86 | G82: 81.6 | H82: 11.78 | Y82: 4.459
A83: 1300 | B83: 1403.2 | C83: 4.488 | D83: 0.017 | E83: 500.6 | F83: 4.27 | G83: 21.7 | H83: 2.75 | Y83: 4.458
A84: 1400 | B84: 22.1 | C84: 5.341 | D84: 0.125 | E84: 524.7 | F84: 28.48 | G84: 80.9 | H84: 12.25 | Y84: 4.458
A85: 1575 | B85: 22.6 | C85: 4.614 | D85: 0.2 | E85: 522.5 | F85: 34.58 | G85: 86.1 | H85: 13.91 | Y85: 4.458
C86: =STDEV(C65:C85) -> 0.4141956807 | Y86: 4.456
A87: D. PCA - 91007,26 | C87: Age | D87: Error | J87: =(A87) -> D. PCA - 91007,26 | Y87: 4.456
A88: 350 | B88: 60.6 | C88: 1.56 | D88: 0.006 | E88: 44.7 | F88: 0.44 | G88: 6.3 | H88: 1.2 | J88: Maximum Age | K88: 4460 | L88: Million Years | Y88: 4.455
A89: 450 | B89: 16 | C89: 2.973 | D89: 0.015 | E89: 136.5 | F89: 1.58 | G89: 38.6 | H89: 1.24 | J89: Minimum Age | K89: 1560 | L89: Million Years | Y89: 4.454
A90: 550 | B90: 30.6 | C90: 3.697 | D90: 0.013 | E90: 220 | F90: 2.17 | G90: 53.6 | H90: 1.56 | J90: Average Age | K90: 4062 | L90: Million Years | Y90: 4.452
A91: 600 | B91: 33.9 | C91: 4.166 | D91: 0.011 | E91: 295 | F91: 2.5 | G91: 61.8 | H91: 1.78 | J91: Age Difference | K91: =(K88-K89) -> 2900 | L91: Million Years | Y91: 4.452
A92: 650 | B92: 39.9 | C92: 4.335 | D92: 0.011 | E92: 327.1 | F92: 2.37 | G92: 59.3 | H92: 1.72 | J92: Difference | K92: =(K88/K89) -> 2.858974359 | L92: Percent | Y92: 4.451
A93: 700 | B93: 45 | C93: 4.424 | D93: 0.009 | E93: 345.2 | F93: 2.4 | G93: 59.4 | H93: 1.68 | J93: Standard Deviation | K93: 720 | L93: Million Years | Y93: 4.45
A94: 725 | B94: 62.1 | C94: 4.445 | D94: 0.009 | E94: 349.7 | F94: 2.41 | G94: 60 | H94: 1.69 | Y94: 4.45
A95: 750 | B95: 70.5 | C95: 4.446 | D95: 0.008 | E95: 350 | F95: 2.39 | G95: 59.9 | H95: 1.71 | Y95: 4.449
A96: 775 | B96: 51.2 | C96: 4.441 | D96: 0.009 | E96: 348.7 | F96: 2.38 | G96: 58.5 | H96: 1.66 | Y96: 4.447
A97: 850 | B97: 84.4 | C97: 4.366 | D97: 0.008 | E97: 333.4 | F97: 2.53 | G97: 60.9 | H97: 1.82 | Y97: 4.447
A98: 900 | B98: 58 | C98: 4.213 | D98: 0.009 | E98: 303.5 | F98: 2.61 | G98: 62.8 | H98: 1.89 | Y98: 4.446
A99: 950 | B99: 55.6 | C99: 4.051 | D99: 0.009 | E99: 274.8 | F99: 2.86 | G99: 64.7 | H99: 2.05 | Y99: 4.445
A100: 1000 | B100: 55.2 | C100: 4.242 | D100: 0.01 | E100: 308.9 | F100: 3.71 | G100: 80.3 | H100: 2.68 | Y100: 4.444
A101: 1050 | B101: 49.5 | C101: 4.311 | D101: 0.012 | E101: 322.4 | F101: 6.34 | G101: 130.6 | H101: 4.55 | Y101: 4.443
A102: 1100 | B102: 12.3 | C102: 4.317 | D102: 0.03 | E102: 323.4 | F102: 13.28 | G102: 277.9 | H102: 9.79 | Y102: 4.443
